Workbook

Sheet Overview (hidden)
B1: =A1.Admin!B1 -> RateMaker 2011 release 1.0 © Elenchus Research Associates
A2: =RIGHT(CELL("filename",$A$1),LEN(CELL("filename",$A$1))-FIND(".xls]",CELL("filename",$A$1))-4) ->  | B2: =A1.Admin!B2 -> Westario Power (ED-2002-0515)
A3: =LEFT(RIGHT(CELL("filename",A3),LEN(CELL("filename",A3))-FIND("[",CELL("filename",A3))+1),FIND("]",RIGHT(CELL("filename",A3),LEN(CELL("filename",A3))-FIND("[",CELL("filename",A3))+1))) -> [Westario_APPL_2013EDR_RateMaker_v2 - IFRS - FINAL.xlsm] | B3: =A1.Admin!B3 -> 2013 EDR Application (EB-2012-0176) version: 1
B4: =A1.Admin!B4 -> October 9, 2012
B6: Model Overview
B7: Select a worksheet link
B9: Tab | C9: ShortName | D9: Title | E9: Instruction | F9: Link | G9: Status
B10: A | D10: General | F10: =IF(B10="","",IF(LEN(B10)>1,HYPERLINK($A$3&B10&IF(C10="","","."&C10)&"!A1",B10&" "&D10),HYPERLINK($A$3&B11&IF(C11="","","."&C11)&"!A1",B11&" "&D11))) -> A1 Administration
B11: A1 | C11: Admin | D11: Administration | E11: Enter administrative information about the Application | F11: A1 Administration
B12: A2 | C12: HistoricalBalances | D12: Approved & Actual Balances | E12: Enter historical approved and actual results by USA account | F12: A2 Approved & Actual Balances
B13: A3 | C13: CustomerClasses | D13: Customer Classes | E13: Enter names and status of existing and proposed customer classes | F13: A3 Customer Classes
B14: A4 | C14: DistRates | D14: Distribution Rates, Loss Factors and Allowances | E14: Enter current approved rates and factors per the utility's latest rate order | F14: A4 Distribution Rates, Loss Factors and Allowances
B15: A5 | C15: RateRiders | D15: Rate Riders and Adders | E15: Enter current approved rates per the utility's latest rate order | F15: A5 Rate Riders and Adders
B16: B | D16: Cost Projections | F16: B1 Gross Capital Assets
B17: B1 | C17: GrossCapital | D17: Gross Capital Assets | E17: Enter planned capital expenditures and asset retirements | F17: B1 Gross Capital Assets
B18: B2 | C18: DepreciationCalcs | D18: Depreciation Calculations | E18: Enter fully depreciated balances and depreciation rates | F18: B2 Depreciation Calculations
B19: B3 | C19: CapitalAmortization | D19: Amortization of Capital Assets | E19: Enter breakdown of historical balance and adjustments for retirements/other | F19: B3 Amortization of Capital Assets
B20: B4 | C20: NetCapital | D20: Net Capital Asset Balances | E20: Enter previously approved accumulated amortization balances and review projected net balances | F20: B4 Net Capital Asset Balances
B21: B5 | C21: OMA | D21: OM&A Expenses | E21: Enter projected expenses for Operations, Maintenance and Administration | F21: B5 OM&A Expenses
B22: C | D22: Volumes, Rates and Revenues | F22: C1 Line Loss Factors
B23: C1 | C23: LossFactors | D23: Line Loss Factors | E23: Enter historical kWh's and Supply Facility Loss Factors | F23: C1 Line Loss Factors
B24: C2 | C24: LoadForecast | D24: Load Data and Forecast | E24: ="Enter historical volume data and projections for "&(TestYr-1)&"-"&TestYr -> Enter historical volume data and projections for 2012-2013 | F24: C2 Load Data and Forecast
B25: C3 | C25: DistRevenue | D25: Revenue from Current Distribution Charges | E25: Enter projected volumes for Transformer Allowance | F25: C3 Revenue from Current Distribution Charges
B26: C4 | C26: TransmissionCharges | D26: Transmission Charges | E26: Enter historical transmission revenues, charges and rate changes | F26: C4 Transmission Charges
B27: C5 | C27: TransmissionRates | D27: Transmission Rates | E27: Enter Uniform Transmission Rates (existing & Test Year) | F27: C5 Transmission Rates
B28: C6 | C28: LowVoltage | D28: Low Voltage Charges | E28: ="Enter current LV rates and total charges projected in "&TestYr -> Enter current LV rates and total charges projected in 2013 | F28: C6 Low Voltage Charges
B29: C7 | C29: CommodityPrice | D29: Commodity Price | E29: Enter actual non-RPP kWh's and forecast prices | F29: C7 Commodity Price
B30: C8 | C30: PassthruRates | D30: Pass-through Charges | E30: Enter rates for pass-through charges and estimated Low Voltage revenues | F30: C8 Pass-through Charges
B31: C9 | C31: ServiceRevenues | D31: Other Service Revenues | E31: Enter volumes and rates for other distributor services | F31: C9 Other Service Revenues
B32: C10 | C32: RevenueOffsets | D32: Revenue Offset Projections | E32: Enter other amounts needed to complete projections | F32: C10 Revenue Offset Projections
B33: D | D33: Rate Base & Return | F33: D1 Rate Base Summary
B34: D1 | C34: RateBase | D34: Rate Base Summary | E34: Enter the Working Capital Allowance factor | F34: D1 Rate Base Summary
B35: D2 | C35: Debt | D35: Long Term Debt | E35: ="Enter details of debt outstanding in "&TestYr&" and projected interest in "&(TestYr-1) -> Enter details of debt outstanding in 2013 and projected interest in 2012 | F35: D2 Long Term Debt
B36: D3 | C36: CapitalStructure | D36: Deemed Capital Structure and Return On Capital | E36: Enter deemed portions of debt and equity capitalization | F36: D3 Deemed Capital Structure and Return On Capital
B37: E | D37: PILs Data & Results | F37: E1 2012 Operating Projections
B38: E1 | C38: BridgeYrPL | D38: =(TestYr-1)&" Operating Projections" -> 2012 Operating Projections | E38: ="Review/adjust projections of P&L accounts for "&(TestYr-1) -> Review/adjust projections of P&L accounts for 2012 | F38: E1 2012 Operating Projections
B39: E2 | C39: TestYrPL | D39: =TestYr&" Operating Projections" -> 2013 Operating Projections | E39: ="Review/adjust projections of P&L accounts for "&TestYr -> Review/adjust projections of P&L accounts for 2013 | F39: E2 2013 Operating Projections
B40: E3 | C40: CapitalInfo | D40: Capitalization and Capital Asset Changes | E40: ="Enter the deemed equity % for "&(TestYr-1) -> Enter the deemed equity % for 2012 | F40: E3 Capitalization and Capital Asset Changes
B41: E4 | C41: PILsResults | D41: PILs results | E41: ="Enter PILs amounts for "&(TestYr-1)&" & "&TestYr& " from PILs model" -> Enter PILs amounts for 2012 & 2013 from PILs model | F41: E4 PILs results
B42: F | D42: Proposed Distribution Revenues & Rates | F42: F1 Distribution Revenue Requirement
B43: F1 | C43: RevRequirement | D43: Distribution Revenue Requirement | E43: ="Enter adjustments for non-recurring items in "&TestYr -> Enter adjustments for non-recurring items in 2013 | F43: F1 Distribution Revenue Requirement
B44: F2 | C44: CostAllocation | D44: Cost Allocation | E44: Enter selected amounts from sheets 'O1' and 'O2' of Cost Allocation model | F44: F2 Cost Allocation
B45: F3 | C45: RevenueAllocation | D45: Revenue Requirement Allocation | E45: Enter allocation of Base Revenue Requirement and RC ratio ranges by customer class | F45: F3 Revenue Requirement Allocation
B46: F4 | C46: RateDesign | D46: Fixed/Variable Rate Design | E46: Enter the proposed fixed monthly rate for each customer class | F46: F4 Fixed/Variable Rate Design
B47: G | D47: Deferral & Variance Accounts | F47: G1 Deferral / Variance Account Balances
B48: G1 | C48: DeferralBalances | D48: Deferral / Variance Account Balances | E48: Enter principal amounts and changes in account balances | F48: G1 Deferral / Variance Account Balances
B49: G2 | C49: ApprovedRecoveries | D49: Approved Recoveries | E49: Enter account numbers and projected recoveries | F49: G2 Approved Recoveries
B50: G3 | C50: ProposedRecoveries | D50: Proposed Deferral /Variance Account Balance Recoveries | E50: Select balances to be recovered, effective date and recovery period (allocations on next sheet) | F50: G3 Proposed Deferral /Variance Account Balance Recoveries
B51: G4 | C51: RateRiders | D51: Rate Riders | E51: Allocate recoveries of deferral / variance account balances | F51: G4 Rate Riders
B52: G5 | C52: GlobalAdjustment | D52: Global Adjustment Rate Rider | E52: Allocate recoveries of deferral / variance account balances | F52: G5 Global Adjustment Rate Rider
B53: H | D53: Final Rates & Bill Impacts | F53: H1 Reconciliation of Rates with Revenue / Recovery Requirements
B54: H1 | C54: RatesCheck | D54: Reconciliation of Rates with Revenue / Recovery Requirements | E54: Review reconciliations (no input on this sheet) | F54: H1 Reconciliation of Rates with Revenue / Recovery Requirements
B55: H2 | C55: FinalRates | D55: Final Proposed Distribution Rates | E55: Enter rate adjustments and factors where applicable | F55: H2 Final Proposed Distribution Rates
B56: H3 | C56: FinalRateRiders | D56: Final Proposed Rate Riders & Adders | E56: Enter proposed rates | F56: H3 Final Proposed Rate Riders & Adders
B57: H4 | C57: ImpactSummary | D57: Bill Impact Summary | E57: Enter sample volumes and RPP status | F57: =IF(B57="","",IF(LEN(B57)>1,HYPERLINK($A$3&B57&IF(C57="","","."&C57)&"!A1",B57&" "&D57),HYPERLINK($A$3&B58&IF(C58="","","."&C58)&"!A1",B58&" "&D58))) -> H4 Bill Impact Summary
B58: H5 | C58: BillImpacts | D58: Customer Bill Impact Analysis | E58: Review detailed bill impacts (no input on this sheet) | F58: =IF(B58="","",IF(LEN(B58)>1,HYPERLINK($A$3&B58&IF(C58="","","."&C58)&"!A1",B58&" "&D58),HYPERLINK($A$3&B59&IF(C59="","","."&C59)&"!A1",B59&" "&D59))) -> H5 Customer Bill Impact Analysis
B59: S | D59: Financial Statements | F59: S1 Finalize 2012 Pro-forma Projections
B60: S1 | C60: BridgeYrProForma | D60: ="Finalize "&(TestYr-1)&" Pro-forma Projections" -> Finalize 2012 Pro-forma Projections | E60: ="Enter final adjustments to projected account balances for "&(TestYr-1) -> Enter final adjustments to projected account balances for 2012 | F60: S1 Finalize 2012 Pro-forma Projections
B61: S2 | C61: TestYrProForma | D61: ="Finalize "&TestYr&" Pro-forma Projections" -> Finalize 2013 Pro-forma Projections | E61: ="Enter final adjustments to projected account balances for "&TestYr&" at Existing Rates" -> Enter final adjustments to projected account balances for 2013 at Existing Rates | F61: S2 Finalize 2013 Pro-forma Projections
B62: S3 | C62: TestYrNewRates | D62: ="Finalize "&TestYr&" Test Year Projections" -> Finalize 2013 Test Year Projections | E62: ="Enter final adjustments to projected account balances for "&TestYr&" at Proposed Rates" -> Enter final adjustments to projected account balances for 2013 at Proposed Rates | F62: S3 Finalize 2013 Test Year Projections
B63: S4 | C63: VarBS | D63: Variance Analysis: Balance Sheet | E63: Review highlighted variances (no input on this sheet) | F63: S4 Variance Analysis: Balance Sheet
B64: S5 | C64: VarPL | D64: Variance Analysis: Profit & Loss | E64: Review highlighted variances (no input on this sheet) | F64: S5 Variance Analysis: Profit & Loss
B65: S6 | C65: VarRateBase | D65: Variance Analysis: Rate Base | E65: Enter previously approved working capital factor | F65: S6 Variance Analysis: Rate Base
B66: S7 | C66: VarSuffDef | D66: Variance Analysis: Revenue Sufficiency / Deficiency | E66: Review highlighted variances (no input on this sheet) | F66: S7 Variance Analysis: Revenue Sufficiency / Deficiency
B67: X | D67: Application Exhibits | F67: X11 Profit & Loss Trend
B68: X11 | C68: PLtrend | D68: Profit & Loss Trend | E68: Profit & Loss Trend | F68: X11 Profit & Loss Trend
B69: X12 | C69: PLvariances | D69: Profit & Loss Variance Analysis | E69: Profit & Loss Variance Analysis | F69: X12 Profit & Loss Variance Analysis
B70: X13 | C70: BStrend | D70: Balance Sheet Trend | E70: Balance Sheet Trend | F70: X13 Balance Sheet Trend
B71: X14 | C71: BSvariances | D71: Balance Sheet Variance Analysis | E71: Balance Sheet Variance Analysis | F71: X14 Balance Sheet Variance Analysis
B72: X21 | C72: CapitalCont | D72: Capital Asset Continuity Statements | E72: Capital Asset Continuity Statements | F72: X21 Capital Asset Continuity Statements
B73: X22 | C73: RBtrend | D73: Rate Base Trend | E73: Rate Base Trend | F73: X22 Rate Base Trend
B74: X23 | C74: RBvariances | D74: Rate Base Variance Analysis | E74: Rate Base Variance Analysis | F74: X23 Rate Base Variance Analysis
B75: X31 | C75: RevSuffDef | D75: Revenue Sufficiency / Deficiency | E75: Revenue Sufficiency / Deficiency | F75: =IF(B75="","",IF(LEN(B75)>1,HYPERLINK($A$3&B75&IF(C75="","","."&C75)&"!A1",B75&" "&D75),HYPERLINK($A$3&B76&IF(C76="","","."&C76)&"!A1",B76&" "&D76))) -> X31 Revenue Sufficiency / Deficiency
B76: X32 | C76: RevenueReq | D76: Revenue Requirement Summary | E76: Revenue Requirement Summary | F76: X32 Revenue Requirement Summary
B77: X91 | C77: RatesSched | D77: Monthly Rates and Charges | E77: Monthly Rates and Charges | F77: X91 Monthly Rates and Charges
B78: Y | D78: Reference Information | F78: Y1 Prescribed Interest and Return Rates
B79: Y1 | C79: PrescribedRates | D79: Prescribed Interest and Return Rates | E79: Enter rates pursuant to OEB direction | F79: Y1 Prescribed Interest and Return Rates
B80: Y2 | C80: ChartOfAccts | D80: Chart Of Accounts | E80: Specify/Add required accounts | F80: Y2 Chart Of Accounts
B81: Y3 | C81: AmortAccts | D81: Capital Asset Amortization Accounts | E81: Specify accounts to record amortization expenses and accumulated amortization | F81: Y3 Capital Asset Amortization Accounts
B82: Y4 | C82: PassthruAccts | D82: Pass-through Charges & Expense Accounts | E82: Enter names and USA expense account numbers for pass-through charges | F82: Y4 Pass-through Charges & Expense Accounts
B83: Y5 | C83: DistRateAccts | D83: Distribution Rate Components & Accounts | E83: Enter Distribution Rate components and associated USA revenue or variance account numbers | F83: Y5 Distribution Rate Components & Accounts
B84: Y6 | C84: ServiceRevAccts | D84: Revenue Accounts for Other Service Charges | E84: Enter USA account numbers for other regulated service revenues | F84: Y6 Revenue Accounts for Other Service Charges
B85: Y7 | C85: RPPrates | D85: Regulated Price Plan (RPP) Rates | E85: Enter RPP rates (/kWh) for electricity commodity | F85: Y7 Regulated Price Plan (RPP) Rates
B86: Y8 | C86: VarianceThresholds | D86: Variance Analysis Thresholds | E86: Enter thresholds used to highlight significant year/year variances | F86: Y8 Variance Analysis Thresholds
B87: Z | D87: Model Parameters | F87: Z1 Model Variables
B88: Z1 | C88: ModelVariables | D88: Model Variables | F88: Z1 Model Variables
B89: Z2 | C89: ModelTables | D89: Model Tables | F89: Z2 Model Tables
B90: Z0 | C90: Disclaimer | D90: Software Terms of Use | F90: Z0 Software Terms of Use

Sheet A1.Admin
B1: ="RateMaker 2011 release "&RMrelease&" © Elenchus Research Associates" -> RateMaker 2011 release 1.0 © Elenchus Research Associates
A2: =IF(ISERROR(FIND(".xlsm]",CELL("filename",$A$1))),LEFT(RIGHT(CELL("filename",$A$1),LEN(CELL("filename",$A$1))-FIND(".xls]",CELL("filename",$A$1))-4),FIND(".",RIGHT(CELL("filename",$A$1),LEN(CELL("filename",$A$1))-FIND(".xls]",CELL("filename",$A$1))-4))-1),LEFT(RIGHT(CELL("filename",$A$1),LEN(CELL("filename",$A$1))-FIND(".xlsm]",CELL("filename",$A$1))-5),FIND(".",RIGHT(CELL("filename",$A$1),LEN(CELL("filename",$A$1))-FIND(".xlsm]",CELL("filename",$A$1))-5))-1)) -> A1 | B2: =C11&" ("&C12&")" -> Westario Power (ED-2002-0515)
B3: =C13&" EDR Application ("&C14&")"&IF(ISBLANK(C10),""," version: "&C10) -> 2013 EDR Application (EB-2012-0176) version: 1
B4: =TEXT(C15,"[$-409]mmmm d, yyyy;@") -> October 9, 2012
B6: =$A$2&" "&VLOOKUP($A$2,Overview!$B$10:$E$90,3,FALSE) -> A1 Administration | E6: =IF(ISNA(MATCH("ERROR",E$11:E$23,0)),"","ERROR") -> 
B7: =IF(VLOOKUP($A$2,Overview!$B$10:$E$90,4,FALSE)=VLOOKUP($A$2,Overview!$B$10:$E$90,3,FALSE),"",""&VLOOKUP($A$2,Overview!$B$10:$E$90,4,FALSE)) -> Enter administrative information about the Application
A9: Go to Overview
B10: Application Version | C10: 1
B11: Name of Applicant | C11: Westario Power | E11: =IF(LEN(C11)>1,"OK","ERROR") -> OK
B12: License Number | C12: ED-2002-0515 | E12: =IF(LEN(C12)>9,"OK","ERROR") -> OK
B13: Test Year | C13: 2013 | E13: =IF(AND(ISNUMBER(C13),C13>2007,C13<2015),"OK","ERROR") -> OK
B14: File Number(s) | C14: EB-2012-0176 | E14: =IF(LEN(C14)>9,"OK","ERROR") -> OK
B15: Date of Application | C15: 2012-10-09 | E15: =IF(AND(ISNUMBER(C15),C15>=DATE(TestYr-1,1,1),C15<=DATE(TestYr,12,31)),"OK","ERROR") -> OK
B16: Contact:
B17: Name | C17: Lisa Milne | E17: =IF(LEN(C17)>2,"OK","ERROR") -> OK
B18: email | C18: lisa.milne@westario.com | E18: =IF(LEN(C18)>4,"OK","ERROR") -> OK
B19: phone | C19: 519-507-6666 | E19: =IF(LEN(C19)>11,"OK","ERROR") -> OK
B21: How many historical years (3-5)? | C21: 4 | E21: =IF(HistYrs>TestYr-2-YEAR(C22),"OK","ERROR") -> OK
B22: Date of previous Test Year approval | C22: 2009-06-15 | E22: =IF(AND(ISNUMBER(C22),C22>=DATE(TestYr-5,1,1),C22<=DATE(TestYr-1,1,1)),"OK","ERROR") -> OK
B23: Date of previously approved deferral balances | C23: 2008-12-31 | E23: =IF(AND(ISNUMBER(C23),C23>=DATE(TestYr-8,12,31),C23<=DATE(TestYr-2,12,31)),"OK","ERROR") -> OK
C24: =TEXT(C22,CELL("format",C22)) -> 

Sheet A2.HistoricalBalances
B1: =A1.Admin!B1 -> RateMaker 2011 release 1.0 © Elenchus Research Associates
A2: =IF(ISERROR(FIND(".xlsm]",CELL("filename",$A$1))),LEFT(RIGHT(CELL("filename",$A$1),LEN(CELL("filename",$A$1))-FIND(".xls]",CELL("filename",$A$1))-4),FIND(".",RIGHT(CELL("filename",$A$1),LEN(CELL("filename",$A$1))-FIND(".xls]",CELL("filename",$A$1))-4))-1),LEFT(RIGHT(CELL("filename",$A$1),LEN(CELL("filename",$A$1))-FIND(".xlsm]",CELL("filename",$A$1))-5),FIND(".",RIGHT(CELL("filename",$A$1),LEN(CELL("filename",$A$1))-FIND(".xlsm]",CELL("filename",$A$1))-5))-1)) -> A2 | B2: =A1.Admin!B2 -> Westario Power (ED-2002-0515)
B3: =A1.Admin!B3 -> 2013 EDR Application (EB-2012-0176) version: 1
B4: =A1.Admin!B4 -> October 9, 2012
B6: =$A$2&" "&VLOOKUP($A$2,Overview!$B$10:$E$90,3,FALSE) -> A2 Approved & Actual Balances
B7: =IF(VLOOKUP($A$2,Overview!$B$10:$E$90,4,FALSE)=VLOOKUP($A$2,Overview!$B$10:$E$90,3,FALSE),"",""&VLOOKUP($A$2,Overview!$B$10:$E$90,4,FALSE)) -> Enter historical approved and actual results by USA account
A9: Go to Overview | B9: Account Grouping | C9: Account Description | D9: FinStmt | E9: Rates | F9: =(TestYr-2)&CRLF&"Actual" -> 2011 Actual | G9: =IF(OR(TestYr-LEFT(ApprovedYr,4)<=HistYrs, HistYrs>1),(TestYr-3)&CRLF&"Actual","") -> 2010 Actual | H9: =IF(OR(TestYr-LEFT(ApprovedYr,4)<=HistYrs, HistYrs>2),(TestYr-4)&CRLF&"Actual","") -> 2009 Actual | J9: =IF(OR(TestYr-LEFT(ApprovedYr,4)<HistYrs, HistYrs>4),(TestYr-6)&CRLF&"Actual","") ->  | K9: =IF(OR(TestYr-LEFT(ApprovedYr,4)<HistYrs, HistYrs>5),(TestYr-7)&CRLF&"Actual","") ->  | L9: =FakeBlank ->  | M9: =ApprovedYr -> 2009 Approved | O9: Rate code.account grouping | P9: Non-zero | Q9: Sub-count | R9: Previous Grouping
B10: =Y2.ChartOfAccts!D10 -> 1050-Current Assets | C10: =""&Y2.ChartOfAccts!C10 -> 1005-Cash | D10: =""&Y2.ChartOfAccts!E10 -> BS | E10: =Y2.ChartOfAccts!F10 -> 0 | F10: 5549066 | G10: 4144310.87 | H10: 2612166.11 | M10: 1578458 | O10: =E10&"."&B10 -> 0.1050-Current Assets | P10: =ABS(F10)+ABS(G10)+ABS(K10)+ABS(M10) -> 11271834.87 | Q10: =SUBTOTAL(3,$B$9:$B9) -> 1 | R10: =IF($B10<>$B9,$B9,OFFSET($B$9,MATCH(Q10,Q$10:Q$500,0)-1,0)) -> Account Grouping
B11: =Y2.ChartOfAccts!D11 -> 1050-Current Assets | C11: =""&Y2.ChartOfAccts!C11 -> 1010-Cash Advances and Working Funds | D11: =""&Y2.ChartOfAccts!E11 -> BS | E11: =Y2.ChartOfAccts!F11 -> 0 | H11: 0 | O11: 0.1050-Current Assets | P11: 0 | Q11: =SUBTOTAL(3,$B$9:$B10) -> 2 | R11: =IF($B11<>$B10,$B10,OFFSET($B$9,MATCH(Q11,Q$10:Q$500,0)-1,0)) -> 1050-Current Assets
B12: =Y2.ChartOfAccts!D12 -> 1050-Current Assets | C12: =""&Y2.ChartOfAccts!C12 -> 1020-Interest Special Deposits | D12: =""&Y2.ChartOfAccts!E12 -> BS | E12: =Y2.ChartOfAccts!F12 -> 0 | H12: 0 | O12: 0.1050-Current Assets | P12: 0 | Q12: =SUBTOTAL(3,$B$9:$B11) -> 2 | R12: 1050-Current Assets
B13: =Y2.ChartOfAccts!D13 -> 1050-Current Assets | C13: =""&Y2.ChartOfAccts!C13 -> 1030-Dividend Special Deposits | D13: =""&Y2.ChartOfAccts!E13 -> BS | E13: =Y2.ChartOfAccts!F13 -> 0 | O13: 0.1050-Current Assets | P13: 0 | Q13: =SUBTOTAL(3,$B$9:$B12) -> 2 | R13: 1050-Current Assets
B14: =Y2.ChartOfAccts!D14 -> 1050-Current Assets | C14: =""&Y2.ChartOfAccts!C14 -> 1040-Other Special Deposits | D14: =""&Y2.ChartOfAccts!E14 -> BS | E14: =Y2.ChartOfAccts!F14 -> 0 | F14: 297624 | G14: 366759.42 | H14: 393914.67 | M14: 467000 | O14: 0.1050-Current Assets | P14: 1131383.42 | Q14: =SUBTOTAL(3,$B$9:$B13) -> 2 | R14: 1050-Current Assets
B15: =Y2.ChartOfAccts!D15 -> 1050-Current Assets | C15: =""&Y2.ChartOfAccts!C15 -> 1060-Term Deposits | D15: =""&Y2.ChartOfAccts!E15 -> BS | E15: =Y2.ChartOfAccts!F15 -> 0 | O15: 0.1050-Current Assets | P15: 0 | Q15: =SUBTOTAL(3,$B$9:$B14) -> 3 | R15: 1050-Current Assets
B16: =Y2.ChartOfAccts!D16 -> 1050-Current Assets | C16: =""&Y2.ChartOfAccts!C16 -> 1070-Current Investments | D16: =""&Y2.ChartOfAccts!E16 -> BS | E16: =Y2.ChartOfAccts!F16 -> 0 | F16: 12663 | G16: 20173.7 | H16: 20267.5 | O16: 0.1050-Current Assets | P16: 32836.7 | Q16: =SUBTOTAL(3,$B$9:$B15) -> 3 | R16: 1050-Current Assets
B17: =Y2.ChartOfAccts!D17 -> 1050-Current Assets | C17: =""&Y2.ChartOfAccts!C17 -> 1100-Customer Accounts Receivable | D17: =""&Y2.ChartOfAccts!E17 -> BS | E17: =Y2.ChartOfAccts!F17 -> 0 | F17: 1497100 | G17: 3739092.52 | H17: 3519943.07 | M17: 3489000 | O17: 0.1050-Current Assets | P17: 8725192.52 | Q17: =SUBTOTAL(3,$B$9:$B16) -> 4 | R17: 1050-Current Assets
B18: =Y2.ChartOfAccts!D18 -> 1050-Current Assets | C18: =""&Y2.ChartOfAccts!C18 -> 1102-Accounts Receivable - Services | D18: =""&Y2.ChartOfAccts!E18 -> BS | E18: =Y2.ChartOfAccts!F18 -> 0 | F18: 246709 | G18: 277594.15 | H18: 123714.3 | M18: -45000 | O18: 0.1050-Current Assets | P18: 569303.15 | Q18: =SUBTOTAL(3,$B$9:$B17) -> 5 | R18: 1050-Current Assets
B19: =Y2.ChartOfAccts!D19 -> 1050-Current Assets | C19: =""&Y2.ChartOfAccts!C19 -> 1104-Accounts Receivable - Recoverable Work | D19: =""&Y2.ChartOfAccts!E19 -> BS | E19: =Y2.ChartOfAccts!F19 -> 0 | F19: 178342 | G19: 49571.33 | H19: 237686.14 | M19: 63000 | O19: 0.1050-Current Assets | P19: 290913.33 | Q19: =SUBTOTAL(3,$B$9:$B18) -> 6 | R19: 1050-Current Assets
B20: =Y2.ChartOfAccts!D20 -> 1050-Current Assets | C20: =""&Y2.ChartOfAccts!C20 -> 1105-Accounts Receivable - Merchandise, Jobbing, etc. | D20: =""&Y2.ChartOfAccts!E20 -> BS | E20: =Y2.ChartOfAccts!F20 -> 0 | F20: 42489 | H20: 0 | O20: 0.1050-Current Assets | P20: 42489 | Q20: =SUBTOTAL(3,$B$9:$B19) -> 7 | R20: 1050-Current Assets
B21: =Y2.ChartOfAccts!D21 -> 1050-Current Assets | C21: =""&Y2.ChartOfAccts!C21 -> 1110-Other Accounts Receivable | D21: =""&Y2.ChartOfAccts!E21 -> BS | E21: =Y2.ChartOfAccts!F21 -> 0 | G21: 19884 | O21: 0.1050-Current Assets | P21: 19884 | Q21: =SUBTOTAL(3,$B$9:$B20) -> 8 | R21: 1050-Current Assets
B22: =Y2.ChartOfAccts!D22 -> 1050-Current Assets | C22: =""&Y2.ChartOfAccts!C22 -> 1120-Accrued Utility Revenues | D22: =""&Y2.ChartOfAccts!E22 -> BS | E22: =Y2.ChartOfAccts!F22 -> 0 | F22: 4281239 | G22: 4793982.51 | H22: 4718562.42 | M22: 5623000 | O22: 0.1050-Current Assets | P22: 14698221.51 | Q22: =SUBTOTAL(3,$B$9:$B21) -> 9 | R22: 1050-Current Assets
B23: =Y2.ChartOfAccts!D23 -> 1050-Current Assets | C23: =""&Y2.ChartOfAccts!C23 -> 1130-Accumulated Provision for Uncollectible Accounts--Credit | D23: =""&Y2.ChartOfAccts!E23 -> BS | E23: =Y2.ChartOfAccts!F23 -> 0 | F23: -254300 | G23: -234000 | H23: -251000 | M23: -360500 | O23: 0.1050-Current Assets | P23: 848800 | Q23: =SUBTOTAL(3,$B$9:$B22) -> 10 | R23: 1050-Current Assets
B24: =Y2.ChartOfAccts!D24 -> 1050-Current Assets | C24: =""&Y2.ChartOfAccts!C24 -> 1140-Interest and Dividends Receivable | D24: =""&Y2.ChartOfAccts!E24 -> BS | E24: =Y2.ChartOfAccts!F24 -> 0 | O24: 0.1050-Current Assets | P24: 0 | Q24: =SUBTOTAL(3,$B$9:$B23) -> 11 | R24: 1050-Current Assets
B25: =Y2.ChartOfAccts!D25 -> 1050-Current Assets | C25: =""&Y2.ChartOfAccts!C25 -> 1150-Rents Receivable | D25: =""&Y2.ChartOfAccts!E25 -> BS | E25: =Y2.ChartOfAccts!F25 -> 0 | O25: 0.1050-Current Assets | P25: 0 | Q25: =SUBTOTAL(3,$B$9:$B24) -> 11 | R25: 1050-Current Assets
B26: =Y2.ChartOfAccts!D26 -> 1050-Current Assets | C26: =""&Y2.ChartOfAccts!C26 -> 1170-Notes Receivable | D26: =""&Y2.ChartOfAccts!E26 -> BS | E26: =Y2.ChartOfAccts!F26 -> 0 | O26: 0.1050-Current Assets | P26: 0 | Q26: =SUBTOTAL(3,$B$9:$B25) -> 11 | R26: 1050-Current Assets
B27: =Y2.ChartOfAccts!D27 -> 1050-Current Assets | C27: =""&Y2.ChartOfAccts!C27 -> 1180-Prepayments | D27: =""&Y2.ChartOfAccts!E27 -> BS | E27: =Y2.ChartOfAccts!F27 -> 0 | F27: 319711 | G27: 228770.64 | H27: 75548.09 | M27: 191000 | O27: 0.1050-Current Assets | P27: 739481.64 | Q27: =SUBTOTAL(3,$B$9:$B26) -> 11 | R27: 1050-Current Assets
B28: =Y2.ChartOfAccts!D28 -> 1050-Current Assets | C28: =""&Y2.ChartOfAccts!C28 -> 1190-Miscellaneous Current and Accrued Assets | D28: =""&Y2.ChartOfAccts!E28 -> BS | E28: =Y2.ChartOfAccts!F28 -> 0 | F28: 740582 | G28: 337323.05 | H28: 272988.81 | M28: 120000 | O28: 0.1050-Current Assets | P28: 1197905.05 | Q28: =SUBTOTAL(3,$B$9:$B27) -> 12 | R28: 1050-Current Assets
B29: =Y2.ChartOfAccts!D29 -> 1050-Current Assets | C29: =""&Y2.ChartOfAccts!C29 -> 1200-Accounts Receivable from Associated Companies | D29: =""&Y2.ChartOfAccts!E29 -> BS | E29: =Y2.ChartOfAccts!F29 -> 0 | O29: 0.1050-Current Assets | P29: 0 | Q29: =SUBTOTAL(3,$B$9:$B28) -> 13 | R29: 1050-Current Assets
B30: =Y2.ChartOfAccts!D30 -> 1050-Current Assets | C30: =""&Y2.ChartOfAccts!C30 -> 1210-Notes Receivable from Associated Companies | D30: =""&Y2.ChartOfAccts!E30 -> BS | E30: =Y2.ChartOfAccts!F30 -> 0 | O30: 0.1050-Current Assets | P30: 0 | Q30: =SUBTOTAL(3,$B$9:$B29) -> 13 | R30: 1050-Current Assets
B31: =Y2.ChartOfAccts!D31 -> 1100-Inventory | C31: =""&Y2.ChartOfAccts!C31 -> 1305-Fuel Stock | D31: =""&Y2.ChartOfAccts!E31 -> BS | E31: =Y2.ChartOfAccts!F31 -> 0 | O31: 0.1100-Inventory | P31: 0 | Q31: =SUBTOTAL(3,$B$9:$B30) -> 13 | R31: 1050-Current Assets
B32: =Y2.ChartOfAccts!D32 -> 1100-Inventory | C32: =""&Y2.ChartOfAccts!C32 -> 1330-Plant Materials and Operating Supplies | D32: =""&Y2.ChartOfAccts!E32 -> BS | E32: =Y2.ChartOfAccts!F32 -> 0 | F32: 718331 | G32: 757792.57 | H32: 743073.32 | M32: 718000 | O32: 0.1100-Inventory | P32: 2194123.57 | Q32: =SUBTOTAL(3,$B$9:$B31) -> 13 | R32: 1050-Current Assets
B33: =Y2.ChartOfAccts!D33 -> 1100-Inventory | C33: =""&Y2.ChartOfAccts!C33 -> 1340-Merchandise | D33: =""&Y2.ChartOfAccts!E33 -> BS | E33: =Y2.ChartOfAccts!F33 -> 0 | O33: 0.1100-Inventory | P33: 0 | Q33: =SUBTOTAL(3,$B$9:$B32) -> 14 | R33: 1100-Inventory
B34: =Y2.ChartOfAccts!D34 -> 1100-Inventory | C34: =""&Y2.ChartOfAccts!C34 -> 1350-Other Materials and Supplies | D34: =""&Y2.ChartOfAccts!E34 -> BS | E34: =Y2.ChartOfAccts!F34 -> 0 | O34: 0.1100-Inventory | P34: 0 | Q34: =SUBTOTAL(3,$B$9:$B33) -> 14 | R34: 1100-Inventory
B35: =Y2.ChartOfAccts!D35 -> 1150-Non-Current Assets | C35: =""&Y2.ChartOfAccts!C35 -> 1405-Long Term Investments in Non-Associated Companies | D35: =""&Y2.ChartOfAccts!E35 -> BS | E35: =Y2.ChartOfAccts!F35 -> 0 | M35: 28000 | O35: 0.1150-Non-Current Assets | P35: 28000 | Q35: =SUBTOTAL(3,$B$9:$B34) -> 14 | R35: 1100-Inventory
B36: =Y2.ChartOfAccts!D36 -> 1150-Non-Current Assets | C36: =""&Y2.ChartOfAccts!C36 -> 1408-Long Term Receivable - Street Lighting Transfer | D36: =""&Y2.ChartOfAccts!E36 -> BS | E36: =Y2.ChartOfAccts!F36 -> 0 | O36: 0.1150-Non-Current Assets | P36: 0 | Q36: =SUBTOTAL(3,$B$9:$B35) -> 15 | R36: 1150-Non-Current Assets
B37: =Y2.ChartOfAccts!D37 -> 1150-Non-Current Assets | C37: =""&Y2.ChartOfAccts!C37 -> 1410-Other Special or Collateral Funds | D37: =""&Y2.ChartOfAccts!E37 -> BS | E37: =Y2.ChartOfAccts!F37 -> 0 | O37: 0.1150-Non-Current Assets | P37: 0 | Q37: =SUBTOTAL(3,$B$9:$B36) -> 15 | R37: 1150-Non-Current Assets
B38: =Y2.ChartOfAccts!D38 -> 1150-Non-Current Assets | C38: =""&Y2.ChartOfAccts!C38 -> 1415-Sinking Funds | D38: =""&Y2.ChartOfAccts!E38 -> BS | E38: =Y2.ChartOfAccts!F38 -> 0 | O38: 0.1150-Non-Current Assets | P38: 0 | Q38: =SUBTOTAL(3,$B$9:$B37) -> 15 | R38: 1150-Non-Current Assets
B39: =Y2.ChartOfAccts!D39 -> 1150-Non-Current Assets | C39: =""&Y2.ChartOfAccts!C39 -> 1425-Unamortized Debt Expense | D39: =""&Y2.ChartOfAccts!E39 -> BS | E39: =Y2.ChartOfAccts!F39 -> 0 | O39: 0.1150-Non-Current Assets | P39: 0 | Q39: =SUBTOTAL(3,$B$9:$B38) -> 15 | R39: 1150-Non-Current Assets
B40: =Y2.ChartOfAccts!D40 -> 1150-Non-Current Assets | C40: =""&Y2.ChartOfAccts!C40 -> 1445-Unamortized Discount on Long-Term Debt--Debit | D40: =""&Y2.ChartOfAccts!E40 -> BS | E40: =Y2.ChartOfAccts!F40 -> 0 | O40: 0.1150-Non-Current Assets | P40: 0 | Q40: =SUBTOTAL(3,$B$9:$B39) -> 15 | R40: 1150-Non-Current Assets
B41: =Y2.ChartOfAccts!D41 -> 1150-Non-Current Assets | C41: =""&Y2.ChartOfAccts!C41 -> 1455-Unamortized Deferred Foreign Currency Translation Gains and Losses | D41: =""&Y2.ChartOfAccts!E41 -> BS | E41: =Y2.ChartOfAccts!F41 -> 0 | O41: 0.1150-Non-Current Assets | P41: 0 | Q41: =SUBTOTAL(3,$B$9:$B40) -> 15 | R41: 1150-Non-Current Assets
B42: =Y2.ChartOfAccts!D42 -> 1150-Non-Current Assets | C42: =""&Y2.ChartOfAccts!C42 -> 1460-Other Non-Current Assets | D42: =""&Y2.ChartOfAccts!E42 -> BS | E42: =Y2.ChartOfAccts!F42 -> 0 | F42: 193332 | G42: 227287.6 | H42: 255209.04 | M42: 240000 | O42: 0.1150-Non-Current Assets | P42: 660619.6 | Q42: =SUBTOTAL(3,$B$9:$B41) -> 15 | R42: 1150-Non-Current Assets
B43: =Y2.ChartOfAccts!D43 -> 1150-Non-Current Assets | C43: =""&Y2.ChartOfAccts!C43 -> 1465-O.M.E.R.S. Past Service Costs | D43: =""&Y2.ChartOfAccts!E43 -> BS | E43: =Y2.ChartOfAccts!F43 -> 0 | O43: 0.1150-Non-Current Assets | P43: 0 | Q43: =SUBTOTAL(3,$B$9:$B42) -> 16 | R43: 1150-Non-Current Assets
B44: =Y2.ChartOfAccts!D44 -> 1150-Non-Current Assets | C44: =""&Y2.ChartOfAccts!C44 -> 1470-Past Service Costs - Employee Future Benefits | D44: =""&Y2.ChartOfAccts!E44 -> BS | E44: =Y2.ChartOfAccts!F44 -> 0 | O44: 0.1150-Non-Current Assets | P44: 0 | Q44: =SUBTOTAL(3,$B$9:$B43) -> 16 | R44: 1150-Non-Current Assets
B45: =Y2.ChartOfAccts!D45 -> 1150-Non-Current Assets | C45: =""&Y2.ChartOfAccts!C45 -> 1475-Past Service Costs - Other Pension Plans | D45: =""&Y2.ChartOfAccts!E45 -> BS | E45: =Y2.ChartOfAccts!F45 -> 0 | O45: 0.1150-Non-Current Assets | P45: 0 | Q45: =SUBTOTAL(3,$B$9:$B44) -> 16 | R45: 1150-Non-Current Assets
B46: =Y2.ChartOfAccts!D46 -> 1150-Non-Current Assets | C46: =""&Y2.ChartOfAccts!C46 -> 1480-Portfolio Investments - Associated Companies | D46: =""&Y2.ChartOfAccts!E46 -> BS | E46: =Y2.ChartOfAccts!F46 -> 0 | O46: 0.1150-Non-Current Assets | P46: 0 | Q46: =SUBTOTAL(3,$B$9:$B45) -> 16 | R46: 1150-Non-Current Assets
B47: =Y2.ChartOfAccts!D47 -> 1150-Non-Current Assets | C47: =""&Y2.ChartOfAccts!C47 -> 1485-Investment in Associated Companies - Significant Influence | D47: =""&Y2.ChartOfAccts!E47 -> BS | E47: =Y2.ChartOfAccts!F47 -> 0 | O47: 0.1150-Non-Current Assets | P47: 0 | Q47: =SUBTOTAL(3,$B$9:$B46) -> 16 | R47: 1150-Non-Current Assets
B48: =Y2.ChartOfAccts!D48 -> 1150-Non-Current Assets | C48: =""&Y2.ChartOfAccts!C48 -> 1490-Investment in Subsidiary Companies | D48: =""&Y2.ChartOfAccts!E48 -> BS | E48: =Y2.ChartOfAccts!F48 -> 0 | O48: 0.1150-Non-Current Assets | P48: 0 | Q48: =SUBTOTAL(3,$B$9:$B47) -> 16 | R48: 1150-Non-Current Assets
B49: =Y2.ChartOfAccts!D49 -> 1200-Other Assets and Deferred Charges | C49: =""&Y2.ChartOfAccts!C49 -> 1505-Unrecovered Plant and Regulatory Study Costs | D49: =""&Y2.ChartOfAccts!E49 -> BS | E49: =Y2.ChartOfAccts!F49 -> 6 | O49: 6.1200-Other Assets and Deferred Charges | P49: 0 | Q49: =SUBTOTAL(3,$B$9:$B48) -> 16 | R49: 1150-Non-Current Assets
B50: =Y2.ChartOfAccts!D50 -> 1200-Other Assets and Deferred Charges | C50: =""&Y2.ChartOfAccts!C50 -> 1508-Other Reg Assets-OEB Cost Assessments | D50: =""&Y2.ChartOfAccts!E50 -> BS | E50: =Y2.ChartOfAccts!F50 -> 6 | F50: -9106 | G50: 54591.11 | H50: -15242.54 | M50: 263441 | O50: 6.1200-Other Assets and Deferred Charges | P50: 327138.11 | Q50: =SUBTOTAL(3,$B$9:$B49) -> 16 | R50: 1150-Non-Current Assets
B51: =Y2.ChartOfAccts!D51 -> 1200-Other Assets and Deferred Charges | C51: =""&Y2.ChartOfAccts!C51 -> 1508-Other Reg Assets-Pension Contributions | D51: =""&Y2.ChartOfAccts!E51 -> BS | E51: =Y2.ChartOfAccts!F51 -> 6 | O51: 6.1200-Other Assets and Deferred Charges | P51: 0 | Q51: =SUBTOTAL(3,$B$9:$B50) -> 17 | R51: 1200-Other Assets and Deferred Charges
B52: =Y2.ChartOfAccts!D52 -> 1200-Other Assets and Deferred Charges | C52: =""&Y2.ChartOfAccts!C52 -> 1508-Other Reg Assets- Deferred IFRS Transition | D52: =""&Y2.ChartOfAccts!E52 -> BS | E52: =Y2.ChartOfAccts!F52 -> 6 | F52: 38077 | G52: 19789.14 | H52: 6739.08 | O52: 6.1200-Other Assets and Deferred Charges | P52: 57866.14 | Q52: =SUBTOTAL(3,$B$9:$B51) -> 17 | R52: 1200-Other Assets and Deferred Charges
B53: =Y2.ChartOfAccts!D53 -> 1200-Other Assets and Deferred Charges | C53: =""&Y2.ChartOfAccts!C53 -> 1508-Other Reg Assets- Incremental Capital | D53: =""&Y2.ChartOfAccts!E53 -> BS | E53: =Y2.ChartOfAccts!F53 -> 6 | F53: 17329 | G53: 17080.19 | H53: 10613.11 | O53: 6.1200-Other Assets and Deferred Charges | P53: 34409.19 | Q53: =SUBTOTAL(3,$B$9:$B52) -> 18 | R53: 1200-Other Assets and Deferred Charges
B54: =Y2.ChartOfAccts!D54 -> 1200-Other Assets and Deferred Charges | C54: =""&Y2.ChartOfAccts!C54 -> 1518-RCVARetail | D54: =""&Y2.ChartOfAccts!E54 -> BS | E54: =Y2.ChartOfAccts!F54 -> 6 | F54: -82171 | G54: -67839.49 | H54: -48937.44 | M54: -49122 | O54: 6.1200-Other Assets and Deferred Charges | P54: 199132.49 | Q54: =SUBTOTAL(3,$B$9:$B53) -> 19 | R54: 1200-Other Assets and Deferred Charges
B55: =Y2.ChartOfAccts!D55 -> 1200-Other Assets and Deferred Charges | C55: =""&Y2.ChartOfAccts!C55 -> 1521-Special Purpose Charge Assessment Variance Account | D55: =""&Y2.ChartOfAccts!E55 -> BS | E55: =Y2.ChartOfAccts!F55 -> 6 | F55: 1647 | G55: 26842.27 | O55: 6.1200-Other Assets and Deferred Charges | P55: 28489.27 | Q55: =SUBTOTAL(3,$B$9:$B54) -> 20 | R55: 1200-Other Assets and Deferred Charges
B56: =Y2.ChartOfAccts!D56 -> 1200-Other Assets and Deferred Charges | C56: =""&Y2.ChartOfAccts!C56 -> 1525-Miscellaneous Deferred Debits | D56: =""&Y2.ChartOfAccts!E56 -> BS | E56: =Y2.ChartOfAccts!F56 -> 6 | O56: 6.1200-Other Assets and Deferred Charges | P56: 0 | Q56: =SUBTOTAL(3,$B$9:$B55) -> 21 | R56: 1200-Other Assets and Deferred Charges
B57: =Y2.ChartOfAccts!D57 -> 1200-Other Assets and Deferred Charges | C57: =""&Y2.ChartOfAccts!C57 -> 1530-Deferred Losses from Disposition of Utility Plant | D57: =""&Y2.ChartOfAccts!E57 -> BS | E57: =Y2.ChartOfAccts!F57 -> 6 | O57: 6.1200-Other Assets and Deferred Charges | P57: 0 | Q57: =SUBTOTAL(3,$B$9:$B56) -> 21 | R57: 1200-Other Assets and Deferred Charges
B58: =Y2.ChartOfAccts!D58 -> 1200-Other Assets and Deferred Charges | C58: =""&Y2.ChartOfAccts!C58 -> 1531-Renewable Connection Capital Deferral | D58: =""&Y2.ChartOfAccts!E58 -> BS | E58: =Y2.ChartOfAccts!F58 -> 6 | F58: 8315 | G58: 8194.7 | H58: 803.42 | O58: 6.1200-Other Assets and Deferred Charges | P58: 16509.7 | Q58: =SUBTOTAL(3,$B$9:$B57) -> 21 | R58: 1200-Other Assets and Deferred Charges
B59: =Y2.ChartOfAccts!D59 -> 1200-Other Assets and Deferred Charges | C59: =""&Y2.ChartOfAccts!C59 -> 1532-Renewable Connection OM&A Deferral | D59: =""&Y2.ChartOfAccts!E59 -> BS | E59: =Y2.ChartOfAccts!F59 -> 6 | F59: 666 | G59: 656.84 | H59: 228.14 | O59: 6.1200-Other Assets and Deferred Charges | P59: 1322.84 | Q59: =SUBTOTAL(3,$B$9:$B58) -> 22 | R59: 1200-Other Assets and Deferred Charges
B60: =Y2.ChartOfAccts!D60 -> 1200-Other Assets and Deferred Charges | C60: =""&Y2.ChartOfAccts!C60 -> 1534-Smart Grid Capital Deferral | D60: =""&Y2.ChartOfAccts!E60 -> BS | E60: =Y2.ChartOfAccts!F60 -> 6 | O60: 6.1200-Other Assets and Deferred Charges | P60: 0 | Q60: =SUBTOTAL(3,$B$9:$B59) -> 23 | R60: 1200-Other Assets and Deferred Charges
B61: =Y2.ChartOfAccts!D61 -> 1200-Other Assets and Deferred Charges | C61: =""&Y2.ChartOfAccts!C61 -> 1535-Smart Grid OM&A Deferral | D61: =""&Y2.ChartOfAccts!E61 -> BS | E61: =Y2.ChartOfAccts!F61 -> 6 | O61: 6.1200-Other Assets and Deferred Charges | P61: 0 | Q61: =SUBTOTAL(3,$B$9:$B60) -> 23 | R61: 1200-Other Assets and Deferred Charges
B62: =Y2.ChartOfAccts!D62 -> 1200-Other Assets and Deferred Charges | C62: =""&Y2.ChartOfAccts!C62 -> 1540-Unamortized Loss on Reacquired Debt | D62: =""&Y2.ChartOfAccts!E62 -> BS | E62: =Y2.ChartOfAccts!F62 -> 6 | O62: 6.1200-Other Assets and Deferred Charges | P62: 0 | Q62: =SUBTOTAL(3,$B$9:$B61) -> 23 | R62: 1200-Other Assets and Deferred Charges
B63: =Y2.ChartOfAccts!D63 -> 1200-Other Assets and Deferred Charges | C63: =""&Y2.ChartOfAccts!C63 -> 1545-Development Charge Deposits/ Receivables | D63: =""&Y2.ChartOfAccts!E63 -> BS | E63: =Y2.ChartOfAccts!F63 -> 6 | O63: 6.1200-Other Assets and Deferred Charges | P63: 0 | Q63: =SUBTOTAL(3,$B$9:$B62) -> 23 | R63: 1200-Other Assets and Deferred Charges
B64: =Y2.ChartOfAccts!D64 -> 1200-Other Assets and Deferred Charges | C64: =""&Y2.ChartOfAccts!C64 -> 1548-RCVASTR | D64: =""&Y2.ChartOfAccts!E64 -> BS | E64: =Y2.ChartOfAccts!F64 -> 6 | F64: 127493 | G64: 91042.03 | H64: 55224.11 | M64: 85300 | O64: 6.1200-Other Assets and Deferred Charges | P64: 303835.03 | Q64: =SUBTOTAL(3,$B$9:$B63) -> 23 | R64: 1200-Other Assets and Deferred Charges
B65: =Y2.ChartOfAccts!D65 -> 1200-Other Assets and Deferred Charges | C65: =""&Y2.ChartOfAccts!C65 -> 1550-LV Variance Account | D65: =""&Y2.ChartOfAccts!E65 -> BS | E65: =Y2.ChartOfAccts!F65 -> 6 | F65: 195725 | G65: 477481.86 | H65: 499333.08 | M65: 845941 | O65: 6.1200-Other Assets and Deferred Charges | P65: 1519147.86 | Q65: =SUBTOTAL(3,$B$9:$B64) -> 24 | R65: 1200-Other Assets and Deferred Charges
B66: =Y2.ChartOfAccts!D66 -> 1200-Other Assets and Deferred Charges | C66: =""&Y2.ChartOfAccts!C66 -> 1555-Smart Meters Capital Variance Account | D66: =""&Y2.ChartOfAccts!E66 -> BS | E66: =Y2.ChartOfAccts!F66 -> 6 | F66: 2964072 | G66: 2404677.08 | H66: 2079454.36 | M66: -132914 | O66: 6.1200-Other Assets and Deferred Charges | P66: 5501663.08 | Q66: =SUBTOTAL(3,$B$9:$B65) -> 25 | R66: 1200-Other Assets and Deferred Charges
B67: =Y2.ChartOfAccts!D67 -> 1200-Other Assets and Deferred Charges | C67: =""&Y2.ChartOfAccts!C67 -> 1556-Smart Meters OM&A Variance Account | D67: =""&Y2.ChartOfAccts!E67 -> BS | E67: =Y2.ChartOfAccts!F67 -> 6 | F67: 754442 | G67: 452686.42 | H67: 133943.07 | O67: 6.1200-Other Assets and Deferred Charges | P67: 1207128.42 | Q67: =SUBTOTAL(3,$B$9:$B66) -> 26 | R67: 1200-Other Assets and Deferred Charges
B68: =Y2.ChartOfAccts!D68 -> 1200-Other Assets and Deferred Charges | C68: =""&Y2.ChartOfAccts!C68 -> 1560-Deferred Development Costs | D68: =""&Y2.ChartOfAccts!E68 -> BS | E68: =Y2.ChartOfAccts!F68 -> 6 | O68: 6.1200-Other Assets and Deferred Charges | P68: 0 | Q68: =SUBTOTAL(3,$B$9:$B67) -> 27 | R68: 1200-Other Assets and Deferred Charges
B69: =Y2.ChartOfAccts!D69 -> 1200-Other Assets and Deferred Charges | C69: =""&Y2.ChartOfAccts!C69 -> 1562-Deferred Payments in Lieu of Taxes | D69: =""&Y2.ChartOfAccts!E69 -> BS | E69: =Y2.ChartOfAccts!F69 -> 6 | F69: 187624 | G69: 186346.32 | H69: 185651.53 | M69: 184666 | O69: 6.1200-Other Assets and Deferred Charges | P69: 558636.32 | Q69: =SUBTOTAL(3,$B$9:$B68) -> 27 | R69: 1200-Other Assets and Deferred Charges
B70: =Y2.ChartOfAccts!D70 -> 1200-Other Assets and Deferred Charges | C70: =""&Y2.ChartOfAccts!C70 -> 1563-Account 1563 - Deferred PILs Contra Account | D70: =""&Y2.ChartOfAccts!E70 -> BS | E70: =Y2.ChartOfAccts!F70 -> 6 | F70: -131813 | G70: -130535.64 | H70: -129840.85 | M70: -128855 | O70: 6.1200-Other Assets and Deferred Charges | P70: 391203.64 | Q70: =SUBTOTAL(3,$B$9:$B69) -> 28 | R70: 1200-Other Assets and Deferred Charges
B71: =Y2.ChartOfAccts!D71 -> 1200-Other Assets and Deferred Charges | C71: =""&Y2.ChartOfAccts!C71 -> 1565-Conservation and Demand Management Expenditures and Recoveries | D71: =""&Y2.ChartOfAccts!E71 -> BS | E71: =Y2.ChartOfAccts!F71 -> 6 | F71: -17231 | G71: -17231.03 | H71: -17231.03 | M71: -52580 | O71: 6.1200-Other Assets and Deferred Charges | P71: 87042.03 | Q71: =SUBTOTAL(3,$B$9:$B70) -> 29 | R71: 1200-Other Assets and Deferred Charges
B72: =Y2.ChartOfAccts!D72 -> 1200-Other Assets and Deferred Charges | C72: =""&Y2.ChartOfAccts!C72 -> 1566-CDM Contra Account | D72: =""&Y2.ChartOfAccts!E72 -> BS | E72: =Y2.ChartOfAccts!F72 -> 6 | F72: 17231 | G72: 17231.03 | H72: 17231.03 | M72: 52580 | O72: 6.1200-Other Assets and Deferred Charges | P72: 87042.03 | Q72: =SUBTOTAL(3,$B$9:$B71) -> 30 | R72: 1200-Other Assets and Deferred Charges
B73: =Y2.ChartOfAccts!D73 -> 1200-Other Assets and Deferred Charges | C73: =""&Y2.ChartOfAccts!C73 -> 1570-Qualifying Transition Costs | D73: =""&Y2.ChartOfAccts!E73 -> BS | E73: =Y2.ChartOfAccts!F73 -> 6 | O73: 6.1200-Other Assets and Deferred Charges | P73: 0 | Q73: =SUBTOTAL(3,$B$9:$B72) -> 31 | R73: 1200-Other Assets and Deferred Charges
B74: =Y2.ChartOfAccts!D74 -> 1200-Other Assets and Deferred Charges | C74: =""&Y2.ChartOfAccts!C74 -> 1571-Pre-market Opening Energy Variance | D74: =""&Y2.ChartOfAccts!E74 -> BS | E74: =Y2.ChartOfAccts!F74 -> 6 | O74: =E74&"."&B74 -> 6.1200-Other Assets and Deferred Charges | P74: =ABS(F74)+ABS(G74)+ABS(K74)+ABS(M74) -> 0 | Q74: =SUBTOTAL(3,$B$9:$B73) -> 31 | R74: 1200-Other Assets and Deferred Charges
B75: =Y2.ChartOfAccts!D75 -> 1200-Other Assets and Deferred Charges | C75: =""&Y2.ChartOfAccts!C75 -> 1572-Extraordinary Event Costs | D75: =""&Y2.ChartOfAccts!E75 -> BS | E75: =Y2.ChartOfAccts!F75 -> 6 | O75: 6.1200-Other Assets and Deferred Charges | P75: 0 | Q75: =SUBTOTAL(3,$B$9:$B74) -> 31 | R75: =IF($B75<>$B74,$B74,OFFSET($B$9,MATCH(Q75,Q$10:Q$500,0)-1,0)) -> 1200-Other Assets and Deferred Charges
B76: =Y2.ChartOfAccts!D76 -> 1200-Other Assets and Deferred Charges | C76: =""&Y2.ChartOfAccts!C76 -> 1574-Deferred Rate Impact Amounts | D76: =""&Y2.ChartOfAccts!E76 -> BS | E76: =Y2.ChartOfAccts!F76 -> 6 | O76: 6.1200-Other Assets and Deferred Charges | P76: 0 | Q76: =SUBTOTAL(3,$B$9:$B75) -> 31 | R76: 1200-Other Assets and Deferred Charges
B77: =Y2.ChartOfAccts!D77 -> 1200-Other Assets and Deferred Charges | C77: =""&Y2.ChartOfAccts!C77 -> 1580-RSVAWMS | D77: =""&Y2.ChartOfAccts!E77 -> BS | E77: =Y2.ChartOfAccts!F77 -> 6 | F77: -866594 | G77: -909786.52 | H77: -421531.18 | M77: -623092 | O77: 6.1200-Other Assets and Deferred Charges | P77: 2399472.52 | Q77: =SUBTOTAL(3,$B$9:$B76) -> 31 | R77: 1200-Other Assets and Deferred Charges
B78: =Y2.ChartOfAccts!D78 -> 1200-Other Assets and Deferred Charges | C78: =""&Y2.ChartOfAccts!C78 -> 1582-RSVAONE-TIME | D78: =""&Y2.ChartOfAccts!E78 -> BS | E78: =Y2.ChartOfAccts!F78 -> 6 | F78: -8776 | G78: -8792.8 | H78: -8801.82 | M78: 35229 | O78: 6.1200-Other Assets and Deferred Charges | P78: 52797.8 | Q78: =SUBTOTAL(3,$B$9:$B77) -> 32 | R78: 1200-Other Assets and Deferred Charges
B79: =Y2.ChartOfAccts!D79 -> 1200-Other Assets and Deferred Charges | C79: =""&Y2.ChartOfAccts!C79 -> 1584-RSVANW | D79: =""&Y2.ChartOfAccts!E79 -> BS | E79: =Y2.ChartOfAccts!F79 -> 6 | F79: -73201 | G79: -73644.99 | H79: 26671.44 | M79: -387859 | O79: 6.1200-Other Assets and Deferred Charges | P79: 534704.99 | Q79: =SUBTOTAL(3,$B$9:$B78) -> 33 | R79: 1200-Other Assets and Deferred Charges
B80: =Y2.ChartOfAccts!D80 -> 1200-Other Assets and Deferred Charges | C80: =""&Y2.ChartOfAccts!C80 -> 1586-RSVACN | D80: =""&Y2.ChartOfAccts!E80 -> BS | E80: =Y2.ChartOfAccts!F80 -> 6 | F80: 805576 | G80: -1247310 | H80: -1119592.05 | M80: -1974024 | O80: 6.1200-Other Assets and Deferred Charges | P80: 4026910 | Q80: =SUBTOTAL(3,$B$9:$B79) -> 34 | R80: 1200-Other Assets and Deferred Charges
B81: =Y2.ChartOfAccts!D81 -> 1200-Other Assets and Deferred Charges | C81: =""&Y2.ChartOfAccts!C81 -> 1588-RSVAPOWER Main Account | D81: =""&Y2.ChartOfAccts!E81 -> BS | E81: =Y2.ChartOfAccts!F81 -> 6 | F81: 1386005 | G81: 2167469.06 | H81: 2105023.67 | M81: 2924261 | O81: 6.1200-Other Assets and Deferred Charges | P81: 6477735.06 | Q81: =SUBTOTAL(3,$B$9:$B80) -> 35 | R81: 1200-Other Assets and Deferred Charges
B82: =Y2.ChartOfAccts!D82 -> 1200-Other Assets and Deferred Charges | C82: =""&Y2.ChartOfAccts!C82 -> 1589-1588 Global Adjustment sub-account | D82: =""&Y2.ChartOfAccts!E82 -> BS | E82: =Y2.ChartOfAccts!F82 -> 6 | F82: 538732 | O82: 6.1200-Other Assets and Deferred Charges | P82: 538732 | Q82: =SUBTOTAL(3,$B$9:$B81) -> 36 | R82: 1200-Other Assets and Deferred Charges
B83: =Y2.ChartOfAccts!D83 -> 1200-Other Assets and Deferred Charges | C83: =""&Y2.ChartOfAccts!C83 -> 1590-Recovery of Regulatory Asset Balances | D83: =""&Y2.ChartOfAccts!E83 -> BS | E83: =Y2.ChartOfAccts!F83 -> 6 | G83: 126284.91 | H83: 126284.91 | M83: 73311 | O83: 6.1200-Other Assets and Deferred Charges | P83: 199595.91 | Q83: =SUBTOTAL(3,$B$9:$B82) -> 37 | R83: 1200-Other Assets and Deferred Charges
B84: =Y2.ChartOfAccts!D84 -> 1200-Other Assets and Deferred Charges | C84: =""&Y2.ChartOfAccts!C84 -> 1592-2006 PILs/Taxes Variance | D84: =""&Y2.ChartOfAccts!E84 -> BS | E84: =Y2.ChartOfAccts!F84 -> 6 | O84: 6.1200-Other Assets and Deferred Charges | P84: 0 | Q84: =SUBTOTAL(3,$B$9:$B83) -> 38 | R84: 1200-Other Assets and Deferred Charges
B85: =Y2.ChartOfAccts!D85 -> 1200-Other Assets and Deferred Charges | C85: =""&Y2.ChartOfAccts!C85 -> 1595-Disposition and Recovery of Regulatory Balances | D85: =""&Y2.ChartOfAccts!E85 -> BS | E85: =Y2.ChartOfAccts!F85 -> 6 | F85: 478488 | G85: =229661.99-37647.46 -> 192014.53 | H85: =1187261.27-342073 -> 845188.27 | O85: 6.1200-Other Assets and Deferred Charges | P85: 670502.53 | Q85: =SUBTOTAL(3,$B$9:$B84) -> 38 | R85: 1200-Other Assets and Deferred Charges
B86: =Y2.ChartOfAccts!D86 -> 1300-Intangible Plant | C86: =""&Y2.ChartOfAccts!C86 -> 1605-Electric Plant in Service - Control Account | D86: =""&Y2.ChartOfAccts!E86 -> BS | E86: =Y2.ChartOfAccts!F86 -> 0 | O86: 0.1300-Intangible Plant | P86: 0 | Q86: =SUBTOTAL(3,$B$9:$B85) -> 39 | R86: 1200-Other Assets and Deferred Charges
B87: =Y2.ChartOfAccts!D87 -> 1300-Intangible Plant | C87: =""&Y2.ChartOfAccts!C87 -> 1606-Organization | D87: =""&Y2.ChartOfAccts!E87 -> BS | E87: =Y2.ChartOfAccts!F87 -> 0 | O87: 0.1300-Intangible Plant | P87: 0 | Q87: =SUBTOTAL(3,$B$9:$B86) -> 39 | R87: 1200-Other Assets and Deferred Charges
B88: =Y2.ChartOfAccts!D88 -> 1300-Intangible Plant | C88: =""&Y2.ChartOfAccts!C88 -> 1608-Franchises and Consents | D88: =""&Y2.ChartOfAccts!E88 -> BS | E88: =Y2.ChartOfAccts!F88 -> 0 | O88: 0.1300-Intangible Plant | P88: 0 | Q88: =SUBTOTAL(3,$B$9:$B87) -> 39 | R88: 1200-Other Assets and Deferred Charges
B89: =Y2.ChartOfAccts!D89 -> 1300-Intangible Plant | C89: =""&Y2.ChartOfAccts!C89 -> 1610-Miscellaneous Intangible Plant | D89: =""&Y2.ChartOfAccts!E89 -> BS | E89: =Y2.ChartOfAccts!F89 -> 1 | O89: 1.1300-Intangible Plant | P89: 0 | Q89: =SUBTOTAL(3,$B$9:$B88) -> 39 | R89: 1200-Other Assets and Deferred Charges
B90: =Y2.ChartOfAccts!D90 -> 1350-Not for distributor use | C90: =""&Y2.ChartOfAccts!C90 -> 1615-Land | D90: =""&Y2.ChartOfAccts!E90 -> BS | E90: =Y2.ChartOfAccts!F90 -> 0 | O90: 0.1350-Not for distributor use | P90: 0 | Q90: =SUBTOTAL(3,$B$9:$B89) -> 39 | R90: 1300-Intangible Plant
B91: =Y2.ChartOfAccts!D91 -> 1350-Not for distributor use | C91: =""&Y2.ChartOfAccts!C91 -> 1616-Land Rights | D91: =""&Y2.ChartOfAccts!E91 -> BS | E91: =Y2.ChartOfAccts!F91 -> 0 | O91: 0.1350-Not for distributor use | P91: 0 | Q91: =SUBTOTAL(3,$B$9:$B90) -> 39 | R91: 1200-Other Assets and Deferred Charges
B92: =Y2.ChartOfAccts!D92 -> 1350-Not for distributor use | C92: =""&Y2.ChartOfAccts!C92 -> 1620-Buildings and Fixtures | D92: =""&Y2.ChartOfAccts!E92 -> BS | E92: =Y2.ChartOfAccts!F92 -> 0 | O92: 0.1350-Not for distributor use | P92: 0 | Q92: =SUBTOTAL(3,$B$9:$B91) -> 39 | R92: 1200-Other Assets and Deferred Charges
B93: =Y2.ChartOfAccts!D93 -> 1350-Not for distributor use | C93: =""&Y2.ChartOfAccts!C93 -> 1630-Leasehold Improvements | D93: =""&Y2.ChartOfAccts!E93 -> BS | E93: =Y2.ChartOfAccts!F93 -> 0 | O93: 0.1350-Not for distributor use | P93: 0 | Q93: =SUBTOTAL(3,$B$9:$B92) -> 39 | R93: 1200-Other Assets and Deferred Charges
B94: =Y2.ChartOfAccts!D94 -> 1350-Not for distributor use | C94: =""&Y2.ChartOfAccts!C94 -> 1635-Boiler Plant Equipment | D94: =""&Y2.ChartOfAccts!E94 -> BS | E94: =Y2.ChartOfAccts!F94 -> 0 | O94: 0.1350-Not for distributor use | P94: 0 | Q94: =SUBTOTAL(3,$B$9:$B93) -> 39 | R94: 1200-Other Assets and Deferred Charges
B95: =Y2.ChartOfAccts!D95 -> 1350-Not for distributor use | C95: =""&Y2.ChartOfAccts!C95 -> 1640-Engines and Engine-Driven Generators | D95: =""&Y2.ChartOfAccts!E95 -> BS | E95: =Y2.ChartOfAccts!F95 -> 0 | O95: 0.1350-Not for distributor use | P95: 0 | Q95: =SUBTOTAL(3,$B$9:$B94) -> 39 | R95: 1200-Other Assets and Deferred Charges
B96: =Y2.ChartOfAccts!D96 -> 1350-Not for distributor use | C96: =""&Y2.ChartOfAccts!C96 -> 1645-Turbogenerator Units | D96: =""&Y2.ChartOfAccts!E96 -> BS | E96: =Y2.ChartOfAccts!F96 -> 0 | O96: 0.1350-Not for distributor use | P96: 0 | Q96: =SUBTOTAL(3,$B$9:$B95) -> 39 | R96: 1200-Other Assets and Deferred Charges
B97: =Y2.ChartOfAccts!D97 -> 1350-Not for distributor use | C97: =""&Y2.ChartOfAccts!C97 -> 1650-Reservoirs, Dams and Waterways | D97: =""&Y2.ChartOfAccts!E97 -> BS | E97: =Y2.ChartOfAccts!F97 -> 0 | O97: 0.1350-Not for distributor use | P97: 0 | Q97: =SUBTOTAL(3,$B$9:$B96) -> 39 | R97: 1200-Other Assets and Deferred Charges
B98: =Y2.ChartOfAccts!D98 -> 1350-Not for distributor use | C98: =""&Y2.ChartOfAccts!C98 -> 1655-Water Wheels, Turbines and Generators | D98: =""&Y2.ChartOfAccts!E98 -> BS | E98: =Y2.ChartOfAccts!F98 -> 0 | O98: 0.1350-Not for distributor use | P98: 0 | Q98: =SUBTOTAL(3,$B$9:$B97) -> 39 | R98: 1200-Other Assets and Deferred Charges
B99: =Y2.ChartOfAccts!D99 -> 1350-Not for distributor use | C99: =""&Y2.ChartOfAccts!C99 -> 1660-Roads, Railroads and Bridges | D99: =""&Y2.ChartOfAccts!E99 -> BS | E99: =Y2.ChartOfAccts!F99 -> 0 | O99: 0.1350-Not for distributor use | P99: 0 | Q99: =SUBTOTAL(3,$B$9:$B98) -> 39 | R99: 1200-Other Assets and Deferred Charges
B100: =Y2.ChartOfAccts!D100 -> 1350-Not for distributor use | C100: =""&Y2.ChartOfAccts!C100 -> 1665-Fuel Holders, Producers and Accessories | D100: =""&Y2.ChartOfAccts!E100 -> BS | E100: =Y2.ChartOfAccts!F100 -> 0 | O100: 0.1350-Not for distributor use | P100: 0 | Q100: =SUBTOTAL(3,$B$9:$B99) -> 39 | R100: 1200-Other Assets and Deferred Charges
B101: =Y2.ChartOfAccts!D101 -> 1350-Not for distributor use | C101: =""&Y2.ChartOfAccts!C101 -> 1670-Prime Movers | D101: =""&Y2.ChartOfAccts!E101 -> BS | E101: =Y2.ChartOfAccts!F101 -> 0 | O101: 0.1350-Not for distributor use | P101: 0 | Q101: =SUBTOTAL(3,$B$9:$B100) -> 39 | R101: 1200-Other Assets and Deferred Charges
B102: =Y2.ChartOfAccts!D102 -> 1350-Not for distributor use | C102: =""&Y2.ChartOfAccts!C102 -> 1675-Generators | D102: =""&Y2.ChartOfAccts!E102 -> BS | E102: =Y2.ChartOfAccts!F102 -> 0 | O102: 0.1350-Not for distributor use | P102: 0 | Q102: =SUBTOTAL(3,$B$9:$B101) -> 39 | R102: 1200-Other Assets and Deferred Charges
B103: =Y2.ChartOfAccts!D103 -> 1350-Not for distributor use | C103: =""&Y2.ChartOfAccts!C103 -> 1680-Accessory Electric Equipment | D103: =""&Y2.ChartOfAccts!E103 -> BS | E103: =Y2.ChartOfAccts!F103 -> 0 | O103: 0.1350-Not for distributor use | P103: 0 | Q103: =SUBTOTAL(3,$B$9:$B102) -> 39 | R103: 1200-Other Assets and Deferred Charges
B104: =Y2.ChartOfAccts!D104 -> 1350-Not for distributor use | C104: =""&Y2.ChartOfAccts!C104 -> 1685-Miscellaneous Power Plant Equipment | D104: =""&Y2.ChartOfAccts!E104 -> BS | E104: =Y2.ChartOfAccts!F104 -> 0 | O104: 0.1350-Not for distributor use | P104: 0 | Q104: =SUBTOTAL(3,$B$9:$B103) -> 39 | R104: 1200-Other Assets and Deferred Charges
B105: =Y2.ChartOfAccts!D105 -> 1350-Not for distributor use | C105: =""&Y2.ChartOfAccts!C105 -> 1705-Land | D105: =""&Y2.ChartOfAccts!E105 -> BS | E105: =Y2.ChartOfAccts!F105 -> 0 | O105: 0.1350-Not for distributor use | P105: 0 | Q105: =SUBTOTAL(3,$B$9:$B104) -> 39 | R105: 1200-Other Assets and Deferred Charges
B106: =Y2.ChartOfAccts!D106 -> 1350-Not for distributor use | C106: =""&Y2.ChartOfAccts!C106 -> 1706-Land Rights | D106: =""&Y2.ChartOfAccts!E106 -> BS | E106: =Y2.ChartOfAccts!F106 -> 0 | O106: 0.1350-Not for distributor use | P106: 0 | Q106: =SUBTOTAL(3,$B$9:$B105) -> 39 | R106: 1200-Other Assets and Deferred Charges
B107: =Y2.ChartOfAccts!D107 -> 1350-Not for distributor use | C107: =""&Y2.ChartOfAccts!C107 -> 1708-Buildings and Fixtures | D107: =""&Y2.ChartOfAccts!E107 -> BS | E107: =Y2.ChartOfAccts!F107 -> 0 | O107: 0.1350-Not for distributor use | P107: 0 | Q107: =SUBTOTAL(3,$B$9:$B106) -> 39 | R107: 1200-Other Assets and Deferred Charges
B108: =Y2.ChartOfAccts!D108 -> 1350-Not for distributor use | C108: =""&Y2.ChartOfAccts!C108 -> 1710-Leasehold Improvements | D108: =""&Y2.ChartOfAccts!E108 -> BS | E108: =Y2.ChartOfAccts!F108 -> 0 | O108: 0.1350-Not for distributor use | P108: 0 | Q108: =SUBTOTAL(3,$B$9:$B107) -> 39 | R108: 1200-Other Assets and Deferred Charges
B109: =Y2.ChartOfAccts!D109 -> 1350-Not for distributor use | C109: =""&Y2.ChartOfAccts!C109 -> 1715-Station Equipment | D109: =""&Y2.ChartOfAccts!E109 -> BS | E109: =Y2.ChartOfAccts!F109 -> 0 | O109: 0.1350-Not for distributor use | P109: 0 | Q109: =SUBTOTAL(3,$B$9:$B108) -> 39 | R109: 1200-Other Assets and Deferred Charges
B110: =Y2.ChartOfAccts!D110 -> 1350-Not for distributor use | C110: =""&Y2.ChartOfAccts!C110 -> 1720-Towers and Fixtures | D110: =""&Y2.ChartOfAccts!E110 -> BS | E110: =Y2.ChartOfAccts!F110 -> 0 | O110: 0.1350-Not for distributor use | P110: 0 | Q110: =SUBTOTAL(3,$B$9:$B109) -> 39 | R110: 1200-Other Assets and Deferred Charges
B111: =Y2.ChartOfAccts!D111 -> 1350-Not for distributor use | C111: =""&Y2.ChartOfAccts!C111 -> 1725-Poles and Fixtures | D111: =""&Y2.ChartOfAccts!E111 -> BS | E111: =Y2.ChartOfAccts!F111 -> 0 | O111: 0.1350-Not for distributor use | P111: 0 | Q111: =SUBTOTAL(3,$B$9:$B110) -> 39 | R111: 1200-Other Assets and Deferred Charges
B112: =Y2.ChartOfAccts!D112 -> 1350-Not for distributor use | C112: =""&Y2.ChartOfAccts!C112 -> 1730-Overhead Conductors and Devices | D112: =""&Y2.ChartOfAccts!E112 -> BS | E112: =Y2.ChartOfAccts!F112 -> 0 | O112: 0.1350-Not for distributor use | P112: 0 | Q112: =SUBTOTAL(3,$B$9:$B111) -> 39 | R112: 1200-Other Assets and Deferred Charges
B113: =Y2.ChartOfAccts!D113 -> 1350-Not for distributor use | C113: =""&Y2.ChartOfAccts!C113 -> 1735-Underground Conduit | D113: =""&Y2.ChartOfAccts!E113 -> BS | E113: =Y2.ChartOfAccts!F113 -> 0 | O113: 0.1350-Not for distributor use | P113: 0 | Q113: =SUBTOTAL(3,$B$9:$B112) -> 39 | R113: 1200-Other Assets and Deferred Charges
B114: =Y2.ChartOfAccts!D114 -> 1350-Not for distributor use | C114: =""&Y2.ChartOfAccts!C114 -> 1740-Underground Conductors and Devices | D114: =""&Y2.ChartOfAccts!E114 -> BS | E114: =Y2.ChartOfAccts!F114 -> 0 | O114: 0.1350-Not for distributor use | P114: 0 | Q114: =SUBTOTAL(3,$B$9:$B113) -> 39 | R114: 1200-Other Assets and Deferred Charges
B115: =Y2.ChartOfAccts!D115 -> 1350-Not for distributor use | C115: =""&Y2.ChartOfAccts!C115 -> 1745-Roads and Trails | D115: =""&Y2.ChartOfAccts!E115 -> BS | E115: =Y2.ChartOfAccts!F115 -> 0 | O115: 0.1350-Not for distributor use | P115: 0 | Q115: =SUBTOTAL(3,$B$9:$B114) -> 39 | R115: 1200-Other Assets and Deferred Charges
B116: =Y2.ChartOfAccts!D116 -> 1450-Distribution Plant | C116: =""&Y2.ChartOfAccts!C116 -> 1805-Land | D116: =""&Y2.ChartOfAccts!E116 -> BS | E116: =Y2.ChartOfAccts!F116 -> 1 | F116: 227769 | G116: 227768.86 | H116: 227768.86 | M116: 227769 | O116: 1.1450-Distribution Plant | P116: 683306.86 | Q116: =SUBTOTAL(3,$B$9:$B115) -> 39 | R116: 1350-Not for distributor use
B117: =Y2.ChartOfAccts!D117 -> 1450-Distribution Plant | C117: =""&Y2.ChartOfAccts!C117 -> 1806-Land Rights | D117: =""&Y2.ChartOfAccts!E117 -> BS | E117: =Y2.ChartOfAccts!F117 -> 1 | O117: 1.1450-Distribution Plant | P117: 0 | Q117: =SUBTOTAL(3,$B$9:$B116) -> 40 | R117: 1450-Distribution Plant
B118: =Y2.ChartOfAccts!D118 -> 1450-Distribution Plant | C118: =""&Y2.ChartOfAccts!C118 -> 1808-Buildings and Fixtures | D118: =""&Y2.ChartOfAccts!E118 -> BS | E118: =Y2.ChartOfAccts!F118 -> 1 | F118: 2486318 | G118: 2486318 | H118: 2481211.9 | M118: 2466304 | O118: 1.1450-Distribution Plant | P118: 7438940 | Q118: =SUBTOTAL(3,$B$9:$B117) -> 40 | R118: 1450-Distribution Plant
B119: =Y2.ChartOfAccts!D119 -> 1450-Distribution Plant | C119: =""&Y2.ChartOfAccts!C119 -> 1810-Leasehold Improvements | D119: =""&Y2.ChartOfAccts!E119 -> BS | E119: =Y2.ChartOfAccts!F119 -> 1 | O119: 1.1450-Distribution Plant | P119: 0 | Q119: =SUBTOTAL(3,$B$9:$B118) -> 41 | R119: 1450-Distribution Plant
B120: =Y2.ChartOfAccts!D120 -> 1450-Distribution Plant | C120: =""&Y2.ChartOfAccts!C120 -> 1815-Transformer Station Equipment - Normally Primary above 50 kV | D120: =""&Y2.ChartOfAccts!E120 -> BS | E120: =Y2.ChartOfAccts!F120 -> 1 | O120: 1.1450-Distribution Plant | P120: 0 | Q120: =SUBTOTAL(3,$B$9:$B119) -> 41 | R120: 1450-Distribution Plant
B121: =Y2.ChartOfAccts!D121 -> 1450-Distribution Plant | C121: =""&Y2.ChartOfAccts!C121 -> 1820-Distribution Station Equipment - Normally Primary below 50 kV | D121: =""&Y2.ChartOfAccts!E121 -> BS | E121: =Y2.ChartOfAccts!F121 -> 1 | F121: 4269129 | G121: 3818489.54 | H121: 3667852.05 | M121: 3829176 | O121: 1.1450-Distribution Plant | P121: 11916794.54 | Q121: =SUBTOTAL(3,$B$9:$B120) -> 41 | R121: 1450-Distribution Plant
B122: =Y2.ChartOfAccts!D122 -> 1450-Distribution Plant | C122: =""&Y2.ChartOfAccts!C122 -> 1825-Storage Battery Equipment | D122: =""&Y2.ChartOfAccts!E122 -> BS | E122: =Y2.ChartOfAccts!F122 -> 0 | O122: 0.1450-Distribution Plant | P122: 0 | Q122: =SUBTOTAL(3,$B$9:$B121) -> 42 | R122: 1450-Distribution Plant
B123: =Y2.ChartOfAccts!D123 -> 1450-Distribution Plant | C123: =""&Y2.ChartOfAccts!C123 -> 1830-Poles, Towers and Fixtures | D123: =""&Y2.ChartOfAccts!E123 -> BS | E123: =Y2.ChartOfAccts!F123 -> 1 | F123: 7106083 | G123: 6563767.39 | H123: 5881292.72 | M123: 5848861 | O123: 1.1450-Distribution Plant | P123: 19518711.39 | Q123: =SUBTOTAL(3,$B$9:$B122) -> 42 | R123: 1450-Distribution Plant
B124: =Y2.ChartOfAccts!D124 -> 1450-Distribution Plant | C124: =""&Y2.ChartOfAccts!C124 -> 1835-Overhead Conductors and Devices | D124: =""&Y2.ChartOfAccts!E124 -> BS | E124: =Y2.ChartOfAccts!F124 -> 1 | F124: 9746857 | G124: 9073534.28 | H124: 8346677.88 | M124: 8775517 | O124: 1.1450-Distribution Plant | P124: 27595908.28 | Q124: =SUBTOTAL(3,$B$9:$B123) -> 43 | R124: 1450-Distribution Plant
B125: =Y2.ChartOfAccts!D125 -> 1450-Distribution Plant | C125: =""&Y2.ChartOfAccts!C125 -> 1840-Underground Conduit | D125: =""&Y2.ChartOfAccts!E125 -> BS | E125: =Y2.ChartOfAccts!F125 -> 1 | F125: 3044636 | G125: 2706285.59 | H125: 2670882.75 | M125: 2809409 | O125: 1.1450-Distribution Plant | P125: 8560330.59 | Q125: =SUBTOTAL(3,$B$9:$B124) -> 44 | R125: 1450-Distribution Plant
B126: =Y2.ChartOfAccts!D126 -> 1450-Distribution Plant | C126: =""&Y2.ChartOfAccts!C126 -> 1845-Underground Conductors and Devices | D126: =""&Y2.ChartOfAccts!E126 -> BS | E126: =Y2.ChartOfAccts!F126 -> 1 | F126: 8848611 | G126: 8297546.35 | H126: 7664743.39 | M126: 7139137 | O126: 1.1450-Distribution Plant | P126: 24285294.35 | Q126: =SUBTOTAL(3,$B$9:$B125) -> 45 | R126: 1450-Distribution Plant
B127: =Y2.ChartOfAccts!D127 -> 1450-Distribution Plant | C127: =""&Y2.ChartOfAccts!C127 -> 1850-Line Transformers | D127: =""&Y2.ChartOfAccts!E127 -> BS | E127: =Y2.ChartOfAccts!F127 -> 1 | F127: 8007561 | G127: 7500290.76 | H127: 7601276.07 | M127: 7257963 | O127: 1.1450-Distribution Plant | P127: 22765814.76 | Q127: =SUBTOTAL(3,$B$9:$B126) -> 46 | R127: 1450-Distribution Plant
B128: =Y2.ChartOfAccts!D128 -> 1450-Distribution Plant | C128: =""&Y2.ChartOfAccts!C128 -> 1855-Services | D128: =""&Y2.ChartOfAccts!E128 -> BS | E128: =Y2.ChartOfAccts!F128 -> 1 | F128: 4430482 | G128: 3957038.32 | H128: 3706161 | M128: 3265243 | O128: 1.1450-Distribution Plant | P128: 11652763.32 | Q128: =SUBTOTAL(3,$B$9:$B127) -> 47 | R128: 1450-Distribution Plant
B129: =Y2.ChartOfAccts!D129 -> 1450-Distribution Plant | C129: =""&Y2.ChartOfAccts!C129 -> 1860-Meters | D129: =""&Y2.ChartOfAccts!E129 -> BS | E129: =Y2.ChartOfAccts!F129 -> 1 | F129: 1685197 | G129: 1820049.54 | H129: 2007851.5 | M129: 2746274 | O129: 1.1450-Distribution Plant | P129: 6251520.54 | Q129: =SUBTOTAL(3,$B$9:$B128) -> 48 | R129: 1450-Distribution Plant
B130: =Y2.ChartOfAccts!D130 -> 1450-Distribution Plant | C130: =""&Y2.ChartOfAccts!C130 -> 1865-Other Installations on Customer's Premises | D130: =""&Y2.ChartOfAccts!E130 -> BS | E130: =Y2.ChartOfAccts!F130 -> 0 | F130: 1635 | G130: 1634.63 | H130: 1634.63 | O130: 0.1450-Distribution Plant | P130: 3269.63 | Q130: =SUBTOTAL(3,$B$9:$B129) -> 49 | R130: 1450-Distribution Plant
B131: =Y2.ChartOfAccts!D131 -> 1450-Distribution Plant | C131: =""&Y2.ChartOfAccts!C131 -> 1870-Leased Property on Customer Premises | D131: =""&Y2.ChartOfAccts!E131 -> BS | E131: =Y2.ChartOfAccts!F131 -> 0 | O131: 0.1450-Distribution Plant | P131: 0 | Q131: =SUBTOTAL(3,$B$9:$B130) -> 50 | R131: 1450-Distribution Plant
B132: =Y2.ChartOfAccts!D132 -> 1450-Distribution Plant | C132: =""&Y2.ChartOfAccts!C132 -> 1875-Street Lighting and Signal Systems | D132: =""&Y2.ChartOfAccts!E132 -> BS | E132: =Y2.ChartOfAccts!F132 -> 0 | O132: 0.1450-Distribution Plant | P132: 0 | Q132: =SUBTOTAL(3,$B$9:$B131) -> 50 | R132: 1450-Distribution Plant
B133: =Y2.ChartOfAccts!D133 -> 1500-General Plant | C133: =""&Y2.ChartOfAccts!C133 -> 1905-Land | D133: =""&Y2.ChartOfAccts!E133 -> BS | E133: =Y2.ChartOfAccts!F133 -> 1 | O133: 1.1500-General Plant | P133: 0 | Q133: =SUBTOTAL(3,$B$9:$B132) -> 50 | R133: 1450-Distribution Plant
B134: =Y2.ChartOfAccts!D134 -> 1500-General Plant | C134: =""&Y2.ChartOfAccts!C134 -> 1906-Land Rights | D134: =""&Y2.ChartOfAccts!E134 -> BS | E134: =Y2.ChartOfAccts!F134 -> 1 | O134: 1.1500-General Plant | P134: 0 | Q134: =SUBTOTAL(3,$B$9:$B133) -> 50 | R134: 1450-Distribution Plant
B135: =Y2.ChartOfAccts!D135 -> 1500-General Plant | C135: =""&Y2.ChartOfAccts!C135 -> 1908-Buildings and Fixtures | D135: =""&Y2.ChartOfAccts!E135 -> BS | E135: =Y2.ChartOfAccts!F135 -> 1 | O135: 1.1500-General Plant | P135: 0 | Q135: =SUBTOTAL(3,$B$9:$B134) -> 50 | R135: 1450-Distribution Plant
B136: =Y2.ChartOfAccts!D136 -> 1500-General Plant | C136: =""&Y2.ChartOfAccts!C136 -> 1910-Leasehold Improvements | D136: =""&Y2.ChartOfAccts!E136 -> BS | E136: =Y2.ChartOfAccts!F136 -> 1 | O136: 1.1500-General Plant | P136: 0 | Q136: =SUBTOTAL(3,$B$9:$B135) -> 50 | R136: 1450-Distribution Plant
B137: =Y2.ChartOfAccts!D137 -> 1500-General Plant | C137: =""&Y2.ChartOfAccts!C137 -> 1915-Office Furniture and Equipment | D137: =""&Y2.ChartOfAccts!E137 -> BS | E137: =Y2.ChartOfAccts!F137 -> 1 | F137: 262476 | G137: 251887.35 | H137: 244053.3 | M137: 247418 | O137: 1.1500-General Plant | P137: 761781.35 | Q137: =SUBTOTAL(3,$B$9:$B136) -> 50 | R137: 1450-Distribution Plant
B138: =Y2.ChartOfAccts!D138 -> 1500-General Plant | C138: =""&Y2.ChartOfAccts!C138 -> 1920-Computer Equipment - Hardware | D138: =""&Y2.ChartOfAccts!E138 -> BS | E138: =Y2.ChartOfAccts!F138 -> 1 | F138: 481994 | G138: 436608.88 | H138: 421727.66 | M138: 407974 | O138: =E138&"."&B138 -> 1.1500-General Plant | P138: =ABS(F138)+ABS(G138)+ABS(K138)+ABS(M138) -> 1326576.88 | Q138: =SUBTOTAL(3,$B$9:$B137) -> 51 | R138: 1500-General Plant
B139: =Y2.ChartOfAccts!D139 -> 1500-General Plant | C139: =""&Y2.ChartOfAccts!C139 -> 1925-Computer Software | D139: =""&Y2.ChartOfAccts!E139 -> BS | E139: =Y2.ChartOfAccts!F139 -> 1 | F139: 944456 | G139: 854691.24 | H139: 750359.22 | M139: 750290 | O139: 1.1500-General Plant | P139: 2549437.24 | Q139: =SUBTOTAL(3,$B$9:$B138) -> 52 | R139: =IF($B139<>$B138,$B138,OFFSET($B$9,MATCH(Q139,Q$10:Q$500,0)-1,0)) -> 1500-General Plant
B140: =Y2.ChartOfAccts!D140 -> 1500-General Plant | C140: =""&Y2.ChartOfAccts!C140 -> 1930-Transportation Equipment | D140: =""&Y2.ChartOfAccts!E140 -> BS | E140: =Y2.ChartOfAccts!F140 -> 1 | F140: 1984171 | G140: 1838671.03 | H140: 1647124.24 | M140: 1654555 | O140: 1.1500-General Plant | P140: 5477397.03 | Q140: =SUBTOTAL(3,$B$9:$B139) -> 53 | R140: 1500-General Plant
B141: =Y2.ChartOfAccts!D141 -> 1500-General Plant | C141: =""&Y2.ChartOfAccts!C141 -> 1935-Stores Equipment | D141: =""&Y2.ChartOfAccts!E141 -> BS | E141: =Y2.ChartOfAccts!F141 -> 1 | F141: 85037 | G141: 90937.21 | H141: 90937.21 | M141: 92342 | O141: 1.1500-General Plant | P141: 268316.21 | Q141: =SUBTOTAL(3,$B$9:$B140) -> 54 | R141: 1500-General Plant
B142: =Y2.ChartOfAccts!D142 -> 1500-General Plant | C142: =""&Y2.ChartOfAccts!C142 -> 1940-Tools, Shop and Garage Equipment | D142: =""&Y2.ChartOfAccts!E142 -> BS | E142: =Y2.ChartOfAccts!F142 -> 1 | F142: 296781 | G142: 278276.02 | H142: 242108.78 | M142: 274420 | O142: 1.1500-General Plant | P142: 849477.02 | Q142: =SUBTOTAL(3,$B$9:$B141) -> 55 | R142: 1500-General Plant
B143: =Y2.ChartOfAccts!D143 -> 1500-General Plant | C143: =""&Y2.ChartOfAccts!C143 -> 1945-Measurement and Testing Equipment | D143: =""&Y2.ChartOfAccts!E143 -> BS | E143: =Y2.ChartOfAccts!F143 -> 1 | F143: 67544 | G143: 63138.5 | H143: 59760 | M143: 51482 | O143: 1.1500-General Plant | P143: 182164.5 | Q143: =SUBTOTAL(3,$B$9:$B142) -> 56 | R143: 1500-General Plant
B144: =Y2.ChartOfAccts!D144 -> 1500-General Plant | C144: =""&Y2.ChartOfAccts!C144 -> 1950-Power Operated Equipment | D144: =""&Y2.ChartOfAccts!E144 -> BS | E144: =Y2.ChartOfAccts!F144 -> 1 | F144: 89272 | G144: 100271.96 | H144: 100271.96 | M144: 72011 | O144: 1.1500-General Plant | P144: 261554.96 | Q144: =SUBTOTAL(3,$B$9:$B143) -> 57 | R144: 1500-General Plant
B145: =Y2.ChartOfAccts!D145 -> 1500-General Plant | C145: =""&Y2.ChartOfAccts!C145 -> 1955-Communication Equipment | D145: =""&Y2.ChartOfAccts!E145 -> BS | E145: =Y2.ChartOfAccts!F145 -> 1 | F145: 176173 | G145: 176173.24 | H145: 102070.39 | M145: 99188 | O145: 1.1500-General Plant | P145: 451534.24 | Q145: =SUBTOTAL(3,$B$9:$B144) -> 58 | R145: 1500-General Plant
B146: =Y2.ChartOfAccts!D146 -> 1500-General Plant | C146: =""&Y2.ChartOfAccts!C146 -> 1960-Miscellaneous Equipment | D146: =""&Y2.ChartOfAccts!E146 -> BS | E146: =Y2.ChartOfAccts!F146 -> 1 | F146: 43493 | G146: 43493.47 | H146: 37793.26 | M146: 27970 | O146: 1.1500-General Plant | P146: 114956.47 | Q146: =SUBTOTAL(3,$B$9:$B145) -> 59 | R146: 1500-General Plant
B147: =Y2.ChartOfAccts!D147 -> 1500-General Plant | C147: =""&Y2.ChartOfAccts!C147 -> 1965-Water Heater Rental Units | D147: =""&Y2.ChartOfAccts!E147 -> BS | E147: =Y2.ChartOfAccts!F147 -> 1 | H147: 0 | O147: 1.1500-General Plant | P147: 0 | Q147: =SUBTOTAL(3,$B$9:$B146) -> 60 | R147: 1500-General Plant
B148: =Y2.ChartOfAccts!D148 -> 1500-General Plant | C148: =""&Y2.ChartOfAccts!C148 -> 1970-Load Management Controls - Customer Premises | D148: =""&Y2.ChartOfAccts!E148 -> BS | E148: =Y2.ChartOfAccts!F148 -> 1 | O148: 1.1500-General Plant | P148: 0 | Q148: =SUBTOTAL(3,$B$9:$B147) -> 60 | R148: 1500-General Plant
B149: =Y2.ChartOfAccts!D149 -> 1500-General Plant | C149: =""&Y2.ChartOfAccts!C149 -> 1975-Load Management Controls - Utility Premises | D149: =""&Y2.ChartOfAccts!E149 -> BS | E149: =Y2.ChartOfAccts!F149 -> 1 | F149: 258631 | G149: 258630.5 | H149: 258630.5 | M149: 258631 | O149: 1.1500-General Plant | P149: 775892.5 | Q149: =SUBTOTAL(3,$B$9:$B148) -> 60 | R149: 1500-General Plant
B150: =Y2.ChartOfAccts!D150 -> 1500-General Plant | C150: =""&Y2.ChartOfAccts!C150 -> 1980-System Supervisory Equipment | D150: =""&Y2.ChartOfAccts!E150 -> BS | E150: =Y2.ChartOfAccts!F150 -> 1 | O150: 1.1500-General Plant | P150: 0 | Q150: =SUBTOTAL(3,$B$9:$B149) -> 61 | R150: 1500-General Plant
B151: =Y2.ChartOfAccts!D151 -> 1500-General Plant | C151: =""&Y2.ChartOfAccts!C151 -> 1985-Sentinel Lighting Rental Units | D151: =""&Y2.ChartOfAccts!E151 -> BS | E151: =Y2.ChartOfAccts!F151 -> 1 | F151: 1427 | G151: 1426.68 | H151: 1426.68 | O151: 1.1500-General Plant | P151: 2853.68 | Q151: =SUBTOTAL(3,$B$9:$B150) -> 61 | R151: 1500-General Plant
B152: =Y2.ChartOfAccts!D152 -> 1500-General Plant | C152: =""&Y2.ChartOfAccts!C152 -> 1990-Other Tangible Property | D152: =""&Y2.ChartOfAccts!E152 -> BS | E152: =Y2.ChartOfAccts!F152 -> 1 | O152: 1.1500-General Plant | P152: 0 | Q152: =SUBTOTAL(3,$B$9:$B151) -> 62 | R152: 1500-General Plant
B153: =Y2.ChartOfAccts!D153 -> 1550-Other Capital Assets | C153: =""&Y2.ChartOfAccts!C153 -> 1995-Contributions and Grants - Credit | D153: =""&Y2.ChartOfAccts!E153 -> BS | E153: =Y2.ChartOfAccts!F153 -> 1 | F153: -8188457 | G153: -7555736.97 | H153: -7268123.68 | M153: -6094728 | O153: 1.1550-Other Capital Assets | P153: 21838921.97 | Q153: =SUBTOTAL(3,$B$9:$B152) -> 62 | R153: 1500-General Plant
B154: =Y2.ChartOfAccts!D154 -> 1550-Other Capital Assets | C154: =""&Y2.ChartOfAccts!C154 -> 2005-Property Under Capital Leases | D154: =""&Y2.ChartOfAccts!E154 -> BS | E154: =Y2.ChartOfAccts!F154 -> 1 | O154: 1.1550-Other Capital Assets | P154: 0 | Q154: =SUBTOTAL(3,$B$9:$B153) -> 63 | R154: 1550-Other Capital Assets
B155: =Y2.ChartOfAccts!D155 -> 1550-Other Capital Assets | C155: =""&Y2.ChartOfAccts!C155 -> 2010-Electric Plant Purchased or Sold | D155: =""&Y2.ChartOfAccts!E155 -> BS | E155: =Y2.ChartOfAccts!F155 -> 0 | O155: 0.1550-Other Capital Assets | P155: 0 | Q155: =SUBTOTAL(3,$B$9:$B154) -> 63 | R155: 1550-Other Capital Assets
B156: =Y2.ChartOfAccts!D156 -> 1550-Other Capital Assets | C156: =""&Y2.ChartOfAccts!C156 -> 2020-Experimental Electric Plant Unclassified | D156: =""&Y2.ChartOfAccts!E156 -> BS | E156: =Y2.ChartOfAccts!F156 -> 0 | O156: 0.1550-Other Capital Assets | P156: 0 | Q156: =SUBTOTAL(3,$B$9:$B155) -> 63 | R156: 1550-Other Capital Assets
B157: =Y2.ChartOfAccts!D157 -> 1550-Other Capital Assets | C157: =""&Y2.ChartOfAccts!C157 -> 2030-Electric Plant and Equipment Leased to Others | D157: =""&Y2.ChartOfAccts!E157 -> BS | E157: =Y2.ChartOfAccts!F157 -> 0 | O157: 0.1550-Other Capital Assets | P157: 0 | Q157: =SUBTOTAL(3,$B$9:$B156) -> 63 | R157: 1550-Other Capital Assets
B158: =Y2.ChartOfAccts!D158 -> 1550-Other Capital Assets | C158: =""&Y2.ChartOfAccts!C158 -> 2040-Electric Plant Held for Future Use | D158: =""&Y2.ChartOfAccts!E158 -> BS | E158: =Y2.ChartOfAccts!F158 -> 0 | O158: 0.1550-Other Capital Assets | P158: 0 | Q158: =SUBTOTAL(3,$B$9:$B157) -> 63 | R158: 1550-Other Capital Assets
B159: =Y2.ChartOfAccts!D159 -> 1550-Other Capital Assets | C159: =""&Y2.ChartOfAccts!C159 -> 2050-Completed Construction Not Classified--Electric | D159: =""&Y2.ChartOfAccts!E159 -> BS | E159: =Y2.ChartOfAccts!F159 -> 0 | O159: 0.1550-Other Capital Assets | P159: 0 | Q159: =SUBTOTAL(3,$B$9:$B158) -> 63 | R159: 1550-Other Capital Assets
B160: =Y2.ChartOfAccts!D160 -> 1550-Other Capital Assets | C160: =""&Y2.ChartOfAccts!C160 -> 2055-Construction Work in Progress--Electric | D160: =""&Y2.ChartOfAccts!E160 -> BS | E160: =Y2.ChartOfAccts!F160 -> 0 | F160: 213186 | G160: 36488.27 | H160: 8370.15 | M160: 50000 | O160: 0.1550-Other Capital Assets | P160: 299674.27 | Q160: =SUBTOTAL(3,$B$9:$B159) -> 63 | R160: 1550-Other Capital Assets
B161: =Y2.ChartOfAccts!D161 -> 1550-Other Capital Assets | C161: =""&Y2.ChartOfAccts!C161 -> 2060-Electric Plant Acquisition Adjustment | D161: =""&Y2.ChartOfAccts!E161 -> BS | E161: =Y2.ChartOfAccts!F161 -> 0 | F161: 2888247 | G161: 2888247 | H161: 2888247 | M161: 2888247 | O161: 0.1550-Other Capital Assets | P161: 8664741 | Q161: =SUBTOTAL(3,$B$9:$B160) -> 64 | R161: 1550-Other Capital Assets
B162: =Y2.ChartOfAccts!D162 -> 1550-Other Capital Assets | C162: =""&Y2.ChartOfAccts!C162 -> 2065-Other Electric Plant Adjustment | D162: =""&Y2.ChartOfAccts!E162 -> BS | E162: =Y2.ChartOfAccts!F162 -> 0 | O162: 0.1550-Other Capital Assets | P162: 0 | Q162: =SUBTOTAL(3,$B$9:$B161) -> 65 | R162: 1550-Other Capital Assets
B163: =Y2.ChartOfAccts!D163 -> 1550-Other Capital Assets | C163: =""&Y2.ChartOfAccts!C163 -> 2070-Other Utility Plant | D163: =""&Y2.ChartOfAccts!E163 -> BS | E163: =Y2.ChartOfAccts!F163 -> 0 | O163: 0.1550-Other Capital Assets | P163: 0 | Q163: =SUBTOTAL(3,$B$9:$B162) -> 65 | R163: 1550-Other Capital Assets
B164: =Y2.ChartOfAccts!D164 -> 1550-Other Capital Assets | C164: =""&Y2.ChartOfAccts!C164 -> 2075-Non-Utility Property Owned or Under Capital Leases | D164: =""&Y2.ChartOfAccts!E164 -> BS | E164: =Y2.ChartOfAccts!F164 -> 0 | O164: 0.1550-Other Capital Assets | P164: 0 | Q164: =SUBTOTAL(3,$B$9:$B163) -> 65 | R164: 1550-Other Capital Assets
B165: =Y2.ChartOfAccts!D165 -> 1600-Accumulated Amortization | C165: =""&Y2.ChartOfAccts!C165 -> 2105-Accum. Amortization of Electric Utility Plant - Property, Plant, & Equipment | D165: =""&Y2.ChartOfAccts!E165 -> BS | E165: =Y2.ChartOfAccts!F165 -> 1 | F165: -17079279 | G165: -15334483.92 | H165: -13741003.51 | M165: -13964611 | O165: 1.1600-Accumulated Amortization | P165: 46378373.92 | Q165: =SUBTOTAL(3,$B$9:$B164) -> 65 | R165: 1550-Other Capital Assets
B166: =Y2.ChartOfAccts!D166 -> 1600-Accumulated Amortization | C166: =""&Y2.ChartOfAccts!C166 -> 2120-Accumulated Amortization of Electric Utility Plant - Intangibles | D166: =""&Y2.ChartOfAccts!E166 -> BS | E166: =Y2.ChartOfAccts!F166 -> 1 | O166: 1.1600-Accumulated Amortization | P166: 0 | Q166: =SUBTOTAL(3,$B$9:$B165) -> 66 | R166: 1600-Accumulated Amortization
B167: =Y2.ChartOfAccts!D167 -> 1600-Accumulated Amortization | C167: =""&Y2.ChartOfAccts!C167 -> 2140-Accumulated Amortization of Electric Plant Acquisition Adjustment | D167: =""&Y2.ChartOfAccts!E167 -> BS | E167: =Y2.ChartOfAccts!F167 -> 0 | F167: -673925 | G167: -673925 | H167: -673925 | M167: -673925 | O167: 0.1600-Accumulated Amortization | P167: 2021775 | Q167: =SUBTOTAL(3,$B$9:$B166) -> 66 | R167: 1600-Accumulated Amortization
B168: =Y2.ChartOfAccts!D168 -> 1600-Accumulated Amortization | C168: =""&Y2.ChartOfAccts!C168 -> 2160-Accumulated Amortization of Other Utility Plant | D168: =""&Y2.ChartOfAccts!E168 -> BS | E168: =Y2.ChartOfAccts!F168 -> 1 | O168: 1.1600-Accumulated Amortization | P168: 0 | Q168: =SUBTOTAL(3,$B$9:$B167) -> 67 | R168: 1600-Accumulated Amortization
B169: =Y2.ChartOfAccts!D169 -> 1600-Accumulated Amortization | C169: =""&Y2.ChartOfAccts!C169 -> 2180-Accumulated Amortization of Non-Utility Property | D169: =""&Y2.ChartOfAccts!E169 -> BS | E169: =Y2.ChartOfAccts!F169 -> 0 | O169: 0.1600-Accumulated Amortization | P169: 0 | Q169: =SUBTOTAL(3,$B$9:$B168) -> 67 | R169: 1600-Accumulated Amortization
B170: =Y2.ChartOfAccts!D170 -> 1650-Current Liabilities | C170: =""&Y2.ChartOfAccts!C170 -> 2205-Accounts Payable | D170: =""&Y2.ChartOfAccts!E170 -> BS | E170: =Y2.ChartOfAccts!F170 -> 0 | F170: -3575913 | G170: -3992031.44 | H170: -4897978.13 | M170: -4000000 | O170: 0.1650-Current Liabilities | P170: 11567944.44 | Q170: =SUBTOTAL(3,$B$9:$B169) -> 67 | R170: 1600-Accumulated Amortization
B171: =Y2.ChartOfAccts!D171 -> 1650-Current Liabilities | C171: =""&Y2.ChartOfAccts!C171 -> 2208-Customer Credit Balances | D171: =""&Y2.ChartOfAccts!E171 -> BS | E171: =Y2.ChartOfAccts!F171 -> 0 | F171: -600041 | G171: -224326.94 | H171: -377644.19 | M171: -320000 | O171: 0.1650-Current Liabilities | P171: 1144367.94 | Q171: =SUBTOTAL(3,$B$9:$B170) -> 68 | R171: 1650-Current Liabilities
B172: =Y2.ChartOfAccts!D172 -> 1650-Current Liabilities | C172: =""&Y2.ChartOfAccts!C172 -> 2210-Current Portion of Customer Deposits | D172: =""&Y2.ChartOfAccts!E172 -> BS | E172: =Y2.ChartOfAccts!F172 -> 0 | F172: -297624 | G172: -366759.42 | H172: -393914.67 | M172: -467000 | O172: 0.1650-Current Liabilities | P172: 1131383.42 | Q172: =SUBTOTAL(3,$B$9:$B171) -> 69 | R172: 1650-Current Liabilities
B173: =Y2.ChartOfAccts!D173 -> 1650-Current Liabilities | C173: =""&Y2.ChartOfAccts!C173 -> 2215-Dividends Declared | D173: =""&Y2.ChartOfAccts!E173 -> BS | E173: =Y2.ChartOfAccts!F173 -> 0 | O173: 0.1650-Current Liabilities | P173: 0 | Q173: =SUBTOTAL(3,$B$9:$B172) -> 70 | R173: 1650-Current Liabilities
B174: =Y2.ChartOfAccts!D174 -> 1650-Current Liabilities | C174: =""&Y2.ChartOfAccts!C174 -> 2220-Miscellaneous Current and Accrued Liabilities | D174: =""&Y2.ChartOfAccts!E174 -> BS | E174: =Y2.ChartOfAccts!F174 -> 0 | F174: -4807422 | G174: -2155499.28 | H174: -849491.11 | M174: -448500 | O174: 0.1650-Current Liabilities | P174: 7411421.28 | Q174: =SUBTOTAL(3,$B$9:$B173) -> 70 | R174: 1650-Current Liabilities
B175: =Y2.ChartOfAccts!D175 -> 1650-Current Liabilities | C175: =""&Y2.ChartOfAccts!C175 -> 2225-Notes and Loans Payable | D175: =""&Y2.ChartOfAccts!E175 -> BS | E175: =Y2.ChartOfAccts!F175 -> 0 | F175: -5260461 | H175: -1750000 | O175: 0.1650-Current Liabilities | P175: 5260461 | Q175: =SUBTOTAL(3,$B$9:$B174) -> 71 | R175: 1650-Current Liabilities
B176: =Y2.ChartOfAccts!D176 -> 1650-Current Liabilities | C176: =""&Y2.ChartOfAccts!C176 -> 2240-Accounts Payable to Associated Companies | D176: =""&Y2.ChartOfAccts!E176 -> BS | E176: =Y2.ChartOfAccts!F176 -> 0 | O176: 0.1650-Current Liabilities | P176: 0 | Q176: =SUBTOTAL(3,$B$9:$B175) -> 72 | R176: 1650-Current Liabilities
B177: =Y2.ChartOfAccts!D177 -> 1650-Current Liabilities | C177: =""&Y2.ChartOfAccts!C177 -> 2242-Notes Payable to Associated Companies | D177: =""&Y2.ChartOfAccts!E177 -> BS | E177: =Y2.ChartOfAccts!F177 -> 0 | O177: 0.1650-Current Liabilities | P177: 0 | Q177: =SUBTOTAL(3,$B$9:$B176) -> 72 | R177: 1650-Current Liabilities
B178: =Y2.ChartOfAccts!D178 -> 1650-Current Liabilities | C178: =""&Y2.ChartOfAccts!C178 -> 2250-Debt Retirement Charges( DRC) Payable | D178: =""&Y2.ChartOfAccts!E178 -> BS | E178: =Y2.ChartOfAccts!F178 -> 0 | F178: 31 | O178: 0.1650-Current Liabilities | P178: 31 | Q178: =SUBTOTAL(3,$B$9:$B177) -> 72 | R178: 1650-Current Liabilities
B179: =Y2.ChartOfAccts!D179 -> 1650-Current Liabilities | C179: =""&Y2.ChartOfAccts!C179 -> 2252-Transmission Charges Payable | D179: =""&Y2.ChartOfAccts!E179 -> BS | E179: =Y2.ChartOfAccts!F179 -> 0 | O179: 0.1650-Current Liabilities | P179: 0 | Q179: =SUBTOTAL(3,$B$9:$B178) -> 73 | R179: 1650-Current Liabilities
B180: =Y2.ChartOfAccts!D180 -> 1650-Current Liabilities | C180: =""&Y2.ChartOfAccts!C180 -> 2254-Electrical Safety Authority Fees Payable | D180: =""&Y2.ChartOfAccts!E180 -> BS | E180: =Y2.ChartOfAccts!F180 -> 0 | O180: 0.1650-Current Liabilities | P180: 0 | Q180: =SUBTOTAL(3,$B$9:$B179) -> 73 | R180: 1650-Current Liabilities
B181: =Y2.ChartOfAccts!D181 -> 1650-Current Liabilities | C181: =""&Y2.ChartOfAccts!C181 -> 2256-Independent Market Operator Fees and Penalties Payable | D181: =""&Y2.ChartOfAccts!E181 -> BS | E181: =Y2.ChartOfAccts!F181 -> 0 | O181: 0.1650-Current Liabilities | P181: 0 | Q181: =SUBTOTAL(3,$B$9:$B180) -> 73 | R181: 1650-Current Liabilities
B182: =Y2.ChartOfAccts!D182 -> 1650-Current Liabilities | C182: =""&Y2.ChartOfAccts!C182 -> 2260-Current Portion of Long Term Debt | D182: =""&Y2.ChartOfAccts!E182 -> BS | E182: =Y2.ChartOfAccts!F182 -> 0 | F182: -587764 | G182: -451814 | H182: -362105.98 | M182: -340594 | O182: 0.1650-Current Liabilities | P182: 1380172 | Q182: =SUBTOTAL(3,$B$9:$B181) -> 73 | R182: 1650-Current Liabilities
B183: =Y2.ChartOfAccts!D183 -> 1650-Current Liabilities | C183: =""&Y2.ChartOfAccts!C183 -> 2262-Ontario Hydro Debt - Current Portion | D183: =""&Y2.ChartOfAccts!E183 -> BS | E183: =Y2.ChartOfAccts!F183 -> 0 | O183: 0.1650-Current Liabilities | P183: 0 | Q183: =SUBTOTAL(3,$B$9:$B182) -> 74 | R183: 1650-Current Liabilities
B184: =Y2.ChartOfAccts!D184 -> 1650-Current Liabilities | C184: =""&Y2.ChartOfAccts!C184 -> 2264-Pensions and Employee Benefits - Current Portion | D184: =""&Y2.ChartOfAccts!E184 -> BS | E184: =Y2.ChartOfAccts!F184 -> 0 | O184: 0.1650-Current Liabilities | P184: 0 | Q184: =SUBTOTAL(3,$B$9:$B183) -> 74 | R184: 1650-Current Liabilities
B185: =Y2.ChartOfAccts!D185 -> 1650-Current Liabilities | C185: =""&Y2.ChartOfAccts!C185 -> 2268-Accrued Interest on Long Term Debt | D185: =""&Y2.ChartOfAccts!E185 -> BS | E185: =Y2.ChartOfAccts!F185 -> 0 | O185: 0.1650-Current Liabilities | P185: 0 | Q185: =SUBTOTAL(3,$B$9:$B184) -> 74 | R185: 1650-Current Liabilities
B186: =Y2.ChartOfAccts!D186 -> 1650-Current Liabilities | C186: =""&Y2.ChartOfAccts!C186 -> 2270-Matured Long Term Debt | D186: =""&Y2.ChartOfAccts!E186 -> BS | E186: =Y2.ChartOfAccts!F186 -> 0 | O186: 0.1650-Current Liabilities | P186: 0 | Q186: =SUBTOTAL(3,$B$9:$B185) -> 74 | R186: 1650-Current Liabilities
B187: =Y2.ChartOfAccts!D187 -> 1650-Current Liabilities | C187: =""&Y2.ChartOfAccts!C187 -> 2272-Matured Interest on Long Term Debt | D187: =""&Y2.ChartOfAccts!E187 -> BS | E187: =Y2.ChartOfAccts!F187 -> 0 | O187: 0.1650-Current Liabilities | P187: 0 | Q187: =SUBTOTAL(3,$B$9:$B186) -> 74 | R187: 1650-Current Liabilities
B188: =Y2.ChartOfAccts!D188 -> 1650-Current Liabilities | C188: =""&Y2.ChartOfAccts!C188 -> 2285-Obligations Under Capital Leases--Current | D188: =""&Y2.ChartOfAccts!E188 -> BS | E188: =Y2.ChartOfAccts!F188 -> 0 | O188: 0.1650-Current Liabilities | P188: 0 | Q188: =SUBTOTAL(3,$B$9:$B187) -> 74 | R188: 1650-Current Liabilities
B189: =Y2.ChartOfAccts!D189 -> 1650-Current Liabilities | C189: =""&Y2.ChartOfAccts!C189 -> 2290-Commodity Taxes | D189: =""&Y2.ChartOfAccts!E189 -> BS | E189: =Y2.ChartOfAccts!F189 -> 0 | O189: 0.1650-Current Liabilities | P189: 0 | Q189: =SUBTOTAL(3,$B$9:$B188) -> 74 | R189: 1650-Current Liabilities
B190: =Y2.ChartOfAccts!D190 -> 1650-Current Liabilities | C190: =""&Y2.ChartOfAccts!C190 -> 2292-Payroll Deductions / Expenses Payable | D190: =""&Y2.ChartOfAccts!E190 -> BS | E190: =Y2.ChartOfAccts!F190 -> 0 | F190: 0 | O190: 0.1650-Current Liabilities | P190: 0 | Q190: =SUBTOTAL(3,$B$9:$B189) -> 74 | R190: 1650-Current Liabilities
B191: =Y2.ChartOfAccts!D191 -> 1650-Current Liabilities | C191: =""&Y2.ChartOfAccts!C191 -> 2294-Accrual for Taxes, Payments in Lieu of Taxes, Etc. | D191: =""&Y2.ChartOfAccts!E191 -> BS | E191: =Y2.ChartOfAccts!F191 -> 0 | F191: 67012 | H191: -72516 | M191: -801261 | O191: 0.1650-Current Liabilities | P191: 868273 | Q191: =SUBTOTAL(3,$B$9:$B190) -> 74 | R191: 1650-Current Liabilities
B192: =Y2.ChartOfAccts!D192 -> 1650-Current Liabilities | C192: =""&Y2.ChartOfAccts!C192 -> 2296-Future Income Taxes - Current | D192: =""&Y2.ChartOfAccts!E192 -> BS | E192: =Y2.ChartOfAccts!F192 -> 0 | O192: 0.1650-Current Liabilities | P192: 0 | Q192: =SUBTOTAL(3,$B$9:$B191) -> 75 | R192: 1650-Current Liabilities
B193: =Y2.ChartOfAccts!D193 -> 1700-Non-Current Liabilities | C193: =""&Y2.ChartOfAccts!C193 -> 2305-Accumulated Provision for Injuries and Damages | D193: =""&Y2.ChartOfAccts!E193 -> BS | E193: =Y2.ChartOfAccts!F193 -> 0 | O193: 0.1700-Non-Current Liabilities | P193: 0 | Q193: =SUBTOTAL(3,$B$9:$B192) -> 75 | R193: 1650-Current Liabilities
B194: =Y2.ChartOfAccts!D194 -> 1700-Non-Current Liabilities | C194: =""&Y2.ChartOfAccts!C194 -> 2306-Employee Future Benefits | D194: =""&Y2.ChartOfAccts!E194 -> BS | E194: =Y2.ChartOfAccts!F194 -> 0 | F194: -335164 | G194: -346752.5 | H194: -334352.79 | M194: -342850 | O194: 0.1700-Non-Current Liabilities | P194: 1024766.5 | Q194: =SUBTOTAL(3,$B$9:$B193) -> 75 | R194: 1650-Current Liabilities
B195: =Y2.ChartOfAccts!D195 -> 1700-Non-Current Liabilities | C195: =""&Y2.ChartOfAccts!C195 -> 2308-Other Pensions - Past Service Liability | D195: =""&Y2.ChartOfAccts!E195 -> BS | E195: =Y2.ChartOfAccts!F195 -> 0 | O195: 0.1700-Non-Current Liabilities | P195: 0 | Q195: =SUBTOTAL(3,$B$9:$B194) -> 76 | R195: 1700-Non-Current Liabilities
B196: =Y2.ChartOfAccts!D196 -> 1700-Non-Current Liabilities | C196: =""&Y2.ChartOfAccts!C196 -> 2310-Vested Sick Leave Liability | D196: =""&Y2.ChartOfAccts!E196 -> BS | E196: =Y2.ChartOfAccts!F196 -> 0 | O196: 0.1700-Non-Current Liabilities | P196: 0 | Q196: =SUBTOTAL(3,$B$9:$B195) -> 76 | R196: 1700-Non-Current Liabilities
B197: =Y2.ChartOfAccts!D197 -> 1700-Non-Current Liabilities | C197: =""&Y2.ChartOfAccts!C197 -> 2315-Accumulated Provision for Rate Refunds | D197: =""&Y2.ChartOfAccts!E197 -> BS | E197: =Y2.ChartOfAccts!F197 -> 0 | O197: 0.1700-Non-Current Liabilities | P197: 0 | Q197: =SUBTOTAL(3,$B$9:$B196) -> 76 | R197: 1700-Non-Current Liabilities
B198: =Y2.ChartOfAccts!D198 -> 1700-Non-Current Liabilities | C198: =""&Y2.ChartOfAccts!C198 -> 2320-Other Miscellaneous Non-Current Liabilities | D198: =""&Y2.ChartOfAccts!E198 -> BS | E198: =Y2.ChartOfAccts!F198 -> 0 | O198: 0.1700-Non-Current Liabilities | P198: 0 | Q198: =SUBTOTAL(3,$B$9:$B197) -> 76 | R198: 1700-Non-Current Liabilities
B199: =Y2.ChartOfAccts!D199 -> 1700-Non-Current Liabilities | C199: =""&Y2.ChartOfAccts!C199 -> 2325-Obligations Under Capital Lease--Non-Current | D199: =""&Y2.ChartOfAccts!E199 -> BS | E199: =Y2.ChartOfAccts!F199 -> 0 | O199: 0.1700-Non-Current Liabilities | P199: 0 | Q199: =SUBTOTAL(3,$B$9:$B198) -> 76 | R199: 1700-Non-Current Liabilities
B200: =Y2.ChartOfAccts!D200 -> 1700-Non-Current Liabilities | C200: =""&Y2.ChartOfAccts!C200 -> 2330-Development Charge Fund | D200: =""&Y2.ChartOfAccts!E200 -> BS | E200: =Y2.ChartOfAccts!F200 -> 0 | O200: 0.1700-Non-Current Liabilities | P200: 0 | Q200: =SUBTOTAL(3,$B$9:$B199) -> 76 | R200: 1700-Non-Current Liabilities
B201: =Y2.ChartOfAccts!D201 -> 1700-Non-Current Liabilities | C201: =""&Y2.ChartOfAccts!C201 -> 2335-Long Term Customer Deposits | D201: =""&Y2.ChartOfAccts!E201 -> BS | E201: =Y2.ChartOfAccts!F201 -> 0 | O201: 0.1700-Non-Current Liabilities | P201: 0 | Q201: =SUBTOTAL(3,$B$9:$B200) -> 76 | R201: 1700-Non-Current Liabilities
B202: =Y2.ChartOfAccts!D202 -> 1700-Non-Current Liabilities | C202: =""&Y2.ChartOfAccts!C202 -> 2340-Collateral Funds Liability | D202: =""&Y2.ChartOfAccts!E202 -> BS | E202: =Y2.ChartOfAccts!F202 -> 0 | O202: =E202&"."&B202 -> 0.1700-Non-Current Liabilities | P202: =ABS(F202)+ABS(G202)+ABS(K202)+ABS(M202) -> 0 | Q202: =SUBTOTAL(3,$B$9:$B201) -> 76 | R202: 1700-Non-Current Liabilities
... 301 more rows

Sheet A3.CustomerClasses
B1: =A1.Admin!B1 -> RateMaker 2011 release 1.0 © Elenchus Research Associates
A2: =IF(ISERROR(FIND(".xlsm]",CELL("filename",$A$1))),LEFT(RIGHT(CELL("filename",$A$1),LEN(CELL("filename",$A$1))-FIND(".xls]",CELL("filename",$A$1))-4),FIND(".",RIGHT(CELL("filename",$A$1),LEN(CELL("filename",$A$1))-FIND(".xls]",CELL("filename",$A$1))-4))-1),LEFT(RIGHT(CELL("filename",$A$1),LEN(CELL("filename",$A$1))-FIND(".xlsm]",CELL("filename",$A$1))-5),FIND(".",RIGHT(CELL("filename",$A$1),LEN(CELL("filename",$A$1))-FIND(".xlsm]",CELL("filename",$A$1))-5))-1)) -> A3 | B2: =A1.Admin!B2 -> Westario Power (ED-2002-0515)
B3: =A1.Admin!B3 -> 2013 EDR Application (EB-2012-0176) version: 1
B4: =A1.Admin!B4 -> October 9, 2012
B6: =$A$2&" "&VLOOKUP($A$2,Overview!$B$10:$E$90,3,FALSE) -> A3 Customer Classes
B7: =IF(VLOOKUP($A$2,Overview!$B$10:$E$90,4,FALSE)=VLOOKUP($A$2,Overview!$B$10:$E$90,3,FALSE),"",""&VLOOKUP($A$2,Overview!$B$10:$E$90,4,FALSE)) -> Enter names and status of existing and proposed customer classes
A9: Go to Overview | B9: Number | C9: Customer Class Name | D9: Existing | E9: Proposed | F9: Status | G9: MSC Metric | H9: Usage Metric | I9: USA #
B10: 1 | C10: Residential | D10: YES | E10: YES | F10: =IF(D10="YES",IF(E10="YES","Continued","Discontinued"),IF(E10="YES","New","")) -> Continued | G10: Customer | H10: kWh | I10: 4006
B11: 2 | C11: General Service < 50 kW | D11: YES | E11: YES | F11: Continued | G11: Customer | H11: kWh | I11: 4010
B12: 3 | C12: General Service > 50 to 4999 kW | D12: YES | E12: YES | F12: Continued | G12: Customer | H12: kW | I12: 4035
B13: 4 | C13: Unmetered Scattered Load | D13: YES | E13: YES | F13: Continued | G13: Customer | H13: kWh | I13: 4010
B14: 5 | C14: Street Lighting | D14: YES | E14: YES | F14: Continued | G14: Connection | H14: kW | I14: 4025
B15: 6 | C15: Sentinel Lighting | D15: YES | E15: YES | F15: Continued | G15: Connection | H15: kW | I15: 4030
B16: 7
B17: 8
B18: 9
B19: 10
B20: 11
B21: 12
B22: 13
B23: 14
B24: 15
B25: 16
B26: 17
B27: 18
B28: 19
B29: 20
J49: 3000-Sales of Electricity
J50: =IF(Y2.ChartOfAccts!D10=J$49,Y2.ChartOfAccts!B10,"") -> 
J51: =IF(Y2.ChartOfAccts!D11=J$49,Y2.ChartOfAccts!B11,"") -> 
J52: =IF(Y2.ChartOfAccts!D12=J$49,Y2.ChartOfAccts!B12,"") -> 
J53: =IF(Y2.ChartOfAccts!D13=J$49,Y2.ChartOfAccts!B13,"") -> 
J54: =IF(Y2.ChartOfAccts!D14=J$49,Y2.ChartOfAccts!B14,"") -> 
J55: =IF(Y2.ChartOfAccts!D15=J$49,Y2.ChartOfAccts!B15,"") -> 
J56: =IF(Y2.ChartOfAccts!D16=J$49,Y2.ChartOfAccts!B16,"") -> 
J57: =IF(Y2.ChartOfAccts!D17=J$49,Y2.ChartOfAccts!B17,"") -> 
J58: =IF(Y2.ChartOfAccts!D18=J$49,Y2.ChartOfAccts!B18,"") -> 
J59: =IF(Y2.ChartOfAccts!D19=J$49,Y2.ChartOfAccts!B19,"") -> 
J60: =IF(Y2.ChartOfAccts!D20=J$49,Y2.ChartOfAccts!B20,"") -> 
J61: =IF(Y2.ChartOfAccts!D21=J$49,Y2.ChartOfAccts!B21,"") -> 
J62: =IF(Y2.ChartOfAccts!D22=J$49,Y2.ChartOfAccts!B22,"") -> 
J63: =IF(Y2.ChartOfAccts!D23=J$49,Y2.ChartOfAccts!B23,"") -> 
J64: =IF(Y2.ChartOfAccts!D24=J$49,Y2.ChartOfAccts!B24,"") -> 
J65: =IF(Y2.ChartOfAccts!D25=J$49,Y2.ChartOfAccts!B25,"") -> 
J66: =IF(Y2.ChartOfAccts!D26=J$49,Y2.ChartOfAccts!B26,"") -> 
J67: =IF(Y2.ChartOfAccts!D27=J$49,Y2.ChartOfAccts!B27,"") -> 
J68: =IF(Y2.ChartOfAccts!D28=J$49,Y2.ChartOfAccts!B28,"") -> 
J69: =IF(Y2.ChartOfAccts!D29=J$49,Y2.ChartOfAccts!B29,"") -> 
J70: =IF(Y2.ChartOfAccts!D30=J$49,Y2.ChartOfAccts!B30,"") -> 
J71: =IF(Y2.ChartOfAccts!D31=J$49,Y2.ChartOfAccts!B31,"") -> 
J72: =IF(Y2.ChartOfAccts!D32=J$49,Y2.ChartOfAccts!B32,"") -> 
J73: =IF(Y2.ChartOfAccts!D33=J$49,Y2.ChartOfAccts!B33,"") -> 
J74: =IF(Y2.ChartOfAccts!D34=J$49,Y2.ChartOfAccts!B34,"") -> 
J75: =IF(Y2.ChartOfAccts!D35=J$49,Y2.ChartOfAccts!B35,"") -> 
J76: =IF(Y2.ChartOfAccts!D36=J$49,Y2.ChartOfAccts!B36,"") -> 
J77: =IF(Y2.ChartOfAccts!D37=J$49,Y2.ChartOfAccts!B37,"") -> 
J78: =IF(Y2.ChartOfAccts!D38=J$49,Y2.ChartOfAccts!B38,"") -> 
J79: =IF(Y2.ChartOfAccts!D39=J$49,Y2.ChartOfAccts!B39,"") -> 
J80: =IF(Y2.ChartOfAccts!D40=J$49,Y2.ChartOfAccts!B40,"") -> 
J81: =IF(Y2.ChartOfAccts!D41=J$49,Y2.ChartOfAccts!B41,"") -> 
J82: =IF(Y2.ChartOfAccts!D42=J$49,Y2.ChartOfAccts!B42,"") -> 
J83: =IF(Y2.ChartOfAccts!D43=J$49,Y2.ChartOfAccts!B43,"") -> 
J84: =IF(Y2.ChartOfAccts!D44=J$49,Y2.ChartOfAccts!B44,"") -> 
J85: =IF(Y2.ChartOfAccts!D45=J$49,Y2.ChartOfAccts!B45,"") -> 
J86: =IF(Y2.ChartOfAccts!D46=J$49,Y2.ChartOfAccts!B46,"") -> 
J87: =IF(Y2.ChartOfAccts!D47=J$49,Y2.ChartOfAccts!B47,"") -> 
J88: =IF(Y2.ChartOfAccts!D48=J$49,Y2.ChartOfAccts!B48,"") -> 
J89: =IF(Y2.ChartOfAccts!D49=J$49,Y2.ChartOfAccts!B49,"") -> 
J90: =IF(Y2.ChartOfAccts!D50=J$49,Y2.ChartOfAccts!B50,"") -> 
J91: =IF(Y2.ChartOfAccts!D51=J$49,Y2.ChartOfAccts!B51,"") -> 
J92: =IF(Y2.ChartOfAccts!D52=J$49,Y2.ChartOfAccts!B52,"") -> 
J93: =IF(Y2.ChartOfAccts!D53=J$49,Y2.ChartOfAccts!B53,"") -> 
J94: =IF(Y2.ChartOfAccts!D54=J$49,Y2.ChartOfAccts!B54,"") -> 
J95: =IF(Y2.ChartOfAccts!D55=J$49,Y2.ChartOfAccts!B55,"") -> 
J96: =IF(Y2.ChartOfAccts!D56=J$49,Y2.ChartOfAccts!B56,"") -> 
J97: =IF(Y2.ChartOfAccts!D57=J$49,Y2.ChartOfAccts!B57,"") -> 
J98: =IF(Y2.ChartOfAccts!D58=J$49,Y2.ChartOfAccts!B58,"") -> 
J99: =IF(Y2.ChartOfAccts!D59=J$49,Y2.ChartOfAccts!B59,"") -> 
J100: =IF(Y2.ChartOfAccts!D60=J$49,Y2.ChartOfAccts!B60,"") -> 
J101: =IF(Y2.ChartOfAccts!D61=J$49,Y2.ChartOfAccts!B61,"") -> 
J102: =IF(Y2.ChartOfAccts!D62=J$49,Y2.ChartOfAccts!B62,"") -> 
J103: =IF(Y2.ChartOfAccts!D63=J$49,Y2.ChartOfAccts!B63,"") -> 
J104: =IF(Y2.ChartOfAccts!D64=J$49,Y2.ChartOfAccts!B64,"") -> 
J105: =IF(Y2.ChartOfAccts!D65=J$49,Y2.ChartOfAccts!B65,"") -> 
J106: =IF(Y2.ChartOfAccts!D66=J$49,Y2.ChartOfAccts!B66,"") -> 
J107: =IF(Y2.ChartOfAccts!D67=J$49,Y2.ChartOfAccts!B67,"") -> 
J108: =IF(Y2.ChartOfAccts!D68=J$49,Y2.ChartOfAccts!B68,"") -> 
J109: =IF(Y2.ChartOfAccts!D69=J$49,Y2.ChartOfAccts!B69,"") -> 
J110: =IF(Y2.ChartOfAccts!D70=J$49,Y2.ChartOfAccts!B70,"") -> 
J111: =IF(Y2.ChartOfAccts!D71=J$49,Y2.ChartOfAccts!B71,"") -> 
J112: =IF(Y2.ChartOfAccts!D72=J$49,Y2.ChartOfAccts!B72,"") -> 
J113: =IF(Y2.ChartOfAccts!D73=J$49,Y2.ChartOfAccts!B73,"") -> 
J114: =IF(Y2.ChartOfAccts!D74=J$49,Y2.ChartOfAccts!B74,"") -> 
J115: =IF(Y2.ChartOfAccts!D75=J$49,Y2.ChartOfAccts!B75,"") -> 
J116: =IF(Y2.ChartOfAccts!D76=J$49,Y2.ChartOfAccts!B76,"") -> 
J117: =IF(Y2.ChartOfAccts!D77=J$49,Y2.ChartOfAccts!B77,"") -> 
J118: =IF(Y2.ChartOfAccts!D78=J$49,Y2.ChartOfAccts!B78,"") -> 
J119: =IF(Y2.ChartOfAccts!D79=J$49,Y2.ChartOfAccts!B79,"") -> 
J120: =IF(Y2.ChartOfAccts!D80=J$49,Y2.ChartOfAccts!B80,"") -> 
J121: =IF(Y2.ChartOfAccts!D81=J$49,Y2.ChartOfAccts!B81,"") -> 
J122: =IF(Y2.ChartOfAccts!D82=J$49,Y2.ChartOfAccts!B82,"") -> 
J123: =IF(Y2.ChartOfAccts!D83=J$49,Y2.ChartOfAccts!B83,"") -> 
J124: =IF(Y2.ChartOfAccts!D84=J$49,Y2.ChartOfAccts!B84,"") -> 
J125: =IF(Y2.ChartOfAccts!D85=J$49,Y2.ChartOfAccts!B85,"") -> 
J126: =IF(Y2.ChartOfAccts!D86=J$49,Y2.ChartOfAccts!B86,"") -> 
J127: =IF(Y2.ChartOfAccts!D87=J$49,Y2.ChartOfAccts!B87,"") -> 
J128: =IF(Y2.ChartOfAccts!D88=J$49,Y2.ChartOfAccts!B88,"") -> 
J129: =IF(Y2.ChartOfAccts!D89=J$49,Y2.ChartOfAccts!B89,"") -> 
J130: =IF(Y2.ChartOfAccts!D90=J$49,Y2.ChartOfAccts!B90,"") -> 
J131: =IF(Y2.ChartOfAccts!D91=J$49,Y2.ChartOfAccts!B91,"") -> 
J132: =IF(Y2.ChartOfAccts!D92=J$49,Y2.ChartOfAccts!B92,"") -> 
J133: =IF(Y2.ChartOfAccts!D93=J$49,Y2.ChartOfAccts!B93,"") -> 
J134: =IF(Y2.ChartOfAccts!D94=J$49,Y2.ChartOfAccts!B94,"") -> 
J135: =IF(Y2.ChartOfAccts!D95=J$49,Y2.ChartOfAccts!B95,"") -> 
J136: =IF(Y2.ChartOfAccts!D96=J$49,Y2.ChartOfAccts!B96,"") -> 
J137: =IF(Y2.ChartOfAccts!D97=J$49,Y2.ChartOfAccts!B97,"") -> 
J138: =IF(Y2.ChartOfAccts!D98=J$49,Y2.ChartOfAccts!B98,"") -> 
J139: =IF(Y2.ChartOfAccts!D99=J$49,Y2.ChartOfAccts!B99,"") -> 
J140: =IF(Y2.ChartOfAccts!D100=J$49,Y2.ChartOfAccts!B100,"") -> 
J141: =IF(Y2.ChartOfAccts!D101=J$49,Y2.ChartOfAccts!B101,"") -> 
J142: =IF(Y2.ChartOfAccts!D102=J$49,Y2.ChartOfAccts!B102,"") -> 
J143: =IF(Y2.ChartOfAccts!D103=J$49,Y2.ChartOfAccts!B103,"") -> 
J144: =IF(Y2.ChartOfAccts!D104=J$49,Y2.ChartOfAccts!B104,"") -> 
J145: =IF(Y2.ChartOfAccts!D105=J$49,Y2.ChartOfAccts!B105,"") -> 
J146: =IF(Y2.ChartOfAccts!D106=J$49,Y2.ChartOfAccts!B106,"") -> 
J147: =IF(Y2.ChartOfAccts!D107=J$49,Y2.ChartOfAccts!B107,"") -> 
J148: =IF(Y2.ChartOfAccts!D108=J$49,Y2.ChartOfAccts!B108,"") -> 
J149: =IF(Y2.ChartOfAccts!D109=J$49,Y2.ChartOfAccts!B109,"") -> 
J150: =IF(Y2.ChartOfAccts!D110=J$49,Y2.ChartOfAccts!B110,"") -> 
J151: =IF(Y2.ChartOfAccts!D111=J$49,Y2.ChartOfAccts!B111,"") -> 
J152: =IF(Y2.ChartOfAccts!D112=J$49,Y2.ChartOfAccts!B112,"") -> 
J153: =IF(Y2.ChartOfAccts!D113=J$49,Y2.ChartOfAccts!B113,"") -> 
J154: =IF(Y2.ChartOfAccts!D114=J$49,Y2.ChartOfAccts!B114,"") -> 
J155: =IF(Y2.ChartOfAccts!D115=J$49,Y2.ChartOfAccts!B115,"") -> 
J156: =IF(Y2.ChartOfAccts!D116=J$49,Y2.ChartOfAccts!B116,"") -> 
J157: =IF(Y2.ChartOfAccts!D117=J$49,Y2.ChartOfAccts!B117,"") -> 
J158: =IF(Y2.ChartOfAccts!D118=J$49,Y2.ChartOfAccts!B118,"") -> 
J159: =IF(Y2.ChartOfAccts!D119=J$49,Y2.ChartOfAccts!B119,"") -> 
J160: =IF(Y2.ChartOfAccts!D120=J$49,Y2.ChartOfAccts!B120,"") -> 
J161: =IF(Y2.ChartOfAccts!D121=J$49,Y2.ChartOfAccts!B121,"") -> 
J162: =IF(Y2.ChartOfAccts!D122=J$49,Y2.ChartOfAccts!B122,"") -> 
J163: =IF(Y2.ChartOfAccts!D123=J$49,Y2.ChartOfAccts!B123,"") -> 
J164: =IF(Y2.ChartOfAccts!D124=J$49,Y2.ChartOfAccts!B124,"") -> 
J165: =IF(Y2.ChartOfAccts!D125=J$49,Y2.ChartOfAccts!B125,"") -> 
J166: =IF(Y2.ChartOfAccts!D126=J$49,Y2.ChartOfAccts!B126,"") -> 
J167: =IF(Y2.ChartOfAccts!D127=J$49,Y2.ChartOfAccts!B127,"") -> 
J168: =IF(Y2.ChartOfAccts!D128=J$49,Y2.ChartOfAccts!B128,"") -> 
J169: =IF(Y2.ChartOfAccts!D129=J$49,Y2.ChartOfAccts!B129,"") -> 
J170: =IF(Y2.ChartOfAccts!D130=J$49,Y2.ChartOfAccts!B130,"") -> 
J171: =IF(Y2.ChartOfAccts!D131=J$49,Y2.ChartOfAccts!B131,"") -> 
J172: =IF(Y2.ChartOfAccts!D132=J$49,Y2.ChartOfAccts!B132,"") -> 
J173: =IF(Y2.ChartOfAccts!D133=J$49,Y2.ChartOfAccts!B133,"") -> 
J174: =IF(Y2.ChartOfAccts!D134=J$49,Y2.ChartOfAccts!B134,"") -> 
J175: =IF(Y2.ChartOfAccts!D135=J$49,Y2.ChartOfAccts!B135,"") -> 
J176: =IF(Y2.ChartOfAccts!D136=J$49,Y2.ChartOfAccts!B136,"") -> 
J177: =IF(Y2.ChartOfAccts!D137=J$49,Y2.ChartOfAccts!B137,"") -> 
J178: =IF(Y2.ChartOfAccts!D138=J$49,Y2.ChartOfAccts!B138,"") -> 
J179: =IF(Y2.ChartOfAccts!D139=J$49,Y2.ChartOfAccts!B139,"") -> 
J180: =IF(Y2.ChartOfAccts!D140=J$49,Y2.ChartOfAccts!B140,"") -> 
J181: =IF(Y2.ChartOfAccts!D141=J$49,Y2.ChartOfAccts!B141,"") -> 
J182: =IF(Y2.ChartOfAccts!D142=J$49,Y2.ChartOfAccts!B142,"") -> 
J183: =IF(Y2.ChartOfAccts!D143=J$49,Y2.ChartOfAccts!B143,"") -> 
J184: =IF(Y2.ChartOfAccts!D144=J$49,Y2.ChartOfAccts!B144,"") -> 
J185: =IF(Y2.ChartOfAccts!D145=J$49,Y2.ChartOfAccts!B145,"") -> 
J186: =IF(Y2.ChartOfAccts!D146=J$49,Y2.ChartOfAccts!B146,"") -> 
J187: =IF(Y2.ChartOfAccts!D147=J$49,Y2.ChartOfAccts!B147,"") -> 
J188: =IF(Y2.ChartOfAccts!D148=J$49,Y2.ChartOfAccts!B148,"") -> 
J189: =IF(Y2.ChartOfAccts!D149=J$49,Y2.ChartOfAccts!B149,"") -> 
J190: =IF(Y2.ChartOfAccts!D150=J$49,Y2.ChartOfAccts!B150,"") -> 
J191: =IF(Y2.ChartOfAccts!D151=J$49,Y2.ChartOfAccts!B151,"") -> 
J192: =IF(Y2.ChartOfAccts!D152=J$49,Y2.ChartOfAccts!B152,"") -> 
J193: =IF(Y2.ChartOfAccts!D153=J$49,Y2.ChartOfAccts!B153,"") -> 
J194: =IF(Y2.ChartOfAccts!D154=J$49,Y2.ChartOfAccts!B154,"") -> 
J195: =IF(Y2.ChartOfAccts!D155=J$49,Y2.ChartOfAccts!B155,"") -> 
J196: =IF(Y2.ChartOfAccts!D156=J$49,Y2.ChartOfAccts!B156,"") -> 
J197: =IF(Y2.ChartOfAccts!D157=J$49,Y2.ChartOfAccts!B157,"") -> 
J198: =IF(Y2.ChartOfAccts!D158=J$49,Y2.ChartOfAccts!B158,"") -> 
J199: =IF(Y2.ChartOfAccts!D159=J$49,Y2.ChartOfAccts!B159,"") -> 
J200: =IF(Y2.ChartOfAccts!D160=J$49,Y2.ChartOfAccts!B160,"") -> 
J201: =IF(Y2.ChartOfAccts!D161=J$49,Y2.ChartOfAccts!B161,"") -> 
J202: =IF(Y2.ChartOfAccts!D162=J$49,Y2.ChartOfAccts!B162,"") -> 
J203: =IF(Y2.ChartOfAccts!D163=J$49,Y2.ChartOfAccts!B163,"") -> 
J204: =IF(Y2.ChartOfAccts!D164=J$49,Y2.ChartOfAccts!B164,"") -> 
J205: =IF(Y2.ChartOfAccts!D165=J$49,Y2.ChartOfAccts!B165,"") -> 
J206: =IF(Y2.ChartOfAccts!D166=J$49,Y2.ChartOfAccts!B166,"") -> 
J207: =IF(Y2.ChartOfAccts!D167=J$49,Y2.ChartOfAccts!B167,"") -> 
J208: =IF(Y2.ChartOfAccts!D168=J$49,Y2.ChartOfAccts!B168,"") -> 
J209: =IF(Y2.ChartOfAccts!D169=J$49,Y2.ChartOfAccts!B169,"") -> 
J210: =IF(Y2.ChartOfAccts!D170=J$49,Y2.ChartOfAccts!B170,"") -> 
J211: =IF(Y2.ChartOfAccts!D171=J$49,Y2.ChartOfAccts!B171,"") -> 
J212: =IF(Y2.ChartOfAccts!D172=J$49,Y2.ChartOfAccts!B172,"") -> 
J213: =IF(Y2.ChartOfAccts!D173=J$49,Y2.ChartOfAccts!B173,"") -> 
J214: =IF(Y2.ChartOfAccts!D174=J$49,Y2.ChartOfAccts!B174,"") -> 
J215: =IF(Y2.ChartOfAccts!D175=J$49,Y2.ChartOfAccts!B175,"") -> 
J216: =IF(Y2.ChartOfAccts!D176=J$49,Y2.ChartOfAccts!B176,"") -> 
J217: =IF(Y2.ChartOfAccts!D177=J$49,Y2.ChartOfAccts!B177,"") -> 
J218: =IF(Y2.ChartOfAccts!D178=J$49,Y2.ChartOfAccts!B178,"") -> 
J219: =IF(Y2.ChartOfAccts!D179=J$49,Y2.ChartOfAccts!B179,"") -> 
J220: =IF(Y2.ChartOfAccts!D180=J$49,Y2.ChartOfAccts!B180,"") -> 
J221: =IF(Y2.ChartOfAccts!D181=J$49,Y2.ChartOfAccts!B181,"") -> 
... 319 more rows

Sheet A4.DistRates
B1: =A1.Admin!B1 -> RateMaker 2011 release 1.0 © Elenchus Research Associates
A2: =IF(ISERROR(FIND(".xlsm]",CELL("filename",$A$1))),LEFT(RIGHT(CELL("filename",$A$1),LEN(CELL("filename",$A$1))-FIND(".xls]",CELL("filename",$A$1))-4),FIND(".",RIGHT(CELL("filename",$A$1),LEN(CELL("filename",$A$1))-FIND(".xls]",CELL("filename",$A$1))-4))-1),LEFT(RIGHT(CELL("filename",$A$1),LEN(CELL("filename",$A$1))-FIND(".xlsm]",CELL("filename",$A$1))-5),FIND(".",RIGHT(CELL("filename",$A$1),LEN(CELL("filename",$A$1))-FIND(".xlsm]",CELL("filename",$A$1))-5))-1)) -> A4 | B2: =A1.Admin!B2 -> Westario Power (ED-2002-0515)
B3: =A1.Admin!B3 -> 2013 EDR Application (EB-2012-0176) version: 1
B4: =A1.Admin!B4 -> October 9, 2012
B6: =$A$2&" "&VLOOKUP($A$2,Overview!$B$10:$E$90,3,FALSE) -> A4 Distribution Rates, Loss Factors and Allowances | J6: Rate components per sheet Y5
B7: =IF(VLOOKUP($A$2,Overview!$B$10:$E$90,4,FALSE)=VLOOKUP($A$2,Overview!$B$10:$E$90,3,FALSE),"",""&VLOOKUP($A$2,Overview!$B$10:$E$90,4,FALSE)) -> Enter current approved rates and factors per the utility's latest rate order
A9: Go to Overview
D10: MONTHLY SERVICE (FIXED) CHARGE
B11: Customer Class Name | C11: Status | D11: =""&OFFSET(Y5.DistRateAccts!$B$9,COLUMNS($D:D),0) -> Distribution | E11: =""&OFFSET(Y5.DistRateAccts!$B$9,COLUMNS($D:E),0) ->  | F11: =""&OFFSET(Y5.DistRateAccts!$B$9,COLUMNS($D:F),0) ->  | G11: =""&OFFSET(Y5.DistRateAccts!$B$9,COLUMNS($D:G),0) ->  | H11: =""&OFFSET(Y5.DistRateAccts!$B$9,COLUMNS($D:H),0) ->  | I11: TOTAL | J11: per
A12: =HYPERLINK(Overview!$A$3&"Y5.DistRateAccts!A1","Y5 Rate Accounts") -> Y5 Rate Accounts | B12: =A3.CustomerClasses!C10 -> Residential | C12: =A3.CustomerClasses!F10 -> Continued | D12: 11.34 | I12: =SUM(D12:H12) -> 11.34 | J12: =""&A3.CustomerClasses!G10 -> Customer
B13: =A3.CustomerClasses!C11 -> General Service < 50 kW | C13: =A3.CustomerClasses!F11 -> Continued | D13: 20.77 | I13: 20.77 | J13: =""&A3.CustomerClasses!G11 -> Customer
B14: =A3.CustomerClasses!C12 -> General Service > 50 to 4999 kW | C14: =A3.CustomerClasses!F12 -> Continued | D14: 240.15 | I14: 240.15 | J14: =""&A3.CustomerClasses!G12 -> Customer
B15: =A3.CustomerClasses!C13 -> Unmetered Scattered Load | C15: =A3.CustomerClasses!F13 -> Continued | D15: 11.3 | I15: 11.3 | J15: =""&A3.CustomerClasses!G13 -> Customer
B16: =A3.CustomerClasses!C14 -> Street Lighting | C16: =A3.CustomerClasses!F14 -> Continued | D16: 3.88 | I16: 3.88 | J16: =""&A3.CustomerClasses!G14 -> Connection
B17: =A3.CustomerClasses!C15 -> Sentinel Lighting | C17: =A3.CustomerClasses!F15 -> Continued | D17: 2.53 | I17: 2.53 | J17: =""&A3.CustomerClasses!G15 -> Connection
B18: =A3.CustomerClasses!C16 -> 0 | C18: =A3.CustomerClasses!F16 ->  | I18: 0 | J18: =""&A3.CustomerClasses!G16 -> 
B19: =A3.CustomerClasses!C17 -> 0 | C19: =A3.CustomerClasses!F17 ->  | I19: 0 | J19: =""&A3.CustomerClasses!G17 -> 
B20: =A3.CustomerClasses!C18 -> 0 | C20: =A3.CustomerClasses!F18 ->  | I20: 0 | J20: =""&A3.CustomerClasses!G18 -> 
B21: =A3.CustomerClasses!C19 -> 0 | C21: =A3.CustomerClasses!F19 ->  | I21: 0 | J21: =""&A3.CustomerClasses!G19 -> 
B22: =A3.CustomerClasses!C20 -> 0 | C22: =A3.CustomerClasses!F20 ->  | I22: 0 | J22: =""&A3.CustomerClasses!G20 -> 
B23: =A3.CustomerClasses!C21 -> 0 | C23: =A3.CustomerClasses!F21 ->  | I23: 0 | J23: =""&A3.CustomerClasses!G21 -> 
B24: =A3.CustomerClasses!C22 -> 0 | C24: =A3.CustomerClasses!F22 ->  | I24: 0 | J24: =""&A3.CustomerClasses!G22 -> 
B25: =A3.CustomerClasses!C23 -> 0 | C25: =A3.CustomerClasses!F23 ->  | I25: 0 | J25: =""&A3.CustomerClasses!G23 -> 
B26: =A3.CustomerClasses!C24 -> 0 | C26: =A3.CustomerClasses!F24 ->  | I26: 0 | J26: =""&A3.CustomerClasses!G24 -> 
B27: =A3.CustomerClasses!C25 -> 0 | C27: =A3.CustomerClasses!F25 ->  | I27: 0 | J27: =""&A3.CustomerClasses!G25 -> 
B28: =A3.CustomerClasses!C26 -> 0 | C28: =A3.CustomerClasses!F26 ->  | I28: 0 | J28: =""&A3.CustomerClasses!G26 -> 
B29: =A3.CustomerClasses!C27 -> 0 | C29: =A3.CustomerClasses!F27 ->  | I29: 0 | J29: =""&A3.CustomerClasses!G27 -> 
B30: =A3.CustomerClasses!C28 -> 0 | C30: =A3.CustomerClasses!F28 ->  | I30: 0 | J30: =""&A3.CustomerClasses!G28 -> 
B31: =A3.CustomerClasses!C29 -> 0 | C31: =A3.CustomerClasses!F29 ->  | I31: 0 | J31: =""&A3.CustomerClasses!G29 -> 
D33: VOLUMETRIC (VARIABLE) CHARGE
B34: Customer Class Name | C34: Status | D34: =""&OFFSET(Y5.DistRateAccts!$D$9,COLUMNS($D:D),0) -> Distribution | E34: =""&OFFSET(Y5.DistRateAccts!$D$9,COLUMNS($D:E),0) ->  | F34: =""&OFFSET(Y5.DistRateAccts!$D$9,COLUMNS($D:F),0) ->  | G34: =""&OFFSET(Y5.DistRateAccts!$D$9,COLUMNS($D:G),0) ->  | H34: =""&OFFSET(Y5.DistRateAccts!$D$9,COLUMNS($D:H),0) ->  | I34: TOTAL | J34: per
B35: =B12 -> Residential | C35: Continued | D35: 0.0142 | I35: =SUM(D35:H35) -> 0.0142 | J35: =""&A3.CustomerClasses!$H10 -> kWh
B36: General Service < 50 kW | C36: Continued | D36: 0.0092 | I36: 0.0092 | J36: =""&A3.CustomerClasses!$H11 -> kWh
B37: General Service > 50 to 4999 kW | C37: Continued | D37: 2.2373 | I37: 2.2373 | J37: =""&A3.CustomerClasses!$H12 -> kW
B38: Unmetered Scattered Load | C38: Continued | D38: 0.0422 | I38: 0.0422 | J38: =""&A3.CustomerClasses!$H13 -> kWh
B39: Street Lighting | C39: Continued | D39: 3.2599 | I39: 3.2599 | J39: =""&A3.CustomerClasses!$H14 -> kW
B40: Sentinel Lighting | C40: Continued | D40: 13.0802 | I40: 13.0802 | J40: =""&A3.CustomerClasses!$H15 -> kW
B41: 0 | I41: 0 | J41: =""&A3.CustomerClasses!$H16 -> 
B42: 0 | I42: 0 | J42: =""&A3.CustomerClasses!$H17 -> 
B43: 0 | I43: 0 | J43: =""&A3.CustomerClasses!$H18 -> 
B44: 0 | I44: 0 | J44: =""&A3.CustomerClasses!$H19 -> 
B45: 0 | I45: 0 | J45: =""&A3.CustomerClasses!$H20 -> 
B46: 0 | I46: 0 | J46: =""&A3.CustomerClasses!$H21 -> 
B47: 0 | I47: 0 | J47: =""&A3.CustomerClasses!$H22 -> 
B48: 0 | I48: 0 | J48: =""&A3.CustomerClasses!$H23 -> 
B49: 0 | I49: 0 | J49: =""&A3.CustomerClasses!$H24 -> 
B50: 0 | I50: 0 | J50: =""&A3.CustomerClasses!$H25 -> 
B51: 0 | I51: 0 | J51: =""&A3.CustomerClasses!$H26 -> 
B52: 0 | I52: 0 | J52: =""&A3.CustomerClasses!$H27 -> 
B53: 0 | I53: 0 | J53: =""&A3.CustomerClasses!$H28 -> 
B54: 0 | I54: 0 | J54: =""&A3.CustomerClasses!$H29 -> 
B56: Customer Class Name | C56: Status | D56: Default Category (per table below) | G56: Loss Factor
B57: =B12 -> Residential | C57: Continued | D57: Secondary Metered Customer | G57: =IF(D57="",1,VLOOKUP(D57,$B$81:$D$88,3,FALSE)) -> 1.0788
B58: General Service < 50 kW | C58: Continued | D58: Secondary Metered Customer | G58: 1.0788
B59: General Service > 50 to 4999 kW | C59: Continued | D59: Secondary Metered Customer | G59: 1.0788
B60: Unmetered Scattered Load | C60: Continued | D60: Secondary Metered Customer | G60: 1.0788
B61: Street Lighting | C61: Continued | D61: Secondary Metered Customer | G61: 1.0788
B62: Sentinel Lighting | C62: Continued | D62: Secondary Metered Customer | G62: 1.0788
B63: 0 | G63: 1
B64: 0 | G64: 1
B65: 0 | G65: 1
B66: 0 | G66: 1
B67: 0 | G67: 1
B68: 0 | G68: 1
B69: 0 | G69: 1
B70: 0 | G70: 1
B71: 0 | G71: 1
B72: 0 | G72: 1
B73: 0 | G73: 1
B74: 0 | G74: 1
B75: 0 | G75: 1
B76: 0 | G76: 1
C78: =FakeBlank -> 
B80: Line Loss Category | D80: Loss Factor | F80: Allowances | H80: Rate
B81: Secondary Metered Customer | D81: 1.0788 | F81: Transformer Ownership ($/kW) | H81: -0.6
B82: Primary Metered Customer | D82: 1.068 | F82: Primary Metering Allowance (%) | H82: -0.01
D89: 1

Sheet A5.RateRiders
B1: =A1.Admin!B1 -> RateMaker 2011 release 1.0 © Elenchus Research Associates
A2: =IF(ISERROR(FIND(".xlsm]",CELL("filename",$A$1))),LEFT(RIGHT(CELL("filename",$A$1),LEN(CELL("filename",$A$1))-FIND(".xls]",CELL("filename",$A$1))-4),FIND(".",RIGHT(CELL("filename",$A$1),LEN(CELL("filename",$A$1))-FIND(".xls]",CELL("filename",$A$1))-4))-1),LEFT(RIGHT(CELL("filename",$A$1),LEN(CELL("filename",$A$1))-FIND(".xlsm]",CELL("filename",$A$1))-5),FIND(".",RIGHT(CELL("filename",$A$1),LEN(CELL("filename",$A$1))-FIND(".xlsm]",CELL("filename",$A$1))-5))-1)) -> A5 | B2: =A1.Admin!B2 -> Westario Power (ED-2002-0515)
B3: =A1.Admin!B3 -> 2013 EDR Application (EB-2012-0176) version: 1
B4: =A1.Admin!B4 -> October 9, 2012
B6: =$A$2&" "&VLOOKUP($A$2,Overview!$B$10:$E$90,3,FALSE) -> A5 Rate Riders and Adders
B7: =IF(VLOOKUP($A$2,Overview!$B$10:$E$90,4,FALSE)=VLOOKUP($A$2,Overview!$B$10:$E$90,3,FALSE),"",""&VLOOKUP($A$2,Overview!$B$10:$E$90,4,FALSE)) -> Enter current approved rates per the utility's latest rate order
A9: Go to Overview | B9: Rate Description | C9: Short Name | D9: Rate Type | E9: Billing Determinant | F9: =""&OFFSET(A3.CustomerClasses!$C$9,COLUMNS($F:F),0) -> Residential | G9: =""&OFFSET(A3.CustomerClasses!$C$9,COLUMNS($F:G),0) -> General Service < 50 kW | H9: =""&OFFSET(A3.CustomerClasses!$C$9,COLUMNS($F:H),0) -> General Service > 50 to 4999 kW | I9: =""&OFFSET(A3.CustomerClasses!$C$9,COLUMNS($F:I),0) -> Unmetered Scattered Load | J9: =""&OFFSET(A3.CustomerClasses!$C$9,COLUMNS($F:J),0) -> Street Lighting | K9: =""&OFFSET(A3.CustomerClasses!$C$9,COLUMNS($F:K),0) -> Sentinel Lighting | L9: =""&OFFSET(A3.CustomerClasses!$C$9,COLUMNS($F:L),0) ->  | M9: =""&OFFSET(A3.CustomerClasses!$C$9,COLUMNS($F:M),0) ->  | N9: =""&OFFSET(A3.CustomerClasses!$C$9,COLUMNS($F:N),0) ->  | O9: =""&OFFSET(A3.CustomerClasses!$C$9,COLUMNS($F:O),0) ->  | P9: =""&OFFSET(A3.CustomerClasses!$C$9,COLUMNS($F:P),0) ->  | Q9: =""&OFFSET(A3.CustomerClasses!$C$9,COLUMNS($F:Q),0) ->  | R9: =""&OFFSET(A3.CustomerClasses!$C$9,COLUMNS($F:R),0) ->  | S9: =""&OFFSET(A3.CustomerClasses!$C$9,COLUMNS($F:S),0) ->  | T9: =""&OFFSET(A3.CustomerClasses!$C$9,COLUMNS($F:T),0) ->  | U9: =""&OFFSET(A3.CustomerClasses!$C$9,COLUMNS($F:U),0) ->  | V9: =""&OFFSET(A3.CustomerClasses!$C$9,COLUMNS($F:V),0) ->  | W9: =""&OFFSET(A3.CustomerClasses!$C$9,COLUMNS($F:W),0) ->  | X9: =""&OFFSET(A3.CustomerClasses!$C$9,COLUMNS($F:X),0) ->  | Y9: =""&OFFSET(A3.CustomerClasses!$C$9,COLUMNS($F:Y),0) -> 
B10: Rate Rider for Global Adjusment Sub-Account (Applicable only to Non-RPP customers) | C10: Global Adj | D10: Global Adj | E10: kW | F10: -0.0003 | G10: -0.0003 | H10: -0.1048 | I10: -0.0003 | J10: -0.1653
B11: Rate Rider for Deferral/Variance Account Disposition | C11: DVA | D11: Deferral Variance Acct | E11: kW | F11: -0.0015 | G11: -0.0015 | H11: -0.577 | I11: -0.0012 | J11: -0.8471 | K11: -1.1627
B12: Rate Rider for Late Payment Penalty Litigation Costs | C12: LPP | D12: Specific Charge | E12: Monthly
B13: Rate Rider for Tax Change | C13: Tax | D13: Specific Rate Rider | E13: kW | F13: -0.0003 | G13: -0.0002 | H13: -0.0371 | I13: -0.0006 | J13: -0.278 | K13: -0.2288
B14: Rate Rider for LRAM | C14: LRAM | D14: Specific Rate Rider | E14: kW | F14: 0.0007 | G14: 0.0002 | H14: 0.0244
B15: Smart Meter Rate Adder | C15: SM | D15: SM | E15: Monthly
D45: Global Adj | E45: kWh | F45: kW | G45: Monthly
D46: Specific Charge
D47: Specific Rate Rider
D48: Deferral Variance Acct
D49: LRAM
D50: SM
D51: SM Disposition
D52: SM Entity

Sheet B1.GrossCapital
B1: =A1.Admin!B1 -> RateMaker 2011 release 1.0 © Elenchus Research Associates
A2: =IF(ISERROR(FIND(".xlsm]",CELL("filename",$A$1))),LEFT(RIGHT(CELL("filename",$A$1),LEN(CELL("filename",$A$1))-FIND(".xls]",CELL("filename",$A$1))-4),FIND(".",RIGHT(CELL("filename",$A$1),LEN(CELL("filename",$A$1))-FIND(".xls]",CELL("filename",$A$1))-4))-1),LEFT(RIGHT(CELL("filename",$A$1),LEN(CELL("filename",$A$1))-FIND(".xlsm]",CELL("filename",$A$1))-5),FIND(".",RIGHT(CELL("filename",$A$1),LEN(CELL("filename",$A$1))-FIND(".xlsm]",CELL("filename",$A$1))-5))-1)) -> B1 | B2: =A1.Admin!B2 -> Westario Power (ED-2002-0515)
B3: =A1.Admin!B3 -> 2013 EDR Application (EB-2012-0176) version: 1
B4: =A1.Admin!B4 -> October 9, 2012
B6: =$A$2&" "&VLOOKUP($A$2,Overview!$B$10:$E$90,3,FALSE) -> B1 Gross Capital Assets
B7: =IF(VLOOKUP($A$2,Overview!$B$10:$E$90,4,FALSE)=VLOOKUP($A$2,Overview!$B$10:$E$90,3,FALSE),"",""&VLOOKUP($A$2,Overview!$B$10:$E$90,4,FALSE)) -> Enter planned capital expenditures and asset retirements
A9: Go to Overview | E9: =IF(HistYrs<5,"",(TestYr-7)&" Actual") ->  | G9: =IF(HistYrs<5,"",(TestYr-6)&" Actual") ->  | I9: =TestYr-4 -> 2009 | K9: =(TestYr-4)&" Approved" -> 2009 Approved | M9: =I9 -> 2009 | O9: =(TestYr-4)&" Actual" -> 2009 Actual | Q9: =(TestYr-4)&" Actual" -> 2009 Actual | S9: =(TestYr-3)&" Actual" -> 2010 Actual | U9: =S9 -> 2010 Actual | W9: =(TestYr-2)&" Actual" -> 2011 Actual | Y9: =W9 -> 2011 Actual | AA9: =(TestYr-1)&" Projection" -> 2012 Projection | AC9: =AA9 -> 2012 Projection | AE9: =TestYr -> 2013
B10: Gross Capital Asset Account | C10: Account Grouping | D10: Rates | E10: =IF(E9="","",$AF10) ->  | F10: =IF(G9="","",$AD10) ->  | G10: =IF(G9="","",$AE10) ->  | H10: =IF(G9="","",$AF10) ->  | I10: Opening Balance | J10: =IF(K9="","",$AD10) -> Additions | K10: =IF(K9="","",$AE10) -> Retirements / Other | L10: =IF(K9="","",$AF10) -> Ending Balance | M10: =I10 -> Opening Balance | N10: =IF(O9="","",$AD10) -> Additions | O10: =IF(O9="","",$AE10) -> Retirements / Other | P10: =IF(O9="","",$AF10) -> Ending Balance | Q10: =IF(Q9="","",$AF10) -> Ending Balance | R10: =IF(S9="","",$AD10) -> Additions | S10: =IF(S9="","",$AE10) -> Retirements / Other | T10: =IF(S9="","",$AF10) -> Ending Balance | U10: =IF(U9="","",$AF10) -> Ending Balance | V10: =IF(W9="","",$AD10) -> Additions | W10: =IF(W9="","",$AE10) -> Retirements / Other | X10: =IF(W9="","",$AF10) -> Ending Balance | Y10: =IF(Y9="","",$AF10) -> Ending Balance | Z10: =IF(AA9="","",$AD10) -> Additions | AA10: =IF(AA9="","",$AE10) -> Retirements / Other | AB10: =IF(AA9="","",$AF10) -> Ending Balance | AC10: =IF(AC9="","",$AF10) -> Ending Balance | AD10: Additions | AE10: Retirements / Other | AF10: Ending Balance | AG10: Non-zero | AK10: USA
D11: X | E11: =MATCH(LEFT(RIGHT(E$9,11),4),A2.HistoricalBalances!$F$9:$K$9,-1) -> 5 | H11: =MATCH(LEFT(RIGHT(G$9,11),4),A2.HistoricalBalances!$F$9:$K$9,-1) -> 5 | I11: 4 | L11: 8 | M11: 8 | P11: =MATCH(LEFT(RIGHT(O$9,11),4),A2.HistoricalBalances!$F$9:$K$9,-1) -> 3 | Q11: =P11 -> 3 | T11: =MATCH(LEFT(RIGHT(S$9,11),4),A2.HistoricalBalances!$F$9:$K$9,-1) -> 2 | U11: =T11 -> 2 | X11: =MATCH(LEFT(RIGHT(W$9,11),4),A2.HistoricalBalances!$F$9:$K$9,-1) -> 1
B12: =""&Y2.ChartOfAccts!C10 -> 1005-Cash | C12: =""&Y2.ChartOfAccts!D10 -> 1050-Current Assets | D12: =Y2.ChartOfAccts!F10 -> 0 | E12: =IF(E$10="",0,OFFSET(A2.HistoricalBalances!$E10,0,E$11)) -> 0 | G12: =H12-E12-F12 -> 0 | H12: =IF(H$10="",0,OFFSET(A2.HistoricalBalances!$E10,0,H$11)) -> 0 | K12: =L12-I12-J12 -> 1578458 | L12: =IF(L$10="",0,OFFSET(A2.HistoricalBalances!$E10,0,L$11)) -> 1578458 | M12: =I12 -> 0 | O12: =P12-M12-N12 -> 2612166.11 | P12: =IF(P$10="",0,OFFSET(A2.HistoricalBalances!$E10,0,P$11)) -> 2612166.11 | Q12: =IF(Q$10="",0,OFFSET(A2.HistoricalBalances!$E10,0,Q$11)) -> 2612166.11 | S12: =T12-Q12-R12 -> 1532144.76 | T12: =IF(T$10="",0,OFFSET(A2.HistoricalBalances!$E10,0,T$11)) -> 4144310.87 | U12: =IF(U$10="",0,OFFSET(A2.HistoricalBalances!$E10,0,U$11)) -> 4144310.87 | W12: =X12-U12-V12 -> 1404755.13 | X12: =IF(X$10="",0,OFFSET(A2.HistoricalBalances!$E10,0,X$11)) -> 5549066 | Y12: =IF(Y$10=ApprovedYr,A2.HistoricalBalances!$M10,X12) -> 5549066 | AB12: =SUM(Y12:AA12) -> 5549066 | AC12: =AB12 -> 5549066 | AF12: =SUM(AC12:AE12) -> 5549066 | AG12: =ABS(E12)+ABS(H12)+ABS(L12)+ABS(P12)+ABS(T12)+ABS(X12)+ABS(AB12)+ABS(AF12) -> 24982132.98 | AJ12: 0 | AK12: =VALUE(LEFT(B12,4)) -> 1005
B13: =""&Y2.ChartOfAccts!C11 -> 1010-Cash Advances and Working Funds | C13: =""&Y2.ChartOfAccts!D11 -> 1050-Current Assets | D13: =Y2.ChartOfAccts!F11 -> 0 | E13: =IF(E$10="",0,OFFSET(A2.HistoricalBalances!$E11,0,E$11)) -> 0 | G13: =H13-E13-F13 -> 0 | H13: =IF(H$10="",0,OFFSET(A2.HistoricalBalances!$E11,0,H$11)) -> 0 | K13: =L13-I13-J13 -> 0 | L13: =IF(L$10="",0,OFFSET(A2.HistoricalBalances!$E11,0,L$11)) -> 0 | M13: =I13 -> 0 | O13: =P13-M13-N13 -> 0 | P13: =IF(P$10="",0,OFFSET(A2.HistoricalBalances!$E11,0,P$11)) -> 0 | Q13: =IF(Q$10="",0,OFFSET(A2.HistoricalBalances!$E11,0,Q$11)) -> 0 | S13: =T13-Q13-R13 -> 0 | T13: =IF(T$10="",0,OFFSET(A2.HistoricalBalances!$E11,0,T$11)) -> 0 | U13: =IF(U$10="",0,OFFSET(A2.HistoricalBalances!$E11,0,U$11)) -> 0 | W13: =X13-U13-V13 -> 0 | X13: =IF(X$10="",0,OFFSET(A2.HistoricalBalances!$E11,0,X$11)) -> 0 | Y13: =IF(Y$10=ApprovedYr,A2.HistoricalBalances!$M11,X13) -> 0 | AB13: =SUM(Y13:AA13) -> 0 | AC13: 0 | AF13: =SUM(AC13:AE13) -> 0 | AG13: =ABS(E13)+ABS(H13)+ABS(L13)+ABS(P13)+ABS(T13)+ABS(X13)+ABS(AB13)+ABS(AF13) -> 0 | AJ13: 0 | AK13: 1010
B14: =""&Y2.ChartOfAccts!C12 -> 1020-Interest Special Deposits | C14: =""&Y2.ChartOfAccts!D12 -> 1050-Current Assets | D14: =Y2.ChartOfAccts!F12 -> 0 | E14: =IF(E$10="",0,OFFSET(A2.HistoricalBalances!$E12,0,E$11)) -> 0 | G14: 0 | H14: =IF(H$10="",0,OFFSET(A2.HistoricalBalances!$E12,0,H$11)) -> 0 | K14: 0 | L14: =IF(L$10="",0,OFFSET(A2.HistoricalBalances!$E12,0,L$11)) -> 0 | M14: 0 | O14: 0 | P14: =IF(P$10="",0,OFFSET(A2.HistoricalBalances!$E12,0,P$11)) -> 0 | Q14: =IF(Q$10="",0,OFFSET(A2.HistoricalBalances!$E12,0,Q$11)) -> 0 | S14: 0 | T14: =IF(T$10="",0,OFFSET(A2.HistoricalBalances!$E12,0,T$11)) -> 0 | U14: =IF(U$10="",0,OFFSET(A2.HistoricalBalances!$E12,0,U$11)) -> 0 | W14: 0 | X14: =IF(X$10="",0,OFFSET(A2.HistoricalBalances!$E12,0,X$11)) -> 0 | Y14: =IF(Y$10=ApprovedYr,A2.HistoricalBalances!$M12,X14) -> 0 | AB14: 0 | AC14: 0 | AF14: 0 | AG14: 0 | AJ14: 0 | AK14: 1020
B15: =""&Y2.ChartOfAccts!C13 -> 1030-Dividend Special Deposits | C15: =""&Y2.ChartOfAccts!D13 -> 1050-Current Assets | D15: =Y2.ChartOfAccts!F13 -> 0 | E15: =IF(E$10="",0,OFFSET(A2.HistoricalBalances!$E13,0,E$11)) -> 0 | G15: 0 | H15: =IF(H$10="",0,OFFSET(A2.HistoricalBalances!$E13,0,H$11)) -> 0 | K15: 0 | L15: =IF(L$10="",0,OFFSET(A2.HistoricalBalances!$E13,0,L$11)) -> 0 | M15: 0 | O15: 0 | P15: =IF(P$10="",0,OFFSET(A2.HistoricalBalances!$E13,0,P$11)) -> 0 | Q15: =IF(Q$10="",0,OFFSET(A2.HistoricalBalances!$E13,0,Q$11)) -> 0 | S15: 0 | T15: =IF(T$10="",0,OFFSET(A2.HistoricalBalances!$E13,0,T$11)) -> 0 | U15: =IF(U$10="",0,OFFSET(A2.HistoricalBalances!$E13,0,U$11)) -> 0 | W15: 0 | X15: =IF(X$10="",0,OFFSET(A2.HistoricalBalances!$E13,0,X$11)) -> 0 | Y15: =IF(Y$10=ApprovedYr,A2.HistoricalBalances!$M13,X15) -> 0 | AB15: 0 | AC15: 0 | AF15: 0 | AG15: 0 | AJ15: 0 | AK15: 1030
B16: =""&Y2.ChartOfAccts!C14 -> 1040-Other Special Deposits | C16: =""&Y2.ChartOfAccts!D14 -> 1050-Current Assets | D16: =Y2.ChartOfAccts!F14 -> 0 | E16: =IF(E$10="",0,OFFSET(A2.HistoricalBalances!$E14,0,E$11)) -> 0 | G16: 0 | H16: =IF(H$10="",0,OFFSET(A2.HistoricalBalances!$E14,0,H$11)) -> 0 | K16: 467000 | L16: =IF(L$10="",0,OFFSET(A2.HistoricalBalances!$E14,0,L$11)) -> 467000 | M16: 0 | O16: 393914.67 | P16: =IF(P$10="",0,OFFSET(A2.HistoricalBalances!$E14,0,P$11)) -> 393914.67 | Q16: =IF(Q$10="",0,OFFSET(A2.HistoricalBalances!$E14,0,Q$11)) -> 393914.67 | S16: -27155.25 | T16: =IF(T$10="",0,OFFSET(A2.HistoricalBalances!$E14,0,T$11)) -> 366759.42 | U16: =IF(U$10="",0,OFFSET(A2.HistoricalBalances!$E14,0,U$11)) -> 366759.42 | W16: -69135.42 | X16: =IF(X$10="",0,OFFSET(A2.HistoricalBalances!$E14,0,X$11)) -> 297624 | Y16: =IF(Y$10=ApprovedYr,A2.HistoricalBalances!$M14,X16) -> 297624 | AB16: 297624 | AC16: 297624 | AF16: 297624 | AG16: 2120546.09 | AJ16: 0 | AK16: 1040
B17: =""&Y2.ChartOfAccts!C15 -> 1060-Term Deposits | C17: =""&Y2.ChartOfAccts!D15 -> 1050-Current Assets | D17: =Y2.ChartOfAccts!F15 -> 0 | E17: =IF(E$10="",0,OFFSET(A2.HistoricalBalances!$E15,0,E$11)) -> 0 | G17: 0 | H17: =IF(H$10="",0,OFFSET(A2.HistoricalBalances!$E15,0,H$11)) -> 0 | K17: 0 | L17: =IF(L$10="",0,OFFSET(A2.HistoricalBalances!$E15,0,L$11)) -> 0 | M17: 0 | O17: 0 | P17: =IF(P$10="",0,OFFSET(A2.HistoricalBalances!$E15,0,P$11)) -> 0 | Q17: =IF(Q$10="",0,OFFSET(A2.HistoricalBalances!$E15,0,Q$11)) -> 0 | S17: 0 | T17: =IF(T$10="",0,OFFSET(A2.HistoricalBalances!$E15,0,T$11)) -> 0 | U17: =IF(U$10="",0,OFFSET(A2.HistoricalBalances!$E15,0,U$11)) -> 0 | W17: 0 | X17: =IF(X$10="",0,OFFSET(A2.HistoricalBalances!$E15,0,X$11)) -> 0 | Y17: =IF(Y$10=ApprovedYr,A2.HistoricalBalances!$M15,X17) -> 0 | AB17: 0 | AC17: 0 | AF17: 0 | AG17: 0 | AJ17: 0 | AK17: 1060
B18: =""&Y2.ChartOfAccts!C16 -> 1070-Current Investments | C18: =""&Y2.ChartOfAccts!D16 -> 1050-Current Assets | D18: =Y2.ChartOfAccts!F16 -> 0 | E18: =IF(E$10="",0,OFFSET(A2.HistoricalBalances!$E16,0,E$11)) -> 0 | G18: 0 | H18: =IF(H$10="",0,OFFSET(A2.HistoricalBalances!$E16,0,H$11)) -> 0 | K18: 0 | L18: =IF(L$10="",0,OFFSET(A2.HistoricalBalances!$E16,0,L$11)) -> 0 | M18: 0 | O18: 20267.5 | P18: =IF(P$10="",0,OFFSET(A2.HistoricalBalances!$E16,0,P$11)) -> 20267.5 | Q18: =IF(Q$10="",0,OFFSET(A2.HistoricalBalances!$E16,0,Q$11)) -> 20267.5 | S18: -93.8 | T18: =IF(T$10="",0,OFFSET(A2.HistoricalBalances!$E16,0,T$11)) -> 20173.7 | U18: =IF(U$10="",0,OFFSET(A2.HistoricalBalances!$E16,0,U$11)) -> 20173.7 | W18: -7510.7 | X18: =IF(X$10="",0,OFFSET(A2.HistoricalBalances!$E16,0,X$11)) -> 12663 | Y18: =IF(Y$10=ApprovedYr,A2.HistoricalBalances!$M16,X18) -> 12663 | AB18: 12663 | AC18: 12663 | AF18: 12663 | AG18: 78430.2 | AJ18: 0 | AK18: 1070
B19: =""&Y2.ChartOfAccts!C17 -> 1100-Customer Accounts Receivable | C19: =""&Y2.ChartOfAccts!D17 -> 1050-Current Assets | D19: =Y2.ChartOfAccts!F17 -> 0 | E19: =IF(E$10="",0,OFFSET(A2.HistoricalBalances!$E17,0,E$11)) -> 0 | G19: 0 | H19: =IF(H$10="",0,OFFSET(A2.HistoricalBalances!$E17,0,H$11)) -> 0 | K19: 3489000 | L19: =IF(L$10="",0,OFFSET(A2.HistoricalBalances!$E17,0,L$11)) -> 3489000 | M19: 0 | O19: 3519943.07 | P19: =IF(P$10="",0,OFFSET(A2.HistoricalBalances!$E17,0,P$11)) -> 3519943.07 | Q19: =IF(Q$10="",0,OFFSET(A2.HistoricalBalances!$E17,0,Q$11)) -> 3519943.07 | S19: 219149.45 | T19: =IF(T$10="",0,OFFSET(A2.HistoricalBalances!$E17,0,T$11)) -> 3739092.52 | U19: =IF(U$10="",0,OFFSET(A2.HistoricalBalances!$E17,0,U$11)) -> 3739092.52 | W19: -2241992.52 | X19: =IF(X$10="",0,OFFSET(A2.HistoricalBalances!$E17,0,X$11)) -> 1497100 | Y19: =IF(Y$10=ApprovedYr,A2.HistoricalBalances!$M17,X19) -> 1497100 | AB19: 1497100 | AC19: 1497100 | AF19: 1497100 | AG19: 15239335.59 | AJ19: 0 | AK19: 1100
B20: =""&Y2.ChartOfAccts!C18 -> 1102-Accounts Receivable - Services | C20: =""&Y2.ChartOfAccts!D18 -> 1050-Current Assets | D20: =Y2.ChartOfAccts!F18 -> 0 | E20: =IF(E$10="",0,OFFSET(A2.HistoricalBalances!$E18,0,E$11)) -> 0 | G20: 0 | H20: =IF(H$10="",0,OFFSET(A2.HistoricalBalances!$E18,0,H$11)) -> 0 | K20: -45000 | L20: =IF(L$10="",0,OFFSET(A2.HistoricalBalances!$E18,0,L$11)) -> -45000 | M20: 0 | O20: 123714.3 | P20: =IF(P$10="",0,OFFSET(A2.HistoricalBalances!$E18,0,P$11)) -> 123714.3 | Q20: =IF(Q$10="",0,OFFSET(A2.HistoricalBalances!$E18,0,Q$11)) -> 123714.3 | S20: 153879.85 | T20: =IF(T$10="",0,OFFSET(A2.HistoricalBalances!$E18,0,T$11)) -> 277594.15 | U20: =IF(U$10="",0,OFFSET(A2.HistoricalBalances!$E18,0,U$11)) -> 277594.15 | W20: -30885.15 | X20: =IF(X$10="",0,OFFSET(A2.HistoricalBalances!$E18,0,X$11)) -> 246709 | Y20: =IF(Y$10=ApprovedYr,A2.HistoricalBalances!$M18,X20) -> 246709 | AB20: 246709 | AC20: 246709 | AF20: 246709 | AG20: 1186435.45 | AJ20: 0 | AK20: 1102
B21: =""&Y2.ChartOfAccts!C19 -> 1104-Accounts Receivable - Recoverable Work | C21: =""&Y2.ChartOfAccts!D19 -> 1050-Current Assets | D21: =Y2.ChartOfAccts!F19 -> 0 | E21: =IF(E$10="",0,OFFSET(A2.HistoricalBalances!$E19,0,E$11)) -> 0 | G21: 0 | H21: =IF(H$10="",0,OFFSET(A2.HistoricalBalances!$E19,0,H$11)) -> 0 | K21: 63000 | L21: =IF(L$10="",0,OFFSET(A2.HistoricalBalances!$E19,0,L$11)) -> 63000 | M21: 0 | O21: 237686.14 | P21: =IF(P$10="",0,OFFSET(A2.HistoricalBalances!$E19,0,P$11)) -> 237686.14 | Q21: =IF(Q$10="",0,OFFSET(A2.HistoricalBalances!$E19,0,Q$11)) -> 237686.14 | S21: -188114.81 | T21: =IF(T$10="",0,OFFSET(A2.HistoricalBalances!$E19,0,T$11)) -> 49571.33 | U21: =IF(U$10="",0,OFFSET(A2.HistoricalBalances!$E19,0,U$11)) -> 49571.33 | W21: 128770.67 | X21: =IF(X$10="",0,OFFSET(A2.HistoricalBalances!$E19,0,X$11)) -> 178342 | Y21: =IF(Y$10=ApprovedYr,A2.HistoricalBalances!$M19,X21) -> 178342 | AB21: 178342 | AC21: 178342 | AF21: 178342 | AG21: 885283.47 | AJ21: 0 | AK21: 1104
B22: =""&Y2.ChartOfAccts!C20 -> 1105-Accounts Receivable - Merchandise, Jobbing, etc. | C22: =""&Y2.ChartOfAccts!D20 -> 1050-Current Assets | D22: =Y2.ChartOfAccts!F20 -> 0 | E22: =IF(E$10="",0,OFFSET(A2.HistoricalBalances!$E20,0,E$11)) -> 0 | G22: 0 | H22: =IF(H$10="",0,OFFSET(A2.HistoricalBalances!$E20,0,H$11)) -> 0 | K22: 0 | L22: =IF(L$10="",0,OFFSET(A2.HistoricalBalances!$E20,0,L$11)) -> 0 | M22: 0 | O22: 0 | P22: =IF(P$10="",0,OFFSET(A2.HistoricalBalances!$E20,0,P$11)) -> 0 | Q22: =IF(Q$10="",0,OFFSET(A2.HistoricalBalances!$E20,0,Q$11)) -> 0 | S22: 0 | T22: =IF(T$10="",0,OFFSET(A2.HistoricalBalances!$E20,0,T$11)) -> 0 | U22: =IF(U$10="",0,OFFSET(A2.HistoricalBalances!$E20,0,U$11)) -> 0 | W22: 42489 | X22: =IF(X$10="",0,OFFSET(A2.HistoricalBalances!$E20,0,X$11)) -> 42489 | Y22: =IF(Y$10=ApprovedYr,A2.HistoricalBalances!$M20,X22) -> 42489 | AB22: 42489 | AC22: 42489 | AF22: 42489 | AG22: 127467 | AJ22: 0 | AK22: 1105
B23: =""&Y2.ChartOfAccts!C21 -> 1110-Other Accounts Receivable | C23: =""&Y2.ChartOfAccts!D21 -> 1050-Current Assets | D23: =Y2.ChartOfAccts!F21 -> 0 | E23: =IF(E$10="",0,OFFSET(A2.HistoricalBalances!$E21,0,E$11)) -> 0 | G23: 0 | H23: =IF(H$10="",0,OFFSET(A2.HistoricalBalances!$E21,0,H$11)) -> 0 | K23: 0 | L23: =IF(L$10="",0,OFFSET(A2.HistoricalBalances!$E21,0,L$11)) -> 0 | M23: 0 | O23: 0 | P23: =IF(P$10="",0,OFFSET(A2.HistoricalBalances!$E21,0,P$11)) -> 0 | Q23: =IF(Q$10="",0,OFFSET(A2.HistoricalBalances!$E21,0,Q$11)) -> 0 | S23: 19884 | T23: =IF(T$10="",0,OFFSET(A2.HistoricalBalances!$E21,0,T$11)) -> 19884 | U23: =IF(U$10="",0,OFFSET(A2.HistoricalBalances!$E21,0,U$11)) -> 19884 | W23: -19884 | X23: =IF(X$10="",0,OFFSET(A2.HistoricalBalances!$E21,0,X$11)) -> 0 | Y23: =IF(Y$10=ApprovedYr,A2.HistoricalBalances!$M21,X23) -> 0 | AB23: 0 | AC23: 0 | AF23: 0 | AG23: 19884 | AJ23: 0 | AK23: 1110
B24: =""&Y2.ChartOfAccts!C22 -> 1120-Accrued Utility Revenues | C24: =""&Y2.ChartOfAccts!D22 -> 1050-Current Assets | D24: =Y2.ChartOfAccts!F22 -> 0 | E24: =IF(E$10="",0,OFFSET(A2.HistoricalBalances!$E22,0,E$11)) -> 0 | G24: 0 | H24: =IF(H$10="",0,OFFSET(A2.HistoricalBalances!$E22,0,H$11)) -> 0 | K24: 5623000 | L24: =IF(L$10="",0,OFFSET(A2.HistoricalBalances!$E22,0,L$11)) -> 5623000 | M24: 0 | O24: 4718562.42 | P24: =IF(P$10="",0,OFFSET(A2.HistoricalBalances!$E22,0,P$11)) -> 4718562.42 | Q24: =IF(Q$10="",0,OFFSET(A2.HistoricalBalances!$E22,0,Q$11)) -> 4718562.42 | S24: 75420.09 | T24: =IF(T$10="",0,OFFSET(A2.HistoricalBalances!$E22,0,T$11)) -> 4793982.51 | U24: =IF(U$10="",0,OFFSET(A2.HistoricalBalances!$E22,0,U$11)) -> 4793982.51 | W24: -512743.51 | X24: =IF(X$10="",0,OFFSET(A2.HistoricalBalances!$E22,0,X$11)) -> 4281239 | Y24: =IF(Y$10=ApprovedYr,A2.HistoricalBalances!$M22,X24) -> 4281239 | AB24: 4281239 | AC24: 4281239 | AF24: 4281239 | AG24: 27979261.93 | AJ24: 0 | AK24: 1120
B25: =""&Y2.ChartOfAccts!C23 -> 1130-Accumulated Provision for Uncollectible Accounts--Credit | C25: =""&Y2.ChartOfAccts!D23 -> 1050-Current Assets | D25: =Y2.ChartOfAccts!F23 -> 0 | E25: =IF(E$10="",0,OFFSET(A2.HistoricalBalances!$E23,0,E$11)) -> 0 | G25: 0 | H25: =IF(H$10="",0,OFFSET(A2.HistoricalBalances!$E23,0,H$11)) -> 0 | K25: -360500 | L25: =IF(L$10="",0,OFFSET(A2.HistoricalBalances!$E23,0,L$11)) -> -360500 | M25: 0 | O25: -251000 | P25: =IF(P$10="",0,OFFSET(A2.HistoricalBalances!$E23,0,P$11)) -> -251000 | Q25: =IF(Q$10="",0,OFFSET(A2.HistoricalBalances!$E23,0,Q$11)) -> -251000 | S25: 17000 | T25: =IF(T$10="",0,OFFSET(A2.HistoricalBalances!$E23,0,T$11)) -> -234000 | U25: =IF(U$10="",0,OFFSET(A2.HistoricalBalances!$E23,0,U$11)) -> -234000 | W25: -20300 | X25: =IF(X$10="",0,OFFSET(A2.HistoricalBalances!$E23,0,X$11)) -> -254300 | Y25: =IF(Y$10=ApprovedYr,A2.HistoricalBalances!$M23,X25) -> -254300 | AB25: -254300 | AC25: -254300 | AF25: -254300 | AG25: 1608400 | AJ25: 0 | AK25: 1130
B26: =""&Y2.ChartOfAccts!C24 -> 1140-Interest and Dividends Receivable | C26: =""&Y2.ChartOfAccts!D24 -> 1050-Current Assets | D26: =Y2.ChartOfAccts!F24 -> 0 | E26: =IF(E$10="",0,OFFSET(A2.HistoricalBalances!$E24,0,E$11)) -> 0 | G26: 0 | H26: =IF(H$10="",0,OFFSET(A2.HistoricalBalances!$E24,0,H$11)) -> 0 | K26: 0 | L26: =IF(L$10="",0,OFFSET(A2.HistoricalBalances!$E24,0,L$11)) -> 0 | M26: 0 | O26: 0 | P26: =IF(P$10="",0,OFFSET(A2.HistoricalBalances!$E24,0,P$11)) -> 0 | Q26: =IF(Q$10="",0,OFFSET(A2.HistoricalBalances!$E24,0,Q$11)) -> 0 | S26: 0 | T26: =IF(T$10="",0,OFFSET(A2.HistoricalBalances!$E24,0,T$11)) -> 0 | U26: =IF(U$10="",0,OFFSET(A2.HistoricalBalances!$E24,0,U$11)) -> 0 | W26: 0 | X26: =IF(X$10="",0,OFFSET(A2.HistoricalBalances!$E24,0,X$11)) -> 0 | Y26: =IF(Y$10=ApprovedYr,A2.HistoricalBalances!$M24,X26) -> 0 | AB26: 0 | AC26: 0 | AF26: 0 | AG26: 0 | AJ26: 0 | AK26: 1140
B27: =""&Y2.ChartOfAccts!C25 -> 1150-Rents Receivable | C27: =""&Y2.ChartOfAccts!D25 -> 1050-Current Assets | D27: =Y2.ChartOfAccts!F25 -> 0 | E27: =IF(E$10="",0,OFFSET(A2.HistoricalBalances!$E25,0,E$11)) -> 0 | G27: 0 | H27: =IF(H$10="",0,OFFSET(A2.HistoricalBalances!$E25,0,H$11)) -> 0 | K27: 0 | L27: =IF(L$10="",0,OFFSET(A2.HistoricalBalances!$E25,0,L$11)) -> 0 | M27: 0 | O27: 0 | P27: =IF(P$10="",0,OFFSET(A2.HistoricalBalances!$E25,0,P$11)) -> 0 | Q27: =IF(Q$10="",0,OFFSET(A2.HistoricalBalances!$E25,0,Q$11)) -> 0 | S27: 0 | T27: =IF(T$10="",0,OFFSET(A2.HistoricalBalances!$E25,0,T$11)) -> 0 | U27: =IF(U$10="",0,OFFSET(A2.HistoricalBalances!$E25,0,U$11)) -> 0 | W27: 0 | X27: =IF(X$10="",0,OFFSET(A2.HistoricalBalances!$E25,0,X$11)) -> 0 | Y27: =IF(Y$10=ApprovedYr,A2.HistoricalBalances!$M25,X27) -> 0 | AB27: 0 | AC27: 0 | AF27: 0 | AG27: 0 | AJ27: 0 | AK27: 1150
B28: =""&Y2.ChartOfAccts!C26 -> 1170-Notes Receivable | C28: =""&Y2.ChartOfAccts!D26 -> 1050-Current Assets | D28: =Y2.ChartOfAccts!F26 -> 0 | E28: =IF(E$10="",0,OFFSET(A2.HistoricalBalances!$E26,0,E$11)) -> 0 | G28: 0 | H28: =IF(H$10="",0,OFFSET(A2.HistoricalBalances!$E26,0,H$11)) -> 0 | K28: 0 | L28: =IF(L$10="",0,OFFSET(A2.HistoricalBalances!$E26,0,L$11)) -> 0 | M28: 0 | O28: 0 | P28: =IF(P$10="",0,OFFSET(A2.HistoricalBalances!$E26,0,P$11)) -> 0 | Q28: =IF(Q$10="",0,OFFSET(A2.HistoricalBalances!$E26,0,Q$11)) -> 0 | S28: 0 | T28: =IF(T$10="",0,OFFSET(A2.HistoricalBalances!$E26,0,T$11)) -> 0 | U28: =IF(U$10="",0,OFFSET(A2.HistoricalBalances!$E26,0,U$11)) -> 0 | W28: 0 | X28: =IF(X$10="",0,OFFSET(A2.HistoricalBalances!$E26,0,X$11)) -> 0 | Y28: =IF(Y$10=ApprovedYr,A2.HistoricalBalances!$M26,X28) -> 0 | AB28: 0 | AC28: 0 | AF28: 0 | AG28: 0 | AJ28: 0 | AK28: 1170
B29: =""&Y2.ChartOfAccts!C27 -> 1180-Prepayments | C29: =""&Y2.ChartOfAccts!D27 -> 1050-Current Assets | D29: =Y2.ChartOfAccts!F27 -> 0 | E29: =IF(E$10="",0,OFFSET(A2.HistoricalBalances!$E27,0,E$11)) -> 0 | G29: 0 | H29: =IF(H$10="",0,OFFSET(A2.HistoricalBalances!$E27,0,H$11)) -> 0 | K29: 191000 | L29: =IF(L$10="",0,OFFSET(A2.HistoricalBalances!$E27,0,L$11)) -> 191000 | M29: 0 | O29: 75548.09 | P29: =IF(P$10="",0,OFFSET(A2.HistoricalBalances!$E27,0,P$11)) -> 75548.09 | Q29: =IF(Q$10="",0,OFFSET(A2.HistoricalBalances!$E27,0,Q$11)) -> 75548.09 | S29: 153222.55 | T29: =IF(T$10="",0,OFFSET(A2.HistoricalBalances!$E27,0,T$11)) -> 228770.64 | U29: =IF(U$10="",0,OFFSET(A2.HistoricalBalances!$E27,0,U$11)) -> 228770.64 | W29: 90940.36 | X29: =IF(X$10="",0,OFFSET(A2.HistoricalBalances!$E27,0,X$11)) -> 319711 | Y29: =IF(Y$10=ApprovedYr,A2.HistoricalBalances!$M27,X29) -> 319711 | AB29: 319711 | AC29: 319711 | AF29: 319711 | AG29: 1454451.73 | AJ29: 0 | AK29: 1180
B30: =""&Y2.ChartOfAccts!C28 -> 1190-Miscellaneous Current and Accrued Assets | C30: =""&Y2.ChartOfAccts!D28 -> 1050-Current Assets | D30: =Y2.ChartOfAccts!F28 -> 0 | E30: =IF(E$10="",0,OFFSET(A2.HistoricalBalances!$E28,0,E$11)) -> 0 | G30: 0 | H30: =IF(H$10="",0,OFFSET(A2.HistoricalBalances!$E28,0,H$11)) -> 0 | K30: 120000 | L30: =IF(L$10="",0,OFFSET(A2.HistoricalBalances!$E28,0,L$11)) -> 120000 | M30: 0 | O30: 272988.81 | P30: =IF(P$10="",0,OFFSET(A2.HistoricalBalances!$E28,0,P$11)) -> 272988.81 | Q30: =IF(Q$10="",0,OFFSET(A2.HistoricalBalances!$E28,0,Q$11)) -> 272988.81 | S30: 64334.24 | T30: =IF(T$10="",0,OFFSET(A2.HistoricalBalances!$E28,0,T$11)) -> 337323.05 | U30: =IF(U$10="",0,OFFSET(A2.HistoricalBalances!$E28,0,U$11)) -> 337323.05 | W30: 403258.95 | X30: =IF(X$10="",0,OFFSET(A2.HistoricalBalances!$E28,0,X$11)) -> 740582 | Y30: =IF(Y$10=ApprovedYr,A2.HistoricalBalances!$M28,X30) -> 740582 | AB30: 740582 | AC30: 740582 | AF30: 740582 | AG30: 2952057.86 | AJ30: 0 | AK30: 1190
B31: =""&Y2.ChartOfAccts!C29 -> 1200-Accounts Receivable from Associated Companies | C31: =""&Y2.ChartOfAccts!D29 -> 1050-Current Assets | D31: =Y2.ChartOfAccts!F29 -> 0 | E31: =IF(E$10="",0,OFFSET(A2.HistoricalBalances!$E29,0,E$11)) -> 0 | G31: 0 | H31: =IF(H$10="",0,OFFSET(A2.HistoricalBalances!$E29,0,H$11)) -> 0 | K31: 0 | L31: =IF(L$10="",0,OFFSET(A2.HistoricalBalances!$E29,0,L$11)) -> 0 | M31: 0 | O31: 0 | P31: =IF(P$10="",0,OFFSET(A2.HistoricalBalances!$E29,0,P$11)) -> 0 | Q31: =IF(Q$10="",0,OFFSET(A2.HistoricalBalances!$E29,0,Q$11)) -> 0 | S31: 0 | T31: =IF(T$10="",0,OFFSET(A2.HistoricalBalances!$E29,0,T$11)) -> 0 | U31: =IF(U$10="",0,OFFSET(A2.HistoricalBalances!$E29,0,U$11)) -> 0 | W31: 0 | X31: =IF(X$10="",0,OFFSET(A2.HistoricalBalances!$E29,0,X$11)) -> 0 | Y31: =IF(Y$10=ApprovedYr,A2.HistoricalBalances!$M29,X31) -> 0 | AB31: 0 | AC31: 0 | AF31: 0 | AG31: 0 | AJ31: 0 | AK31: 1200
B32: =""&Y2.ChartOfAccts!C30 -> 1210-Notes Receivable from Associated Companies | C32: =""&Y2.ChartOfAccts!D30 -> 1050-Current Assets | D32: =Y2.ChartOfAccts!F30 -> 0 | E32: =IF(E$10="",0,OFFSET(A2.HistoricalBalances!$E30,0,E$11)) -> 0 | G32: 0 | H32: =IF(H$10="",0,OFFSET(A2.HistoricalBalances!$E30,0,H$11)) -> 0 | K32: 0 | L32: =IF(L$10="",0,OFFSET(A2.HistoricalBalances!$E30,0,L$11)) -> 0 | M32: 0 | O32: 0 | P32: =IF(P$10="",0,OFFSET(A2.HistoricalBalances!$E30,0,P$11)) -> 0 | Q32: =IF(Q$10="",0,OFFSET(A2.HistoricalBalances!$E30,0,Q$11)) -> 0 | S32: 0 | T32: =IF(T$10="",0,OFFSET(A2.HistoricalBalances!$E30,0,T$11)) -> 0 | U32: =IF(U$10="",0,OFFSET(A2.HistoricalBalances!$E30,0,U$11)) -> 0 | W32: 0 | X32: =IF(X$10="",0,OFFSET(A2.HistoricalBalances!$E30,0,X$11)) -> 0 | Y32: =IF(Y$10=ApprovedYr,A2.HistoricalBalances!$M30,X32) -> 0 | AB32: 0 | AC32: 0 | AF32: 0 | AG32: 0 | AJ32: 0 | AK32: 1210
B33: =""&Y2.ChartOfAccts!C31 -> 1305-Fuel Stock | C33: =""&Y2.ChartOfAccts!D31 -> 1100-Inventory | D33: =Y2.ChartOfAccts!F31 -> 0 | E33: =IF(E$10="",0,OFFSET(A2.HistoricalBalances!$E31,0,E$11)) -> 0 | G33: 0 | H33: =IF(H$10="",0,OFFSET(A2.HistoricalBalances!$E31,0,H$11)) -> 0 | K33: 0 | L33: =IF(L$10="",0,OFFSET(A2.HistoricalBalances!$E31,0,L$11)) -> 0 | M33: 0 | O33: 0 | P33: =IF(P$10="",0,OFFSET(A2.HistoricalBalances!$E31,0,P$11)) -> 0 | Q33: =IF(Q$10="",0,OFFSET(A2.HistoricalBalances!$E31,0,Q$11)) -> 0 | S33: 0 | T33: =IF(T$10="",0,OFFSET(A2.HistoricalBalances!$E31,0,T$11)) -> 0 | U33: =IF(U$10="",0,OFFSET(A2.HistoricalBalances!$E31,0,U$11)) -> 0 | W33: 0 | X33: =IF(X$10="",0,OFFSET(A2.HistoricalBalances!$E31,0,X$11)) -> 0 | Y33: =IF(Y$10=ApprovedYr,A2.HistoricalBalances!$M31,X33) -> 0 | AB33: 0 | AC33: 0 | AF33: 0 | AG33: 0 | AJ33: 0 | AK33: 1305
B34: =""&Y2.ChartOfAccts!C32 -> 1330-Plant Materials and Operating Supplies | C34: =""&Y2.ChartOfAccts!D32 -> 1100-Inventory | D34: =Y2.ChartOfAccts!F32 -> 0 | E34: =IF(E$10="",0,OFFSET(A2.HistoricalBalances!$E32,0,E$11)) -> 0 | G34: 0 | H34: =IF(H$10="",0,OFFSET(A2.HistoricalBalances!$E32,0,H$11)) -> 0 | K34: 718000 | L34: =IF(L$10="",0,OFFSET(A2.HistoricalBalances!$E32,0,L$11)) -> 718000 | M34: 0 | O34: 743073.32 | P34: =IF(P$10="",0,OFFSET(A2.HistoricalBalances!$E32,0,P$11)) -> 743073.32 | Q34: =IF(Q$10="",0,OFFSET(A2.HistoricalBalances!$E32,0,Q$11)) -> 743073.32 | S34: 14719.25 | T34: =IF(T$10="",0,OFFSET(A2.HistoricalBalances!$E32,0,T$11)) -> 757792.57 | U34: =IF(U$10="",0,OFFSET(A2.HistoricalBalances!$E32,0,U$11)) -> 757792.57 | W34: -39461.57 | X34: =IF(X$10="",0,OFFSET(A2.HistoricalBalances!$E32,0,X$11)) -> 718331 | Y34: =IF(Y$10=ApprovedYr,A2.HistoricalBalances!$M32,X34) -> 718331 | AB34: 718331 | AC34: 718331 | AF34: 718331 | AG34: 4373858.89 | AJ34: 0 | AK34: 1330
B35: =""&Y2.ChartOfAccts!C33 -> 1340-Merchandise | C35: =""&Y2.ChartOfAccts!D33 -> 1100-Inventory | D35: =Y2.ChartOfAccts!F33 -> 0 | E35: =IF(E$10="",0,OFFSET(A2.HistoricalBalances!$E33,0,E$11)) -> 0 | G35: 0 | H35: =IF(H$10="",0,OFFSET(A2.HistoricalBalances!$E33,0,H$11)) -> 0 | K35: 0 | L35: =IF(L$10="",0,OFFSET(A2.HistoricalBalances!$E33,0,L$11)) -> 0 | M35: 0 | O35: 0 | P35: =IF(P$10="",0,OFFSET(A2.HistoricalBalances!$E33,0,P$11)) -> 0 | Q35: =IF(Q$10="",0,OFFSET(A2.HistoricalBalances!$E33,0,Q$11)) -> 0 | S35: 0 | T35: =IF(T$10="",0,OFFSET(A2.HistoricalBalances!$E33,0,T$11)) -> 0 | U35: =IF(U$10="",0,OFFSET(A2.HistoricalBalances!$E33,0,U$11)) -> 0 | W35: 0 | X35: =IF(X$10="",0,OFFSET(A2.HistoricalBalances!$E33,0,X$11)) -> 0 | Y35: =IF(Y$10=ApprovedYr,A2.HistoricalBalances!$M33,X35) -> 0 | AB35: 0 | AC35: 0 | AF35: 0 | AG35: 0 | AJ35: 0 | AK35: 1340
B36: =""&Y2.ChartOfAccts!C34 -> 1350-Other Materials and Supplies | C36: =""&Y2.ChartOfAccts!D34 -> 1100-Inventory | D36: =Y2.ChartOfAccts!F34 -> 0 | E36: =IF(E$10="",0,OFFSET(A2.HistoricalBalances!$E34,0,E$11)) -> 0 | G36: 0 | H36: =IF(H$10="",0,OFFSET(A2.HistoricalBalances!$E34,0,H$11)) -> 0 | K36: 0 | L36: =IF(L$10="",0,OFFSET(A2.HistoricalBalances!$E34,0,L$11)) -> 0 | M36: 0 | O36: 0 | P36: =IF(P$10="",0,OFFSET(A2.HistoricalBalances!$E34,0,P$11)) -> 0 | Q36: =IF(Q$10="",0,OFFSET(A2.HistoricalBalances!$E34,0,Q$11)) -> 0 | S36: 0 | T36: =IF(T$10="",0,OFFSET(A2.HistoricalBalances!$E34,0,T$11)) -> 0 | U36: =IF(U$10="",0,OFFSET(A2.HistoricalBalances!$E34,0,U$11)) -> 0 | W36: 0 | X36: =IF(X$10="",0,OFFSET(A2.HistoricalBalances!$E34,0,X$11)) -> 0 | Y36: =IF(Y$10=ApprovedYr,A2.HistoricalBalances!$M34,X36) -> 0 | AB36: 0 | AC36: 0 | AF36: 0 | AG36: 0 | AJ36: 0 | AK36: 1350
B37: =""&Y2.ChartOfAccts!C35 -> 1405-Long Term Investments in Non-Associated Companies | C37: =""&Y2.ChartOfAccts!D35 -> 1150-Non-Current Assets | D37: =Y2.ChartOfAccts!F35 -> 0 | E37: =IF(E$10="",0,OFFSET(A2.HistoricalBalances!$E35,0,E$11)) -> 0 | G37: 0 | H37: =IF(H$10="",0,OFFSET(A2.HistoricalBalances!$E35,0,H$11)) -> 0 | K37: 28000 | L37: =IF(L$10="",0,OFFSET(A2.HistoricalBalances!$E35,0,L$11)) -> 28000 | M37: 0 | O37: 0 | P37: =IF(P$10="",0,OFFSET(A2.HistoricalBalances!$E35,0,P$11)) -> 0 | Q37: =IF(Q$10="",0,OFFSET(A2.HistoricalBalances!$E35,0,Q$11)) -> 0 | S37: 0 | T37: =IF(T$10="",0,OFFSET(A2.HistoricalBalances!$E35,0,T$11)) -> 0 | U37: =IF(U$10="",0,OFFSET(A2.HistoricalBalances!$E35,0,U$11)) -> 0 | W37: 0 | X37: =IF(X$10="",0,OFFSET(A2.HistoricalBalances!$E35,0,X$11)) -> 0 | Y37: =IF(Y$10=ApprovedYr,A2.HistoricalBalances!$M35,X37) -> 0 | AB37: 0 | AC37: 0 | AF37: 0 | AG37: 28000 | AJ37: 0 | AK37: 1405
B38: =""&Y2.ChartOfAccts!C36 -> 1408-Long Term Receivable - Street Lighting Transfer | C38: =""&Y2.ChartOfAccts!D36 -> 1150-Non-Current Assets | D38: =Y2.ChartOfAccts!F36 -> 0 | E38: =IF(E$10="",0,OFFSET(A2.HistoricalBalances!$E36,0,E$11)) -> 0 | G38: 0 | H38: =IF(H$10="",0,OFFSET(A2.HistoricalBalances!$E36,0,H$11)) -> 0 | K38: 0 | L38: =IF(L$10="",0,OFFSET(A2.HistoricalBalances!$E36,0,L$11)) -> 0 | M38: 0 | O38: 0 | P38: =IF(P$10="",0,OFFSET(A2.HistoricalBalances!$E36,0,P$11)) -> 0 | Q38: =IF(Q$10="",0,OFFSET(A2.HistoricalBalances!$E36,0,Q$11)) -> 0 | S38: 0 | T38: =IF(T$10="",0,OFFSET(A2.HistoricalBalances!$E36,0,T$11)) -> 0 | U38: =IF(U$10="",0,OFFSET(A2.HistoricalBalances!$E36,0,U$11)) -> 0 | W38: 0 | X38: =IF(X$10="",0,OFFSET(A2.HistoricalBalances!$E36,0,X$11)) -> 0 | Y38: =IF(Y$10=ApprovedYr,A2.HistoricalBalances!$M36,X38) -> 0 | AB38: 0 | AC38: 0 | AF38: 0 | AG38: 0 | AJ38: 0 | AK38: 1408
B39: =""&Y2.ChartOfAccts!C37 -> 1410-Other Special or Collateral Funds | C39: =""&Y2.ChartOfAccts!D37 -> 1150-Non-Current Assets | D39: =Y2.ChartOfAccts!F37 -> 0 | E39: =IF(E$10="",0,OFFSET(A2.HistoricalBalances!$E37,0,E$11)) -> 0 | G39: 0 | H39: =IF(H$10="",0,OFFSET(A2.HistoricalBalances!$E37,0,H$11)) -> 0 | K39: 0 | L39: =IF(L$10="",0,OFFSET(A2.HistoricalBalances!$E37,0,L$11)) -> 0 | M39: 0 | O39: 0 | P39: =IF(P$10="",0,OFFSET(A2.HistoricalBalances!$E37,0,P$11)) -> 0 | Q39: =IF(Q$10="",0,OFFSET(A2.HistoricalBalances!$E37,0,Q$11)) -> 0 | S39: 0 | T39: =IF(T$10="",0,OFFSET(A2.HistoricalBalances!$E37,0,T$11)) -> 0 | U39: =IF(U$10="",0,OFFSET(A2.HistoricalBalances!$E37,0,U$11)) -> 0 | W39: 0 | X39: =IF(X$10="",0,OFFSET(A2.HistoricalBalances!$E37,0,X$11)) -> 0 | Y39: =IF(Y$10=ApprovedYr,A2.HistoricalBalances!$M37,X39) -> 0 | AB39: 0 | AC39: 0 | AF39: 0 | AG39: 0 | AJ39: 0 | AK39: 1410
B40: =""&Y2.ChartOfAccts!C38 -> 1415-Sinking Funds | C40: =""&Y2.ChartOfAccts!D38 -> 1150-Non-Current Assets | D40: =Y2.ChartOfAccts!F38 -> 0 | E40: =IF(E$10="",0,OFFSET(A2.HistoricalBalances!$E38,0,E$11)) -> 0 | G40: 0 | H40: =IF(H$10="",0,OFFSET(A2.HistoricalBalances!$E38,0,H$11)) -> 0 | K40: 0 | L40: =IF(L$10="",0,OFFSET(A2.HistoricalBalances!$E38,0,L$11)) -> 0 | M40: 0 | O40: 0 | P40: =IF(P$10="",0,OFFSET(A2.HistoricalBalances!$E38,0,P$11)) -> 0 | Q40: =IF(Q$10="",0,OFFSET(A2.HistoricalBalances!$E38,0,Q$11)) -> 0 | S40: 0 | T40: =IF(T$10="",0,OFFSET(A2.HistoricalBalances!$E38,0,T$11)) -> 0 | U40: =IF(U$10="",0,OFFSET(A2.HistoricalBalances!$E38,0,U$11)) -> 0 | W40: 0 | X40: =IF(X$10="",0,OFFSET(A2.HistoricalBalances!$E38,0,X$11)) -> 0 | Y40: =IF(Y$10=ApprovedYr,A2.HistoricalBalances!$M38,X40) -> 0 | AB40: 0 | AC40: 0 | AF40: 0 | AG40: 0 | AJ40: 0 | AK40: 1415
B41: =""&Y2.ChartOfAccts!C39 -> 1425-Unamortized Debt Expense | C41: =""&Y2.ChartOfAccts!D39 -> 1150-Non-Current Assets | D41: =Y2.ChartOfAccts!F39 -> 0 | E41: =IF(E$10="",0,OFFSET(A2.HistoricalBalances!$E39,0,E$11)) -> 0 | G41: 0 | H41: =IF(H$10="",0,OFFSET(A2.HistoricalBalances!$E39,0,H$11)) -> 0 | K41: 0 | L41: =IF(L$10="",0,OFFSET(A2.HistoricalBalances!$E39,0,L$11)) -> 0 | M41: 0 | O41: 0 | P41: =IF(P$10="",0,OFFSET(A2.HistoricalBalances!$E39,0,P$11)) -> 0 | Q41: =IF(Q$10="",0,OFFSET(A2.HistoricalBalances!$E39,0,Q$11)) -> 0 | S41: 0 | T41: =IF(T$10="",0,OFFSET(A2.HistoricalBalances!$E39,0,T$11)) -> 0 | U41: =IF(U$10="",0,OFFSET(A2.HistoricalBalances!$E39,0,U$11)) -> 0 | W41: 0 | X41: =IF(X$10="",0,OFFSET(A2.HistoricalBalances!$E39,0,X$11)) -> 0 | Y41: =IF(Y$10=ApprovedYr,A2.HistoricalBalances!$M39,X41) -> 0 | AB41: 0 | AC41: 0 | AF41: 0 | AG41: 0 | AJ41: 0 | AK41: 1425
B42: =""&Y2.ChartOfAccts!C40 -> 1445-Unamortized Discount on Long-Term Debt--Debit | C42: =""&Y2.ChartOfAccts!D40 -> 1150-Non-Current Assets | D42: =Y2.ChartOfAccts!F40 -> 0 | E42: =IF(E$10="",0,OFFSET(A2.HistoricalBalances!$E40,0,E$11)) -> 0 | G42: 0 | H42: =IF(H$10="",0,OFFSET(A2.HistoricalBalances!$E40,0,H$11)) -> 0 | K42: 0 | L42: =IF(L$10="",0,OFFSET(A2.HistoricalBalances!$E40,0,L$11)) -> 0 | M42: 0 | O42: 0 | P42: =IF(P$10="",0,OFFSET(A2.HistoricalBalances!$E40,0,P$11)) -> 0 | Q42: =IF(Q$10="",0,OFFSET(A2.HistoricalBalances!$E40,0,Q$11)) -> 0 | S42: 0 | T42: =IF(T$10="",0,OFFSET(A2.HistoricalBalances!$E40,0,T$11)) -> 0 | U42: =IF(U$10="",0,OFFSET(A2.HistoricalBalances!$E40,0,U$11)) -> 0 | W42: 0 | X42: =IF(X$10="",0,OFFSET(A2.HistoricalBalances!$E40,0,X$11)) -> 0 | Y42: =IF(Y$10=ApprovedYr,A2.HistoricalBalances!$M40,X42) -> 0 | AB42: 0 | AC42: 0 | AF42: 0 | AG42: 0 | AJ42: 0 | AK42: 1445
B43: =""&Y2.ChartOfAccts!C41 -> 1455-Unamortized Deferred Foreign Currency Translation Gains and Losses | C43: =""&Y2.ChartOfAccts!D41 -> 1150-Non-Current Assets | D43: =Y2.ChartOfAccts!F41 -> 0 | E43: =IF(E$10="",0,OFFSET(A2.HistoricalBalances!$E41,0,E$11)) -> 0 | G43: 0 | H43: =IF(H$10="",0,OFFSET(A2.HistoricalBalances!$E41,0,H$11)) -> 0 | K43: 0 | L43: =IF(L$10="",0,OFFSET(A2.HistoricalBalances!$E41,0,L$11)) -> 0 | M43: 0 | O43: 0 | P43: =IF(P$10="",0,OFFSET(A2.HistoricalBalances!$E41,0,P$11)) -> 0 | Q43: =IF(Q$10="",0,OFFSET(A2.HistoricalBalances!$E41,0,Q$11)) -> 0 | S43: 0 | T43: =IF(T$10="",0,OFFSET(A2.HistoricalBalances!$E41,0,T$11)) -> 0 | U43: =IF(U$10="",0,OFFSET(A2.HistoricalBalances!$E41,0,U$11)) -> 0 | W43: 0 | X43: =IF(X$10="",0,OFFSET(A2.HistoricalBalances!$E41,0,X$11)) -> 0 | Y43: =IF(Y$10=ApprovedYr,A2.HistoricalBalances!$M41,X43) -> 0 | AB43: 0 | AC43: 0 | AF43: 0 | AG43: 0 | AJ43: 0 | AK43: 1455
B44: =""&Y2.ChartOfAccts!C42 -> 1460-Other Non-Current Assets | C44: =""&Y2.ChartOfAccts!D42 -> 1150-Non-Current Assets | D44: =Y2.ChartOfAccts!F42 -> 0 | E44: =IF(E$10="",0,OFFSET(A2.HistoricalBalances!$E42,0,E$11)) -> 0 | G44: 0 | H44: =IF(H$10="",0,OFFSET(A2.HistoricalBalances!$E42,0,H$11)) -> 0 | K44: 240000 | L44: =IF(L$10="",0,OFFSET(A2.HistoricalBalances!$E42,0,L$11)) -> 240000 | M44: 0 | O44: 255209.04 | P44: =IF(P$10="",0,OFFSET(A2.HistoricalBalances!$E42,0,P$11)) -> 255209.04 | Q44: =IF(Q$10="",0,OFFSET(A2.HistoricalBalances!$E42,0,Q$11)) -> 255209.04 | S44: -27921.44 | T44: =IF(T$10="",0,OFFSET(A2.HistoricalBalances!$E42,0,T$11)) -> 227287.6 | U44: =IF(U$10="",0,OFFSET(A2.HistoricalBalances!$E42,0,U$11)) -> 227287.6 | W44: -33955.6 | X44: =IF(X$10="",0,OFFSET(A2.HistoricalBalances!$E42,0,X$11)) -> 193332 | Y44: =IF(Y$10=ApprovedYr,A2.HistoricalBalances!$M42,X44) -> 193332 | AB44: 193332 | AC44: 193332 | AF44: 193332 | AG44: 1302492.64 | AJ44: 0 | AK44: 1460
B45: =""&Y2.ChartOfAccts!C43 -> 1465-O.M.E.R.S. Past Service Costs | C45: =""&Y2.ChartOfAccts!D43 -> 1150-Non-Current Assets | D45: =Y2.ChartOfAccts!F43 -> 0 | E45: =IF(E$10="",0,OFFSET(A2.HistoricalBalances!$E43,0,E$11)) -> 0 | G45: 0 | H45: =IF(H$10="",0,OFFSET(A2.HistoricalBalances!$E43,0,H$11)) -> 0 | K45: 0 | L45: =IF(L$10="",0,OFFSET(A2.HistoricalBalances!$E43,0,L$11)) -> 0 | M45: 0 | O45: 0 | P45: =IF(P$10="",0,OFFSET(A2.HistoricalBalances!$E43,0,P$11)) -> 0 | Q45: =IF(Q$10="",0,OFFSET(A2.HistoricalBalances!$E43,0,Q$11)) -> 0 | S45: 0 | T45: =IF(T$10="",0,OFFSET(A2.HistoricalBalances!$E43,0,T$11)) -> 0 | U45: =IF(U$10="",0,OFFSET(A2.HistoricalBalances!$E43,0,U$11)) -> 0 | W45: 0 | X45: =IF(X$10="",0,OFFSET(A2.HistoricalBalances!$E43,0,X$11)) -> 0 | Y45: =IF(Y$10=ApprovedYr,A2.HistoricalBalances!$M43,X45) -> 0 | AB45: 0 | AC45: 0 | AF45: 0 | AG45: 0 | AJ45: 0 | AK45: 1465
B46: =""&Y2.ChartOfAccts!C44 -> 1470-Past Service Costs - Employee Future Benefits | C46: =""&Y2.ChartOfAccts!D44 -> 1150-Non-Current Assets | D46: =Y2.ChartOfAccts!F44 -> 0 | E46: =IF(E$10="",0,OFFSET(A2.HistoricalBalances!$E44,0,E$11)) -> 0 | G46: 0 | H46: =IF(H$10="",0,OFFSET(A2.HistoricalBalances!$E44,0,H$11)) -> 0 | K46: 0 | L46: =IF(L$10="",0,OFFSET(A2.HistoricalBalances!$E44,0,L$11)) -> 0 | M46: 0 | O46: 0 | P46: =IF(P$10="",0,OFFSET(A2.HistoricalBalances!$E44,0,P$11)) -> 0 | Q46: =IF(Q$10="",0,OFFSET(A2.HistoricalBalances!$E44,0,Q$11)) -> 0 | S46: 0 | T46: =IF(T$10="",0,OFFSET(A2.HistoricalBalances!$E44,0,T$11)) -> 0 | U46: =IF(U$10="",0,OFFSET(A2.HistoricalBalances!$E44,0,U$11)) -> 0 | W46: 0 | X46: =IF(X$10="",0,OFFSET(A2.HistoricalBalances!$E44,0,X$11)) -> 0 | Y46: =IF(Y$10=ApprovedYr,A2.HistoricalBalances!$M44,X46) -> 0 | AB46: 0 | AC46: 0 | AF46: 0 | AG46: 0 | AJ46: 0 | AK46: 1470
B47: =""&Y2.ChartOfAccts!C45 -> 1475-Past Service Costs - Other Pension Plans | C47: =""&Y2.ChartOfAccts!D45 -> 1150-Non-Current Assets | D47: =Y2.ChartOfAccts!F45 -> 0 | E47: =IF(E$10="",0,OFFSET(A2.HistoricalBalances!$E45,0,E$11)) -> 0 | G47: 0 | H47: =IF(H$10="",0,OFFSET(A2.HistoricalBalances!$E45,0,H$11)) -> 0 | K47: 0 | L47: =IF(L$10="",0,OFFSET(A2.HistoricalBalances!$E45,0,L$11)) -> 0 | M47: 0 | O47: 0 | P47: =IF(P$10="",0,OFFSET(A2.HistoricalBalances!$E45,0,P$11)) -> 0 | Q47: =IF(Q$10="",0,OFFSET(A2.HistoricalBalances!$E45,0,Q$11)) -> 0 | S47: 0 | T47: =IF(T$10="",0,OFFSET(A2.HistoricalBalances!$E45,0,T$11)) -> 0 | U47: =IF(U$10="",0,OFFSET(A2.HistoricalBalances!$E45,0,U$11)) -> 0 | W47: 0 | X47: =IF(X$10="",0,OFFSET(A2.HistoricalBalances!$E45,0,X$11)) -> 0 | Y47: =IF(Y$10=ApprovedYr,A2.HistoricalBalances!$M45,X47) -> 0 | AB47: 0 | AC47: 0 | AF47: 0 | AG47: 0 | AJ47: 0 | AK47: 1475
B48: =""&Y2.ChartOfAccts!C46 -> 1480-Portfolio Investments - Associated Companies | C48: =""&Y2.ChartOfAccts!D46 -> 1150-Non-Current Assets | D48: =Y2.ChartOfAccts!F46 -> 0 | E48: =IF(E$10="",0,OFFSET(A2.HistoricalBalances!$E46,0,E$11)) -> 0 | G48: 0 | H48: =IF(H$10="",0,OFFSET(A2.HistoricalBalances!$E46,0,H$11)) -> 0 | K48: 0 | L48: =IF(L$10="",0,OFFSET(A2.HistoricalBalances!$E46,0,L$11)) -> 0 | M48: 0 | O48: 0 | P48: =IF(P$10="",0,OFFSET(A2.HistoricalBalances!$E46,0,P$11)) -> 0 | Q48: =IF(Q$10="",0,OFFSET(A2.HistoricalBalances!$E46,0,Q$11)) -> 0 | S48: 0 | T48: =IF(T$10="",0,OFFSET(A2.HistoricalBalances!$E46,0,T$11)) -> 0 | U48: =IF(U$10="",0,OFFSET(A2.HistoricalBalances!$E46,0,U$11)) -> 0 | W48: 0 | X48: =IF(X$10="",0,OFFSET(A2.HistoricalBalances!$E46,0,X$11)) -> 0 | Y48: =IF(Y$10=ApprovedYr,A2.HistoricalBalances!$M46,X48) -> 0 | AB48: 0 | AC48: 0 | AF48: 0 | AG48: 0 | AJ48: 0 | AK48: 1480
B49: =""&Y2.ChartOfAccts!C47 -> 1485-Investment in Associated Companies - Significant Influence | C49: =""&Y2.ChartOfAccts!D47 -> 1150-Non-Current Assets | D49: =Y2.ChartOfAccts!F47 -> 0 | E49: =IF(E$10="",0,OFFSET(A2.HistoricalBalances!$E47,0,E$11)) -> 0 | G49: 0 | H49: =IF(H$10="",0,OFFSET(A2.HistoricalBalances!$E47,0,H$11)) -> 0 | K49: 0 | L49: =IF(L$10="",0,OFFSET(A2.HistoricalBalances!$E47,0,L$11)) -> 0 | M49: 0 | O49: 0 | P49: =IF(P$10="",0,OFFSET(A2.HistoricalBalances!$E47,0,P$11)) -> 0 | Q49: =IF(Q$10="",0,OFFSET(A2.HistoricalBalances!$E47,0,Q$11)) -> 0 | S49: 0 | T49: =IF(T$10="",0,OFFSET(A2.HistoricalBalances!$E47,0,T$11)) -> 0 | U49: =IF(U$10="",0,OFFSET(A2.HistoricalBalances!$E47,0,U$11)) -> 0 | W49: 0 | X49: =IF(X$10="",0,OFFSET(A2.HistoricalBalances!$E47,0,X$11)) -> 0 | Y49: =IF(Y$10=ApprovedYr,A2.HistoricalBalances!$M47,X49) -> 0 | AB49: 0 | AC49: 0 | AF49: 0 | AG49: 0 | AJ49: 0 | AK49: 1485
B50: =""&Y2.ChartOfAccts!C48 -> 1490-Investment in Subsidiary Companies | C50: =""&Y2.ChartOfAccts!D48 -> 1150-Non-Current Assets | D50: =Y2.ChartOfAccts!F48 -> 0 | E50: =IF(E$10="",0,OFFSET(A2.HistoricalBalances!$E48,0,E$11)) -> 0 | G50: 0 | H50: =IF(H$10="",0,OFFSET(A2.HistoricalBalances!$E48,0,H$11)) -> 0 | K50: 0 | L50: =IF(L$10="",0,OFFSET(A2.HistoricalBalances!$E48,0,L$11)) -> 0 | M50: 0 | O50: 0 | P50: =IF(P$10="",0,OFFSET(A2.HistoricalBalances!$E48,0,P$11)) -> 0 | Q50: =IF(Q$10="",0,OFFSET(A2.HistoricalBalances!$E48,0,Q$11)) -> 0 | S50: 0 | T50: =IF(T$10="",0,OFFSET(A2.HistoricalBalances!$E48,0,T$11)) -> 0 | U50: =IF(U$10="",0,OFFSET(A2.HistoricalBalances!$E48,0,U$11)) -> 0 | W50: 0 | X50: =IF(X$10="",0,OFFSET(A2.HistoricalBalances!$E48,0,X$11)) -> 0 | Y50: =IF(Y$10=ApprovedYr,A2.HistoricalBalances!$M48,X50) -> 0 | AB50: 0 | AC50: 0 | AF50: 0 | AG50: 0 | AJ50: 0 | AK50: 1490
B51: =""&Y2.ChartOfAccts!C49 -> 1505-Unrecovered Plant and Regulatory Study Costs | C51: =""&Y2.ChartOfAccts!D49 -> 1200-Other Assets and Deferred Charges | D51: =Y2.ChartOfAccts!F49 -> 6 | E51: =IF(E$10="",0,OFFSET(A2.HistoricalBalances!$E49,0,E$11)) -> 0 | G51: 0 | H51: =IF(H$10="",0,OFFSET(A2.HistoricalBalances!$E49,0,H$11)) -> 0 | K51: 0 | L51: =IF(L$10="",0,OFFSET(A2.HistoricalBalances!$E49,0,L$11)) -> 0 | M51: 0 | O51: 0 | P51: =IF(P$10="",0,OFFSET(A2.HistoricalBalances!$E49,0,P$11)) -> 0 | Q51: =IF(Q$10="",0,OFFSET(A2.HistoricalBalances!$E49,0,Q$11)) -> 0 | S51: 0 | T51: =IF(T$10="",0,OFFSET(A2.HistoricalBalances!$E49,0,T$11)) -> 0 | U51: =IF(U$10="",0,OFFSET(A2.HistoricalBalances!$E49,0,U$11)) -> 0 | W51: 0 | X51: =IF(X$10="",0,OFFSET(A2.HistoricalBalances!$E49,0,X$11)) -> 0 | Y51: =IF(Y$10=ApprovedYr,A2.HistoricalBalances!$M49,X51) -> 0 | AB51: 0 | AC51: 0 | AF51: 0 | AG51: 0 | AJ51: 0 | AK51: 1505
B52: =""&Y2.ChartOfAccts!C50 -> 1508-Other Reg Assets-OEB Cost Assessments | C52: =""&Y2.ChartOfAccts!D50 -> 1200-Other Assets and Deferred Charges | D52: =Y2.ChartOfAccts!F50 -> 6 | E52: =IF(E$10="",0,OFFSET(A2.HistoricalBalances!$E50,0,E$11)) -> 0 | G52: 0 | H52: =IF(H$10="",0,OFFSET(A2.HistoricalBalances!$E50,0,H$11)) -> 0 | K52: 263441 | L52: =IF(L$10="",0,OFFSET(A2.HistoricalBalances!$E50,0,L$11)) -> 263441 | M52: 0 | O52: -15242.54 | P52: =IF(P$10="",0,OFFSET(A2.HistoricalBalances!$E50,0,P$11)) -> -15242.54 | Q52: =IF(Q$10="",0,OFFSET(A2.HistoricalBalances!$E50,0,Q$11)) -> -15242.54 | S52: 69833.65 | T52: =IF(T$10="",0,OFFSET(A2.HistoricalBalances!$E50,0,T$11)) -> 54591.11 | U52: =IF(U$10="",0,OFFSET(A2.HistoricalBalances!$E50,0,U$11)) -> 54591.11 | W52: -63697.11 | X52: =IF(X$10="",0,OFFSET(A2.HistoricalBalances!$E50,0,X$11)) -> -9106 | Y52: =IF(Y$10=ApprovedYr,A2.HistoricalBalances!$M50,X52) -> -9106 | AB52: -9106 | AC52: -9106 | AF52: -9106 | AG52: 360592.65 | AJ52: 0 | AK52: 1508
B53: =""&Y2.ChartOfAccts!C51 -> 1508-Other Reg Assets-Pension Contributions | C53: =""&Y2.ChartOfAccts!D51 -> 1200-Other Assets and Deferred Charges | D53: =Y2.ChartOfAccts!F51 -> 6 | E53: =IF(E$10="",0,OFFSET(A2.HistoricalBalances!$E51,0,E$11)) -> 0 | G53: 0 | H53: =IF(H$10="",0,OFFSET(A2.HistoricalBalances!$E51,0,H$11)) -> 0 | K53: 0 | L53: =IF(L$10="",0,OFFSET(A2.HistoricalBalances!$E51,0,L$11)) -> 0 | M53: 0 | O53: 0 | P53: =IF(P$10="",0,OFFSET(A2.HistoricalBalances!$E51,0,P$11)) -> 0 | Q53: =IF(Q$10="",0,OFFSET(A2.HistoricalBalances!$E51,0,Q$11)) -> 0 | S53: 0 | T53: =IF(T$10="",0,OFFSET(A2.HistoricalBalances!$E51,0,T$11)) -> 0 | U53: =IF(U$10="",0,OFFSET(A2.HistoricalBalances!$E51,0,U$11)) -> 0 | W53: 0 | X53: =IF(X$10="",0,OFFSET(A2.HistoricalBalances!$E51,0,X$11)) -> 0 | Y53: =IF(Y$10=ApprovedYr,A2.HistoricalBalances!$M51,X53) -> 0 | AB53: 0 | AC53: 0 | AF53: 0 | AG53: 0 | AJ53: 0 | AK53: 1508
B54: =""&Y2.ChartOfAccts!C52 -> 1508-Other Reg Assets- Deferred IFRS Transition | C54: =""&Y2.ChartOfAccts!D52 -> 1200-Other Assets and Deferred Charges | D54: =Y2.ChartOfAccts!F52 -> 6 | E54: =IF(E$10="",0,OFFSET(A2.HistoricalBalances!$E52,0,E$11)) -> 0 | G54: 0 | H54: =IF(H$10="",0,OFFSET(A2.HistoricalBalances!$E52,0,H$11)) -> 0 | K54: 0 | L54: =IF(L$10="",0,OFFSET(A2.HistoricalBalances!$E52,0,L$11)) -> 0 | M54: 0 | O54: 6739.08 | P54: =IF(P$10="",0,OFFSET(A2.HistoricalBalances!$E52,0,P$11)) -> 6739.08 | Q54: =IF(Q$10="",0,OFFSET(A2.HistoricalBalances!$E52,0,Q$11)) -> 6739.08 | S54: 13050.06 | T54: =IF(T$10="",0,OFFSET(A2.HistoricalBalances!$E52,0,T$11)) -> 19789.14 | U54: =IF(U$10="",0,OFFSET(A2.HistoricalBalances!$E52,0,U$11)) -> 19789.14 | W54: 18287.86 | X54: =IF(X$10="",0,OFFSET(A2.HistoricalBalances!$E52,0,X$11)) -> 38077 | Y54: =IF(Y$10=ApprovedYr,A2.HistoricalBalances!$M52,X54) -> 38077 | AB54: 38077 | AC54: 38077 | AF54: 38077 | AG54: 140759.22 | AJ54: 0 | AK54: 1508
B55: =""&Y2.ChartOfAccts!C53 -> 1508-Other Reg Assets- Incremental Capital | C55: =""&Y2.ChartOfAccts!D53 -> 1200-Other Assets and Deferred Charges | D55: =Y2.ChartOfAccts!F53 -> 6 | E55: =IF(E$10="",0,OFFSET(A2.HistoricalBalances!$E53,0,E$11)) -> 0 | G55: 0 | H55: =IF(H$10="",0,OFFSET(A2.HistoricalBalances!$E53,0,H$11)) -> 0 | K55: 0 | L55: =IF(L$10="",0,OFFSET(A2.HistoricalBalances!$E53,0,L$11)) -> 0 | M55: 0 | O55: 10613.11 | P55: =IF(P$10="",0,OFFSET(A2.HistoricalBalances!$E53,0,P$11)) -> 10613.11 | Q55: =IF(Q$10="",0,OFFSET(A2.HistoricalBalances!$E53,0,Q$11)) -> 10613.11 | S55: 6467.08 | T55: =IF(T$10="",0,OFFSET(A2.HistoricalBalances!$E53,0,T$11)) -> 17080.19 | U55: =IF(U$10="",0,OFFSET(A2.HistoricalBalances!$E53,0,U$11)) -> 17080.19 | W55: 248.81 | X55: =IF(X$10="",0,OFFSET(A2.HistoricalBalances!$E53,0,X$11)) -> 17329 | Y55: =IF(Y$10=ApprovedYr,A2.HistoricalBalances!$M53,X55) -> 17329 | AB55: 17329 | AC55: 17329 | AF55: 17329 | AG55: 79680.3 | AJ55: 0 | AK55: 1508
B56: =""&Y2.ChartOfAccts!C54 -> 1518-RCVARetail | C56: =""&Y2.ChartOfAccts!D54 -> 1200-Other Assets and Deferred Charges | D56: =Y2.ChartOfAccts!F54 -> 6 | E56: =IF(E$10="",0,OFFSET(A2.HistoricalBalances!$E54,0,E$11)) -> 0 | G56: 0 | H56: =IF(H$10="",0,OFFSET(A2.HistoricalBalances!$E54,0,H$11)) -> 0 | K56: -49122 | L56: =IF(L$10="",0,OFFSET(A2.HistoricalBalances!$E54,0,L$11)) -> -49122 | M56: 0 | O56: -48937.44 | P56: =IF(P$10="",0,OFFSET(A2.HistoricalBalances!$E54,0,P$11)) -> -48937.44 | Q56: =IF(Q$10="",0,OFFSET(A2.HistoricalBalances!$E54,0,Q$11)) -> -48937.44 | S56: -18902.05 | T56: =IF(T$10="",0,OFFSET(A2.HistoricalBalances!$E54,0,T$11)) -> -67839.49 | U56: =IF(U$10="",0,OFFSET(A2.HistoricalBalances!$E54,0,U$11)) -> -67839.49 | W56: -14331.51 | X56: =IF(X$10="",0,OFFSET(A2.HistoricalBalances!$E54,0,X$11)) -> -82171 | Y56: =IF(Y$10=ApprovedYr,A2.HistoricalBalances!$M54,X56) -> -82171 | AB56: -82171 | AC56: -82171 | AF56: -82171 | AG56: 412411.93 | AJ56: 0 | AK56: 1518
B57: =""&Y2.ChartOfAccts!C55 -> 1521-Special Purpose Charge Assessment Variance Account | C57: =""&Y2.ChartOfAccts!D55 -> 1200-Other Assets and Deferred Charges | D57: =Y2.ChartOfAccts!F55 -> 6 | E57: =IF(E$10="",0,OFFSET(A2.HistoricalBalances!$E55,0,E$11)) -> 0 | G57: 0 | H57: =IF(H$10="",0,OFFSET(A2.HistoricalBalances!$E55,0,H$11)) -> 0 | K57: 0 | L57: =IF(L$10="",0,OFFSET(A2.HistoricalBalances!$E55,0,L$11)) -> 0 | M57: 0 | O57: 0 | P57: =IF(P$10="",0,OFFSET(A2.HistoricalBalances!$E55,0,P$11)) -> 0 | Q57: =IF(Q$10="",0,OFFSET(A2.HistoricalBalances!$E55,0,Q$11)) -> 0 | S57: 26842.27 | T57: =IF(T$10="",0,OFFSET(A2.HistoricalBalances!$E55,0,T$11)) -> 26842.27 | U57: =IF(U$10="",0,OFFSET(A2.HistoricalBalances!$E55,0,U$11)) -> 26842.27 | W57: -25195.27 | X57: =IF(X$10="",0,OFFSET(A2.HistoricalBalances!$E55,0,X$11)) -> 1647 | Y57: =IF(Y$10=ApprovedYr,A2.HistoricalBalances!$M55,X57) -> 1647 | AB57: 1647 | AC57: 1647 | AF57: 1647 | AG57: 31783.27 | AJ57: 0 | AK57: 1521
B58: =""&Y2.ChartOfAccts!C56 -> 1525-Miscellaneous Deferred Debits | C58: =""&Y2.ChartOfAccts!D56 -> 1200-Other Assets and Deferred Charges | D58: =Y2.ChartOfAccts!F56 -> 6 | E58: =IF(E$10="",0,OFFSET(A2.HistoricalBalances!$E56,0,E$11)) -> 0 | G58: 0 | H58: =IF(H$10="",0,OFFSET(A2.HistoricalBalances!$E56,0,H$11)) -> 0 | K58: 0 | L58: =IF(L$10="",0,OFFSET(A2.HistoricalBalances!$E56,0,L$11)) -> 0 | M58: 0 | O58: 0 | P58: =IF(P$10="",0,OFFSET(A2.HistoricalBalances!$E56,0,P$11)) -> 0 | Q58: =IF(Q$10="",0,OFFSET(A2.HistoricalBalances!$E56,0,Q$11)) -> 0 | S58: 0 | T58: =IF(T$10="",0,OFFSET(A2.HistoricalBalances!$E56,0,T$11)) -> 0 | U58: =IF(U$10="",0,OFFSET(A2.HistoricalBalances!$E56,0,U$11)) -> 0 | W58: 0 | X58: =IF(X$10="",0,OFFSET(A2.HistoricalBalances!$E56,0,X$11)) -> 0 | Y58: =IF(Y$10=ApprovedYr,A2.HistoricalBalances!$M56,X58) -> 0 | AB58: 0 | AC58: 0 | AF58: 0 | AG58: 0 | AJ58: 0 | AK58: 1525
B59: =""&Y2.ChartOfAccts!C57 -> 1530-Deferred Losses from Disposition of Utility Plant | C59: =""&Y2.ChartOfAccts!D57 -> 1200-Other Assets and Deferred Charges | D59: =Y2.ChartOfAccts!F57 -> 6 | E59: =IF(E$10="",0,OFFSET(A2.HistoricalBalances!$E57,0,E$11)) -> 0 | G59: 0 | H59: =IF(H$10="",0,OFFSET(A2.HistoricalBalances!$E57,0,H$11)) -> 0 | K59: 0 | L59: =IF(L$10="",0,OFFSET(A2.HistoricalBalances!$E57,0,L$11)) -> 0 | M59: 0 | O59: 0 | P59: =IF(P$10="",0,OFFSET(A2.HistoricalBalances!$E57,0,P$11)) -> 0 | Q59: =IF(Q$10="",0,OFFSET(A2.HistoricalBalances!$E57,0,Q$11)) -> 0 | S59: 0 | T59: =IF(T$10="",0,OFFSET(A2.HistoricalBalances!$E57,0,T$11)) -> 0 | U59: =IF(U$10="",0,OFFSET(A2.HistoricalBalances!$E57,0,U$11)) -> 0 | W59: 0 | X59: =IF(X$10="",0,OFFSET(A2.HistoricalBalances!$E57,0,X$11)) -> 0 | Y59: =IF(Y$10=ApprovedYr,A2.HistoricalBalances!$M57,X59) -> 0 | AB59: 0 | AC59: 0 | AF59: 0 | AG59: 0 | AJ59: 0 | AK59: 1530
B60: =""&Y2.ChartOfAccts!C58 -> 1531-Renewable Connection Capital Deferral | C60: =""&Y2.ChartOfAccts!D58 -> 1200-Other Assets and Deferred Charges | D60: =Y2.ChartOfAccts!F58 -> 6 | E60: =IF(E$10="",0,OFFSET(A2.HistoricalBalances!$E58,0,E$11)) -> 0 | G60: 0 | H60: =IF(H$10="",0,OFFSET(A2.HistoricalBalances!$E58,0,H$11)) -> 0 | K60: 0 | L60: =IF(L$10="",0,OFFSET(A2.HistoricalBalances!$E58,0,L$11)) -> 0 | M60: 0 | O60: 803.42 | P60: =IF(P$10="",0,OFFSET(A2.HistoricalBalances!$E58,0,P$11)) -> 803.42 | Q60: =IF(Q$10="",0,OFFSET(A2.HistoricalBalances!$E58,0,Q$11)) -> 803.42 | S60: 7391.28 | T60: =IF(T$10="",0,OFFSET(A2.HistoricalBalances!$E58,0,T$11)) -> 8194.7 | U60: =IF(U$10="",0,OFFSET(A2.HistoricalBalances!$E58,0,U$11)) -> 8194.7 | W60: 120.3 | X60: =IF(X$10="",0,OFFSET(A2.HistoricalBalances!$E58,0,X$11)) -> 8315 | Y60: =IF(Y$10=ApprovedYr,A2.HistoricalBalances!$M58,X60) -> 8315 | AB60: 8315 | AC60: 8315 | AF60: 8315 | AG60: 33943.12 | AJ60: 0 | AK60: 1531
B61: =""&Y2.ChartOfAccts!C59 -> 1532-Renewable Connection OM&A Deferral | C61: =""&Y2.ChartOfAccts!D59 -> 1200-Other Assets and Deferred Charges | D61: =Y2.ChartOfAccts!F59 -> 6 | E61: =IF(E$10="",0,OFFSET(A2.HistoricalBalances!$E59,0,E$11)) -> 0 | G61: 0 | H61: =IF(H$10="",0,OFFSET(A2.HistoricalBalances!$E59,0,H$11)) -> 0 | K61: 0 | L61: =IF(L$10="",0,OFFSET(A2.HistoricalBalances!$E59,0,L$11)) -> 0 | M61: 0 | O61: 228.14 | P61: =IF(P$10="",0,OFFSET(A2.HistoricalBalances!$E59,0,P$11)) -> 228.14 | Q61: =IF(Q$10="",0,OFFSET(A2.HistoricalBalances!$E59,0,Q$11)) -> 228.14 | S61: 428.7 | T61: =IF(T$10="",0,OFFSET(A2.HistoricalBalances!$E59,0,T$11)) -> 656.84 | U61: =IF(U$10="",0,OFFSET(A2.HistoricalBalances!$E59,0,U$11)) -> 656.84 | W61: 9.16 | X61: =IF(X$10="",0,OFFSET(A2.HistoricalBalances!$E59,0,X$11)) -> 666 | Y61: =IF(Y$10=ApprovedYr,A2.HistoricalBalances!$M59,X61) -> 666 | AB61: 666 | AC61: 666 | AF61: 666 | AG61: 2882.98 | AJ61: 0 | AK61: 1532
B62: =""&Y2.ChartOfAccts!C60 -> 1534-Smart Grid Capital Deferral | C62: =""&Y2.ChartOfAccts!D60 -> 1200-Other Assets and Deferred Charges | D62: =Y2.ChartOfAccts!F60 -> 6 | E62: =IF(E$10="",0,OFFSET(A2.HistoricalBalances!$E60,0,E$11)) -> 0 | G62: 0 | H62: =IF(H$10="",0,OFFSET(A2.HistoricalBalances!$E60,0,H$11)) -> 0 | K62: 0 | L62: =IF(L$10="",0,OFFSET(A2.HistoricalBalances!$E60,0,L$11)) -> 0 | M62: 0 | O62: 0 | P62: =IF(P$10="",0,OFFSET(A2.HistoricalBalances!$E60,0,P$11)) -> 0 | Q62: =IF(Q$10="",0,OFFSET(A2.HistoricalBalances!$E60,0,Q$11)) -> 0 | S62: 0 | T62: =IF(T$10="",0,OFFSET(A2.HistoricalBalances!$E60,0,T$11)) -> 0 | U62: =IF(U$10="",0,OFFSET(A2.HistoricalBalances!$E60,0,U$11)) -> 0 | W62: 0 | X62: =IF(X$10="",0,OFFSET(A2.HistoricalBalances!$E60,0,X$11)) -> 0 | Y62: =IF(Y$10=ApprovedYr,A2.HistoricalBalances!$M60,X62) -> 0 | AB62: 0 | AC62: 0 | AF62: 0 | AG62: 0 | AJ62: 0 | AK62: 1534
B63: =""&Y2.ChartOfAccts!C61 -> 1535-Smart Grid OM&A Deferral | C63: =""&Y2.ChartOfAccts!D61 -> 1200-Other Assets and Deferred Charges | D63: =Y2.ChartOfAccts!F61 -> 6 | E63: =IF(E$10="",0,OFFSET(A2.HistoricalBalances!$E61,0,E$11)) -> 0 | G63: 0 | H63: =IF(H$10="",0,OFFSET(A2.HistoricalBalances!$E61,0,H$11)) -> 0 | K63: 0 | L63: =IF(L$10="",0,OFFSET(A2.HistoricalBalances!$E61,0,L$11)) -> 0 | M63: 0 | O63: 0 | P63: =IF(P$10="",0,OFFSET(A2.HistoricalBalances!$E61,0,P$11)) -> 0 | Q63: =IF(Q$10="",0,OFFSET(A2.HistoricalBalances!$E61,0,Q$11)) -> 0 | S63: 0 | T63: =IF(T$10="",0,OFFSET(A2.HistoricalBalances!$E61,0,T$11)) -> 0 | U63: =IF(U$10="",0,OFFSET(A2.HistoricalBalances!$E61,0,U$11)) -> 0 | W63: 0 | X63: =IF(X$10="",0,OFFSET(A2.HistoricalBalances!$E61,0,X$11)) -> 0 | Y63: =IF(Y$10=ApprovedYr,A2.HistoricalBalances!$M61,X63) -> 0 | AB63: 0 | AC63: 0 | AF63: 0 | AG63: 0 | AJ63: 0 | AK63: 1535
B64: =""&Y2.ChartOfAccts!C62 -> 1540-Unamortized Loss on Reacquired Debt | C64: =""&Y2.ChartOfAccts!D62 -> 1200-Other Assets and Deferred Charges | D64: =Y2.ChartOfAccts!F62 -> 6 | E64: =IF(E$10="",0,OFFSET(A2.HistoricalBalances!$E62,0,E$11)) -> 0 | G64: 0 | H64: =IF(H$10="",0,OFFSET(A2.HistoricalBalances!$E62,0,H$11)) -> 0 | K64: 0 | L64: =IF(L$10="",0,OFFSET(A2.HistoricalBalances!$E62,0,L$11)) -> 0 | M64: 0 | O64: 0 | P64: =IF(P$10="",0,OFFSET(A2.HistoricalBalances!$E62,0,P$11)) -> 0 | Q64: =IF(Q$10="",0,OFFSET(A2.HistoricalBalances!$E62,0,Q$11)) -> 0 | S64: 0 | T64: =IF(T$10="",0,OFFSET(A2.HistoricalBalances!$E62,0,T$11)) -> 0 | U64: =IF(U$10="",0,OFFSET(A2.HistoricalBalances!$E62,0,U$11)) -> 0 | W64: 0 | X64: =IF(X$10="",0,OFFSET(A2.HistoricalBalances!$E62,0,X$11)) -> 0 | Y64: =IF(Y$10=ApprovedYr,A2.HistoricalBalances!$M62,X64) -> 0 | AB64: 0 | AC64: 0 | AF64: 0 | AG64: 0 | AJ64: 0 | AK64: 1540
B65: =""&Y2.ChartOfAccts!C63 -> 1545-Development Charge Deposits/ Receivables | C65: =""&Y2.ChartOfAccts!D63 -> 1200-Other Assets and Deferred Charges | D65: =Y2.ChartOfAccts!F63 -> 6 | E65: =IF(E$10="",0,OFFSET(A2.HistoricalBalances!$E63,0,E$11)) -> 0 | G65: 0 | H65: =IF(H$10="",0,OFFSET(A2.HistoricalBalances!$E63,0,H$11)) -> 0 | K65: 0 | L65: =IF(L$10="",0,OFFSET(A2.HistoricalBalances!$E63,0,L$11)) -> 0 | M65: 0 | O65: 0 | P65: =IF(P$10="",0,OFFSET(A2.HistoricalBalances!$E63,0,P$11)) -> 0 | Q65: =IF(Q$10="",0,OFFSET(A2.HistoricalBalances!$E63,0,Q$11)) -> 0 | S65: 0 | T65: =IF(T$10="",0,OFFSET(A2.HistoricalBalances!$E63,0,T$11)) -> 0 | U65: =IF(U$10="",0,OFFSET(A2.HistoricalBalances!$E63,0,U$11)) -> 0 | W65: 0 | X65: =IF(X$10="",0,OFFSET(A2.HistoricalBalances!$E63,0,X$11)) -> 0 | Y65: =IF(Y$10=ApprovedYr,A2.HistoricalBalances!$M63,X65) -> 0 | AB65: 0 | AC65: 0 | AF65: 0 | AG65: 0 | AJ65: 0 | AK65: 1545
B66: =""&Y2.ChartOfAccts!C64 -> 1548-RCVASTR | C66: =""&Y2.ChartOfAccts!D64 -> 1200-Other Assets and Deferred Charges | D66: =Y2.ChartOfAccts!F64 -> 6 | E66: =IF(E$10="",0,OFFSET(A2.HistoricalBalances!$E64,0,E$11)) -> 0 | G66: 0 | H66: =IF(H$10="",0,OFFSET(A2.HistoricalBalances!$E64,0,H$11)) -> 0 | K66: 85300 | L66: =IF(L$10="",0,OFFSET(A2.HistoricalBalances!$E64,0,L$11)) -> 85300 | M66: 0 | O66: 55224.11 | P66: =IF(P$10="",0,OFFSET(A2.HistoricalBalances!$E64,0,P$11)) -> 55224.11 | Q66: =IF(Q$10="",0,OFFSET(A2.HistoricalBalances!$E64,0,Q$11)) -> 55224.11 | S66: 35817.92 | T66: =IF(T$10="",0,OFFSET(A2.HistoricalBalances!$E64,0,T$11)) -> 91042.03 | U66: =IF(U$10="",0,OFFSET(A2.HistoricalBalances!$E64,0,U$11)) -> 91042.03 | W66: 36450.97 | X66: =IF(X$10="",0,OFFSET(A2.HistoricalBalances!$E64,0,X$11)) -> 127493 | Y66: =IF(Y$10=ApprovedYr,A2.HistoricalBalances!$M64,X66) -> 127493 | AB66: 127493 | AC66: 127493 | AF66: 127493 | AG66: 614045.14 | AJ66: 0 | AK66: 1548
B67: =""&Y2.ChartOfAccts!C65 -> 1550-LV Variance Account | C67: =""&Y2.ChartOfAccts!D65 -> 1200-Other Assets and Deferred Charges | D67: =Y2.ChartOfAccts!F65 -> 6 | E67: =IF(E$10="",0,OFFSET(A2.HistoricalBalances!$E65,0,E$11)) -> 0 | G67: 0 | H67: =IF(H$10="",0,OFFSET(A2.HistoricalBalances!$E65,0,H$11)) -> 0 | K67: 845941 | L67: =IF(L$10="",0,OFFSET(A2.HistoricalBalances!$E65,0,L$11)) -> 845941 | M67: 0 | O67: 499333.08 | P67: =IF(P$10="",0,OFFSET(A2.HistoricalBalances!$E65,0,P$11)) -> 499333.08 | Q67: =IF(Q$10="",0,OFFSET(A2.HistoricalBalances!$E65,0,Q$11)) -> 499333.08 | S67: -21851.22 | T67: =IF(T$10="",0,OFFSET(A2.HistoricalBalances!$E65,0,T$11)) -> 477481.86 | U67: =IF(U$10="",0,OFFSET(A2.HistoricalBalances!$E65,0,U$11)) -> 477481.86 | W67: -281756.86 | X67: =IF(X$10="",0,OFFSET(A2.HistoricalBalances!$E65,0,X$11)) -> 195725 | Y67: =IF(Y$10=ApprovedYr,A2.HistoricalBalances!$M65,X67) -> 195725 | AB67: 195725 | AC67: 195725 | AF67: 195725 | AG67: 2409930.94 | AJ67: 0 | AK67: 1550
B68: =""&Y2.ChartOfAccts!C66 -> 1555-Smart Meters Capital Variance Account | C68: =""&Y2.ChartOfAccts!D66 -> 1200-Other Assets and Deferred Charges | D68: =Y2.ChartOfAccts!F66 -> 6 | E68: =IF(E$10="",0,OFFSET(A2.HistoricalBalances!$E66,0,E$11)) -> 0 | G68: 0 | H68: =IF(H$10="",0,OFFSET(A2.HistoricalBalances!$E66,0,H$11)) -> 0 | K68: -132914 | L68: =IF(L$10="",0,OFFSET(A2.HistoricalBalances!$E66,0,L$11)) -> -132914 | M68: 0 | O68: 2079454.36 | P68: =IF(P$10="",0,OFFSET(A2.HistoricalBalances!$E66,0,P$11)) -> 2079454.36 | Q68: =IF(Q$10="",0,OFFSET(A2.HistoricalBalances!$E66,0,Q$11)) -> 2079454.36 | S68: 325222.72 | T68: =IF(T$10="",0,OFFSET(A2.HistoricalBalances!$E66,0,T$11)) -> 2404677.08 | U68: =IF(U$10="",0,OFFSET(A2.HistoricalBalances!$E66,0,U$11)) -> 2404677.08 | W68: 559394.92 | X68: =IF(X$10="",0,OFFSET(A2.HistoricalBalances!$E66,0,X$11)) -> 2964072 | Y68: =IF(Y$10=ApprovedYr,A2.HistoricalBalances!$M66,X68) -> 2964072 | AB68: 2964072 | AC68: 2964072 | AF68: 2964072 | AG68: 13509261.44 | AJ68: 0 | AK68: 1555
B69: =""&Y2.ChartOfAccts!C67 -> 1556-Smart Meters OM&A Variance Account | C69: =""&Y2.ChartOfAccts!D67 -> 1200-Other Assets and Deferred Charges | D69: =Y2.ChartOfAccts!F67 -> 6 | E69: =IF(E$10="",0,OFFSET(A2.HistoricalBalances!$E67,0,E$11)) -> 0 | G69: 0 | H69: =IF(H$10="",0,OFFSET(A2.HistoricalBalances!$E67,0,H$11)) -> 0 | K69: 0 | L69: =IF(L$10="",0,OFFSET(A2.HistoricalBalances!$E67,0,L$11)) -> 0 | M69: 0 | O69: 133943.07 | P69: =IF(P$10="",0,OFFSET(A2.HistoricalBalances!$E67,0,P$11)) -> 133943.07 | Q69: =IF(Q$10="",0,OFFSET(A2.HistoricalBalances!$E67,0,Q$11)) -> 133943.07 | S69: 318743.35 | T69: =IF(T$10="",0,OFFSET(A2.HistoricalBalances!$E67,0,T$11)) -> 452686.42 | U69: =IF(U$10="",0,OFFSET(A2.HistoricalBalances!$E67,0,U$11)) -> 452686.42 | W69: 301755.58 | X69: =IF(X$10="",0,OFFSET(A2.HistoricalBalances!$E67,0,X$11)) -> 754442 | Y69: =IF(Y$10=ApprovedYr,A2.HistoricalBalances!$M67,X69) -> 754442 | AB69: 754442 | AC69: 754442 | AF69: 754442 | AG69: 2849955.49 | AJ69: 0 | AK69: 1556
B70: =""&Y2.ChartOfAccts!C68 -> 1560-Deferred Development Costs | C70: =""&Y2.ChartOfAccts!D68 -> 1200-Other Assets and Deferred Charges | D70: =Y2.ChartOfAccts!F68 -> 6 | E70: =IF(E$10="",0,OFFSET(A2.HistoricalBalances!$E68,0,E$11)) -> 0 | G70: 0 | H70: =IF(H$10="",0,OFFSET(A2.HistoricalBalances!$E68,0,H$11)) -> 0 | K70: 0 | L70: =IF(L$10="",0,OFFSET(A2.HistoricalBalances!$E68,0,L$11)) -> 0 | M70: 0 | O70: 0 | P70: =IF(P$10="",0,OFFSET(A2.HistoricalBalances!$E68,0,P$11)) -> 0 | Q70: =IF(Q$10="",0,OFFSET(A2.HistoricalBalances!$E68,0,Q$11)) -> 0 | S70: 0 | T70: =IF(T$10="",0,OFFSET(A2.HistoricalBalances!$E68,0,T$11)) -> 0 | U70: =IF(U$10="",0,OFFSET(A2.HistoricalBalances!$E68,0,U$11)) -> 0 | W70: 0 | X70: =IF(X$10="",0,OFFSET(A2.HistoricalBalances!$E68,0,X$11)) -> 0 | Y70: =IF(Y$10=ApprovedYr,A2.HistoricalBalances!$M68,X70) -> 0 | AB70: 0 | AC70: 0 | AF70: 0 | AG70: 0 | AJ70: 0 | AK70: 1560
B71: =""&Y2.ChartOfAccts!C69 -> 1562-Deferred Payments in Lieu of Taxes | C71: =""&Y2.ChartOfAccts!D69 -> 1200-Other Assets and Deferred Charges | D71: =Y2.ChartOfAccts!F69 -> 6 | E71: =IF(E$10="",0,OFFSET(A2.HistoricalBalances!$E69,0,E$11)) -> 0 | G71: 0 | H71: =IF(H$10="",0,OFFSET(A2.HistoricalBalances!$E69,0,H$11)) -> 0 | K71: 184666 | L71: =IF(L$10="",0,OFFSET(A2.HistoricalBalances!$E69,0,L$11)) -> 184666 | M71: 0 | O71: 185651.53 | P71: =IF(P$10="",0,OFFSET(A2.HistoricalBalances!$E69,0,P$11)) -> 185651.53 | Q71: =IF(Q$10="",0,OFFSET(A2.HistoricalBalances!$E69,0,Q$11)) -> 185651.53 | S71: 694.79 | T71: =IF(T$10="",0,OFFSET(A2.HistoricalBalances!$E69,0,T$11)) -> 186346.32 | U71: =IF(U$10="",0,OFFSET(A2.HistoricalBalances!$E69,0,U$11)) -> 186346.32 | W71: 1277.68 | X71: =IF(X$10="",0,OFFSET(A2.HistoricalBalances!$E69,0,X$11)) -> 187624 | Y71: =IF(Y$10=ApprovedYr,A2.HistoricalBalances!$M69,X71) -> 187624 | AB71: 187624 | AC71: 187624 | AF71: 187624 | AG71: 1119535.85 | AJ71: 0 | AK71: 1562
B72: =""&Y2.ChartOfAccts!C70 -> 1563-Account 1563 - Deferred PILs Contra Account | C72: =""&Y2.ChartOfAccts!D70 -> 1200-Other Assets and Deferred Charges | D72: =Y2.ChartOfAccts!F70 -> 6 | E72: =IF(E$10="",0,OFFSET(A2.HistoricalBalances!$E70,0,E$11)) -> 0 | G72: 0 | H72: =IF(H$10="",0,OFFSET(A2.HistoricalBalances!$E70,0,H$11)) -> 0 | K72: -128855 | L72: =IF(L$10="",0,OFFSET(A2.HistoricalBalances!$E70,0,L$11)) -> -128855 | M72: 0 | O72: -129840.85 | P72: =IF(P$10="",0,OFFSET(A2.HistoricalBalances!$E70,0,P$11)) -> -129840.85 | Q72: =IF(Q$10="",0,OFFSET(A2.HistoricalBalances!$E70,0,Q$11)) -> -129840.85 | S72: -694.79 | T72: =IF(T$10="",0,OFFSET(A2.HistoricalBalances!$E70,0,T$11)) -> -130535.64 | U72: =IF(U$10="",0,OFFSET(A2.HistoricalBalances!$E70,0,U$11)) -> -130535.64 | W72: -1277.36 | X72: =IF(X$10="",0,OFFSET(A2.HistoricalBalances!$E70,0,X$11)) -> -131813 | Y72: =IF(Y$10=ApprovedYr,A2.HistoricalBalances!$M70,X72) -> -131813 | AB72: -131813 | AC72: -131813 | AF72: -131813 | AG72: 784670.49 | AJ72: 0 | AK72: 1563
B73: =""&Y2.ChartOfAccts!C71 -> 1565-Conservation and Demand Management Expenditures and Recoveries | C73: =""&Y2.ChartOfAccts!D71 -> 1200-Other Assets and Deferred Charges | D73: =Y2.ChartOfAccts!F71 -> 6 | E73: =IF(E$10="",0,OFFSET(A2.HistoricalBalances!$E71,0,E$11)) -> 0 | G73: 0 | H73: =IF(H$10="",0,OFFSET(A2.HistoricalBalances!$E71,0,H$11)) -> 0 | K73: -52580 | L73: =IF(L$10="",0,OFFSET(A2.HistoricalBalances!$E71,0,L$11)) -> -52580 | M73: 0 | O73: -17231.03 | P73: =IF(P$10="",0,OFFSET(A2.HistoricalBalances!$E71,0,P$11)) -> -17231.03 | Q73: =IF(Q$10="",0,OFFSET(A2.HistoricalBalances!$E71,0,Q$11)) -> -17231.03 | S73: 0 | T73: =IF(T$10="",0,OFFSET(A2.HistoricalBalances!$E71,0,T$11)) -> -17231.03 | U73: =IF(U$10="",0,OFFSET(A2.HistoricalBalances!$E71,0,U$11)) -> -17231.03 | W73: 0.03 | X73: =IF(X$10="",0,OFFSET(A2.HistoricalBalances!$E71,0,X$11)) -> -17231 | Y73: =IF(Y$10=ApprovedYr,A2.HistoricalBalances!$M71,X73) -> -17231 | AB73: -17231 | AC73: -17231 | AF73: -17231 | AG73: 138735.06 | AJ73: 0 | AK73: 1565
B74: =""&Y2.ChartOfAccts!C72 -> 1566-CDM Contra Account | C74: =""&Y2.ChartOfAccts!D72 -> 1200-Other Assets and Deferred Charges | D74: =Y2.ChartOfAccts!F72 -> 6 | E74: =IF(E$10="",0,OFFSET(A2.HistoricalBalances!$E72,0,E$11)) -> 0 | G74: 0 | H74: =IF(H$10="",0,OFFSET(A2.HistoricalBalances!$E72,0,H$11)) -> 0 | K74: 52580 | L74: =IF(L$10="",0,OFFSET(A2.HistoricalBalances!$E72,0,L$11)) -> 52580 | M74: 0 | O74: 17231.03 | P74: =IF(P$10="",0,OFFSET(A2.HistoricalBalances!$E72,0,P$11)) -> 17231.03 | Q74: =IF(Q$10="",0,OFFSET(A2.HistoricalBalances!$E72,0,Q$11)) -> 17231.03 | S74: 0 | T74: =IF(T$10="",0,OFFSET(A2.HistoricalBalances!$E72,0,T$11)) -> 17231.03 | U74: =IF(U$10="",0,OFFSET(A2.HistoricalBalances!$E72,0,U$11)) -> 17231.03 | W74: -0.03 | X74: =IF(X$10="",0,OFFSET(A2.HistoricalBalances!$E72,0,X$11)) -> 17231 | Y74: =IF(Y$10=ApprovedYr,A2.HistoricalBalances!$M72,X74) -> 17231 | AB74: 17231 | AC74: 17231 | AF74: 17231 | AG74: 138735.06 | AJ74: 0 | AK74: 1566
B75: =""&Y2.ChartOfAccts!C73 -> 1570-Qualifying Transition Costs | C75: =""&Y2.ChartOfAccts!D73 -> 1200-Other Assets and Deferred Charges | D75: =Y2.ChartOfAccts!F73 -> 6 | E75: =IF(E$10="",0,OFFSET(A2.HistoricalBalances!$E73,0,E$11)) -> 0 | G75: 0 | H75: =IF(H$10="",0,OFFSET(A2.HistoricalBalances!$E73,0,H$11)) -> 0 | K75: 0 | L75: =IF(L$10="",0,OFFSET(A2.HistoricalBalances!$E73,0,L$11)) -> 0 | M75: 0 | O75: 0 | P75: =IF(P$10="",0,OFFSET(A2.HistoricalBalances!$E73,0,P$11)) -> 0 | Q75: =IF(Q$10="",0,OFFSET(A2.HistoricalBalances!$E73,0,Q$11)) -> 0 | S75: 0 | T75: =IF(T$10="",0,OFFSET(A2.HistoricalBalances!$E73,0,T$11)) -> 0 | U75: =IF(U$10="",0,OFFSET(A2.HistoricalBalances!$E73,0,U$11)) -> 0 | W75: 0 | X75: =IF(X$10="",0,OFFSET(A2.HistoricalBalances!$E73,0,X$11)) -> 0 | Y75: =IF(Y$10=ApprovedYr,A2.HistoricalBalances!$M73,X75) -> 0 | AB75: 0 | AC75: 0 | AF75: 0 | AG75: 0 | AJ75: 0 | AK75: 1570
B76: =""&Y2.ChartOfAccts!C74 -> 1571-Pre-market Opening Energy Variance | C76: =""&Y2.ChartOfAccts!D74 -> 1200-Other Assets and Deferred Charges | D76: =Y2.ChartOfAccts!F74 -> 6 | E76: =IF(E$10="",0,OFFSET(A2.HistoricalBalances!$E74,0,E$11)) -> 0 | G76: 0 | H76: =IF(H$10="",0,OFFSET(A2.HistoricalBalances!$E74,0,H$11)) -> 0 | K76: 0 | L76: =IF(L$10="",0,OFFSET(A2.HistoricalBalances!$E74,0,L$11)) -> 0 | M76: 0 | O76: 0 | P76: =IF(P$10="",0,OFFSET(A2.HistoricalBalances!$E74,0,P$11)) -> 0 | Q76: =IF(Q$10="",0,OFFSET(A2.HistoricalBalances!$E74,0,Q$11)) -> 0 | S76: 0 | T76: =IF(T$10="",0,OFFSET(A2.HistoricalBalances!$E74,0,T$11)) -> 0 | U76: =IF(U$10="",0,OFFSET(A2.HistoricalBalances!$E74,0,U$11)) -> 0 | W76: 0 | X76: =IF(X$10="",0,OFFSET(A2.HistoricalBalances!$E74,0,X$11)) -> 0 | Y76: =IF(Y$10=ApprovedYr,A2.HistoricalBalances!$M74,X76) -> 0 | AB76: 0 | AC76: =AB76 -> 0 | AF76: 0 | AG76: 0 | AJ76: 0 | AK76: =VALUE(LEFT(B76,4)) -> 1571
B77: =""&Y2.ChartOfAccts!C75 -> 1572-Extraordinary Event Costs | C77: =""&Y2.ChartOfAccts!D75 -> 1200-Other Assets and Deferred Charges | D77: =Y2.ChartOfAccts!F75 -> 6 | E77: =IF(E$10="",0,OFFSET(A2.HistoricalBalances!$E75,0,E$11)) -> 0 | G77: =H77-E77-F77 -> 0 | H77: =IF(H$10="",0,OFFSET(A2.HistoricalBalances!$E75,0,H$11)) -> 0 | K77: =L77-I77-J77 -> 0 | L77: =IF(L$10="",0,OFFSET(A2.HistoricalBalances!$E75,0,L$11)) -> 0 | M77: =I77 -> 0 | O77: =P77-M77-N77 -> 0 | P77: =IF(P$10="",0,OFFSET(A2.HistoricalBalances!$E75,0,P$11)) -> 0 | Q77: =IF(Q$10="",0,OFFSET(A2.HistoricalBalances!$E75,0,Q$11)) -> 0 | S77: =T77-Q77-R77 -> 0 | T77: =IF(T$10="",0,OFFSET(A2.HistoricalBalances!$E75,0,T$11)) -> 0 | U77: =IF(U$10="",0,OFFSET(A2.HistoricalBalances!$E75,0,U$11)) -> 0 | W77: =X77-U77-V77 -> 0 | X77: =IF(X$10="",0,OFFSET(A2.HistoricalBalances!$E75,0,X$11)) -> 0 | Y77: =IF(Y$10=ApprovedYr,A2.HistoricalBalances!$M75,X77) -> 0 | AB77: =SUM(Y77:AA77) -> 0 | AC77: 0 | AF77: =SUM(AC77:AE77) -> 0 | AG77: =ABS(E77)+ABS(H77)+ABS(L77)+ABS(P77)+ABS(T77)+ABS(X77)+ABS(AB77)+ABS(AF77) -> 0 | AJ77: 0 | AK77: 1572
B78: =""&Y2.ChartOfAccts!C76 -> 1574-Deferred Rate Impact Amounts | C78: =""&Y2.ChartOfAccts!D76 -> 1200-Other Assets and Deferred Charges | D78: =Y2.ChartOfAccts!F76 -> 6 | E78: =IF(E$10="",0,OFFSET(A2.HistoricalBalances!$E76,0,E$11)) -> 0 | G78: 0 | H78: =IF(H$10="",0,OFFSET(A2.HistoricalBalances!$E76,0,H$11)) -> 0 | K78: 0 | L78: =IF(L$10="",0,OFFSET(A2.HistoricalBalances!$E76,0,L$11)) -> 0 | M78: 0 | O78: 0 | P78: =IF(P$10="",0,OFFSET(A2.HistoricalBalances!$E76,0,P$11)) -> 0 | Q78: =IF(Q$10="",0,OFFSET(A2.HistoricalBalances!$E76,0,Q$11)) -> 0 | S78: 0 | T78: =IF(T$10="",0,OFFSET(A2.HistoricalBalances!$E76,0,T$11)) -> 0 | U78: =IF(U$10="",0,OFFSET(A2.HistoricalBalances!$E76,0,U$11)) -> 0 | W78: 0 | X78: =IF(X$10="",0,OFFSET(A2.HistoricalBalances!$E76,0,X$11)) -> 0 | Y78: =IF(Y$10=ApprovedYr,A2.HistoricalBalances!$M76,X78) -> 0 | AB78: 0 | AC78: 0 | AF78: 0 | AG78: 0 | AJ78: 0 | AK78: 1574
B79: =""&Y2.ChartOfAccts!C77 -> 1580-RSVAWMS | C79: =""&Y2.ChartOfAccts!D77 -> 1200-Other Assets and Deferred Charges | D79: =Y2.ChartOfAccts!F77 -> 6 | E79: =IF(E$10="",0,OFFSET(A2.HistoricalBalances!$E77,0,E$11)) -> 0 | G79: 0 | H79: =IF(H$10="",0,OFFSET(A2.HistoricalBalances!$E77,0,H$11)) -> 0 | K79: -623092 | L79: =IF(L$10="",0,OFFSET(A2.HistoricalBalances!$E77,0,L$11)) -> -623092 | M79: 0 | O79: -421531.18 | P79: =IF(P$10="",0,OFFSET(A2.HistoricalBalances!$E77,0,P$11)) -> -421531.18 | Q79: =IF(Q$10="",0,OFFSET(A2.HistoricalBalances!$E77,0,Q$11)) -> -421531.18 | S79: -488255.34 | T79: =IF(T$10="",0,OFFSET(A2.HistoricalBalances!$E77,0,T$11)) -> -909786.52 | U79: =IF(U$10="",0,OFFSET(A2.HistoricalBalances!$E77,0,U$11)) -> -909786.52 | W79: 43192.52 | X79: =IF(X$10="",0,OFFSET(A2.HistoricalBalances!$E77,0,X$11)) -> -866594 | Y79: =IF(Y$10=ApprovedYr,A2.HistoricalBalances!$M77,X79) -> -866594 | AB79: -866594 | AC79: -866594 | AF79: -866594 | AG79: 4554191.7 | AJ79: 0 | AK79: 1580
B80: =""&Y2.ChartOfAccts!C78 -> 1582-RSVAONE-TIME | C80: =""&Y2.ChartOfAccts!D78 -> 1200-Other Assets and Deferred Charges | D80: =Y2.ChartOfAccts!F78 -> 6 | E80: =IF(E$10="",0,OFFSET(A2.HistoricalBalances!$E78,0,E$11)) -> 0 | G80: 0 | H80: =IF(H$10="",0,OFFSET(A2.HistoricalBalances!$E78,0,H$11)) -> 0 | K80: 35229 | L80: =IF(L$10="",0,OFFSET(A2.HistoricalBalances!$E78,0,L$11)) -> 35229 | M80: 0 | O80: -8801.82 | P80: =IF(P$10="",0,OFFSET(A2.HistoricalBalances!$E78,0,P$11)) -> -8801.82 | Q80: =IF(Q$10="",0,OFFSET(A2.HistoricalBalances!$E78,0,Q$11)) -> -8801.82 | S80: 9.02 | T80: =IF(T$10="",0,OFFSET(A2.HistoricalBalances!$E78,0,T$11)) -> -8792.8 | U80: =IF(U$10="",0,OFFSET(A2.HistoricalBalances!$E78,0,U$11)) -> -8792.8 | W80: 16.8 | X80: =IF(X$10="",0,OFFSET(A2.HistoricalBalances!$E78,0,X$11)) -> -8776 | Y80: =IF(Y$10=ApprovedYr,A2.HistoricalBalances!$M78,X80) -> -8776 | AB80: -8776 | AC80: -8776 | AF80: -8776 | AG80: 79151.62 | AJ80: 0 | AK80: 1582
B81: =""&Y2.ChartOfAccts!C79 -> 1584-RSVANW | C81: =""&Y2.ChartOfAccts!D79 -> 1200-Other Assets and Deferred Charges | D81: =Y2.ChartOfAccts!F79 -> 6 | E81: =IF(E$10="",0,OFFSET(A2.HistoricalBalances!$E79,0,E$11)) -> 0 | G81: 0 | H81: =IF(H$10="",0,OFFSET(A2.HistoricalBalances!$E79,0,H$11)) -> 0 | K81: -387859 | L81: =IF(L$10="",0,OFFSET(A2.HistoricalBalances!$E79,0,L$11)) -> -387859 | M81: 0 | O81: 26671.44 | P81: =IF(P$10="",0,OFFSET(A2.HistoricalBalances!$E79,0,P$11)) -> 26671.44 | Q81: =IF(Q$10="",0,OFFSET(A2.HistoricalBalances!$E79,0,Q$11)) -> 26671.44 | S81: -100316.43 | T81: =IF(T$10="",0,OFFSET(A2.HistoricalBalances!$E79,0,T$11)) -> -73644.99 | U81: =IF(U$10="",0,OFFSET(A2.HistoricalBalances!$E79,0,U$11)) -> -73644.99 | W81: 443.99 | X81: =IF(X$10="",0,OFFSET(A2.HistoricalBalances!$E79,0,X$11)) -> -73201 | Y81: =IF(Y$10=ApprovedYr,A2.HistoricalBalances!$M79,X81) -> -73201 | AB81: -73201 | AC81: -73201 | AF81: -73201 | AG81: 707778.43 | AJ81: 0 | AK81: 1584
B82: =""&Y2.ChartOfAccts!C80 -> 1586-RSVACN | C82: =""&Y2.ChartOfAccts!D80 -> 1200-Other Assets and Deferred Charges | D82: =Y2.ChartOfAccts!F80 -> 6 | E82: =IF(E$10="",0,OFFSET(A2.HistoricalBalances!$E80,0,E$11)) -> 0 | G82: 0 | H82: =IF(H$10="",0,OFFSET(A2.HistoricalBalances!$E80,0,H$11)) -> 0 | K82: -1974024 | L82: =IF(L$10="",0,OFFSET(A2.HistoricalBalances!$E80,0,L$11)) -> -1974024 | M82: 0 | O82: -1119592.05 | P82: =IF(P$10="",0,OFFSET(A2.HistoricalBalances!$E80,0,P$11)) -> -1119592.05 | Q82: =IF(Q$10="",0,OFFSET(A2.HistoricalBalances!$E80,0,Q$11)) -> -1119592.05 | S82: -127717.95 | T82: =IF(T$10="",0,OFFSET(A2.HistoricalBalances!$E80,0,T$11)) -> -1247310 | U82: =IF(U$10="",0,OFFSET(A2.HistoricalBalances!$E80,0,U$11)) -> -1247310 | W82: 2052886 | X82: =IF(X$10="",0,OFFSET(A2.HistoricalBalances!$E80,0,X$11)) -> 805576 | Y82: =IF(Y$10=ApprovedYr,A2.HistoricalBalances!$M80,X82) -> 805576 | AB82: 805576 | AC82: 805576 | AF82: 805576 | AG82: 6757654.05 | AJ82: 0 | AK82: 1586
B83: =""&Y2.ChartOfAccts!C81 -> 1588-RSVAPOWER Main Account | C83: =""&Y2.ChartOfAccts!D81 -> 1200-Other Assets and Deferred Charges | D83: =Y2.ChartOfAccts!F81 -> 6 | E83: =IF(E$10="",0,OFFSET(A2.HistoricalBalances!$E81,0,E$11)) -> 0 | G83: 0 | H83: =IF(H$10="",0,OFFSET(A2.HistoricalBalances!$E81,0,H$11)) -> 0 | K83: 2924261 | L83: =IF(L$10="",0,OFFSET(A2.HistoricalBalances!$E81,0,L$11)) -> 2924261 | M83: 0 | O83: 2105023.67 | P83: =IF(P$10="",0,OFFSET(A2.HistoricalBalances!$E81,0,P$11)) -> 2105023.67 | Q83: =IF(Q$10="",0,OFFSET(A2.HistoricalBalances!$E81,0,Q$11)) -> 2105023.67 | S83: 62445.39 | T83: =IF(T$10="",0,OFFSET(A2.HistoricalBalances!$E81,0,T$11)) -> 2167469.06 | U83: =IF(U$10="",0,OFFSET(A2.HistoricalBalances!$E81,0,U$11)) -> 2167469.06 | W83: -781464.06 | X83: =IF(X$10="",0,OFFSET(A2.HistoricalBalances!$E81,0,X$11)) -> 1386005 | Y83: =IF(Y$10=ApprovedYr,A2.HistoricalBalances!$M81,X83) -> 1386005 | AB83: 1386005 | AC83: 1386005 | AF83: 1386005 | AG83: 11354768.73 | AJ83: 0 | AK83: 1588
B84: =""&Y2.ChartOfAccts!C82 -> 1589-1588 Global Adjustment sub-account | C84: =""&Y2.ChartOfAccts!D82 -> 1200-Other Assets and Deferred Charges | D84: =Y2.ChartOfAccts!F82 -> 6 | E84: =IF(E$10="",0,OFFSET(A2.HistoricalBalances!$E82,0,E$11)) -> 0 | G84: 0 | H84: =IF(H$10="",0,OFFSET(A2.HistoricalBalances!$E82,0,H$11)) -> 0 | K84: 0 | L84: =IF(L$10="",0,OFFSET(A2.HistoricalBalances!$E82,0,L$11)) -> 0 | M84: 0 | O84: 0 | P84: =IF(P$10="",0,OFFSET(A2.HistoricalBalances!$E82,0,P$11)) -> 0 | Q84: =IF(Q$10="",0,OFFSET(A2.HistoricalBalances!$E82,0,Q$11)) -> 0 | S84: 0 | T84: =IF(T$10="",0,OFFSET(A2.HistoricalBalances!$E82,0,T$11)) -> 0 | U84: =IF(U$10="",0,OFFSET(A2.HistoricalBalances!$E82,0,U$11)) -> 0 | W84: 538732 | X84: =IF(X$10="",0,OFFSET(A2.HistoricalBalances!$E82,0,X$11)) -> 538732 | Y84: =IF(Y$10=ApprovedYr,A2.HistoricalBalances!$M82,X84) -> 538732 | AB84: 538732 | AC84: 538732 | AF84: 538732 | AG84: 1616196 | AJ84: 0 | AK84: 1589
B85: =""&Y2.ChartOfAccts!C83 -> 1590-Recovery of Regulatory Asset Balances | C85: =""&Y2.ChartOfAccts!D83 -> 1200-Other Assets and Deferred Charges | D85: =Y2.ChartOfAccts!F83 -> 6 | E85: =IF(E$10="",0,OFFSET(A2.HistoricalBalances!$E83,0,E$11)) -> 0 | G85: 0 | H85: =IF(H$10="",0,OFFSET(A2.HistoricalBalances!$E83,0,H$11)) -> 0 | K85: 73311 | L85: =IF(L$10="",0,OFFSET(A2.HistoricalBalances!$E83,0,L$11)) -> 73311 | M85: 0 | O85: 126284.91 | P85: =IF(P$10="",0,OFFSET(A2.HistoricalBalances!$E83,0,P$11)) -> 126284.91 | Q85: =IF(Q$10="",0,OFFSET(A2.HistoricalBalances!$E83,0,Q$11)) -> 126284.91 | S85: 0 | T85: =IF(T$10="",0,OFFSET(A2.HistoricalBalances!$E83,0,T$11)) -> 126284.91 | U85: =IF(U$10="",0,OFFSET(A2.HistoricalBalances!$E83,0,U$11)) -> 126284.91 | W85: -126284.91 | X85: =IF(X$10="",0,OFFSET(A2.HistoricalBalances!$E83,0,X$11)) -> 0 | Y85: =IF(Y$10=ApprovedYr,A2.HistoricalBalances!$M83,X85) -> 0 | AB85: 0 | AC85: 0 | AF85: 0 | AG85: 325880.82 | AK85: 1590
B86: =""&Y2.ChartOfAccts!C84 -> 1592-2006 PILs/Taxes Variance | C86: =""&Y2.ChartOfAccts!D84 -> 1200-Other Assets and Deferred Charges | D86: =Y2.ChartOfAccts!F84 -> 6 | E86: =IF(E$10="",0,OFFSET(A2.HistoricalBalances!$E84,0,E$11)) -> 0 | G86: 0 | H86: =IF(H$10="",0,OFFSET(A2.HistoricalBalances!$E84,0,H$11)) -> 0 | K86: 0 | L86: =IF(L$10="",0,OFFSET(A2.HistoricalBalances!$E84,0,L$11)) -> 0 | M86: 0 | O86: 0 | P86: =IF(P$10="",0,OFFSET(A2.HistoricalBalances!$E84,0,P$11)) -> 0 | Q86: =IF(Q$10="",0,OFFSET(A2.HistoricalBalances!$E84,0,Q$11)) -> 0 | S86: 0 | T86: =IF(T$10="",0,OFFSET(A2.HistoricalBalances!$E84,0,T$11)) -> 0 | U86: =IF(U$10="",0,OFFSET(A2.HistoricalBalances!$E84,0,U$11)) -> 0 | W86: 0 | X86: =IF(X$10="",0,OFFSET(A2.HistoricalBalances!$E84,0,X$11)) -> 0 | Y86: =IF(Y$10=ApprovedYr,A2.HistoricalBalances!$M84,X86) -> 0 | AB86: 0 | AC86: 0 | AF86: 0 | AG86: 0 | AJ86: 0 | AK86: 1592
B87: =""&Y2.ChartOfAccts!C85 -> 1595-Disposition and Recovery of Regulatory Balances | C87: =""&Y2.ChartOfAccts!D85 -> 1200-Other Assets and Deferred Charges | D87: =Y2.ChartOfAccts!F85 -> 6 | E87: =IF(E$10="",0,OFFSET(A2.HistoricalBalances!$E85,0,E$11)) -> 0 | G87: 0 | H87: =IF(H$10="",0,OFFSET(A2.HistoricalBalances!$E85,0,H$11)) -> 0 | K87: 0 | L87: =IF(L$10="",0,OFFSET(A2.HistoricalBalances!$E85,0,L$11)) -> 0 | M87: 0 | O87: 845188.27 | P87: =IF(P$10="",0,OFFSET(A2.HistoricalBalances!$E85,0,P$11)) -> 845188.27 | Q87: =IF(Q$10="",0,OFFSET(A2.HistoricalBalances!$E85,0,Q$11)) -> 845188.27 | S87: -653173.74 | T87: =IF(T$10="",0,OFFSET(A2.HistoricalBalances!$E85,0,T$11)) -> 192014.53 | U87: =IF(U$10="",0,OFFSET(A2.HistoricalBalances!$E85,0,U$11)) -> 192014.53 | W87: 286473.47 | X87: =IF(X$10="",0,OFFSET(A2.HistoricalBalances!$E85,0,X$11)) -> 478488 | Y87: =IF(Y$10=ApprovedYr,A2.HistoricalBalances!$M85,X87) -> 478488 | AB87: 478488 | AC87: 478488 | AF87: 478488 | AG87: 2472666.8 | AJ87: 0 | AK87: 1595
B88: =""&Y2.ChartOfAccts!C86 -> 1605-Electric Plant in Service - Control Account | C88: =""&Y2.ChartOfAccts!D86 -> 1300-Intangible Plant | D88: =Y2.ChartOfAccts!F86 -> 0 | E88: =IF(E$10="",0,OFFSET(A2.HistoricalBalances!$E86,0,E$11)) -> 0 | G88: 0 | H88: =IF(H$10="",0,OFFSET(A2.HistoricalBalances!$E86,0,H$11)) -> 0 | K88: 0 | L88: =IF(L$10="",0,OFFSET(A2.HistoricalBalances!$E86,0,L$11)) -> 0 | M88: 0 | O88: 0 | P88: =IF(P$10="",0,OFFSET(A2.HistoricalBalances!$E86,0,P$11)) -> 0 | Q88: =IF(Q$10="",0,OFFSET(A2.HistoricalBalances!$E86,0,Q$11)) -> 0 | S88: 0 | T88: =IF(T$10="",0,OFFSET(A2.HistoricalBalances!$E86,0,T$11)) -> 0 | U88: =IF(U$10="",0,OFFSET(A2.HistoricalBalances!$E86,0,U$11)) -> 0 | W88: 0 | X88: =IF(X$10="",0,OFFSET(A2.HistoricalBalances!$E86,0,X$11)) -> 0 | Y88: =IF(Y$10=ApprovedYr,A2.HistoricalBalances!$M86,X88) -> 0 | AB88: 0 | AC88: 0 | AF88: 0 | AG88: 0 | AJ88: 0 | AK88: 1605
B89: =""&Y2.ChartOfAccts!C87 -> 1606-Organization | C89: =""&Y2.ChartOfAccts!D87 -> 1300-Intangible Plant | D89: =Y2.ChartOfAccts!F87 -> 0 | E89: =IF(E$10="",0,OFFSET(A2.HistoricalBalances!$E87,0,E$11)) -> 0 | G89: 0 | H89: =IF(H$10="",0,OFFSET(A2.HistoricalBalances!$E87,0,H$11)) -> 0 | K89: 0 | L89: =IF(L$10="",0,OFFSET(A2.HistoricalBalances!$E87,0,L$11)) -> 0 | M89: 0 | O89: 0 | P89: =IF(P$10="",0,OFFSET(A2.HistoricalBalances!$E87,0,P$11)) -> 0 | Q89: =IF(Q$10="",0,OFFSET(A2.HistoricalBalances!$E87,0,Q$11)) -> 0 | S89: 0 | T89: =IF(T$10="",0,OFFSET(A2.HistoricalBalances!$E87,0,T$11)) -> 0 | U89: =IF(U$10="",0,OFFSET(A2.HistoricalBalances!$E87,0,U$11)) -> 0 | W89: 0 | X89: =IF(X$10="",0,OFFSET(A2.HistoricalBalances!$E87,0,X$11)) -> 0 | Y89: =IF(Y$10=ApprovedYr,A2.HistoricalBalances!$M87,X89) -> 0 | AB89: 0 | AC89: 0 | AF89: 0 | AG89: 0 | AJ89: 0 | AK89: 1606
B90: =""&Y2.ChartOfAccts!C88 -> 1608-Franchises and Consents | C90: =""&Y2.ChartOfAccts!D88 -> 1300-Intangible Plant | D90: =Y2.ChartOfAccts!F88 -> 0 | E90: =IF(E$10="",0,OFFSET(A2.HistoricalBalances!$E88,0,E$11)) -> 0 | G90: 0 | H90: =IF(H$10="",0,OFFSET(A2.HistoricalBalances!$E88,0,H$11)) -> 0 | K90: 0 | L90: =IF(L$10="",0,OFFSET(A2.HistoricalBalances!$E88,0,L$11)) -> 0 | M90: 0 | O90: 0 | P90: =IF(P$10="",0,OFFSET(A2.HistoricalBalances!$E88,0,P$11)) -> 0 | Q90: =IF(Q$10="",0,OFFSET(A2.HistoricalBalances!$E88,0,Q$11)) -> 0 | S90: 0 | T90: =IF(T$10="",0,OFFSET(A2.HistoricalBalances!$E88,0,T$11)) -> 0 | U90: =IF(U$10="",0,OFFSET(A2.HistoricalBalances!$E88,0,U$11)) -> 0 | W90: 0 | X90: =IF(X$10="",0,OFFSET(A2.HistoricalBalances!$E88,0,X$11)) -> 0 | Y90: =IF(Y$10=ApprovedYr,A2.HistoricalBalances!$M88,X90) -> 0 | AB90: 0 | AC90: 0 | AF90: 0 | AG90: 0 | AJ90: 0 | AK90: 1608
B91: =""&Y2.ChartOfAccts!C89 -> 1610-Miscellaneous Intangible Plant | C91: =""&Y2.ChartOfAccts!D89 -> 1300-Intangible Plant | D91: =Y2.ChartOfAccts!F89 -> 1 | E91: =IF(E$10="",0,OFFSET(A2.HistoricalBalances!$E89,0,E$11)) -> 0 | G91: 0 | H91: =IF(H$10="",0,OFFSET(A2.HistoricalBalances!$E89,0,H$11)) -> 0 | K91: 0 | L91: =IF(L$10="",0,OFFSET(A2.HistoricalBalances!$E89,0,L$11)) -> 0 | M91: 0 | O91: 0 | P91: =IF(P$10="",0,OFFSET(A2.HistoricalBalances!$E89,0,P$11)) -> 0 | Q91: =IF(Q$10="",0,OFFSET(A2.HistoricalBalances!$E89,0,Q$11)) -> 0 | S91: 0 | T91: =IF(T$10="",0,OFFSET(A2.HistoricalBalances!$E89,0,T$11)) -> 0 | U91: =IF(U$10="",0,OFFSET(A2.HistoricalBalances!$E89,0,U$11)) -> 0 | W91: 0 | X91: =IF(X$10="",0,OFFSET(A2.HistoricalBalances!$E89,0,X$11)) -> 0 | Y91: =IF(Y$10=ApprovedYr,A2.HistoricalBalances!$M89,X91) -> 0 | AB91: 0 | AC91: 0 | AF91: 0 | AG91: 0 | AJ91: 0 | AK91: 1610
B92: =""&Y2.ChartOfAccts!C90 -> 1615-Land | C92: =""&Y2.ChartOfAccts!D90 -> 1350-Not for distributor use | D92: =Y2.ChartOfAccts!F90 -> 0 | E92: =IF(E$10="",0,OFFSET(A2.HistoricalBalances!$E90,0,E$11)) -> 0 | G92: 0 | H92: =IF(H$10="",0,OFFSET(A2.HistoricalBalances!$E90,0,H$11)) -> 0 | K92: 0 | L92: =IF(L$10="",0,OFFSET(A2.HistoricalBalances!$E90,0,L$11)) -> 0 | M92: 0 | O92: 0 | P92: =IF(P$10="",0,OFFSET(A2.HistoricalBalances!$E90,0,P$11)) -> 0 | Q92: =IF(Q$10="",0,OFFSET(A2.HistoricalBalances!$E90,0,Q$11)) -> 0 | S92: 0 | T92: =IF(T$10="",0,OFFSET(A2.HistoricalBalances!$E90,0,T$11)) -> 0 | U92: =IF(U$10="",0,OFFSET(A2.HistoricalBalances!$E90,0,U$11)) -> 0 | W92: 0 | X92: =IF(X$10="",0,OFFSET(A2.HistoricalBalances!$E90,0,X$11)) -> 0 | Y92: =IF(Y$10=ApprovedYr,A2.HistoricalBalances!$M90,X92) -> 0 | AB92: 0 | AC92: 0 | AF92: 0 | AG92: 0 | AJ92: 0 | AK92: 1615
B93: =""&Y2.ChartOfAccts!C91 -> 1616-Land Rights | C93: =""&Y2.ChartOfAccts!D91 -> 1350-Not for distributor use | D93: =Y2.ChartOfAccts!F91 -> 0 | E93: =IF(E$10="",0,OFFSET(A2.HistoricalBalances!$E91,0,E$11)) -> 0 | G93: 0 | H93: =IF(H$10="",0,OFFSET(A2.HistoricalBalances!$E91,0,H$11)) -> 0 | K93: 0 | L93: =IF(L$10="",0,OFFSET(A2.HistoricalBalances!$E91,0,L$11)) -> 0 | M93: 0 | O93: 0 | P93: =IF(P$10="",0,OFFSET(A2.HistoricalBalances!$E91,0,P$11)) -> 0 | Q93: =IF(Q$10="",0,OFFSET(A2.HistoricalBalances!$E91,0,Q$11)) -> 0 | S93: 0 | T93: =IF(T$10="",0,OFFSET(A2.HistoricalBalances!$E91,0,T$11)) -> 0 | U93: =IF(U$10="",0,OFFSET(A2.HistoricalBalances!$E91,0,U$11)) -> 0 | W93: 0 | X93: =IF(X$10="",0,OFFSET(A2.HistoricalBalances!$E91,0,X$11)) -> 0 | Y93: =IF(Y$10=ApprovedYr,A2.HistoricalBalances!$M91,X93) -> 0 | AB93: 0 | AC93: 0 | AF93: 0 | AG93: 0 | AJ93: 0 | AK93: 1616
B94: =""&Y2.ChartOfAccts!C92 -> 1620-Buildings and Fixtures | C94: =""&Y2.ChartOfAccts!D92 -> 1350-Not for distributor use | D94: =Y2.ChartOfAccts!F92 -> 0 | E94: =IF(E$10="",0,OFFSET(A2.HistoricalBalances!$E92,0,E$11)) -> 0 | G94: 0 | H94: =IF(H$10="",0,OFFSET(A2.HistoricalBalances!$E92,0,H$11)) -> 0 | K94: 0 | L94: =IF(L$10="",0,OFFSET(A2.HistoricalBalances!$E92,0,L$11)) -> 0 | M94: 0 | O94: 0 | P94: =IF(P$10="",0,OFFSET(A2.HistoricalBalances!$E92,0,P$11)) -> 0 | Q94: =IF(Q$10="",0,OFFSET(A2.HistoricalBalances!$E92,0,Q$11)) -> 0 | S94: 0 | T94: =IF(T$10="",0,OFFSET(A2.HistoricalBalances!$E92,0,T$11)) -> 0 | U94: =IF(U$10="",0,OFFSET(A2.HistoricalBalances!$E92,0,U$11)) -> 0 | W94: 0 | X94: =IF(X$10="",0,OFFSET(A2.HistoricalBalances!$E92,0,X$11)) -> 0 | Y94: =IF(Y$10=ApprovedYr,A2.HistoricalBalances!$M92,X94) -> 0 | AB94: 0 | AC94: 0 | AF94: 0 | AG94: 0 | AJ94: 0 | AK94: 1620
B95: =""&Y2.ChartOfAccts!C93 -> 1630-Leasehold Improvements | C95: =""&Y2.ChartOfAccts!D93 -> 1350-Not for distributor use | D95: =Y2.ChartOfAccts!F93 -> 0 | E95: =IF(E$10="",0,OFFSET(A2.HistoricalBalances!$E93,0,E$11)) -> 0 | G95: 0 | H95: =IF(H$10="",0,OFFSET(A2.HistoricalBalances!$E93,0,H$11)) -> 0 | K95: 0 | L95: =IF(L$10="",0,OFFSET(A2.HistoricalBalances!$E93,0,L$11)) -> 0 | M95: 0 | O95: 0 | P95: =IF(P$10="",0,OFFSET(A2.HistoricalBalances!$E93,0,P$11)) -> 0 | Q95: =IF(Q$10="",0,OFFSET(A2.HistoricalBalances!$E93,0,Q$11)) -> 0 | S95: 0 | T95: =IF(T$10="",0,OFFSET(A2.HistoricalBalances!$E93,0,T$11)) -> 0 | U95: =IF(U$10="",0,OFFSET(A2.HistoricalBalances!$E93,0,U$11)) -> 0 | W95: 0 | X95: =IF(X$10="",0,OFFSET(A2.HistoricalBalances!$E93,0,X$11)) -> 0 | Y95: =IF(Y$10=ApprovedYr,A2.HistoricalBalances!$M93,X95) -> 0 | AB95: 0 | AC95: 0 | AF95: 0 | AG95: 0 | AJ95: 0 | AK95: 1630
B96: =""&Y2.ChartOfAccts!C94 -> 1635-Boiler Plant Equipment | C96: =""&Y2.ChartOfAccts!D94 -> 1350-Not for distributor use | D96: =Y2.ChartOfAccts!F94 -> 0 | E96: =IF(E$10="",0,OFFSET(A2.HistoricalBalances!$E94,0,E$11)) -> 0 | G96: 0 | H96: =IF(H$10="",0,OFFSET(A2.HistoricalBalances!$E94,0,H$11)) -> 0 | K96: 0 | L96: =IF(L$10="",0,OFFSET(A2.HistoricalBalances!$E94,0,L$11)) -> 0 | M96: 0 | O96: 0 | P96: =IF(P$10="",0,OFFSET(A2.HistoricalBalances!$E94,0,P$11)) -> 0 | Q96: =IF(Q$10="",0,OFFSET(A2.HistoricalBalances!$E94,0,Q$11)) -> 0 | S96: 0 | T96: =IF(T$10="",0,OFFSET(A2.HistoricalBalances!$E94,0,T$11)) -> 0 | U96: =IF(U$10="",0,OFFSET(A2.HistoricalBalances!$E94,0,U$11)) -> 0 | W96: 0 | X96: =IF(X$10="",0,OFFSET(A2.HistoricalBalances!$E94,0,X$11)) -> 0 | Y96: =IF(Y$10=ApprovedYr,A2.HistoricalBalances!$M94,X96) -> 0 | AB96: 0 | AC96: 0 | AF96: 0 | AG96: 0 | AJ96: 0 | AK96: 1635
B97: =""&Y2.ChartOfAccts!C95 -> 1640-Engines and Engine-Driven Generators | C97: =""&Y2.ChartOfAccts!D95 -> 1350-Not for distributor use | D97: =Y2.ChartOfAccts!F95 -> 0 | E97: =IF(E$10="",0,OFFSET(A2.HistoricalBalances!$E95,0,E$11)) -> 0 | G97: 0 | H97: =IF(H$10="",0,OFFSET(A2.HistoricalBalances!$E95,0,H$11)) -> 0 | K97: 0 | L97: =IF(L$10="",0,OFFSET(A2.HistoricalBalances!$E95,0,L$11)) -> 0 | M97: 0 | O97: 0 | P97: =IF(P$10="",0,OFFSET(A2.HistoricalBalances!$E95,0,P$11)) -> 0 | Q97: =IF(Q$10="",0,OFFSET(A2.HistoricalBalances!$E95,0,Q$11)) -> 0 | S97: 0 | T97: =IF(T$10="",0,OFFSET(A2.HistoricalBalances!$E95,0,T$11)) -> 0 | U97: =IF(U$10="",0,OFFSET(A2.HistoricalBalances!$E95,0,U$11)) -> 0 | W97: 0 | X97: =IF(X$10="",0,OFFSET(A2.HistoricalBalances!$E95,0,X$11)) -> 0 | Y97: =IF(Y$10=ApprovedYr,A2.HistoricalBalances!$M95,X97) -> 0 | AB97: 0 | AC97: 0 | AF97: 0 | AG97: 0 | AJ97: 0 | AK97: 1640
B98: =""&Y2.ChartOfAccts!C96 -> 1645-Turbogenerator Units | C98: =""&Y2.ChartOfAccts!D96 -> 1350-Not for distributor use | D98: =Y2.ChartOfAccts!F96 -> 0 | E98: =IF(E$10="",0,OFFSET(A2.HistoricalBalances!$E96,0,E$11)) -> 0 | G98: 0 | H98: =IF(H$10="",0,OFFSET(A2.HistoricalBalances!$E96,0,H$11)) -> 0 | K98: 0 | L98: =IF(L$10="",0,OFFSET(A2.HistoricalBalances!$E96,0,L$11)) -> 0 | M98: 0 | O98: 0 | P98: =IF(P$10="",0,OFFSET(A2.HistoricalBalances!$E96,0,P$11)) -> 0 | Q98: =IF(Q$10="",0,OFFSET(A2.HistoricalBalances!$E96,0,Q$11)) -> 0 | S98: 0 | T98: =IF(T$10="",0,OFFSET(A2.HistoricalBalances!$E96,0,T$11)) -> 0 | U98: =IF(U$10="",0,OFFSET(A2.HistoricalBalances!$E96,0,U$11)) -> 0 | W98: 0 | X98: =IF(X$10="",0,OFFSET(A2.HistoricalBalances!$E96,0,X$11)) -> 0 | Y98: =IF(Y$10=ApprovedYr,A2.HistoricalBalances!$M96,X98) -> 0 | AB98: 0 | AC98: 0 | AF98: 0 | AG98: 0 | AJ98: 0 | AK98: 1645
B99: =""&Y2.ChartOfAccts!C97 -> 1650-Reservoirs, Dams and Waterways | C99: =""&Y2.ChartOfAccts!D97 -> 1350-Not for distributor use | D99: =Y2.ChartOfAccts!F97 -> 0 | E99: =IF(E$10="",0,OFFSET(A2.HistoricalBalances!$E97,0,E$11)) -> 0 | G99: 0 | H99: =IF(H$10="",0,OFFSET(A2.HistoricalBalances!$E97,0,H$11)) -> 0 | K99: 0 | L99: =IF(L$10="",0,OFFSET(A2.HistoricalBalances!$E97,0,L$11)) -> 0 | M99: 0 | O99: 0 | P99: =IF(P$10="",0,OFFSET(A2.HistoricalBalances!$E97,0,P$11)) -> 0 | Q99: =IF(Q$10="",0,OFFSET(A2.HistoricalBalances!$E97,0,Q$11)) -> 0 | S99: 0 | T99: =IF(T$10="",0,OFFSET(A2.HistoricalBalances!$E97,0,T$11)) -> 0 | U99: =IF(U$10="",0,OFFSET(A2.HistoricalBalances!$E97,0,U$11)) -> 0 | W99: 0 | X99: =IF(X$10="",0,OFFSET(A2.HistoricalBalances!$E97,0,X$11)) -> 0 | Y99: =IF(Y$10=ApprovedYr,A2.HistoricalBalances!$M97,X99) -> 0 | AB99: 0 | AC99: 0 | AF99: 0 | AG99: 0 | AJ99: 0 | AK99: 1650
B100: =""&Y2.ChartOfAccts!C98 -> 1655-Water Wheels, Turbines and Generators | C100: =""&Y2.ChartOfAccts!D98 -> 1350-Not for distributor use | D100: =Y2.ChartOfAccts!F98 -> 0 | E100: =IF(E$10="",0,OFFSET(A2.HistoricalBalances!$E98,0,E$11)) -> 0 | G100: 0 | H100: =IF(H$10="",0,OFFSET(A2.HistoricalBalances!$E98,0,H$11)) -> 0 | K100: 0 | L100: =IF(L$10="",0,OFFSET(A2.HistoricalBalances!$E98,0,L$11)) -> 0 | M100: 0 | O100: 0 | P100: =IF(P$10="",0,OFFSET(A2.HistoricalBalances!$E98,0,P$11)) -> 0 | Q100: =IF(Q$10="",0,OFFSET(A2.HistoricalBalances!$E98,0,Q$11)) -> 0 | S100: 0 | T100: =IF(T$10="",0,OFFSET(A2.HistoricalBalances!$E98,0,T$11)) -> 0 | U100: =IF(U$10="",0,OFFSET(A2.HistoricalBalances!$E98,0,U$11)) -> 0 | W100: 0 | X100: =IF(X$10="",0,OFFSET(A2.HistoricalBalances!$E98,0,X$11)) -> 0 | Y100: =IF(Y$10=ApprovedYr,A2.HistoricalBalances!$M98,X100) -> 0 | AB100: 0 | AC100: 0 | AF100: 0 | AG100: 0 | AJ100: 0 | AK100: 1655
B101: =""&Y2.ChartOfAccts!C99 -> 1660-Roads, Railroads and Bridges | C101: =""&Y2.ChartOfAccts!D99 -> 1350-Not for distributor use | D101: =Y2.ChartOfAccts!F99 -> 0 | E101: =IF(E$10="",0,OFFSET(A2.HistoricalBalances!$E99,0,E$11)) -> 0 | G101: 0 | H101: =IF(H$10="",0,OFFSET(A2.HistoricalBalances!$E99,0,H$11)) -> 0 | K101: 0 | L101: =IF(L$10="",0,OFFSET(A2.HistoricalBalances!$E99,0,L$11)) -> 0 | M101: 0 | O101: 0 | P101: =IF(P$10="",0,OFFSET(A2.HistoricalBalances!$E99,0,P$11)) -> 0 | Q101: =IF(Q$10="",0,OFFSET(A2.HistoricalBalances!$E99,0,Q$11)) -> 0 | S101: 0 | T101: =IF(T$10="",0,OFFSET(A2.HistoricalBalances!$E99,0,T$11)) -> 0 | U101: =IF(U$10="",0,OFFSET(A2.HistoricalBalances!$E99,0,U$11)) -> 0 | W101: 0 | X101: =IF(X$10="",0,OFFSET(A2.HistoricalBalances!$E99,0,X$11)) -> 0 | Y101: =IF(Y$10=ApprovedYr,A2.HistoricalBalances!$M99,X101) -> 0 | AB101: 0 | AC101: 0 | AF101: 0 | AG101: 0 | AJ101: 0 | AK101: 1660
B102: =""&Y2.ChartOfAccts!C100 -> 1665-Fuel Holders, Producers and Accessories | C102: =""&Y2.ChartOfAccts!D100 -> 1350-Not for distributor use | D102: =Y2.ChartOfAccts!F100 -> 0 | E102: =IF(E$10="",0,OFFSET(A2.HistoricalBalances!$E100,0,E$11)) -> 0 | G102: 0 | H102: =IF(H$10="",0,OFFSET(A2.HistoricalBalances!$E100,0,H$11)) -> 0 | K102: 0 | L102: =IF(L$10="",0,OFFSET(A2.HistoricalBalances!$E100,0,L$11)) -> 0 | M102: 0 | O102: 0 | P102: =IF(P$10="",0,OFFSET(A2.HistoricalBalances!$E100,0,P$11)) -> 0 | Q102: =IF(Q$10="",0,OFFSET(A2.HistoricalBalances!$E100,0,Q$11)) -> 0 | S102: 0 | T102: =IF(T$10="",0,OFFSET(A2.HistoricalBalances!$E100,0,T$11)) -> 0 | U102: =IF(U$10="",0,OFFSET(A2.HistoricalBalances!$E100,0,U$11)) -> 0 | W102: 0 | X102: =IF(X$10="",0,OFFSET(A2.HistoricalBalances!$E100,0,X$11)) -> 0 | Y102: =IF(Y$10=ApprovedYr,A2.HistoricalBalances!$M100,X102) -> 0 | AB102: 0 | AC102: 0 | AF102: 0 | AG102: 0 | AJ102: 0 | AK102: 1665
B103: =""&Y2.ChartOfAccts!C101 -> 1670-Prime Movers | C103: =""&Y2.ChartOfAccts!D101 -> 1350-Not for distributor use | D103: =Y2.ChartOfAccts!F101 -> 0 | E103: =IF(E$10="",0,OFFSET(A2.HistoricalBalances!$E101,0,E$11)) -> 0 | G103: 0 | H103: =IF(H$10="",0,OFFSET(A2.HistoricalBalances!$E101,0,H$11)) -> 0 | K103: 0 | L103: =IF(L$10="",0,OFFSET(A2.HistoricalBalances!$E101,0,L$11)) -> 0 | M103: 0 | O103: 0 | P103: =IF(P$10="",0,OFFSET(A2.HistoricalBalances!$E101,0,P$11)) -> 0 | Q103: =IF(Q$10="",0,OFFSET(A2.HistoricalBalances!$E101,0,Q$11)) -> 0 | S103: 0 | T103: =IF(T$10="",0,OFFSET(A2.HistoricalBalances!$E101,0,T$11)) -> 0 | U103: =IF(U$10="",0,OFFSET(A2.HistoricalBalances!$E101,0,U$11)) -> 0 | W103: 0 | X103: =IF(X$10="",0,OFFSET(A2.HistoricalBalances!$E101,0,X$11)) -> 0 | Y103: =IF(Y$10=ApprovedYr,A2.HistoricalBalances!$M101,X103) -> 0 | AB103: 0 | AC103: 0 | AF103: 0 | AG103: 0 | AJ103: 0 | AK103: 1670
B104: =""&Y2.ChartOfAccts!C102 -> 1675-Generators | C104: =""&Y2.ChartOfAccts!D102 -> 1350-Not for distributor use | D104: =Y2.ChartOfAccts!F102 -> 0 | E104: =IF(E$10="",0,OFFSET(A2.HistoricalBalances!$E102,0,E$11)) -> 0 | G104: 0 | H104: =IF(H$10="",0,OFFSET(A2.HistoricalBalances!$E102,0,H$11)) -> 0 | K104: 0 | L104: =IF(L$10="",0,OFFSET(A2.HistoricalBalances!$E102,0,L$11)) -> 0 | M104: 0 | O104: 0 | P104: =IF(P$10="",0,OFFSET(A2.HistoricalBalances!$E102,0,P$11)) -> 0 | Q104: =IF(Q$10="",0,OFFSET(A2.HistoricalBalances!$E102,0,Q$11)) -> 0 | S104: 0 | T104: =IF(T$10="",0,OFFSET(A2.HistoricalBalances!$E102,0,T$11)) -> 0 | U104: =IF(U$10="",0,OFFSET(A2.HistoricalBalances!$E102,0,U$11)) -> 0 | W104: 0 | X104: =IF(X$10="",0,OFFSET(A2.HistoricalBalances!$E102,0,X$11)) -> 0 | Y104: =IF(Y$10=ApprovedYr,A2.HistoricalBalances!$M102,X104) -> 0 | AB104: 0 | AC104: 0 | AF104: 0 | AG104: 0 | AJ104: 0 | AK104: 1675
B105: =""&Y2.ChartOfAccts!C103 -> 1680-Accessory Electric Equipment | C105: =""&Y2.ChartOfAccts!D103 -> 1350-Not for distributor use | D105: =Y2.ChartOfAccts!F103 -> 0 | E105: =IF(E$10="",0,OFFSET(A2.HistoricalBalances!$E103,0,E$11)) -> 0 | G105: 0 | H105: =IF(H$10="",0,OFFSET(A2.HistoricalBalances!$E103,0,H$11)) -> 0 | K105: 0 | L105: =IF(L$10="",0,OFFSET(A2.HistoricalBalances!$E103,0,L$11)) -> 0 | M105: 0 | O105: 0 | P105: =IF(P$10="",0,OFFSET(A2.HistoricalBalances!$E103,0,P$11)) -> 0 | Q105: =IF(Q$10="",0,OFFSET(A2.HistoricalBalances!$E103,0,Q$11)) -> 0 | S105: 0 | T105: =IF(T$10="",0,OFFSET(A2.HistoricalBalances!$E103,0,T$11)) -> 0 | U105: =IF(U$10="",0,OFFSET(A2.HistoricalBalances!$E103,0,U$11)) -> 0 | W105: 0 | X105: =IF(X$10="",0,OFFSET(A2.HistoricalBalances!$E103,0,X$11)) -> 0 | Y105: =IF(Y$10=ApprovedYr,A2.HistoricalBalances!$M103,X105) -> 0 | AB105: 0 | AC105: 0 | AF105: 0 | AG105: 0 | AJ105: 0 | AK105: 1680
B106: =""&Y2.ChartOfAccts!C104 -> 1685-Miscellaneous Power Plant Equipment | C106: =""&Y2.ChartOfAccts!D104 -> 1350-Not for distributor use | D106: =Y2.ChartOfAccts!F104 -> 0 | E106: =IF(E$10="",0,OFFSET(A2.HistoricalBalances!$E104,0,E$11)) -> 0 | G106: 0 | H106: =IF(H$10="",0,OFFSET(A2.HistoricalBalances!$E104,0,H$11)) -> 0 | K106: 0 | L106: =IF(L$10="",0,OFFSET(A2.HistoricalBalances!$E104,0,L$11)) -> 0 | M106: 0 | O106: 0 | P106: =IF(P$10="",0,OFFSET(A2.HistoricalBalances!$E104,0,P$11)) -> 0 | Q106: =IF(Q$10="",0,OFFSET(A2.HistoricalBalances!$E104,0,Q$11)) -> 0 | S106: 0 | T106: =IF(T$10="",0,OFFSET(A2.HistoricalBalances!$E104,0,T$11)) -> 0 | U106: =IF(U$10="",0,OFFSET(A2.HistoricalBalances!$E104,0,U$11)) -> 0 | W106: 0 | X106: =IF(X$10="",0,OFFSET(A2.HistoricalBalances!$E104,0,X$11)) -> 0 | Y106: =IF(Y$10=ApprovedYr,A2.HistoricalBalances!$M104,X106) -> 0 | AB106: 0 | AC106: 0 | AF106: 0 | AG106: 0 | AJ106: 0 | AK106: 1685
B107: =""&Y2.ChartOfAccts!C105 -> 1705-Land | C107: =""&Y2.ChartOfAccts!D105 -> 1350-Not for distributor use | D107: =Y2.ChartOfAccts!F105 -> 0 | E107: =IF(E$10="",0,OFFSET(A2.HistoricalBalances!$E105,0,E$11)) -> 0 | G107: 0 | H107: =IF(H$10="",0,OFFSET(A2.HistoricalBalances!$E105,0,H$11)) -> 0 | K107: 0 | L107: =IF(L$10="",0,OFFSET(A2.HistoricalBalances!$E105,0,L$11)) -> 0 | M107: 0 | O107: 0 | P107: =IF(P$10="",0,OFFSET(A2.HistoricalBalances!$E105,0,P$11)) -> 0 | Q107: =IF(Q$10="",0,OFFSET(A2.HistoricalBalances!$E105,0,Q$11)) -> 0 | S107: 0 | T107: =IF(T$10="",0,OFFSET(A2.HistoricalBalances!$E105,0,T$11)) -> 0 | U107: =IF(U$10="",0,OFFSET(A2.HistoricalBalances!$E105,0,U$11)) -> 0 | W107: 0 | X107: =IF(X$10="",0,OFFSET(A2.HistoricalBalances!$E105,0,X$11)) -> 0 | Y107: =IF(Y$10=ApprovedYr,A2.HistoricalBalances!$M105,X107) -> 0 | AB107: 0 | AC107: 0 | AF107: 0 | AG107: 0 | AJ107: 6000 | AK107: 1705
B108: =""&Y2.ChartOfAccts!C106 -> 1706-Land Rights | C108: =""&Y2.ChartOfAccts!D106 -> 1350-Not for distributor use | D108: =Y2.ChartOfAccts!F106 -> 0 | E108: =IF(E$10="",0,OFFSET(A2.HistoricalBalances!$E106,0,E$11)) -> 0 | G108: 0 | H108: =IF(H$10="",0,OFFSET(A2.HistoricalBalances!$E106,0,H$11)) -> 0 | K108: 0 | L108: =IF(L$10="",0,OFFSET(A2.HistoricalBalances!$E106,0,L$11)) -> 0 | M108: 0 | O108: 0 | P108: =IF(P$10="",0,OFFSET(A2.HistoricalBalances!$E106,0,P$11)) -> 0 | Q108: =IF(Q$10="",0,OFFSET(A2.HistoricalBalances!$E106,0,Q$11)) -> 0 | S108: 0 | T108: =IF(T$10="",0,OFFSET(A2.HistoricalBalances!$E106,0,T$11)) -> 0 | U108: =IF(U$10="",0,OFFSET(A2.HistoricalBalances!$E106,0,U$11)) -> 0 | W108: 0 | X108: =IF(X$10="",0,OFFSET(A2.HistoricalBalances!$E106,0,X$11)) -> 0 | Y108: =IF(Y$10=ApprovedYr,A2.HistoricalBalances!$M106,X108) -> 0 | AB108: 0 | AC108: 0 | AF108: 0 | AG108: 0 | AJ108: 0 | AK108: 1706
B109: =""&Y2.ChartOfAccts!C107 -> 1708-Buildings and Fixtures | C109: =""&Y2.ChartOfAccts!D107 -> 1350-Not for distributor use | D109: =Y2.ChartOfAccts!F107 -> 0 | E109: =IF(E$10="",0,OFFSET(A2.HistoricalBalances!$E107,0,E$11)) -> 0 | G109: 0 | H109: =IF(H$10="",0,OFFSET(A2.HistoricalBalances!$E107,0,H$11)) -> 0 | K109: 0 | L109: =IF(L$10="",0,OFFSET(A2.HistoricalBalances!$E107,0,L$11)) -> 0 | M109: 0 | O109: 0 | P109: =IF(P$10="",0,OFFSET(A2.HistoricalBalances!$E107,0,P$11)) -> 0 | Q109: =IF(Q$10="",0,OFFSET(A2.HistoricalBalances!$E107,0,Q$11)) -> 0 | S109: 0 | T109: =IF(T$10="",0,OFFSET(A2.HistoricalBalances!$E107,0,T$11)) -> 0 | U109: =IF(U$10="",0,OFFSET(A2.HistoricalBalances!$E107,0,U$11)) -> 0 | W109: 0 | X109: =IF(X$10="",0,OFFSET(A2.HistoricalBalances!$E107,0,X$11)) -> 0 | Y109: =IF(Y$10=ApprovedYr,A2.HistoricalBalances!$M107,X109) -> 0 | AB109: 0 | AC109: 0 | AF109: 0 | AG109: 0 | AJ109: 0 | AK109: 1708
B110: =""&Y2.ChartOfAccts!C108 -> 1710-Leasehold Improvements | C110: =""&Y2.ChartOfAccts!D108 -> 1350-Not for distributor use | D110: =Y2.ChartOfAccts!F108 -> 0 | E110: =IF(E$10="",0,OFFSET(A2.HistoricalBalances!$E108,0,E$11)) -> 0 | G110: 0 | H110: =IF(H$10="",0,OFFSET(A2.HistoricalBalances!$E108,0,H$11)) -> 0 | K110: 0 | L110: =IF(L$10="",0,OFFSET(A2.HistoricalBalances!$E108,0,L$11)) -> 0 | M110: 0 | O110: 0 | P110: =IF(P$10="",0,OFFSET(A2.HistoricalBalances!$E108,0,P$11)) -> 0 | Q110: =IF(Q$10="",0,OFFSET(A2.HistoricalBalances!$E108,0,Q$11)) -> 0 | S110: 0 | T110: =IF(T$10="",0,OFFSET(A2.HistoricalBalances!$E108,0,T$11)) -> 0 | U110: =IF(U$10="",0,OFFSET(A2.HistoricalBalances!$E108,0,U$11)) -> 0 | W110: 0 | X110: =IF(X$10="",0,OFFSET(A2.HistoricalBalances!$E108,0,X$11)) -> 0 | Y110: =IF(Y$10=ApprovedYr,A2.HistoricalBalances!$M108,X110) -> 0 | AB110: 0 | AC110: 0 | AF110: 0 | AG110: 0 | AJ110: 0 | AK110: 1710
B111: =""&Y2.ChartOfAccts!C109 -> 1715-Station Equipment | C111: =""&Y2.ChartOfAccts!D109 -> 1350-Not for distributor use | D111: =Y2.ChartOfAccts!F109 -> 0 | E111: =IF(E$10="",0,OFFSET(A2.HistoricalBalances!$E109,0,E$11)) -> 0 | G111: 0 | H111: =IF(H$10="",0,OFFSET(A2.HistoricalBalances!$E109,0,H$11)) -> 0 | K111: 0 | L111: =IF(L$10="",0,OFFSET(A2.HistoricalBalances!$E109,0,L$11)) -> 0 | M111: 0 | O111: 0 | P111: =IF(P$10="",0,OFFSET(A2.HistoricalBalances!$E109,0,P$11)) -> 0 | Q111: =IF(Q$10="",0,OFFSET(A2.HistoricalBalances!$E109,0,Q$11)) -> 0 | S111: 0 | T111: =IF(T$10="",0,OFFSET(A2.HistoricalBalances!$E109,0,T$11)) -> 0 | U111: =IF(U$10="",0,OFFSET(A2.HistoricalBalances!$E109,0,U$11)) -> 0 | W111: 0 | X111: =IF(X$10="",0,OFFSET(A2.HistoricalBalances!$E109,0,X$11)) -> 0 | Y111: =IF(Y$10=ApprovedYr,A2.HistoricalBalances!$M109,X111) -> 0 | AB111: 0 | AC111: 0 | AF111: 0 | AG111: 0 | AJ111: 0 | AK111: 1715
B112: =""&Y2.ChartOfAccts!C110 -> 1720-Towers and Fixtures | C112: =""&Y2.ChartOfAccts!D110 -> 1350-Not for distributor use | D112: =Y2.ChartOfAccts!F110 -> 0 | E112: =IF(E$10="",0,OFFSET(A2.HistoricalBalances!$E110,0,E$11)) -> 0 | G112: 0 | H112: =IF(H$10="",0,OFFSET(A2.HistoricalBalances!$E110,0,H$11)) -> 0 | K112: 0 | L112: =IF(L$10="",0,OFFSET(A2.HistoricalBalances!$E110,0,L$11)) -> 0 | M112: 0 | O112: 0 | P112: =IF(P$10="",0,OFFSET(A2.HistoricalBalances!$E110,0,P$11)) -> 0 | Q112: =IF(Q$10="",0,OFFSET(A2.HistoricalBalances!$E110,0,Q$11)) -> 0 | S112: 0 | T112: =IF(T$10="",0,OFFSET(A2.HistoricalBalances!$E110,0,T$11)) -> 0 | U112: =IF(U$10="",0,OFFSET(A2.HistoricalBalances!$E110,0,U$11)) -> 0 | W112: 0 | X112: =IF(X$10="",0,OFFSET(A2.HistoricalBalances!$E110,0,X$11)) -> 0 | Y112: =IF(Y$10=ApprovedYr,A2.HistoricalBalances!$M110,X112) -> 0 | AB112: 0 | AC112: 0 | AF112: 0 | AG112: 0 | AK112: 1720
B113: =""&Y2.ChartOfAccts!C111 -> 1725-Poles and Fixtures | C113: =""&Y2.ChartOfAccts!D111 -> 1350-Not for distributor use | D113: =Y2.ChartOfAccts!F111 -> 0 | E113: =IF(E$10="",0,OFFSET(A2.HistoricalBalances!$E111,0,E$11)) -> 0 | G113: 0 | H113: =IF(H$10="",0,OFFSET(A2.HistoricalBalances!$E111,0,H$11)) -> 0 | K113: 0 | L113: =IF(L$10="",0,OFFSET(A2.HistoricalBalances!$E111,0,L$11)) -> 0 | M113: 0 | O113: 0 | P113: =IF(P$10="",0,OFFSET(A2.HistoricalBalances!$E111,0,P$11)) -> 0 | Q113: =IF(Q$10="",0,OFFSET(A2.HistoricalBalances!$E111,0,Q$11)) -> 0 | S113: 0 | T113: =IF(T$10="",0,OFFSET(A2.HistoricalBalances!$E111,0,T$11)) -> 0 | U113: =IF(U$10="",0,OFFSET(A2.HistoricalBalances!$E111,0,U$11)) -> 0 | W113: 0 | X113: =IF(X$10="",0,OFFSET(A2.HistoricalBalances!$E111,0,X$11)) -> 0 | Y113: =IF(Y$10=ApprovedYr,A2.HistoricalBalances!$M111,X113) -> 0 | AB113: 0 | AC113: 0 | AF113: 0 | AG113: 0 | AK113: 1725
B114: =""&Y2.ChartOfAccts!C112 -> 1730-Overhead Conductors and Devices | C114: =""&Y2.ChartOfAccts!D112 -> 1350-Not for distributor use | D114: =Y2.ChartOfAccts!F112 -> 0 | E114: =IF(E$10="",0,OFFSET(A2.HistoricalBalances!$E112,0,E$11)) -> 0 | G114: 0 | H114: =IF(H$10="",0,OFFSET(A2.HistoricalBalances!$E112,0,H$11)) -> 0 | K114: 0 | L114: =IF(L$10="",0,OFFSET(A2.HistoricalBalances!$E112,0,L$11)) -> 0 | M114: 0 | O114: 0 | P114: =IF(P$10="",0,OFFSET(A2.HistoricalBalances!$E112,0,P$11)) -> 0 | Q114: =IF(Q$10="",0,OFFSET(A2.HistoricalBalances!$E112,0,Q$11)) -> 0 | S114: 0 | T114: =IF(T$10="",0,OFFSET(A2.HistoricalBalances!$E112,0,T$11)) -> 0 | U114: =IF(U$10="",0,OFFSET(A2.HistoricalBalances!$E112,0,U$11)) -> 0 | W114: 0 | X114: =IF(X$10="",0,OFFSET(A2.HistoricalBalances!$E112,0,X$11)) -> 0 | Y114: =IF(Y$10=ApprovedYr,A2.HistoricalBalances!$M112,X114) -> 0 | AB114: 0 | AC114: 0 | AF114: 0 | AG114: 0 | AK114: 1730
B115: =""&Y2.ChartOfAccts!C113 -> 1735-Underground Conduit | C115: =""&Y2.ChartOfAccts!D113 -> 1350-Not for distributor use | D115: =Y2.ChartOfAccts!F113 -> 0 | E115: =IF(E$10="",0,OFFSET(A2.HistoricalBalances!$E113,0,E$11)) -> 0 | G115: 0 | H115: =IF(H$10="",0,OFFSET(A2.HistoricalBalances!$E113,0,H$11)) -> 0 | K115: 0 | L115: =IF(L$10="",0,OFFSET(A2.HistoricalBalances!$E113,0,L$11)) -> 0 | M115: 0 | O115: 0 | P115: =IF(P$10="",0,OFFSET(A2.HistoricalBalances!$E113,0,P$11)) -> 0 | Q115: =IF(Q$10="",0,OFFSET(A2.HistoricalBalances!$E113,0,Q$11)) -> 0 | S115: 0 | T115: =IF(T$10="",0,OFFSET(A2.HistoricalBalances!$E113,0,T$11)) -> 0 | U115: =IF(U$10="",0,OFFSET(A2.HistoricalBalances!$E113,0,U$11)) -> 0 | W115: 0 | X115: =IF(X$10="",0,OFFSET(A2.HistoricalBalances!$E113,0,X$11)) -> 0 | Y115: =IF(Y$10=ApprovedYr,A2.HistoricalBalances!$M113,X115) -> 0 | AB115: 0 | AC115: 0 | AF115: 0 | AG115: 0 | AK115: 1735
B116: =""&Y2.ChartOfAccts!C114 -> 1740-Underground Conductors and Devices | C116: =""&Y2.ChartOfAccts!D114 -> 1350-Not for distributor use | D116: =Y2.ChartOfAccts!F114 -> 0 | E116: =IF(E$10="",0,OFFSET(A2.HistoricalBalances!$E114,0,E$11)) -> 0 | G116: 0 | H116: =IF(H$10="",0,OFFSET(A2.HistoricalBalances!$E114,0,H$11)) -> 0 | K116: 0 | L116: =IF(L$10="",0,OFFSET(A2.HistoricalBalances!$E114,0,L$11)) -> 0 | M116: 0 | O116: 0 | P116: =IF(P$10="",0,OFFSET(A2.HistoricalBalances!$E114,0,P$11)) -> 0 | Q116: =IF(Q$10="",0,OFFSET(A2.HistoricalBalances!$E114,0,Q$11)) -> 0 | S116: 0 | T116: =IF(T$10="",0,OFFSET(A2.HistoricalBalances!$E114,0,T$11)) -> 0 | U116: =IF(U$10="",0,OFFSET(A2.HistoricalBalances!$E114,0,U$11)) -> 0 | W116: 0 | X116: =IF(X$10="",0,OFFSET(A2.HistoricalBalances!$E114,0,X$11)) -> 0 | Y116: =IF(Y$10=ApprovedYr,A2.HistoricalBalances!$M114,X116) -> 0 | AB116: 0 | AC116: 0 | AF116: 0 | AG116: 0 | AK116: 1740
B117: =""&Y2.ChartOfAccts!C115 -> 1745-Roads and Trails | C117: =""&Y2.ChartOfAccts!D115 -> 1350-Not for distributor use | D117: =Y2.ChartOfAccts!F115 -> 0 | E117: =IF(E$10="",0,OFFSET(A2.HistoricalBalances!$E115,0,E$11)) -> 0 | G117: 0 | H117: =IF(H$10="",0,OFFSET(A2.HistoricalBalances!$E115,0,H$11)) -> 0 | K117: 0 | L117: =IF(L$10="",0,OFFSET(A2.HistoricalBalances!$E115,0,L$11)) -> 0 | M117: 0 | O117: 0 | P117: =IF(P$10="",0,OFFSET(A2.HistoricalBalances!$E115,0,P$11)) -> 0 | Q117: =IF(Q$10="",0,OFFSET(A2.HistoricalBalances!$E115,0,Q$11)) -> 0 | S117: 0 | T117: =IF(T$10="",0,OFFSET(A2.HistoricalBalances!$E115,0,T$11)) -> 0 | U117: =IF(U$10="",0,OFFSET(A2.HistoricalBalances!$E115,0,U$11)) -> 0 | W117: 0 | X117: =IF(X$10="",0,OFFSET(A2.HistoricalBalances!$E115,0,X$11)) -> 0 | Y117: =IF(Y$10=ApprovedYr,A2.HistoricalBalances!$M115,X117) -> 0 | AB117: 0 | AC117: 0 | AF117: 0 | AG117: 0 | AK117: 1745
B118: =""&Y2.ChartOfAccts!C116 -> 1805-Land | C118: =""&Y2.ChartOfAccts!D116 -> 1450-Distribution Plant | D118: =Y2.ChartOfAccts!F116 -> 1 | E118: =IF(E$10="",0,OFFSET(A2.HistoricalBalances!$E116,0,E$11)) -> 0 | G118: 0 | H118: =IF(H$10="",0,OFFSET(A2.HistoricalBalances!$E116,0,H$11)) -> 0 | I118: 227768.86 | K118: 0.14 | L118: =IF(L$10="",0,OFFSET(A2.HistoricalBalances!$E116,0,L$11)) -> 227769 | M118: 227768.86 | O118: 0 | P118: =IF(P$10="",0,OFFSET(A2.HistoricalBalances!$E116,0,P$11)) -> 227768.86 | Q118: =IF(Q$10="",0,OFFSET(A2.HistoricalBalances!$E116,0,Q$11)) -> 227768.86 | S118: 0 | T118: =IF(T$10="",0,OFFSET(A2.HistoricalBalances!$E116,0,T$11)) -> 227768.86 | U118: =IF(U$10="",0,OFFSET(A2.HistoricalBalances!$E116,0,U$11)) -> 227768.86 | W118: 0.14 | X118: =IF(X$10="",0,OFFSET(A2.HistoricalBalances!$E116,0,X$11)) -> 227769 | Y118: =IF(Y$10=ApprovedYr,A2.HistoricalBalances!$M116,X118) -> 227769 | AB118: 227769 | AC118: 227769 | AF118: 227769 | AG118: 1366613.72 | AJ118: 0 | AK118: 1805
B119: =""&Y2.ChartOfAccts!C117 -> 1806-Land Rights | C119: =""&Y2.ChartOfAccts!D117 -> 1450-Distribution Plant | D119: =Y2.ChartOfAccts!F117 -> 1 | E119: =IF(E$10="",0,OFFSET(A2.HistoricalBalances!$E117,0,E$11)) -> 0 | G119: 0 | H119: =IF(H$10="",0,OFFSET(A2.HistoricalBalances!$E117,0,H$11)) -> 0 | K119: 0 | L119: =IF(L$10="",0,OFFSET(A2.HistoricalBalances!$E117,0,L$11)) -> 0 | M119: 0 | O119: 0 | P119: =IF(P$10="",0,OFFSET(A2.HistoricalBalances!$E117,0,P$11)) -> 0 | Q119: =IF(Q$10="",0,OFFSET(A2.HistoricalBalances!$E117,0,Q$11)) -> 0 | S119: 0 | T119: =IF(T$10="",0,OFFSET(A2.HistoricalBalances!$E117,0,T$11)) -> 0 | U119: =IF(U$10="",0,OFFSET(A2.HistoricalBalances!$E117,0,U$11)) -> 0 | W119: 0 | X119: =IF(X$10="",0,OFFSET(A2.HistoricalBalances!$E117,0,X$11)) -> 0 | Y119: =IF(Y$10=ApprovedYr,A2.HistoricalBalances!$M117,X119) -> 0 | AB119: 0 | AC119: 0 | AF119: 0 | AG119: 0 | AK119: 1806
B120: =""&Y2.ChartOfAccts!C118 -> 1808-Buildings and Fixtures | C120: =""&Y2.ChartOfAccts!D118 -> 1450-Distribution Plant | D120: =Y2.ChartOfAccts!F118 -> 1 | E120: =IF(E$10="",0,OFFSET(A2.HistoricalBalances!$E118,0,E$11)) -> 0 | G120: 0 | H120: =IF(H$10="",0,OFFSET(A2.HistoricalBalances!$E118,0,H$11)) -> 0 | I120: 2450304 | J120: 16000 | K120: 0 | L120: =IF(L$10="",0,OFFSET(A2.HistoricalBalances!$E118,0,L$11)) -> 2466304 | M120: 2450304 | N120: 30908 | O120: -0.1000000001 | P120: =IF(P$10="",0,OFFSET(A2.HistoricalBalances!$E118,0,P$11)) -> 2481211.9 | Q120: =IF(Q$10="",0,OFFSET(A2.HistoricalBalances!$E118,0,Q$11)) -> 2481211.9 | R120: 5106.1 | S120: 9.276845958e-11 | T120: =IF(T$10="",0,OFFSET(A2.HistoricalBalances!$E118,0,T$11)) -> 2486318 | U120: =IF(U$10="",0,OFFSET(A2.HistoricalBalances!$E118,0,U$11)) -> 2486318 | W120: 0 | X120: =IF(X$10="",0,OFFSET(A2.HistoricalBalances!$E118,0,X$11)) -> 2486318 | Y120: =IF(Y$10=ApprovedYr,A2.HistoricalBalances!$M118,X120) -> 2486318 | Z120: 5000 | AB120: 2491318 | AC120: 2491318 | AD120: 9000 | AF120: 2500318 | AG120: 14911787.9 | AK120: 1808
B121: =""&Y2.ChartOfAccts!C119 -> 1810-Leasehold Improvements | C121: =""&Y2.ChartOfAccts!D119 -> 1450-Distribution Plant | D121: =Y2.ChartOfAccts!F119 -> 1 | E121: =IF(E$10="",0,OFFSET(A2.HistoricalBalances!$E119,0,E$11)) -> 0 | G121: 0 | H121: =IF(H$10="",0,OFFSET(A2.HistoricalBalances!$E119,0,H$11)) -> 0 | K121: 0 | L121: =IF(L$10="",0,OFFSET(A2.HistoricalBalances!$E119,0,L$11)) -> 0 | M121: 0 | O121: 0 | P121: =IF(P$10="",0,OFFSET(A2.HistoricalBalances!$E119,0,P$11)) -> 0 | Q121: =IF(Q$10="",0,OFFSET(A2.HistoricalBalances!$E119,0,Q$11)) -> 0 | S121: 0 | T121: =IF(T$10="",0,OFFSET(A2.HistoricalBalances!$E119,0,T$11)) -> 0 | U121: =IF(U$10="",0,OFFSET(A2.HistoricalBalances!$E119,0,U$11)) -> 0 | W121: 0 | X121: =IF(X$10="",0,OFFSET(A2.HistoricalBalances!$E119,0,X$11)) -> 0 | Y121: =IF(Y$10=ApprovedYr,A2.HistoricalBalances!$M119,X121) -> 0 | AB121: 0 | AC121: 0 | AF121: 0 | AG121: 0 | AK121: 1810
B122: =""&Y2.ChartOfAccts!C120 -> 1815-Transformer Station Equipment - Normally Primary above 50 kV | C122: =""&Y2.ChartOfAccts!D120 -> 1450-Distribution Plant | D122: =Y2.ChartOfAccts!F120 -> 1 | E122: =IF(E$10="",0,OFFSET(A2.HistoricalBalances!$E120,0,E$11)) -> 0 | G122: 0 | H122: =IF(H$10="",0,OFFSET(A2.HistoricalBalances!$E120,0,H$11)) -> 0 | K122: 0 | L122: =IF(L$10="",0,OFFSET(A2.HistoricalBalances!$E120,0,L$11)) -> 0 | M122: 0 | O122: 0 | P122: =IF(P$10="",0,OFFSET(A2.HistoricalBalances!$E120,0,P$11)) -> 0 | Q122: =IF(Q$10="",0,OFFSET(A2.HistoricalBalances!$E120,0,Q$11)) -> 0 | S122: 0 | T122: =IF(T$10="",0,OFFSET(A2.HistoricalBalances!$E120,0,T$11)) -> 0 | U122: =IF(U$10="",0,OFFSET(A2.HistoricalBalances!$E120,0,U$11)) -> 0 | W122: 0 | X122: =IF(X$10="",0,OFFSET(A2.HistoricalBalances!$E120,0,X$11)) -> 0 | Y122: =IF(Y$10=ApprovedYr,A2.HistoricalBalances!$M120,X122) -> 0 | AB122: 0 | AC122: 0 | AF122: 0 | AG122: 0 | AK122: 1815
B123: =""&Y2.ChartOfAccts!C121 -> 1820-Distribution Station Equipment - Normally Primary below 50 kV | C123: =""&Y2.ChartOfAccts!D121 -> 1450-Distribution Plant | D123: =Y2.ChartOfAccts!F121 -> 1 | E123: =IF(E$10="",0,OFFSET(A2.HistoricalBalances!$E121,0,E$11)) -> 0 | G123: 0 | H123: =IF(H$10="",0,OFFSET(A2.HistoricalBalances!$E121,0,H$11)) -> 0 | I123: 3588176 | K123: 241000 | L123: =IF(L$10="",0,OFFSET(A2.HistoricalBalances!$E121,0,L$11)) -> 3829176 | M123: 3544711 | N123: 123140.78 | O123: 0.2699999998 | P123: =IF(P$10="",0,OFFSET(A2.HistoricalBalances!$E121,0,P$11)) -> 3667852.05 | Q123: =IF(Q$10="",0,OFFSET(A2.HistoricalBalances!$E121,0,Q$11)) -> 3667852.05 | R123: 150637.49 | S123: 2.328306437e-10 | T123: =IF(T$10="",0,OFFSET(A2.HistoricalBalances!$E121,0,T$11)) -> 3818489.54 | U123: =IF(U$10="",0,OFFSET(A2.HistoricalBalances!$E121,0,U$11)) -> 3818489.54 | V123: 450639.48 | W123: -0.02000000002 | X123: =IF(X$10="",0,OFFSET(A2.HistoricalBalances!$E121,0,X$11)) -> 4269129 | Y123: =IF(Y$10=ApprovedYr,A2.HistoricalBalances!$M121,X123) -> 4269129 | Z123: 463809 | AB123: 4732938 | AC123: 4732938 | AD123: 520121 | AF123: 5253059 | AG123: 25570643.59 | AK123: 1820
B124: =""&Y2.ChartOfAccts!C122 -> 1825-Storage Battery Equipment | C124: =""&Y2.ChartOfAccts!D122 -> 1450-Distribution Plant | D124: =Y2.ChartOfAccts!F122 -> 0 | E124: =IF(E$10="",0,OFFSET(A2.HistoricalBalances!$E122,0,E$11)) -> 0 | G124: 0 | H124: =IF(H$10="",0,OFFSET(A2.HistoricalBalances!$E122,0,H$11)) -> 0 | K124: 0 | L124: =IF(L$10="",0,OFFSET(A2.HistoricalBalances!$E122,0,L$11)) -> 0 | M124: 0 | O124: 0 | P124: =IF(P$10="",0,OFFSET(A2.HistoricalBalances!$E122,0,P$11)) -> 0 | Q124: =IF(Q$10="",0,OFFSET(A2.HistoricalBalances!$E122,0,Q$11)) -> 0 | S124: 0 | T124: =IF(T$10="",0,OFFSET(A2.HistoricalBalances!$E122,0,T$11)) -> 0 | U124: =IF(U$10="",0,OFFSET(A2.HistoricalBalances!$E122,0,U$11)) -> 0 | W124: 0 | X124: =IF(X$10="",0,OFFSET(A2.HistoricalBalances!$E122,0,X$11)) -> 0 | Y124: =IF(Y$10=ApprovedYr,A2.HistoricalBalances!$M122,X124) -> 0 | AB124: 0 | AC124: 0 | AF124: 0 | AG124: 0 | AK124: 1825
B125: =""&Y2.ChartOfAccts!C123 -> 1830-Poles, Towers and Fixtures | C125: =""&Y2.ChartOfAccts!D123 -> 1450-Distribution Plant | D125: =Y2.ChartOfAccts!F123 -> 1 | E125: =IF(E$10="",0,OFFSET(A2.HistoricalBalances!$E123,0,E$11)) -> 0 | G125: 0 | H125: =IF(H$10="",0,OFFSET(A2.HistoricalBalances!$E123,0,H$11)) -> 0 | I125: 5230361 | K125: =L125-I125-J125 -> 618500 | L125: =IF(L$10="",0,OFFSET(A2.HistoricalBalances!$E123,0,L$11)) -> 5848861 | M125: 5289327 | N125: 591965.42 | P125: =IF(P$10="",0,OFFSET(A2.HistoricalBalances!$E123,0,P$11)) -> 5881292.72 | Q125: =IF(Q$10="",0,OFFSET(A2.HistoricalBalances!$E123,0,Q$11)) -> 5881292.72 | R125: =T125-Q125 -> 682474.67 | S125: 0 | T125: =IF(T$10="",0,OFFSET(A2.HistoricalBalances!$E123,0,T$11)) -> 6563767.39 | U125: =IF(U$10="",0,OFFSET(A2.HistoricalBalances!$E123,0,U$11)) -> 6563767.39 | V125: =X125-U125 -> 542315.61 | W125: 0 | X125: =IF(X$10="",0,OFFSET(A2.HistoricalBalances!$E123,0,X$11)) -> 7106083 | Y125: =IF(Y$10=ApprovedYr,A2.HistoricalBalances!$M123,X125) -> 7106083 | Z125: 734446 | AB125: 7840529 | AC125: 7840529 | AD125: 781179 | AF125: 8621708 | AG125: 41862241.11 | AK125: 1830
B126: =""&Y2.ChartOfAccts!C124 -> 1835-Overhead Conductors and Devices | C126: =""&Y2.ChartOfAccts!D124 -> 1450-Distribution Plant | D126: =Y2.ChartOfAccts!F124 -> 1 | E126: =IF(E$10="",0,OFFSET(A2.HistoricalBalances!$E124,0,E$11)) -> 0 | G126: 0 | H126: =IF(H$10="",0,OFFSET(A2.HistoricalBalances!$E124,0,H$11)) -> 0 | I126: 7932317 | K126: 843200 | L126: =IF(L$10="",0,OFFSET(A2.HistoricalBalances!$E124,0,L$11)) -> 8775517 | M126: 8884640 | N126: 664080.74 | O126: -1202043 | P126: =IF(P$10="",0,OFFSET(A2.HistoricalBalances!$E124,0,P$11)) -> 8346677.88 | Q126: =IF(Q$10="",0,OFFSET(A2.HistoricalBalances!$E124,0,Q$11)) -> 8346677.88 | R126: 726856.4 | S126: 0 | T126: =IF(T$10="",0,OFFSET(A2.HistoricalBalances!$E124,0,T$11)) -> 9073534.28 | U126: =IF(U$10="",0,OFFSET(A2.HistoricalBalances!$E124,0,U$11)) -> 9073534.28 | V126: 673322.72 | W126: 0 | X126: =IF(X$10="",0,OFFSET(A2.HistoricalBalances!$E124,0,X$11)) -> 9746857 | Y126: =IF(Y$10=ApprovedYr,A2.HistoricalBalances!$M124,X126) -> 9746857 | Z126: 707985 | AB126: 10454842 | AC126: 10454842 | AD126: 748211 | AF126: 11203053 | AG126: 57600481.16 | AJ126: 0 | AK126: 1835
B127: =""&Y2.ChartOfAccts!C125 -> 1840-Underground Conduit | C127: =""&Y2.ChartOfAccts!D125 -> 1450-Distribution Plant | D127: =Y2.ChartOfAccts!F125 -> 1 | E127: =IF(E$10="",0,OFFSET(A2.HistoricalBalances!$E125,0,E$11)) -> 0 | G127: 0 | H127: =IF(H$10="",0,OFFSET(A2.HistoricalBalances!$E125,0,H$11)) -> 0 | I127: 2809409 | K127: 0 | L127: =IF(L$10="",0,OFFSET(A2.HistoricalBalances!$E125,0,L$11)) -> 2809409 | M127: 2598184 | N127: 72698.66 | P127: =IF(P$10="",0,OFFSET(A2.HistoricalBalances!$E125,0,P$11)) -> 2670882.75 | Q127: =IF(Q$10="",0,OFFSET(A2.HistoricalBalances!$E125,0,Q$11)) -> 2670882.75 | R127: 35402.84 | S127: 0 | T127: =IF(T$10="",0,OFFSET(A2.HistoricalBalances!$E125,0,T$11)) -> 2706285.59 | U127: =IF(U$10="",0,OFFSET(A2.HistoricalBalances!$E125,0,U$11)) -> 2706285.59 | V127: 338350.41 | W127: 0 | X127: =IF(X$10="",0,OFFSET(A2.HistoricalBalances!$E125,0,X$11)) -> 3044636 | Y127: =IF(Y$10=ApprovedYr,A2.HistoricalBalances!$M125,X127) -> 3044636 | Z127: 239152 | AB127: 3283788 | AC127: 3283788 | AD127: 335057 | AF127: 3618845 | AG127: 18133846.34 | AJ127: 0 | AK127: 1840
B128: =""&Y2.ChartOfAccts!C126 -> 1845-Underground Conductors and Devices | C128: =""&Y2.ChartOfAccts!D126 -> 1450-Distribution Plant | D128: =Y2.ChartOfAccts!F126 -> 1 | E128: =IF(E$10="",0,OFFSET(A2.HistoricalBalances!$E126,0,E$11)) -> 0 | G128: 0 | H128: =IF(H$10="",0,OFFSET(A2.HistoricalBalances!$E126,0,H$11)) -> 0 | I128: 6633637 | K128: 505500 | L128: =IF(L$10="",0,OFFSET(A2.HistoricalBalances!$E126,0,L$11)) -> 7139137 | M128: 5229426 | N128: 2435317.39 | P128: =IF(P$10="",0,OFFSET(A2.HistoricalBalances!$E126,0,P$11)) -> 7664743.39 | Q128: =IF(Q$10="",0,OFFSET(A2.HistoricalBalances!$E126,0,Q$11)) -> 7664743.39 | R128: 632802.96 | S128: 0 | T128: =IF(T$10="",0,OFFSET(A2.HistoricalBalances!$E126,0,T$11)) -> 8297546.35 | U128: =IF(U$10="",0,OFFSET(A2.HistoricalBalances!$E126,0,U$11)) -> 8297546.35 | V128: 551064.65 | W128: 0 | X128: =IF(X$10="",0,OFFSET(A2.HistoricalBalances!$E126,0,X$11)) -> 8848611 | Y128: =IF(Y$10=ApprovedYr,A2.HistoricalBalances!$M126,X128) -> 8848611 | Z128: 368494 | AB128: 9217105 | AC128: 9217105 | AD128: 404073 | AF128: 9621178 | AG128: 50788320.74 | AJ128: 0 | AK128: 1845
B129: =""&Y2.ChartOfAccts!C127 -> 1850-Line Transformers | C129: =""&Y2.ChartOfAccts!D127 -> 1450-Distribution Plant | D129: =Y2.ChartOfAccts!F127 -> 1 | E129: =IF(E$10="",0,OFFSET(A2.HistoricalBalances!$E127,0,E$11)) -> 0 | G129: 0 | H129: =IF(H$10="",0,OFFSET(A2.HistoricalBalances!$E127,0,H$11)) -> 0 | I129: 6721963 | K129: 536000 | L129: =IF(L$10="",0,OFFSET(A2.HistoricalBalances!$E127,0,L$11)) -> 7257963 | M129: 7571587 | N129: 29689.07 | P129: =IF(P$10="",0,OFFSET(A2.HistoricalBalances!$E127,0,P$11)) -> 7601276.07 | Q129: =IF(Q$10="",0,OFFSET(A2.HistoricalBalances!$E127,0,Q$11)) -> 7601276.07 | R129: -100985.31 | S129: 0 | T129: =IF(T$10="",0,OFFSET(A2.HistoricalBalances!$E127,0,T$11)) -> 7500290.76 | U129: =IF(U$10="",0,OFFSET(A2.HistoricalBalances!$E127,0,U$11)) -> 7500290.76 | V129: 507270.24 | W129: 0 | X129: =IF(X$10="",0,OFFSET(A2.HistoricalBalances!$E127,0,X$11)) -> 8007561 | Y129: =IF(Y$10=ApprovedYr,A2.HistoricalBalances!$M127,X129) -> 8007561 | Z129: 504230 | AB129: 8511791 | AC129: 8511791 | AD129: 529371 | AF129: 9041162 | AG129: 47920043.83 | AK129: 1850
B130: =""&Y2.ChartOfAccts!C128 -> 1855-Services | C130: =""&Y2.ChartOfAccts!D128 -> 1450-Distribution Plant | D130: =Y2.ChartOfAccts!F128 -> 1 | E130: =IF(E$10="",0,OFFSET(A2.HistoricalBalances!$E128,0,E$11)) -> 0 | G130: 0 | H130: =IF(H$10="",0,OFFSET(A2.HistoricalBalances!$E128,0,H$11)) -> 0 | I130: 3229743 | K130: 35500 | L130: =IF(L$10="",0,OFFSET(A2.HistoricalBalances!$E128,0,L$11)) -> 3265243 | M130: 3361513 | N130: 344647.76 | P130: =IF(P$10="",0,OFFSET(A2.HistoricalBalances!$E128,0,P$11)) -> 3706161 | Q130: =IF(Q$10="",0,OFFSET(A2.HistoricalBalances!$E128,0,Q$11)) -> 3706161 | R130: 250877.32 | S130: 0 | T130: =IF(T$10="",0,OFFSET(A2.HistoricalBalances!$E128,0,T$11)) -> 3957038.32 | U130: =IF(U$10="",0,OFFSET(A2.HistoricalBalances!$E128,0,U$11)) -> 3957038.32 | V130: 473443.68 | W130: 0 | X130: =IF(X$10="",0,OFFSET(A2.HistoricalBalances!$E128,0,X$11)) -> 4430482 | Y130: =IF(Y$10=ApprovedYr,A2.HistoricalBalances!$M128,X130) -> 4430482 | Z130: 527103 | AB130: 4957585 | AC130: 4957585 | AD130: 532665 | AF130: 5490250 | AG130: 25806759.32 | AK130: 1855
B131: =""&Y2.ChartOfAccts!C129 -> 1860-Meters | C131: =""&Y2.ChartOfAccts!D129 -> 1450-Distribution Plant | D131: =Y2.ChartOfAccts!F129 -> 1 | E131: =IF(E$10="",0,OFFSET(A2.HistoricalBalances!$E129,0,E$11)) -> 0 | G131: 0 | H131: =IF(H$10="",0,OFFSET(A2.HistoricalBalances!$E129,0,H$11)) -> 0 | I131: 2716274 | K131: 30000 | L131: =IF(L$10="",0,OFFSET(A2.HistoricalBalances!$E129,0,L$11)) -> 2746274 | M131: =2528394+61140 -> 2589534 | N131: 82372.78 | O131: =-602915-61140 -> -664055 | P131: =IF(P$10="",0,OFFSET(A2.HistoricalBalances!$E129,0,P$11)) -> 2007851.5 | Q131: =IF(Q$10="",0,OFFSET(A2.HistoricalBalances!$E129,0,Q$11)) -> 2007851.5 | R131: 98374.9 | S131: -286176.86 | T131: =IF(T$10="",0,OFFSET(A2.HistoricalBalances!$E129,0,T$11)) -> 1820049.54 | U131: =IF(U$10="",0,OFFSET(A2.HistoricalBalances!$E129,0,U$11)) -> 1820049.54 | V131: =105634+64884 -> 170518 | W131: -305370.54 | X131: =IF(X$10="",0,OFFSET(A2.HistoricalBalances!$E129,0,X$11)) -> 1685197 | Y131: =IF(Y$10=ApprovedYr,A2.HistoricalBalances!$M129,X131) -> 1685197 | Z131: 29737 | AB131: 1714934 | AC131: 1714934 | AD131: =168857+3626141 -> 3794998 | AF131: 5509932 | AG131: 15484238.04 | AK131: 1860
B132: =""&Y2.ChartOfAccts!C130 -> 1865-Other Installations on Customer's Premises | C132: =""&Y2.ChartOfAccts!D130 -> 1450-Distribution Plant | D132: =Y2.ChartOfAccts!F130 -> 0 | E132: =IF(E$10="",0,OFFSET(A2.HistoricalBalances!$E130,0,E$11)) -> 0 | G132: 0 | H132: =IF(H$10="",0,OFFSET(A2.HistoricalBalances!$E130,0,H$11)) -> 0 | K132: 0 | L132: =IF(L$10="",0,OFFSET(A2.HistoricalBalances!$E130,0,L$11)) -> 0 | M132: 0 | N132: 324.19 | O132: 1310.44 | P132: =IF(P$10="",0,OFFSET(A2.HistoricalBalances!$E130,0,P$11)) -> 1634.63 | Q132: =IF(Q$10="",0,OFFSET(A2.HistoricalBalances!$E130,0,Q$11)) -> 1634.63 | S132: 0 | T132: =IF(T$10="",0,OFFSET(A2.HistoricalBalances!$E130,0,T$11)) -> 1634.63 | U132: =IF(U$10="",0,OFFSET(A2.HistoricalBalances!$E130,0,U$11)) -> 1634.63 | W132: 0.37 | X132: =IF(X$10="",0,OFFSET(A2.HistoricalBalances!$E130,0,X$11)) -> 1635 | Y132: =IF(Y$10=ApprovedYr,A2.HistoricalBalances!$M130,X132) -> 1635 | AB132: 1635 | AC132: 1635 | AF132: 1635 | AG132: 8174.26 | AK132: 1865
B133: =""&Y2.ChartOfAccts!C131 -> 1870-Leased Property on Customer Premises | C133: =""&Y2.ChartOfAccts!D131 -> 1450-Distribution Plant | D133: =Y2.ChartOfAccts!F131 -> 0 | E133: =IF(E$10="",0,OFFSET(A2.HistoricalBalances!$E131,0,E$11)) -> 0 | G133: 0 | H133: =IF(H$10="",0,OFFSET(A2.HistoricalBalances!$E131,0,H$11)) -> 0 | K133: 0 | L133: =IF(L$10="",0,OFFSET(A2.HistoricalBalances!$E131,0,L$11)) -> 0 | M133: 0 | N133: 4703.82 | O133: -4703.82 | P133: =IF(P$10="",0,OFFSET(A2.HistoricalBalances!$E131,0,P$11)) -> 0 | Q133: =IF(Q$10="",0,OFFSET(A2.HistoricalBalances!$E131,0,Q$11)) -> 0 | S133: 0 | T133: =IF(T$10="",0,OFFSET(A2.HistoricalBalances!$E131,0,T$11)) -> 0 | U133: =IF(U$10="",0,OFFSET(A2.HistoricalBalances!$E131,0,U$11)) -> 0 | W133: 0 | X133: =IF(X$10="",0,OFFSET(A2.HistoricalBalances!$E131,0,X$11)) -> 0 | Y133: =IF(Y$10=ApprovedYr,A2.HistoricalBalances!$M131,X133) -> 0 | AB133: 0 | AC133: 0 | AF133: 0 | AG133: 0 | AK133: 1870
B134: =""&Y2.ChartOfAccts!C132 -> 1875-Street Lighting and Signal Systems | C134: =""&Y2.ChartOfAccts!D132 -> 1450-Distribution Plant | D134: =Y2.ChartOfAccts!F132 -> 0 | E134: =IF(E$10="",0,OFFSET(A2.HistoricalBalances!$E132,0,E$11)) -> 0 | G134: 0 | H134: =IF(H$10="",0,OFFSET(A2.HistoricalBalances!$E132,0,H$11)) -> 0 | K134: 0 | L134: =IF(L$10="",0,OFFSET(A2.HistoricalBalances!$E132,0,L$11)) -> 0 | M134: 0 | N134: 45510.28 | O134: -45510.28 | P134: =IF(P$10="",0,OFFSET(A2.HistoricalBalances!$E132,0,P$11)) -> 0 | Q134: =IF(Q$10="",0,OFFSET(A2.HistoricalBalances!$E132,0,Q$11)) -> 0 | S134: 0 | T134: =IF(T$10="",0,OFFSET(A2.HistoricalBalances!$E132,0,T$11)) -> 0 | U134: =IF(U$10="",0,OFFSET(A2.HistoricalBalances!$E132,0,U$11)) -> 0 | W134: 0 | X134: =IF(X$10="",0,OFFSET(A2.HistoricalBalances!$E132,0,X$11)) -> 0 | Y134: =IF(Y$10=ApprovedYr,A2.HistoricalBalances!$M132,X134) -> 0 | AB134: 0 | AC134: 0 | AF134: 0 | AG134: 0 | AK134: 1875
B135: =""&Y2.ChartOfAccts!C133 -> 1905-Land | C135: =""&Y2.ChartOfAccts!D133 -> 1500-General Plant | D135: =Y2.ChartOfAccts!F133 -> 1 | E135: =IF(E$10="",0,OFFSET(A2.HistoricalBalances!$E133,0,E$11)) -> 0 | G135: 0 | H135: =IF(H$10="",0,OFFSET(A2.HistoricalBalances!$E133,0,H$11)) -> 0 | K135: 0 | L135: =IF(L$10="",0,OFFSET(A2.HistoricalBalances!$E133,0,L$11)) -> 0 | M135: 0 | O135: 0 | P135: =IF(P$10="",0,OFFSET(A2.HistoricalBalances!$E133,0,P$11)) -> 0 | Q135: =IF(Q$10="",0,OFFSET(A2.HistoricalBalances!$E133,0,Q$11)) -> 0 | S135: 0 | T135: =IF(T$10="",0,OFFSET(A2.HistoricalBalances!$E133,0,T$11)) -> 0 | U135: =IF(U$10="",0,OFFSET(A2.HistoricalBalances!$E133,0,U$11)) -> 0 | W135: 0 | X135: =IF(X$10="",0,OFFSET(A2.HistoricalBalances!$E133,0,X$11)) -> 0 | Y135: =IF(Y$10=ApprovedYr,A2.HistoricalBalances!$M133,X135) -> 0 | AB135: 0 | AC135: 0 | AF135: 0 | AG135: 0 | AK135: 1905
B136: =""&Y2.ChartOfAccts!C134 -> 1906-Land Rights | C136: =""&Y2.ChartOfAccts!D134 -> 1500-General Plant | D136: =Y2.ChartOfAccts!F134 -> 1 | E136: =IF(E$10="",0,OFFSET(A2.HistoricalBalances!$E134,0,E$11)) -> 0 | G136: 0 | H136: =IF(H$10="",0,OFFSET(A2.HistoricalBalances!$E134,0,H$11)) -> 0 | K136: 0 | L136: =IF(L$10="",0,OFFSET(A2.HistoricalBalances!$E134,0,L$11)) -> 0 | M136: 0 | O136: 0 | P136: =IF(P$10="",0,OFFSET(A2.HistoricalBalances!$E134,0,P$11)) -> 0 | Q136: =IF(Q$10="",0,OFFSET(A2.HistoricalBalances!$E134,0,Q$11)) -> 0 | S136: 0 | T136: =IF(T$10="",0,OFFSET(A2.HistoricalBalances!$E134,0,T$11)) -> 0 | U136: =IF(U$10="",0,OFFSET(A2.HistoricalBalances!$E134,0,U$11)) -> 0 | W136: 0 | X136: =IF(X$10="",0,OFFSET(A2.HistoricalBalances!$E134,0,X$11)) -> 0 | Y136: =IF(Y$10=ApprovedYr,A2.HistoricalBalances!$M134,X136) -> 0 | AB136: 0 | AC136: 0 | AF136: 0 | AG136: 0 | AK136: 1906
B137: =""&Y2.ChartOfAccts!C135 -> 1908-Buildings and Fixtures | C137: =""&Y2.ChartOfAccts!D135 -> 1500-General Plant | D137: =Y2.ChartOfAccts!F135 -> 1 | E137: =IF(E$10="",0,OFFSET(A2.HistoricalBalances!$E135,0,E$11)) -> 0 | G137: 0 | H137: =IF(H$10="",0,OFFSET(A2.HistoricalBalances!$E135,0,H$11)) -> 0 | K137: 0 | L137: =IF(L$10="",0,OFFSET(A2.HistoricalBalances!$E135,0,L$11)) -> 0 | M137: 0 | O137: 0 | P137: =IF(P$10="",0,OFFSET(A2.HistoricalBalances!$E135,0,P$11)) -> 0 | Q137: =IF(Q$10="",0,OFFSET(A2.HistoricalBalances!$E135,0,Q$11)) -> 0 | S137: 0 | T137: =IF(T$10="",0,OFFSET(A2.HistoricalBalances!$E135,0,T$11)) -> 0 | U137: =IF(U$10="",0,OFFSET(A2.HistoricalBalances!$E135,0,U$11)) -> 0 | W137: 0 | X137: =IF(X$10="",0,OFFSET(A2.HistoricalBalances!$E135,0,X$11)) -> 0 | Y137: =IF(Y$10=ApprovedYr,A2.HistoricalBalances!$M135,X137) -> 0 | AB137: 0 | AC137: 0 | AF137: 0 | AG137: 0 | AK137: 1908
B138: =""&Y2.ChartOfAccts!C136 -> 1910-Leasehold Improvements | C138: =""&Y2.ChartOfAccts!D136 -> 1500-General Plant | D138: =Y2.ChartOfAccts!F136 -> 1 | E138: =IF(E$10="",0,OFFSET(A2.HistoricalBalances!$E136,0,E$11)) -> 0 | G138: 0 | H138: =IF(H$10="",0,OFFSET(A2.HistoricalBalances!$E136,0,H$11)) -> 0 | K138: 0 | L138: =IF(L$10="",0,OFFSET(A2.HistoricalBalances!$E136,0,L$11)) -> 0 | M138: 0 | O138: 0 | P138: =IF(P$10="",0,OFFSET(A2.HistoricalBalances!$E136,0,P$11)) -> 0 | Q138: =IF(Q$10="",0,OFFSET(A2.HistoricalBalances!$E136,0,Q$11)) -> 0 | S138: 0 | T138: =IF(T$10="",0,OFFSET(A2.HistoricalBalances!$E136,0,T$11)) -> 0 | U138: =IF(U$10="",0,OFFSET(A2.HistoricalBalances!$E136,0,U$11)) -> 0 | W138: 0 | X138: =IF(X$10="",0,OFFSET(A2.HistoricalBalances!$E136,0,X$11)) -> 0 | Y138: =IF(Y$10=ApprovedYr,A2.HistoricalBalances!$M136,X138) -> 0 | AB138: 0 | AC138: 0 | AF138: 0 | AG138: 0 | AK138: 1910
B139: =""&Y2.ChartOfAccts!C137 -> 1915-Office Furniture and Equipment | C139: =""&Y2.ChartOfAccts!D137 -> 1500-General Plant | D139: =Y2.ChartOfAccts!F137 -> 1 | E139: =IF(E$10="",0,OFFSET(A2.HistoricalBalances!$E137,0,E$11)) -> 0 | G139: 0 | H139: =IF(H$10="",0,OFFSET(A2.HistoricalBalances!$E137,0,H$11)) -> 0 | I139: 245418.42 | K139: 1999.58 | L139: =IF(L$10="",0,OFFSET(A2.HistoricalBalances!$E137,0,L$11)) -> 247418 | M139: 244053 | P139: =IF(P$10="",0,OFFSET(A2.HistoricalBalances!$E137,0,P$11)) -> 244053.3 | Q139: =IF(Q$10="",0,OFFSET(A2.HistoricalBalances!$E137,0,Q$11)) -> 244053.3 | R139: =T139-Q139 -> 7834.05 | S139: 0 | T139: =IF(T$10="",0,OFFSET(A2.HistoricalBalances!$E137,0,T$11)) -> 251887.35 | U139: =IF(U$10="",0,OFFSET(A2.HistoricalBalances!$E137,0,U$11)) -> 251887.35 | V139: =X139-U139 -> 10588.65 | W139: 0 | X139: =IF(X$10="",0,OFFSET(A2.HistoricalBalances!$E137,0,X$11)) -> 262476 | Y139: =IF(Y$10=ApprovedYr,A2.HistoricalBalances!$M137,X139) -> 262476 | Z139: 5000 | AB139: 267476 | AC139: 267476 | AD139: 2000 | AF139: 269476 | AG139: 1542786.65 | AK139: 1915
B140: =""&Y2.ChartOfAccts!C138 -> 1920-Computer Equipment - Hardware | C140: =""&Y2.ChartOfAccts!D138 -> 1500-General Plant | D140: =Y2.ChartOfAccts!F138 -> 1 | E140: =IF(E$10="",0,OFFSET(A2.HistoricalBalances!$E138,0,E$11)) -> 0 | G140: 0 | H140: =IF(H$10="",0,OFFSET(A2.HistoricalBalances!$E138,0,H$11)) -> 0 | I140: 396174.07 | K140: 11799.93 | L140: =IF(L$10="",0,OFFSET(A2.HistoricalBalances!$E138,0,L$11)) -> 407974 | M140: =275946+52212+69332 -> 397490 | N140: 24238.11 | P140: =IF(P$10="",0,OFFSET(A2.HistoricalBalances!$E138,0,P$11)) -> 421727.66 | Q140: =IF(Q$10="",0,OFFSET(A2.HistoricalBalances!$E138,0,Q$11)) -> 421727.66 | R140: =T140-Q140 -> 14881.22 | S140: 0 | T140: =IF(T$10="",0,OFFSET(A2.HistoricalBalances!$E138,0,T$11)) -> 436608.88 | U140: =IF(U$10="",0,OFFSET(A2.HistoricalBalances!$E138,0,U$11)) -> 436608.88 | V140: =X140-U140 -> 45385.12 | W140: 0 | X140: =IF(X$10="",0,OFFSET(A2.HistoricalBalances!$E138,0,X$11)) -> 481994 | Y140: =IF(Y$10=ApprovedYr,A2.HistoricalBalances!$M138,X140) -> 481994 | Z140: 22000 | AB140: 503994 | AC140: =AB140 -> 503994 | AD140: =28600+62873 -> 91473 | AF140: 595467 | AG140: 2847765.54 | AK140: =VALUE(LEFT(B140,4)) -> 1920
B141: =""&Y2.ChartOfAccts!C139 -> 1925-Computer Software | C141: =""&Y2.ChartOfAccts!D139 -> 1500-General Plant | D141: =Y2.ChartOfAccts!F139 -> 1 | E141: =IF(E$10="",0,OFFSET(A2.HistoricalBalances!$E139,0,E$11)) -> 0 | G141: =H141-E141-F141 -> 0 | H141: =IF(H$10="",0,OFFSET(A2.HistoricalBalances!$E139,0,H$11)) -> 0 | I141: 714890 | K141: =L141-I141-J141 -> 35400 | L141: =IF(L$10="",0,OFFSET(A2.HistoricalBalances!$E139,0,L$11)) -> 750290 | M141: 726871 | N141: 23487.95 | P141: =IF(P$10="",0,OFFSET(A2.HistoricalBalances!$E139,0,P$11)) -> 750359.22 | Q141: =IF(Q$10="",0,OFFSET(A2.HistoricalBalances!$E139,0,Q$11)) -> 750359.22 | R141: =T141-Q141 -> 104332.02 | S141: =T141-Q141-R141 -> 0 | T141: =IF(T$10="",0,OFFSET(A2.HistoricalBalances!$E139,0,T$11)) -> 854691.24 | U141: =IF(U$10="",0,OFFSET(A2.HistoricalBalances!$E139,0,U$11)) -> 854691.24 | V141: =X141-U141 -> 89764.76 | W141: =X141-U141-V141 -> 0 | X141: =IF(X$10="",0,OFFSET(A2.HistoricalBalances!$E139,0,X$11)) -> 944456 | Y141: =IF(Y$10=ApprovedYr,A2.HistoricalBalances!$M139,X141) -> 944456 | Z141: 50000 | AB141: =SUM(Y141:AA141) -> 994456 | AC141: 994456 | AD141: =274217+45000 -> 319217 | AF141: =SUM(AC141:AE141) -> 1313673 | AG141: =ABS(E141)+ABS(H141)+ABS(L141)+ABS(P141)+ABS(T141)+ABS(X141)+ABS(AB141)+ABS(AF141) -> 5607925.46 | AK141: 1925
B142: =""&Y2.ChartOfAccts!C140 -> 1930-Transportation Equipment | C142: =""&Y2.ChartOfAccts!D140 -> 1500-General Plant | D142: =Y2.ChartOfAccts!F140 -> 1 | E142: =IF(E$10="",0,OFFSET(A2.HistoricalBalances!$E140,0,E$11)) -> 0 | G142: 0 | H142: =IF(H$10="",0,OFFSET(A2.HistoricalBalances!$E140,0,H$11)) -> 0 | I142: 1634555.19 | K142: 19999.81 | L142: =IF(L$10="",0,OFFSET(A2.HistoricalBalances!$E140,0,L$11)) -> 1654555 | M142: 1618262 | N142: 28861.91 | O142: =P142-M142-N142 -> 0.33 | P142: =IF(P$10="",0,OFFSET(A2.HistoricalBalances!$E140,0,P$11)) -> 1647124.24 | Q142: =IF(Q$10="",0,OFFSET(A2.HistoricalBalances!$E140,0,Q$11)) -> 1647124.24 | R142: 276546.79 | S142: -85000 | T142: =IF(T$10="",0,OFFSET(A2.HistoricalBalances!$E140,0,T$11)) -> 1838671.03 | U142: =IF(U$10="",0,OFFSET(A2.HistoricalBalances!$E140,0,U$11)) -> 1838671.03 | V142: 284250 | W142: -138750.03 | X142: =IF(X$10="",0,OFFSET(A2.HistoricalBalances!$E140,0,X$11)) -> 1984171 | Y142: =IF(Y$10=ApprovedYr,A2.HistoricalBalances!$M140,X142) -> 1984171 | Z142: 450000 | AA142: -150000 | AB142: 2284171 | AC142: 2284171 | AD142: 400000 | AE142: -50000 | AF142: 2634171 | AG142: 12042863.27 | AK142: 1930
B143: =""&Y2.ChartOfAccts!C141 -> 1935-Stores Equipment | C143: =""&Y2.ChartOfAccts!D141 -> 1500-General Plant | D143: =Y2.ChartOfAccts!F141 -> 1 | E143: =IF(E$10="",0,OFFSET(A2.HistoricalBalances!$E141,0,E$11)) -> 0 | G143: 0 | H143: =IF(H$10="",0,OFFSET(A2.HistoricalBalances!$E141,0,H$11)) -> 0 | I143: 19842.34 | K143: 72499.66 | L143: =IF(L$10="",0,OFFSET(A2.HistoricalBalances!$E141,0,L$11)) -> 92342 | M143: 23501 | N143: 67435.82 | O143: 0.39 | P143: =IF(P$10="",0,OFFSET(A2.HistoricalBalances!$E141,0,P$11)) -> 90937.21 | Q143: =IF(Q$10="",0,OFFSET(A2.HistoricalBalances!$E141,0,Q$11)) -> 90937.21 | S143: 0 | T143: =IF(T$10="",0,OFFSET(A2.HistoricalBalances!$E141,0,T$11)) -> 90937.21 | U143: =IF(U$10="",0,OFFSET(A2.HistoricalBalances!$E141,0,U$11)) -> 90937.21 | W143: -5900.21 | X143: =IF(X$10="",0,OFFSET(A2.HistoricalBalances!$E141,0,X$11)) -> 85037 | Y143: =IF(Y$10=ApprovedYr,A2.HistoricalBalances!$M141,X143) -> 85037 | AB143: 85037 | AC143: 85037 | AF143: 85037 | AG143: 529327.42 | AK143: 1935
B144: =""&Y2.ChartOfAccts!C142 -> 1940-Tools, Shop and Garage Equipment | C144: =""&Y2.ChartOfAccts!D142 -> 1500-General Plant | D144: =Y2.ChartOfAccts!F142 -> 1 | E144: =IF(E$10="",0,OFFSET(A2.HistoricalBalances!$E142,0,E$11)) -> 0 | G144: 0 | H144: =IF(H$10="",0,OFFSET(A2.HistoricalBalances!$E142,0,H$11)) -> 0 | I144: 229420.37 | K144: 44999.63 | L144: =IF(L$10="",0,OFFSET(A2.HistoricalBalances!$E142,0,L$11)) -> 274420 | M144: 214184 | N144: 27924.48 | O144: 0.3 | P144: =IF(P$10="",0,OFFSET(A2.HistoricalBalances!$E142,0,P$11)) -> 242108.78 | Q144: =IF(Q$10="",0,OFFSET(A2.HistoricalBalances!$E142,0,Q$11)) -> 242108.78 | R144: 36167.24 | S144: 0 | T144: =IF(T$10="",0,OFFSET(A2.HistoricalBalances!$E142,0,T$11)) -> 278276.02 | U144: =IF(U$10="",0,OFFSET(A2.HistoricalBalances!$E142,0,U$11)) -> 278276.02 | V144: 18504.95 | W144: 0.02999999998 | X144: =IF(X$10="",0,OFFSET(A2.HistoricalBalances!$E142,0,X$11)) -> 296781 | Y144: =IF(Y$10=ApprovedYr,A2.HistoricalBalances!$M142,X144) -> 296781 | Z144: 72000 | AB144: 368781 | AC144: 368781 | AD144: 72000 | AF144: 440781 | AG144: 1901147.8 | AK144: 1940
B145: =""&Y2.ChartOfAccts!C143 -> 1945-Measurement and Testing Equipment | C145: =""&Y2.ChartOfAccts!D143 -> 1500-General Plant | D145: =Y2.ChartOfAccts!F143 -> 1 | E145: =IF(E$10="",0,OFFSET(A2.HistoricalBalances!$E143,0,E$11)) -> 0 | G145: 0 | H145: =IF(H$10="",0,OFFSET(A2.HistoricalBalances!$E143,0,H$11)) -> 0 | I145: 51481.94 | K145: 0.06 | L145: =IF(L$10="",0,OFFSET(A2.HistoricalBalances!$E143,0,L$11)) -> 51482 | M145: 59760 | N145: 0 | O145: 0 | P145: =IF(P$10="",0,OFFSET(A2.HistoricalBalances!$E143,0,P$11)) -> 59760 | Q145: =IF(Q$10="",0,OFFSET(A2.HistoricalBalances!$E143,0,Q$11)) -> 59760 | R145: 3378.5 | S145: 0 | T145: =IF(T$10="",0,OFFSET(A2.HistoricalBalances!$E143,0,T$11)) -> 63138.5 | U145: =IF(U$10="",0,OFFSET(A2.HistoricalBalances!$E143,0,U$11)) -> 63138.5 | V145: 4405.08 | W145: 0.42 | X145: =IF(X$10="",0,OFFSET(A2.HistoricalBalances!$E143,0,X$11)) -> 67544 | Y145: =IF(Y$10=ApprovedYr,A2.HistoricalBalances!$M143,X145) -> 67544 | AB145: 67544 | AC145: 67544 | AF145: 67544 | AG145: 377012.5 | AK145: 1945
B146: =""&Y2.ChartOfAccts!C144 -> 1950-Power Operated Equipment | C146: =""&Y2.ChartOfAccts!D144 -> 1500-General Plant | D146: =Y2.ChartOfAccts!F144 -> 1 | E146: =IF(E$10="",0,OFFSET(A2.HistoricalBalances!$E144,0,E$11)) -> 0 | G146: 0 | H146: =IF(H$10="",0,OFFSET(A2.HistoricalBalances!$E144,0,H$11)) -> 0 | I146: 30010.94 | K146: 42000.06 | L146: =IF(L$10="",0,OFFSET(A2.HistoricalBalances!$E144,0,L$11)) -> 72011 | M146: 66947 | N146: 33325.02 | O146: -0.05999999999 | P146: =IF(P$10="",0,OFFSET(A2.HistoricalBalances!$E144,0,P$11)) -> 100271.96 | Q146: =IF(Q$10="",0,OFFSET(A2.HistoricalBalances!$E144,0,Q$11)) -> 100271.96 | S146: 0 | T146: =IF(T$10="",0,OFFSET(A2.HistoricalBalances!$E144,0,T$11)) -> 100271.96 | U146: =IF(U$10="",0,OFFSET(A2.HistoricalBalances!$E144,0,U$11)) -> 100271.96 | W146: -10999.96 | X146: =IF(X$10="",0,OFFSET(A2.HistoricalBalances!$E144,0,X$11)) -> 89272 | Y146: =IF(Y$10=ApprovedYr,A2.HistoricalBalances!$M144,X146) -> 89272 | AB146: 89272 | AC146: 89272 | AF146: 89272 | AG146: 540370.92 | AK146: 1950
B147: =""&Y2.ChartOfAccts!C145 -> 1955-Communication Equipment | C147: =""&Y2.ChartOfAccts!D145 -> 1500-General Plant | D147: =Y2.ChartOfAccts!F145 -> 1 | E147: =IF(E$10="",0,OFFSET(A2.HistoricalBalances!$E145,0,E$11)) -> 0 | G147: 0 | H147: =IF(H$10="",0,OFFSET(A2.HistoricalBalances!$E145,0,H$11)) -> 0 | I147: 99187.92 | K147: 0.08 | L147: =IF(L$10="",0,OFFSET(A2.HistoricalBalances!$E145,0,L$11)) -> 99188 | M147: 102070 | O147: 0.39 | P147: =IF(P$10="",0,OFFSET(A2.HistoricalBalances!$E145,0,P$11)) -> 102070.39 | Q147: =IF(Q$10="",0,OFFSET(A2.HistoricalBalances!$E145,0,Q$11)) -> 102070.39 | R147: 99028.11 | S147: -24925.26 | T147: =IF(T$10="",0,OFFSET(A2.HistoricalBalances!$E145,0,T$11)) -> 176173.24 | U147: =IF(U$10="",0,OFFSET(A2.HistoricalBalances!$E145,0,U$11)) -> 176173.24 | W147: -0.24 | X147: =IF(X$10="",0,OFFSET(A2.HistoricalBalances!$E145,0,X$11)) -> 176173 | Y147: =IF(Y$10=ApprovedYr,A2.HistoricalBalances!$M145,X147) -> 176173 | AB147: 176173 | AC147: 176173 | AF147: 176173 | AG147: 905950.63 | AJ147: 0 | AK147: 1955
B148: =""&Y2.ChartOfAccts!C146 -> 1960-Miscellaneous Equipment | C148: =""&Y2.ChartOfAccts!D146 -> 1500-General Plant | D148: =Y2.ChartOfAccts!F146 -> 1 | E148: =IF(E$10="",0,OFFSET(A2.HistoricalBalances!$E146,0,E$11)) -> 0 | G148: 0 | H148: =IF(H$10="",0,OFFSET(A2.HistoricalBalances!$E146,0,H$11)) -> 0 | I148: 27970.04 | K148: -0.04 | L148: =IF(L$10="",0,OFFSET(A2.HistoricalBalances!$E146,0,L$11)) -> 27970 | M148: 32903 | N148: 4889.78 | O148: 0.48 | P148: =IF(P$10="",0,OFFSET(A2.HistoricalBalances!$E146,0,P$11)) -> 37793.26 | Q148: =IF(Q$10="",0,OFFSET(A2.HistoricalBalances!$E146,0,Q$11)) -> 37793.26 | R148: 5700.21 | S148: 0 | T148: =IF(T$10="",0,OFFSET(A2.HistoricalBalances!$E146,0,T$11)) -> 43493.47 | U148: =IF(U$10="",0,OFFSET(A2.HistoricalBalances!$E146,0,U$11)) -> 43493.47 | W148: -0.47 | X148: =IF(X$10="",0,OFFSET(A2.HistoricalBalances!$E146,0,X$11)) -> 43493 | Y148: =IF(Y$10=ApprovedYr,A2.HistoricalBalances!$M146,X148) -> 43493 | Z148: 40000 | AB148: 83493 | AC148: 83493 | AD148: 45000 | AF148: 128493 | AG148: 364735.73 | AJ148: 0 | AK148: 1960
B149: =""&Y2.ChartOfAccts!C147 -> 1965-Water Heater Rental Units | C149: =""&Y2.ChartOfAccts!D147 -> 1500-General Plant | D149: =Y2.ChartOfAccts!F147 -> 1 | E149: =IF(E$10="",0,OFFSET(A2.HistoricalBalances!$E147,0,E$11)) -> 0 | G149: 0 | H149: =IF(H$10="",0,OFFSET(A2.HistoricalBalances!$E147,0,H$11)) -> 0 | K149: 0 | L149: =IF(L$10="",0,OFFSET(A2.HistoricalBalances!$E147,0,L$11)) -> 0 | M149: =I149 -> 0 | O149: 0 | P149: =IF(P$10="",0,OFFSET(A2.HistoricalBalances!$E147,0,P$11)) -> 0 | Q149: =IF(Q$10="",0,OFFSET(A2.HistoricalBalances!$E147,0,Q$11)) -> 0 | S149: 0 | T149: =IF(T$10="",0,OFFSET(A2.HistoricalBalances!$E147,0,T$11)) -> 0 | U149: =IF(U$10="",0,OFFSET(A2.HistoricalBalances!$E147,0,U$11)) -> 0 | W149: 0 | X149: =IF(X$10="",0,OFFSET(A2.HistoricalBalances!$E147,0,X$11)) -> 0 | Y149: =IF(Y$10=ApprovedYr,A2.HistoricalBalances!$M147,X149) -> 0 | AB149: 0 | AC149: 0 | AF149: 0 | AG149: 0 | AK149: 1965
B150: =""&Y2.ChartOfAccts!C148 -> 1970-Load Management Controls - Customer Premises | C150: =""&Y2.ChartOfAccts!D148 -> 1500-General Plant | D150: =Y2.ChartOfAccts!F148 -> 1 | E150: =IF(E$10="",0,OFFSET(A2.HistoricalBalances!$E148,0,E$11)) -> 0 | G150: 0 | H150: =IF(H$10="",0,OFFSET(A2.HistoricalBalances!$E148,0,H$11)) -> 0 | K150: 0 | L150: =IF(L$10="",0,OFFSET(A2.HistoricalBalances!$E148,0,L$11)) -> 0 | M150: 0 | O150: 0 | P150: =IF(P$10="",0,OFFSET(A2.HistoricalBalances!$E148,0,P$11)) -> 0 | Q150: =IF(Q$10="",0,OFFSET(A2.HistoricalBalances!$E148,0,Q$11)) -> 0 | S150: 0 | T150: =IF(T$10="",0,OFFSET(A2.HistoricalBalances!$E148,0,T$11)) -> 0 | U150: =IF(U$10="",0,OFFSET(A2.HistoricalBalances!$E148,0,U$11)) -> 0 | W150: 0 | X150: =IF(X$10="",0,OFFSET(A2.HistoricalBalances!$E148,0,X$11)) -> 0 | Y150: =IF(Y$10=ApprovedYr,A2.HistoricalBalances!$M148,X150) -> 0 | AB150: 0 | AC150: 0 | AF150: 0 | AG150: 0 | AK150: 1970
B151: =""&Y2.ChartOfAccts!C149 -> 1975-Load Management Controls - Utility Premises | C151: =""&Y2.ChartOfAccts!D149 -> 1500-General Plant | D151: =Y2.ChartOfAccts!F149 -> 1 | E151: =IF(E$10="",0,OFFSET(A2.HistoricalBalances!$E149,0,E$11)) -> 0 | G151: 0 | H151: =IF(H$10="",0,OFFSET(A2.HistoricalBalances!$E149,0,H$11)) -> 0 | I151: 258630.5 | K151: 0.5 | L151: =IF(L$10="",0,OFFSET(A2.HistoricalBalances!$E149,0,L$11)) -> 258631 | M151: 258630.5 | O151: 0 | P151: =IF(P$10="",0,OFFSET(A2.HistoricalBalances!$E149,0,P$11)) -> 258630.5 | Q151: =IF(Q$10="",0,OFFSET(A2.HistoricalBalances!$E149,0,Q$11)) -> 258630.5 | S151: 0 | T151: =IF(T$10="",0,OFFSET(A2.HistoricalBalances!$E149,0,T$11)) -> 258630.5 | U151: =IF(U$10="",0,OFFSET(A2.HistoricalBalances!$E149,0,U$11)) -> 258630.5 | W151: 0.5 | X151: =IF(X$10="",0,OFFSET(A2.HistoricalBalances!$E149,0,X$11)) -> 258631 | Y151: =IF(Y$10=ApprovedYr,A2.HistoricalBalances!$M149,X151) -> 258631 | AB151: 258631 | AC151: 258631 | AF151: 258631 | AG151: 1551785 | AJ151: 0 | AK151: 1975
B152: =""&Y2.ChartOfAccts!C150 -> 1980-System Supervisory Equipment | C152: =""&Y2.ChartOfAccts!D150 -> 1500-General Plant | D152: =Y2.ChartOfAccts!F150 -> 1 | E152: =IF(E$10="",0,OFFSET(A2.HistoricalBalances!$E150,0,E$11)) -> 0 | G152: 0 | H152: =IF(H$10="",0,OFFSET(A2.HistoricalBalances!$E150,0,H$11)) -> 0 | K152: 0 | L152: =IF(L$10="",0,OFFSET(A2.HistoricalBalances!$E150,0,L$11)) -> 0 | M152: 0 | O152: 0 | P152: =IF(P$10="",0,OFFSET(A2.HistoricalBalances!$E150,0,P$11)) -> 0 | Q152: =IF(Q$10="",0,OFFSET(A2.HistoricalBalances!$E150,0,Q$11)) -> 0 | S152: 0 | T152: =IF(T$10="",0,OFFSET(A2.HistoricalBalances!$E150,0,T$11)) -> 0 | U152: =IF(U$10="",0,OFFSET(A2.HistoricalBalances!$E150,0,U$11)) -> 0 | W152: 0 | X152: =IF(X$10="",0,OFFSET(A2.HistoricalBalances!$E150,0,X$11)) -> 0 | Y152: =IF(Y$10=ApprovedYr,A2.HistoricalBalances!$M150,X152) -> 0 | AB152: 0 | AC152: 0 | AF152: 0 | AG152: 0 | AJ152: 0 | AK152: 1980
B153: =""&Y2.ChartOfAccts!C151 -> 1985-Sentinel Lighting Rental Units | C153: =""&Y2.ChartOfAccts!D151 -> 1500-General Plant | D153: =Y2.ChartOfAccts!F151 -> 1 | E153: =IF(E$10="",0,OFFSET(A2.HistoricalBalances!$E151,0,E$11)) -> 0 | G153: 0 | H153: =IF(H$10="",0,OFFSET(A2.HistoricalBalances!$E151,0,H$11)) -> 0 | K153: 0 | L153: =IF(L$10="",0,OFFSET(A2.HistoricalBalances!$E151,0,L$11)) -> 0 | M153: 0 | N153: 1427 | O153: -0.32 | P153: =IF(P$10="",0,OFFSET(A2.HistoricalBalances!$E151,0,P$11)) -> 1426.68 | Q153: =IF(Q$10="",0,OFFSET(A2.HistoricalBalances!$E151,0,Q$11)) -> 1426.68 | S153: 0 | T153: =IF(T$10="",0,OFFSET(A2.HistoricalBalances!$E151,0,T$11)) -> 1426.68 | U153: =IF(U$10="",0,OFFSET(A2.HistoricalBalances!$E151,0,U$11)) -> 1426.68 | W153: 0.32 | X153: =IF(X$10="",0,OFFSET(A2.HistoricalBalances!$E151,0,X$11)) -> 1427 | Y153: =IF(Y$10=ApprovedYr,A2.HistoricalBalances!$M151,X153) -> 1427 | AB153: 1427 | AC153: 1427 | AF153: 1427 | AG153: 7134.36 | AJ153: 0 | AK153: 1985
B154: =""&Y2.ChartOfAccts!C152 -> 1990-Other Tangible Property | C154: =""&Y2.ChartOfAccts!D152 -> 1500-General Plant | D154: =Y2.ChartOfAccts!F152 -> 1 | E154: =IF(E$10="",0,OFFSET(A2.HistoricalBalances!$E152,0,E$11)) -> 0 | G154: 0 | H154: =IF(H$10="",0,OFFSET(A2.HistoricalBalances!$E152,0,H$11)) -> 0 | K154: 0 | L154: =IF(L$10="",0,OFFSET(A2.HistoricalBalances!$E152,0,L$11)) -> 0 | M154: 0 | O154: 0 | P154: =IF(P$10="",0,OFFSET(A2.HistoricalBalances!$E152,0,P$11)) -> 0 | Q154: =IF(Q$10="",0,OFFSET(A2.HistoricalBalances!$E152,0,Q$11)) -> 0 | S154: 0 | T154: =IF(T$10="",0,OFFSET(A2.HistoricalBalances!$E152,0,T$11)) -> 0 | U154: =IF(U$10="",0,OFFSET(A2.HistoricalBalances!$E152,0,U$11)) -> 0 | W154: 0 | X154: =IF(X$10="",0,OFFSET(A2.HistoricalBalances!$E152,0,X$11)) -> 0 | Y154: =IF(Y$10=ApprovedYr,A2.HistoricalBalances!$M152,X154) -> 0 | AB154: 0 | AC154: 0 | AF154: 0 | AG154: 0 | AJ154: 0 | AK154: 1990
B155: =""&Y2.ChartOfAccts!C153 -> 1995-Contributions and Grants - Credit | C155: =""&Y2.ChartOfAccts!D153 -> 1550-Other Capital Assets | D155: =Y2.ChartOfAccts!F153 -> 1 | E155: =IF(E$10="",0,OFFSET(A2.HistoricalBalances!$E153,0,E$11)) -> 0 | G155: 0 | H155: =IF(H$10="",0,OFFSET(A2.HistoricalBalances!$E153,0,H$11)) -> 0 | I155: -5610728 | K155: -484000 | L155: =IF(L$10="",0,OFFSET(A2.HistoricalBalances!$E153,0,L$11)) -> -6094728 | M155: -6007144 | N155: -1264357.4 | O155: 3378 | P155: =IF(P$10="",0,OFFSET(A2.HistoricalBalances!$E153,0,P$11)) -> -7268123.68 | Q155: =IF(Q$10="",0,OFFSET(A2.HistoricalBalances!$E153,0,Q$11)) -> -7268123.68 | R155: =T155-Q155 -> -287613.29 | S155: 0 | T155: =IF(T$10="",0,OFFSET(A2.HistoricalBalances!$E153,0,T$11)) -> -7555736.97 | U155: =IF(U$10="",0,OFFSET(A2.HistoricalBalances!$E153,0,U$11)) -> -7555736.97 | V155: =X155-U155 -> -632720.03 | W155: 0 | X155: =IF(X$10="",0,OFFSET(A2.HistoricalBalances!$E153,0,X$11)) -> -8188457 | Y155: =IF(Y$10=ApprovedYr,A2.HistoricalBalances!$M153,X155) -> -8188457 | Z155: -366832 | AB155: -8555289 | AC155: -8555289 | AD155: -373740 | AF155: -8929029 | AG155: 46591363.65 | AJ155: 0 | AK155: 1995
B156: =""&Y2.ChartOfAccts!C154 -> 2005-Property Under Capital Leases | C156: =""&Y2.ChartOfAccts!D154 -> 1550-Other Capital Assets | D156: =Y2.ChartOfAccts!F154 -> 1 | E156: =IF(E$10="",0,OFFSET(A2.HistoricalBalances!$E154,0,E$11)) -> 0 | G156: 0 | H156: =IF(H$10="",0,OFFSET(A2.HistoricalBalances!$E154,0,H$11)) -> 0 | K156: 0 | L156: =IF(L$10="",0,OFFSET(A2.HistoricalBalances!$E154,0,L$11)) -> 0 | M156: 0 | O156: 0 | P156: =IF(P$10="",0,OFFSET(A2.HistoricalBalances!$E154,0,P$11)) -> 0 | Q156: =IF(Q$10="",0,OFFSET(A2.HistoricalBalances!$E154,0,Q$11)) -> 0 | S156: 0 | T156: =IF(T$10="",0,OFFSET(A2.HistoricalBalances!$E154,0,T$11)) -> 0 | U156: =IF(U$10="",0,OFFSET(A2.HistoricalBalances!$E154,0,U$11)) -> 0 | W156: 0 | X156: =IF(X$10="",0,OFFSET(A2.HistoricalBalances!$E154,0,X$11)) -> 0 | Y156: =IF(Y$10=ApprovedYr,A2.HistoricalBalances!$M154,X156) -> 0 | AB156: 0 | AC156: 0 | AF156: 0 | AG156: 0 | AJ156: 0 | AK156: 2005
B157: =""&Y2.ChartOfAccts!C155 -> 2010-Electric Plant Purchased or Sold | C157: =""&Y2.ChartOfAccts!D155 -> 1550-Other Capital Assets | D157: =Y2.ChartOfAccts!F155 -> 0 | E157: =IF(E$10="",0,OFFSET(A2.HistoricalBalances!$E155,0,E$11)) -> 0 | G157: 0 | H157: =IF(H$10="",0,OFFSET(A2.HistoricalBalances!$E155,0,H$11)) -> 0 | K157: 0 | L157: =IF(L$10="",0,OFFSET(A2.HistoricalBalances!$E155,0,L$11)) -> 0 | M157: 0 | O157: 0 | P157: =IF(P$10="",0,OFFSET(A2.HistoricalBalances!$E155,0,P$11)) -> 0 | Q157: =IF(Q$10="",0,OFFSET(A2.HistoricalBalances!$E155,0,Q$11)) -> 0 | S157: 0 | T157: =IF(T$10="",0,OFFSET(A2.HistoricalBalances!$E155,0,T$11)) -> 0 | U157: =IF(U$10="",0,OFFSET(A2.HistoricalBalances!$E155,0,U$11)) -> 0 | W157: 0 | X157: =IF(X$10="",0,OFFSET(A2.HistoricalBalances!$E155,0,X$11)) -> 0 | Y157: =IF(Y$10=ApprovedYr,A2.HistoricalBalances!$M155,X157) -> 0 | AB157: 0 | AC157: 0 | AF157: 0 | AG157: 0 | AJ157: 0 | AK157: 2010
B158: =""&Y2.ChartOfAccts!C156 -> 2020-Experimental Electric Plant Unclassified | C158: =""&Y2.ChartOfAccts!D156 -> 1550-Other Capital Assets | D158: =Y2.ChartOfAccts!F156 -> 0 | E158: =IF(E$10="",0,OFFSET(A2.HistoricalBalances!$E156,0,E$11)) -> 0 | G158: 0 | H158: =IF(H$10="",0,OFFSET(A2.HistoricalBalances!$E156,0,H$11)) -> 0 | K158: 0 | L158: =IF(L$10="",0,OFFSET(A2.HistoricalBalances!$E156,0,L$11)) -> 0 | M158: 0 | O158: 0 | P158: =IF(P$10="",0,OFFSET(A2.HistoricalBalances!$E156,0,P$11)) -> 0 | Q158: =IF(Q$10="",0,OFFSET(A2.HistoricalBalances!$E156,0,Q$11)) -> 0 | S158: 0 | T158: =IF(T$10="",0,OFFSET(A2.HistoricalBalances!$E156,0,T$11)) -> 0 | U158: =IF(U$10="",0,OFFSET(A2.HistoricalBalances!$E156,0,U$11)) -> 0 | W158: 0 | X158: =IF(X$10="",0,OFFSET(A2.HistoricalBalances!$E156,0,X$11)) -> 0 | Y158: =IF(Y$10=ApprovedYr,A2.HistoricalBalances!$M156,X158) -> 0 | AB158: 0 | AC158: 0 | AF158: 0 | AG158: 0 | AJ158: 0 | AK158: 2020
B159: =""&Y2.ChartOfAccts!C157 -> 2030-Electric Plant and Equipment Leased to Others | C159: =""&Y2.ChartOfAccts!D157 -> 1550-Other Capital Assets | D159: =Y2.ChartOfAccts!F157 -> 0 | E159: =IF(E$10="",0,OFFSET(A2.HistoricalBalances!$E157,0,E$11)) -> 0 | G159: 0 | H159: =IF(H$10="",0,OFFSET(A2.HistoricalBalances!$E157,0,H$11)) -> 0 | K159: 0 | L159: =IF(L$10="",0,OFFSET(A2.HistoricalBalances!$E157,0,L$11)) -> 0 | M159: 0 | O159: 0 | P159: =IF(P$10="",0,OFFSET(A2.HistoricalBalances!$E157,0,P$11)) -> 0 | Q159: =IF(Q$10="",0,OFFSET(A2.HistoricalBalances!$E157,0,Q$11)) -> 0 | S159: 0 | T159: =IF(T$10="",0,OFFSET(A2.HistoricalBalances!$E157,0,T$11)) -> 0 | U159: =IF(U$10="",0,OFFSET(A2.HistoricalBalances!$E157,0,U$11)) -> 0 | W159: 0 | X159: =IF(X$10="",0,OFFSET(A2.HistoricalBalances!$E157,0,X$11)) -> 0 | Y159: =IF(Y$10=ApprovedYr,A2.HistoricalBalances!$M157,X159) -> 0 | AB159: 0 | AC159: 0 | AF159: 0 | AG159: 0 | AJ159: 0 | AK159: 2030
B160: =""&Y2.ChartOfAccts!C158 -> 2040-Electric Plant Held for Future Use | C160: =""&Y2.ChartOfAccts!D158 -> 1550-Other Capital Assets | D160: =Y2.ChartOfAccts!F158 -> 0 | E160: =IF(E$10="",0,OFFSET(A2.HistoricalBalances!$E158,0,E$11)) -> 0 | G160: 0 | H160: =IF(H$10="",0,OFFSET(A2.HistoricalBalances!$E158,0,H$11)) -> 0 | K160: 0 | L160: =IF(L$10="",0,OFFSET(A2.HistoricalBalances!$E158,0,L$11)) -> 0 | M160: 0 | O160: 0 | P160: =IF(P$10="",0,OFFSET(A2.HistoricalBalances!$E158,0,P$11)) -> 0 | Q160: =IF(Q$10="",0,OFFSET(A2.HistoricalBalances!$E158,0,Q$11)) -> 0 | S160: 0 | T160: =IF(T$10="",0,OFFSET(A2.HistoricalBalances!$E158,0,T$11)) -> 0 | U160: =IF(U$10="",0,OFFSET(A2.HistoricalBalances!$E158,0,U$11)) -> 0 | W160: 0 | X160: =IF(X$10="",0,OFFSET(A2.HistoricalBalances!$E158,0,X$11)) -> 0 | Y160: =IF(Y$10=ApprovedYr,A2.HistoricalBalances!$M158,X160) -> 0 | AB160: 0 | AC160: 0 | AF160: 0 | AG160: 0 | AJ160: 0 | AK160: 2040
B161: =""&Y2.ChartOfAccts!C159 -> 2050-Completed Construction Not Classified--Electric | C161: =""&Y2.ChartOfAccts!D159 -> 1550-Other Capital Assets | D161: =Y2.ChartOfAccts!F159 -> 0 | E161: =IF(E$10="",0,OFFSET(A2.HistoricalBalances!$E159,0,E$11)) -> 0 | G161: 0 | H161: =IF(H$10="",0,OFFSET(A2.HistoricalBalances!$E159,0,H$11)) -> 0 | K161: 0 | L161: =IF(L$10="",0,OFFSET(A2.HistoricalBalances!$E159,0,L$11)) -> 0 | M161: 0 | O161: 0 | P161: =IF(P$10="",0,OFFSET(A2.HistoricalBalances!$E159,0,P$11)) -> 0 | Q161: =IF(Q$10="",0,OFFSET(A2.HistoricalBalances!$E159,0,Q$11)) -> 0 | S161: 0 | T161: =IF(T$10="",0,OFFSET(A2.HistoricalBalances!$E159,0,T$11)) -> 0 | U161: =IF(U$10="",0,OFFSET(A2.HistoricalBalances!$E159,0,U$11)) -> 0 | W161: 0 | X161: =IF(X$10="",0,OFFSET(A2.HistoricalBalances!$E159,0,X$11)) -> 0 | Y161: =IF(Y$10=ApprovedYr,A2.HistoricalBalances!$M159,X161) -> 0 | AB161: 0 | AC161: 0 | AF161: 0 | AG161: 0 | AJ161: 0 | AK161: 2050
B162: =""&Y2.ChartOfAccts!C160 -> 2055-Construction Work in Progress--Electric | C162: =""&Y2.ChartOfAccts!D160 -> 1550-Other Capital Assets | D162: =Y2.ChartOfAccts!F160 -> 0 | E162: =IF(E$10="",0,OFFSET(A2.HistoricalBalances!$E160,0,E$11)) -> 0 | G162: 0 | H162: =IF(H$10="",0,OFFSET(A2.HistoricalBalances!$E160,0,H$11)) -> 0 | K162: 50000 | L162: =IF(L$10="",0,OFFSET(A2.HistoricalBalances!$E160,0,L$11)) -> 50000 | M162: 0 | O162: 8370.15 | P162: =IF(P$10="",0,OFFSET(A2.HistoricalBalances!$E160,0,P$11)) -> 8370.15 | Q162: =IF(Q$10="",0,OFFSET(A2.HistoricalBalances!$E160,0,Q$11)) -> 8370.15 | S162: 28118.12 | T162: =IF(T$10="",0,OFFSET(A2.HistoricalBalances!$E160,0,T$11)) -> 36488.27 | U162: =IF(U$10="",0,OFFSET(A2.HistoricalBalances!$E160,0,U$11)) -> 36488.27 | W162: 176697.73 | X162: =IF(X$10="",0,OFFSET(A2.HistoricalBalances!$E160,0,X$11)) -> 213186 | Y162: =IF(Y$10=ApprovedYr,A2.HistoricalBalances!$M160,X162) -> 213186 | AB162: 213186 | AC162: 213186 | AF162: 213186 | AG162: 734416.42 | AJ162: 0 | AK162: 2055
B163: =""&Y2.ChartOfAccts!C161 -> 2060-Electric Plant Acquisition Adjustment | C163: =""&Y2.ChartOfAccts!D161 -> 1550-Other Capital Assets | D163: =Y2.ChartOfAccts!F161 -> 0 | E163: =IF(E$10="",0,OFFSET(A2.HistoricalBalances!$E161,0,E$11)) -> 0 | G163: 0 | H163: =IF(H$10="",0,OFFSET(A2.HistoricalBalances!$E161,0,H$11)) -> 0 | K163: 2888247 | L163: =IF(L$10="",0,OFFSET(A2.HistoricalBalances!$E161,0,L$11)) -> 2888247 | M163: 0 | O163: 2888247 | P163: =IF(P$10="",0,OFFSET(A2.HistoricalBalances!$E161,0,P$11)) -> 2888247 | Q163: =IF(Q$10="",0,OFFSET(A2.HistoricalBalances!$E161,0,Q$11)) -> 2888247 | S163: 0 | T163: =IF(T$10="",0,OFFSET(A2.HistoricalBalances!$E161,0,T$11)) -> 2888247 | U163: =IF(U$10="",0,OFFSET(A2.HistoricalBalances!$E161,0,U$11)) -> 2888247 | W163: 0 | X163: =IF(X$10="",0,OFFSET(A2.HistoricalBalances!$E161,0,X$11)) -> 2888247 | Y163: =IF(Y$10=ApprovedYr,A2.HistoricalBalances!$M161,X163) -> 2888247 | AB163: 2888247 | AC163: 2888247 | AF163: 2888247 | AG163: 17329482 | AJ163: 0 | AK163: 2060
B164: =""&Y2.ChartOfAccts!C162 -> 2065-Other Electric Plant Adjustment | C164: =""&Y2.ChartOfAccts!D162 -> 1550-Other Capital Assets | D164: =Y2.ChartOfAccts!F162 -> 0 | E164: =IF(E$10="",0,OFFSET(A2.HistoricalBalances!$E162,0,E$11)) -> 0 | G164: 0 | H164: =IF(H$10="",0,OFFSET(A2.HistoricalBalances!$E162,0,H$11)) -> 0 | K164: 0 | L164: =IF(L$10="",0,OFFSET(A2.HistoricalBalances!$E162,0,L$11)) -> 0 | M164: 0 | O164: 0 | P164: =IF(P$10="",0,OFFSET(A2.HistoricalBalances!$E162,0,P$11)) -> 0 | Q164: =IF(Q$10="",0,OFFSET(A2.HistoricalBalances!$E162,0,Q$11)) -> 0 | S164: 0 | T164: =IF(T$10="",0,OFFSET(A2.HistoricalBalances!$E162,0,T$11)) -> 0 | U164: =IF(U$10="",0,OFFSET(A2.HistoricalBalances!$E162,0,U$11)) -> 0 | W164: 0 | X164: =IF(X$10="",0,OFFSET(A2.HistoricalBalances!$E162,0,X$11)) -> 0 | Y164: =IF(Y$10=ApprovedYr,A2.HistoricalBalances!$M162,X164) -> 0 | AB164: 0 | AC164: 0 | AF164: 0 | AG164: 0 | AJ164: 0 | AK164: 2065
B165: =""&Y2.ChartOfAccts!C163 -> 2070-Other Utility Plant | C165: =""&Y2.ChartOfAccts!D163 -> 1550-Other Capital Assets | D165: =Y2.ChartOfAccts!F163 -> 0 | E165: =IF(E$10="",0,OFFSET(A2.HistoricalBalances!$E163,0,E$11)) -> 0 | G165: 0 | H165: =IF(H$10="",0,OFFSET(A2.HistoricalBalances!$E163,0,H$11)) -> 0 | K165: 0 | L165: =IF(L$10="",0,OFFSET(A2.HistoricalBalances!$E163,0,L$11)) -> 0 | M165: 0 | O165: 0 | P165: =IF(P$10="",0,OFFSET(A2.HistoricalBalances!$E163,0,P$11)) -> 0 | Q165: =IF(Q$10="",0,OFFSET(A2.HistoricalBalances!$E163,0,Q$11)) -> 0 | S165: 0 | T165: =IF(T$10="",0,OFFSET(A2.HistoricalBalances!$E163,0,T$11)) -> 0 | U165: =IF(U$10="",0,OFFSET(A2.HistoricalBalances!$E163,0,U$11)) -> 0 | W165: 0 | X165: =IF(X$10="",0,OFFSET(A2.HistoricalBalances!$E163,0,X$11)) -> 0 | Y165: =IF(Y$10=ApprovedYr,A2.HistoricalBalances!$M163,X165) -> 0 | AB165: 0 | AC165: 0 | AF165: 0 | AG165: 0 | AJ165: 0 | AK165: 2070
B166: =""&Y2.ChartOfAccts!C164 -> 2075-Non-Utility Property Owned or Under Capital Leases | C166: =""&Y2.ChartOfAccts!D164 -> 1550-Other Capital Assets | D166: =Y2.ChartOfAccts!F164 -> 0 | E166: =IF(E$10="",0,OFFSET(A2.HistoricalBalances!$E164,0,E$11)) -> 0 | G166: 0 | H166: =IF(H$10="",0,OFFSET(A2.HistoricalBalances!$E164,0,H$11)) -> 0 | K166: 0 | L166: =IF(L$10="",0,OFFSET(A2.HistoricalBalances!$E164,0,L$11)) -> 0 | M166: 0 | O166: 0 | P166: =IF(P$10="",0,OFFSET(A2.HistoricalBalances!$E164,0,P$11)) -> 0 | Q166: =IF(Q$10="",0,OFFSET(A2.HistoricalBalances!$E164,0,Q$11)) -> 0 | S166: 0 | T166: =IF(T$10="",0,OFFSET(A2.HistoricalBalances!$E164,0,T$11)) -> 0 | U166: =IF(U$10="",0,OFFSET(A2.HistoricalBalances!$E164,0,U$11)) -> 0 | W166: 0 | X166: =IF(X$10="",0,OFFSET(A2.HistoricalBalances!$E164,0,X$11)) -> 0 | Y166: =IF(Y$10=ApprovedYr,A2.HistoricalBalances!$M164,X166) -> 0 | AB166: 0 | AC166: 0 | AF166: 0 | AG166: 0 | AJ166: 0 | AK166: 2075
B167: =""&Y2.ChartOfAccts!C165 -> 2105-Accum. Amortization of Electric Utility Plant - Property, Plant, & Equipment | C167: =""&Y2.ChartOfAccts!D165 -> 1600-Accumulated Amortization | D167: =Y2.ChartOfAccts!F165 -> 1 | E167: =IF(E$10="",0,OFFSET(A2.HistoricalBalances!$E165,0,E$11)) -> 0 | G167: 0 | H167: =IF(H$10="",0,OFFSET(A2.HistoricalBalances!$E165,0,H$11)) -> 0 | K167: -13964611 | L167: =IF(L$10="",0,OFFSET(A2.HistoricalBalances!$E165,0,L$11)) -> -13964611 | M167: 0 | O167: -13741003.51 | P167: =IF(P$10="",0,OFFSET(A2.HistoricalBalances!$E165,0,P$11)) -> -13741003.51 | Q167: =IF(Q$10="",0,OFFSET(A2.HistoricalBalances!$E165,0,Q$11)) -> -13741003.51 | S167: -1593480.41 | T167: =IF(T$10="",0,OFFSET(A2.HistoricalBalances!$E165,0,T$11)) -> -15334483.92 | U167: =IF(U$10="",0,OFFSET(A2.HistoricalBalances!$E165,0,U$11)) -> -15334483.92 | W167: -1744795.08 | X167: =IF(X$10="",0,OFFSET(A2.HistoricalBalances!$E165,0,X$11)) -> -17079279 | Y167: =IF(Y$10=ApprovedYr,A2.HistoricalBalances!$M165,X167) -> -17079279 | AB167: -17079279 | AC167: -17079279 | AF167: -17079279 | AG167: 94277935.43 | AJ167: 0 | AK167: 2105
B168: =""&Y2.ChartOfAccts!C166 -> 2120-Accumulated Amortization of Electric Utility Plant - Intangibles | C168: =""&Y2.ChartOfAccts!D166 -> 1600-Accumulated Amortization | D168: =Y2.ChartOfAccts!F166 -> 1 | E168: =IF(E$10="",0,OFFSET(A2.HistoricalBalances!$E166,0,E$11)) -> 0 | G168: 0 | H168: =IF(H$10="",0,OFFSET(A2.HistoricalBalances!$E166,0,H$11)) -> 0 | K168: 0 | L168: =IF(L$10="",0,OFFSET(A2.HistoricalBalances!$E166,0,L$11)) -> 0 | M168: 0 | O168: 0 | P168: =IF(P$10="",0,OFFSET(A2.HistoricalBalances!$E166,0,P$11)) -> 0 | Q168: =IF(Q$10="",0,OFFSET(A2.HistoricalBalances!$E166,0,Q$11)) -> 0 | S168: 0 | T168: =IF(T$10="",0,OFFSET(A2.HistoricalBalances!$E166,0,T$11)) -> 0 | U168: =IF(U$10="",0,OFFSET(A2.HistoricalBalances!$E166,0,U$11)) -> 0 | W168: 0 | X168: =IF(X$10="",0,OFFSET(A2.HistoricalBalances!$E166,0,X$11)) -> 0 | Y168: =IF(Y$10=ApprovedYr,A2.HistoricalBalances!$M166,X168) -> 0 | AB168: 0 | AC168: 0 | AF168: 0 | AG168: 0 | AJ168: 0 | AK168: 2120
B169: =""&Y2.ChartOfAccts!C167 -> 2140-Accumulated Amortization of Electric Plant Acquisition Adjustment | C169: =""&Y2.ChartOfAccts!D167 -> 1600-Accumulated Amortization | D169: =Y2.ChartOfAccts!F167 -> 0 | E169: =IF(E$10="",0,OFFSET(A2.HistoricalBalances!$E167,0,E$11)) -> 0 | G169: 0 | H169: =IF(H$10="",0,OFFSET(A2.HistoricalBalances!$E167,0,H$11)) -> 0 | K169: -673925 | L169: =IF(L$10="",0,OFFSET(A2.HistoricalBalances!$E167,0,L$11)) -> -673925 | M169: 0 | O169: -673925 | P169: =IF(P$10="",0,OFFSET(A2.HistoricalBalances!$E167,0,P$11)) -> -673925 | Q169: =IF(Q$10="",0,OFFSET(A2.HistoricalBalances!$E167,0,Q$11)) -> -673925 | S169: 0 | T169: =IF(T$10="",0,OFFSET(A2.HistoricalBalances!$E167,0,T$11)) -> -673925 | U169: =IF(U$10="",0,OFFSET(A2.HistoricalBalances!$E167,0,U$11)) -> -673925 | W169: 0 | X169: =IF(X$10="",0,OFFSET(A2.HistoricalBalances!$E167,0,X$11)) -> -673925 | Y169: =IF(Y$10=ApprovedYr,A2.HistoricalBalances!$M167,X169) -> -673925 | AB169: -673925 | AC169: -673925 | AF169: -673925 | AG169: 4043550 | AJ169: 0 | AK169: 2140
B170: =""&Y2.ChartOfAccts!C168 -> 2160-Accumulated Amortization of Other Utility Plant | C170: =""&Y2.ChartOfAccts!D168 -> 1600-Accumulated Amortization | D170: =Y2.ChartOfAccts!F168 -> 1 | E170: =IF(E$10="",0,OFFSET(A2.HistoricalBalances!$E168,0,E$11)) -> 0 | G170: 0 | H170: =IF(H$10="",0,OFFSET(A2.HistoricalBalances!$E168,0,H$11)) -> 0 | K170: 0 | L170: =IF(L$10="",0,OFFSET(A2.HistoricalBalances!$E168,0,L$11)) -> 0 | M170: 0 | O170: 0 | P170: =IF(P$10="",0,OFFSET(A2.HistoricalBalances!$E168,0,P$11)) -> 0 | Q170: =IF(Q$10="",0,OFFSET(A2.HistoricalBalances!$E168,0,Q$11)) -> 0 | S170: 0 | T170: =IF(T$10="",0,OFFSET(A2.HistoricalBalances!$E168,0,T$11)) -> 0 | U170: =IF(U$10="",0,OFFSET(A2.HistoricalBalances!$E168,0,U$11)) -> 0 | W170: 0 | X170: =IF(X$10="",0,OFFSET(A2.HistoricalBalances!$E168,0,X$11)) -> 0 | Y170: =IF(Y$10=ApprovedYr,A2.HistoricalBalances!$M168,X170) -> 0 | AB170: 0 | AC170: 0 | AF170: 0 | AG170: 0 | AJ170: 0 | AK170: 2160
B171: =""&Y2.ChartOfAccts!C169 -> 2180-Accumulated Amortization of Non-Utility Property | C171: =""&Y2.ChartOfAccts!D169 -> 1600-Accumulated Amortization | D171: =Y2.ChartOfAccts!F169 -> 0 | E171: =IF(E$10="",0,OFFSET(A2.HistoricalBalances!$E169,0,E$11)) -> 0 | G171: 0 | H171: =IF(H$10="",0,OFFSET(A2.HistoricalBalances!$E169,0,H$11)) -> 0 | K171: 0 | L171: =IF(L$10="",0,OFFSET(A2.HistoricalBalances!$E169,0,L$11)) -> 0 | M171: 0 | O171: 0 | P171: =IF(P$10="",0,OFFSET(A2.HistoricalBalances!$E169,0,P$11)) -> 0 | Q171: =IF(Q$10="",0,OFFSET(A2.HistoricalBalances!$E169,0,Q$11)) -> 0 | S171: 0 | T171: =IF(T$10="",0,OFFSET(A2.HistoricalBalances!$E169,0,T$11)) -> 0 | U171: =IF(U$10="",0,OFFSET(A2.HistoricalBalances!$E169,0,U$11)) -> 0 | W171: 0 | X171: =IF(X$10="",0,OFFSET(A2.HistoricalBalances!$E169,0,X$11)) -> 0 | Y171: =IF(Y$10=ApprovedYr,A2.HistoricalBalances!$M169,X171) -> 0 | AB171: 0 | AC171: 0 | AF171: 0 | AG171: 0 | AJ171: 0 | AK171: 2180
B172: =""&Y2.ChartOfAccts!C170 -> 2205-Accounts Payable | C172: =""&Y2.ChartOfAccts!D170 -> 1650-Current Liabilities | D172: =Y2.ChartOfAccts!F170 -> 0 | E172: =IF(E$10="",0,OFFSET(A2.HistoricalBalances!$E170,0,E$11)) -> 0 | G172: 0 | H172: =IF(H$10="",0,OFFSET(A2.HistoricalBalances!$E170,0,H$11)) -> 0 | K172: -4000000 | L172: =IF(L$10="",0,OFFSET(A2.HistoricalBalances!$E170,0,L$11)) -> -4000000 | M172: 0 | O172: -4897978.13 | P172: =IF(P$10="",0,OFFSET(A2.HistoricalBalances!$E170,0,P$11)) -> -4897978.13 | Q172: =IF(Q$10="",0,OFFSET(A2.HistoricalBalances!$E170,0,Q$11)) -> -4897978.13 | S172: 905946.69 | T172: =IF(T$10="",0,OFFSET(A2.HistoricalBalances!$E170,0,T$11)) -> -3992031.44 | U172: =IF(U$10="",0,OFFSET(A2.HistoricalBalances!$E170,0,U$11)) -> -3992031.44 | W172: 416118.44 | X172: =IF(X$10="",0,OFFSET(A2.HistoricalBalances!$E170,0,X$11)) -> -3575913 | Y172: =IF(Y$10=ApprovedYr,A2.HistoricalBalances!$M170,X172) -> -3575913 | AB172: -3575913 | AC172: -3575913 | AF172: -3575913 | AG172: 23617748.57 | AJ172: 0 | AK172: 2205
B173: =""&Y2.ChartOfAccts!C171 -> 2208-Customer Credit Balances | C173: =""&Y2.ChartOfAccts!D171 -> 1650-Current Liabilities | D173: =Y2.ChartOfAccts!F171 -> 0 | E173: =IF(E$10="",0,OFFSET(A2.HistoricalBalances!$E171,0,E$11)) -> 0 | G173: 0 | H173: =IF(H$10="",0,OFFSET(A2.HistoricalBalances!$E171,0,H$11)) -> 0 | K173: -320000 | L173: =IF(L$10="",0,OFFSET(A2.HistoricalBalances!$E171,0,L$11)) -> -320000 | M173: 0 | O173: -377644.19 | P173: =IF(P$10="",0,OFFSET(A2.HistoricalBalances!$E171,0,P$11)) -> -377644.19 | Q173: =IF(Q$10="",0,OFFSET(A2.HistoricalBalances!$E171,0,Q$11)) -> -377644.19 | S173: 153317.25 | T173: =IF(T$10="",0,OFFSET(A2.HistoricalBalances!$E171,0,T$11)) -> -224326.94 | U173: =IF(U$10="",0,OFFSET(A2.HistoricalBalances!$E171,0,U$11)) -> -224326.94 | W173: -375714.06 | X173: =IF(X$10="",0,OFFSET(A2.HistoricalBalances!$E171,0,X$11)) -> -600041 | Y173: =IF(Y$10=ApprovedYr,A2.HistoricalBalances!$M171,X173) -> -600041 | AB173: -600041 | AC173: -600041 | AF173: -600041 | AG173: 2722094.13 | AJ173: 0 | AK173: 2208
B174: =""&Y2.ChartOfAccts!C172 -> 2210-Current Portion of Customer Deposits | C174: =""&Y2.ChartOfAccts!D172 -> 1650-Current Liabilities | D174: =Y2.ChartOfAccts!F172 -> 0 | E174: =IF(E$10="",0,OFFSET(A2.HistoricalBalances!$E172,0,E$11)) -> 0 | G174: 0 | H174: =IF(H$10="",0,OFFSET(A2.HistoricalBalances!$E172,0,H$11)) -> 0 | K174: -467000 | L174: =IF(L$10="",0,OFFSET(A2.HistoricalBalances!$E172,0,L$11)) -> -467000 | M174: 0 | O174: -393914.67 | P174: =IF(P$10="",0,OFFSET(A2.HistoricalBalances!$E172,0,P$11)) -> -393914.67 | Q174: =IF(Q$10="",0,OFFSET(A2.HistoricalBalances!$E172,0,Q$11)) -> -393914.67 | S174: 27155.25 | T174: =IF(T$10="",0,OFFSET(A2.HistoricalBalances!$E172,0,T$11)) -> -366759.42 | U174: =IF(U$10="",0,OFFSET(A2.HistoricalBalances!$E172,0,U$11)) -> -366759.42 | W174: 69135.42 | X174: =IF(X$10="",0,OFFSET(A2.HistoricalBalances!$E172,0,X$11)) -> -297624 | Y174: =IF(Y$10=ApprovedYr,A2.HistoricalBalances!$M172,X174) -> -297624 | AB174: -297624 | AC174: -297624 | AF174: -297624 | AG174: 2120546.09 | AJ174: 0 | AK174: 2210
B175: =""&Y2.ChartOfAccts!C173 -> 2215-Dividends Declared | C175: =""&Y2.ChartOfAccts!D173 -> 1650-Current Liabilities | D175: =Y2.ChartOfAccts!F173 -> 0 | E175: =IF(E$10="",0,OFFSET(A2.HistoricalBalances!$E173,0,E$11)) -> 0 | G175: 0 | H175: =IF(H$10="",0,OFFSET(A2.HistoricalBalances!$E173,0,H$11)) -> 0 | K175: 0 | L175: =IF(L$10="",0,OFFSET(A2.HistoricalBalances!$E173,0,L$11)) -> 0 | M175: 0 | O175: 0 | P175: =IF(P$10="",0,OFFSET(A2.HistoricalBalances!$E173,0,P$11)) -> 0 | Q175: =IF(Q$10="",0,OFFSET(A2.HistoricalBalances!$E173,0,Q$11)) -> 0 | S175: 0 | T175: =IF(T$10="",0,OFFSET(A2.HistoricalBalances!$E173,0,T$11)) -> 0 | U175: =IF(U$10="",0,OFFSET(A2.HistoricalBalances!$E173,0,U$11)) -> 0 | W175: 0 | X175: =IF(X$10="",0,OFFSET(A2.HistoricalBalances!$E173,0,X$11)) -> 0 | Y175: =IF(Y$10=ApprovedYr,A2.HistoricalBalances!$M173,X175) -> 0 | AB175: 0 | AC175: 0 | AF175: 0 | AG175: 0 | AJ175: 0 | AK175: 2215
B176: =""&Y2.ChartOfAccts!C174 -> 2220-Miscellaneous Current and Accrued Liabilities | C176: =""&Y2.ChartOfAccts!D174 -> 1650-Current Liabilities | D176: =Y2.ChartOfAccts!F174 -> 0 | E176: =IF(E$10="",0,OFFSET(A2.HistoricalBalances!$E174,0,E$11)) -> 0 | G176: 0 | H176: =IF(H$10="",0,OFFSET(A2.HistoricalBalances!$E174,0,H$11)) -> 0 | K176: -448500 | L176: =IF(L$10="",0,OFFSET(A2.HistoricalBalances!$E174,0,L$11)) -> -448500 | M176: 0 | O176: -849491.11 | P176: =IF(P$10="",0,OFFSET(A2.HistoricalBalances!$E174,0,P$11)) -> -849491.11 | Q176: =IF(Q$10="",0,OFFSET(A2.HistoricalBalances!$E174,0,Q$11)) -> -849491.11 | S176: -1306008.17 | T176: =IF(T$10="",0,OFFSET(A2.HistoricalBalances!$E174,0,T$11)) -> -2155499.28 | U176: =IF(U$10="",0,OFFSET(A2.HistoricalBalances!$E174,0,U$11)) -> -2155499.28 | W176: -2651922.72 | X176: =IF(X$10="",0,OFFSET(A2.HistoricalBalances!$E174,0,X$11)) -> -4807422 | Y176: =IF(Y$10=ApprovedYr,A2.HistoricalBalances!$M174,X176) -> -4807422 | AB176: -4807422 | AC176: -4807422 | AF176: -4807422 | AG176: 17875756.39 | AJ176: 0 | AK176: 2220
B177: =""&Y2.ChartOfAccts!C175 -> 2225-Notes and Loans Payable | C177: =""&Y2.ChartOfAccts!D175 -> 1650-Current Liabilities | D177: =Y2.ChartOfAccts!F175 -> 0 | E177: =IF(E$10="",0,OFFSET(A2.HistoricalBalances!$E175,0,E$11)) -> 0 | G177: 0 | H177: =IF(H$10="",0,OFFSET(A2.HistoricalBalances!$E175,0,H$11)) -> 0 | K177: 0 | L177: =IF(L$10="",0,OFFSET(A2.HistoricalBalances!$E175,0,L$11)) -> 0 | M177: 0 | O177: -1750000 | P177: =IF(P$10="",0,OFFSET(A2.HistoricalBalances!$E175,0,P$11)) -> -1750000 | Q177: =IF(Q$10="",0,OFFSET(A2.HistoricalBalances!$E175,0,Q$11)) -> -1750000 | S177: 1750000 | T177: =IF(T$10="",0,OFFSET(A2.HistoricalBalances!$E175,0,T$11)) -> 0 | U177: =IF(U$10="",0,OFFSET(A2.HistoricalBalances!$E175,0,U$11)) -> 0 | W177: -5260461 | X177: =IF(X$10="",0,OFFSET(A2.HistoricalBalances!$E175,0,X$11)) -> -5260461 | Y177: =IF(Y$10=ApprovedYr,A2.HistoricalBalances!$M175,X177) -> -5260461 | AB177: -5260461 | AC177: -5260461 | AF177: -5260461 | AG177: 17531383 | AJ177: 0 | AK177: 2225
B178: =""&Y2.ChartOfAccts!C176 -> 2240-Accounts Payable to Associated Companies | C178: =""&Y2.ChartOfAccts!D176 -> 1650-Current Liabilities | D178: =Y2.ChartOfAccts!F176 -> 0 | E178: =IF(E$10="",0,OFFSET(A2.HistoricalBalances!$E176,0,E$11)) -> 0 | G178: 0 | H178: =IF(H$10="",0,OFFSET(A2.HistoricalBalances!$E176,0,H$11)) -> 0 | K178: 0 | L178: =IF(L$10="",0,OFFSET(A2.HistoricalBalances!$E176,0,L$11)) -> 0 | M178: 0 | O178: 0 | P178: =IF(P$10="",0,OFFSET(A2.HistoricalBalances!$E176,0,P$11)) -> 0 | Q178: =IF(Q$10="",0,OFFSET(A2.HistoricalBalances!$E176,0,Q$11)) -> 0 | S178: 0 | T178: =IF(T$10="",0,OFFSET(A2.HistoricalBalances!$E176,0,T$11)) -> 0 | U178: =IF(U$10="",0,OFFSET(A2.HistoricalBalances!$E176,0,U$11)) -> 0 | W178: 0 | X178: =IF(X$10="",0,OFFSET(A2.HistoricalBalances!$E176,0,X$11)) -> 0 | Y178: =IF(Y$10=ApprovedYr,A2.HistoricalBalances!$M176,X178) -> 0 | AB178: 0 | AC178: 0 | AF178: 0 | AG178: 0 | AJ178: 0 | AK178: 2240
B179: =""&Y2.ChartOfAccts!C177 -> 2242-Notes Payable to Associated Companies | C179: =""&Y2.ChartOfAccts!D177 -> 1650-Current Liabilities | D179: =Y2.ChartOfAccts!F177 -> 0 | E179: =IF(E$10="",0,OFFSET(A2.HistoricalBalances!$E177,0,E$11)) -> 0 | G179: 0 | H179: =IF(H$10="",0,OFFSET(A2.HistoricalBalances!$E177,0,H$11)) -> 0 | K179: 0 | L179: =IF(L$10="",0,OFFSET(A2.HistoricalBalances!$E177,0,L$11)) -> 0 | M179: 0 | O179: 0 | P179: =IF(P$10="",0,OFFSET(A2.HistoricalBalances!$E177,0,P$11)) -> 0 | Q179: =IF(Q$10="",0,OFFSET(A2.HistoricalBalances!$E177,0,Q$11)) -> 0 | S179: 0 | T179: =IF(T$10="",0,OFFSET(A2.HistoricalBalances!$E177,0,T$11)) -> 0 | U179: =IF(U$10="",0,OFFSET(A2.HistoricalBalances!$E177,0,U$11)) -> 0 | W179: 0 | X179: =IF(X$10="",0,OFFSET(A2.HistoricalBalances!$E177,0,X$11)) -> 0 | Y179: =IF(Y$10=ApprovedYr,A2.HistoricalBalances!$M177,X179) -> 0 | AB179: 0 | AC179: 0 | AF179: 0 | AG179: 0 | AJ179: 0 | AK179: 2242
B180: =""&Y2.ChartOfAccts!C178 -> 2250-Debt Retirement Charges( DRC) Payable | C180: =""&Y2.ChartOfAccts!D178 -> 1650-Current Liabilities | D180: =Y2.ChartOfAccts!F178 -> 0 | E180: =IF(E$10="",0,OFFSET(A2.HistoricalBalances!$E178,0,E$11)) -> 0 | G180: 0 | H180: =IF(H$10="",0,OFFSET(A2.HistoricalBalances!$E178,0,H$11)) -> 0 | K180: 0 | L180: =IF(L$10="",0,OFFSET(A2.HistoricalBalances!$E178,0,L$11)) -> 0 | M180: 0 | O180: 0 | P180: =IF(P$10="",0,OFFSET(A2.HistoricalBalances!$E178,0,P$11)) -> 0 | Q180: =IF(Q$10="",0,OFFSET(A2.HistoricalBalances!$E178,0,Q$11)) -> 0 | S180: 0 | T180: =IF(T$10="",0,OFFSET(A2.HistoricalBalances!$E178,0,T$11)) -> 0 | U180: =IF(U$10="",0,OFFSET(A2.HistoricalBalances!$E178,0,U$11)) -> 0 | W180: 31 | X180: =IF(X$10="",0,OFFSET(A2.HistoricalBalances!$E178,0,X$11)) -> 31 | Y180: =IF(Y$10=ApprovedYr,A2.HistoricalBalances!$M178,X180) -> 31 | AB180: 31 | AC180: 31 | AF180: 31 | AG180: 93 | AJ180: 0 | AK180: 2250
B181: =""&Y2.ChartOfAccts!C179 -> 2252-Transmission Charges Payable | C181: =""&Y2.ChartOfAccts!D179 -> 1650-Current Liabilities | D181: =Y2.ChartOfAccts!F179 -> 0 | E181: =IF(E$10="",0,OFFSET(A2.HistoricalBalances!$E179,0,E$11)) -> 0 | G181: 0 | H181: =IF(H$10="",0,OFFSET(A2.HistoricalBalances!$E179,0,H$11)) -> 0 | K181: 0 | L181: =IF(L$10="",0,OFFSET(A2.HistoricalBalances!$E179,0,L$11)) -> 0 | M181: 0 | O181: 0 | P181: =IF(P$10="",0,OFFSET(A2.HistoricalBalances!$E179,0,P$11)) -> 0 | Q181: =IF(Q$10="",0,OFFSET(A2.HistoricalBalances!$E179,0,Q$11)) -> 0 | S181: 0 | T181: =IF(T$10="",0,OFFSET(A2.HistoricalBalances!$E179,0,T$11)) -> 0 | U181: =IF(U$10="",0,OFFSET(A2.HistoricalBalances!$E179,0,U$11)) -> 0 | W181: 0 | X181: =IF(X$10="",0,OFFSET(A2.HistoricalBalances!$E179,0,X$11)) -> 0 | Y181: =IF(Y$10=ApprovedYr,A2.HistoricalBalances!$M179,X181) -> 0 | AB181: 0 | AC181: 0 | AF181: 0 | AG181: 0 | AJ181: 0 | AK181: 2252
B182: =""&Y2.ChartOfAccts!C180 -> 2254-Electrical Safety Authority Fees Payable | C182: =""&Y2.ChartOfAccts!D180 -> 1650-Current Liabilities | D182: =Y2.ChartOfAccts!F180 -> 0 | E182: =IF(E$10="",0,OFFSET(A2.HistoricalBalances!$E180,0,E$11)) -> 0 | G182: 0 | H182: =IF(H$10="",0,OFFSET(A2.HistoricalBalances!$E180,0,H$11)) -> 0 | K182: 0 | L182: =IF(L$10="",0,OFFSET(A2.HistoricalBalances!$E180,0,L$11)) -> 0 | M182: 0 | O182: 0 | P182: =IF(P$10="",0,OFFSET(A2.HistoricalBalances!$E180,0,P$11)) -> 0 | Q182: =IF(Q$10="",0,OFFSET(A2.HistoricalBalances!$E180,0,Q$11)) -> 0 | S182: 0 | T182: =IF(T$10="",0,OFFSET(A2.HistoricalBalances!$E180,0,T$11)) -> 0 | U182: =IF(U$10="",0,OFFSET(A2.HistoricalBalances!$E180,0,U$11)) -> 0 | W182: 0 | X182: =IF(X$10="",0,OFFSET(A2.HistoricalBalances!$E180,0,X$11)) -> 0 | Y182: =IF(Y$10=ApprovedYr,A2.HistoricalBalances!$M180,X182) -> 0 | AB182: 0 | AC182: 0 | AF182: 0 | AG182: 0 | AJ182: 0 | AK182: 2254
B183: =""&Y2.ChartOfAccts!C181 -> 2256-Independent Market Operator Fees and Penalties Payable | C183: =""&Y2.ChartOfAccts!D181 -> 1650-Current Liabilities | D183: =Y2.ChartOfAccts!F181 -> 0 | E183: =IF(E$10="",0,OFFSET(A2.HistoricalBalances!$E181,0,E$11)) -> 0 | G183: 0 | H183: =IF(H$10="",0,OFFSET(A2.HistoricalBalances!$E181,0,H$11)) -> 0 | K183: 0 | L183: =IF(L$10="",0,OFFSET(A2.HistoricalBalances!$E181,0,L$11)) -> 0 | M183: 0 | O183: 0 | P183: =IF(P$10="",0,OFFSET(A2.HistoricalBalances!$E181,0,P$11)) -> 0 | Q183: =IF(Q$10="",0,OFFSET(A2.HistoricalBalances!$E181,0,Q$11)) -> 0 | S183: 0 | T183: =IF(T$10="",0,OFFSET(A2.HistoricalBalances!$E181,0,T$11)) -> 0 | U183: =IF(U$10="",0,OFFSET(A2.HistoricalBalances!$E181,0,U$11)) -> 0 | W183: 0 | X183: =IF(X$10="",0,OFFSET(A2.HistoricalBalances!$E181,0,X$11)) -> 0 | Y183: =IF(Y$10=ApprovedYr,A2.HistoricalBalances!$M181,X183) -> 0 | AB183: 0 | AC183: 0 | AF183: 0 | AG183: 0 | AJ183: 0 | AK183: 2256
B184: =""&Y2.ChartOfAccts!C182 -> 2260-Current Portion of Long Term Debt | C184: =""&Y2.ChartOfAccts!D182 -> 1650-Current Liabilities | D184: =Y2.ChartOfAccts!F182 -> 0 | E184: =IF(E$10="",0,OFFSET(A2.HistoricalBalances!$E182,0,E$11)) -> 0 | G184: 0 | H184: =IF(H$10="",0,OFFSET(A2.HistoricalBalances!$E182,0,H$11)) -> 0 | K184: -340594 | L184: =IF(L$10="",0,OFFSET(A2.HistoricalBalances!$E182,0,L$11)) -> -340594 | M184: 0 | O184: -362105.98 | P184: =IF(P$10="",0,OFFSET(A2.HistoricalBalances!$E182,0,P$11)) -> -362105.98 | Q184: =IF(Q$10="",0,OFFSET(A2.HistoricalBalances!$E182,0,Q$11)) -> -362105.98 | S184: -89708.02 | T184: =IF(T$10="",0,OFFSET(A2.HistoricalBalances!$E182,0,T$11)) -> -451814 | U184: =IF(U$10="",0,OFFSET(A2.HistoricalBalances!$E182,0,U$11)) -> -451814 | W184: -135950 | X184: =IF(X$10="",0,OFFSET(A2.HistoricalBalances!$E182,0,X$11)) -> -587764 | Y184: =IF(Y$10=ApprovedYr,A2.HistoricalBalances!$M182,X184) -> -587764 | AB184: -587764 | AC184: -587764 | AF184: -587764 | AG184: 2917805.98 | AJ184: 0 | AK184: 2260
B185: =""&Y2.ChartOfAccts!C183 -> 2262-Ontario Hydro Debt - Current Portion | C185: =""&Y2.ChartOfAccts!D183 -> 1650-Current Liabilities | D185: =Y2.ChartOfAccts!F183 -> 0 | E185: =IF(E$10="",0,OFFSET(A2.HistoricalBalances!$E183,0,E$11)) -> 0 | G185: 0 | H185: =IF(H$10="",0,OFFSET(A2.HistoricalBalances!$E183,0,H$11)) -> 0 | K185: 0 | L185: =IF(L$10="",0,OFFSET(A2.HistoricalBalances!$E183,0,L$11)) -> 0 | M185: 0 | O185: 0 | P185: =IF(P$10="",0,OFFSET(A2.HistoricalBalances!$E183,0,P$11)) -> 0 | Q185: =IF(Q$10="",0,OFFSET(A2.HistoricalBalances!$E183,0,Q$11)) -> 0 | S185: 0 | T185: =IF(T$10="",0,OFFSET(A2.HistoricalBalances!$E183,0,T$11)) -> 0 | U185: =IF(U$10="",0,OFFSET(A2.HistoricalBalances!$E183,0,U$11)) -> 0 | W185: 0 | X185: =IF(X$10="",0,OFFSET(A2.HistoricalBalances!$E183,0,X$11)) -> 0 | Y185: =IF(Y$10=ApprovedYr,A2.HistoricalBalances!$M183,X185) -> 0 | AB185: 0 | AC185: 0 | AF185: 0 | AG185: 0 | AJ185: 0 | AK185: 2262
B186: =""&Y2.ChartOfAccts!C184 -> 2264-Pensions and Employee Benefits - Current Portion | C186: =""&Y2.ChartOfAccts!D184 -> 1650-Current Liabilities | D186: =Y2.ChartOfAccts!F184 -> 0 | E186: =IF(E$10="",0,OFFSET(A2.HistoricalBalances!$E184,0,E$11)) -> 0 | G186: 0 | H186: =IF(H$10="",0,OFFSET(A2.HistoricalBalances!$E184,0,H$11)) -> 0 | K186: 0 | L186: =IF(L$10="",0,OFFSET(A2.HistoricalBalances!$E184,0,L$11)) -> 0 | M186: 0 | O186: 0 | P186: =IF(P$10="",0,OFFSET(A2.HistoricalBalances!$E184,0,P$11)) -> 0 | Q186: =IF(Q$10="",0,OFFSET(A2.HistoricalBalances!$E184,0,Q$11)) -> 0 | S186: 0 | T186: =IF(T$10="",0,OFFSET(A2.HistoricalBalances!$E184,0,T$11)) -> 0 | U186: =IF(U$10="",0,OFFSET(A2.HistoricalBalances!$E184,0,U$11)) -> 0 | W186: 0 | X186: =IF(X$10="",0,OFFSET(A2.HistoricalBalances!$E184,0,X$11)) -> 0 | Y186: =IF(Y$10=ApprovedYr,A2.HistoricalBalances!$M184,X186) -> 0 | AB186: 0 | AC186: 0 | AF186: 0 | AG186: 0 | AJ186: 0 | AK186: 2264
B187: =""&Y2.ChartOfAccts!C185 -> 2268-Accrued Interest on Long Term Debt | C187: =""&Y2.ChartOfAccts!D185 -> 1650-Current Liabilities | D187: =Y2.ChartOfAccts!F185 -> 0 | E187: =IF(E$10="",0,OFFSET(A2.HistoricalBalances!$E185,0,E$11)) -> 0 | G187: 0 | H187: =IF(H$10="",0,OFFSET(A2.HistoricalBalances!$E185,0,H$11)) -> 0 | K187: 0 | L187: =IF(L$10="",0,OFFSET(A2.HistoricalBalances!$E185,0,L$11)) -> 0 | M187: 0 | O187: 0 | P187: =IF(P$10="",0,OFFSET(A2.HistoricalBalances!$E185,0,P$11)) -> 0 | Q187: =IF(Q$10="",0,OFFSET(A2.HistoricalBalances!$E185,0,Q$11)) -> 0 | S187: 0 | T187: =IF(T$10="",0,OFFSET(A2.HistoricalBalances!$E185,0,T$11)) -> 0 | U187: =IF(U$10="",0,OFFSET(A2.HistoricalBalances!$E185,0,U$11)) -> 0 | W187: 0 | X187: =IF(X$10="",0,OFFSET(A2.HistoricalBalances!$E185,0,X$11)) -> 0 | Y187: =IF(Y$10=ApprovedYr,A2.HistoricalBalances!$M185,X187) -> 0 | AB187: 0 | AC187: 0 | AF187: 0 | AG187: 0 | AJ187: 0 | AK187: 2268
B188: =""&Y2.ChartOfAccts!C186 -> 2270-Matured Long Term Debt | C188: =""&Y2.ChartOfAccts!D186 -> 1650-Current Liabilities | D188: =Y2.ChartOfAccts!F186 -> 0 | E188: =IF(E$10="",0,OFFSET(A2.HistoricalBalances!$E186,0,E$11)) -> 0 | G188: 0 | H188: =IF(H$10="",0,OFFSET(A2.HistoricalBalances!$E186,0,H$11)) -> 0 | K188: 0 | L188: =IF(L$10="",0,OFFSET(A2.HistoricalBalances!$E186,0,L$11)) -> 0 | M188: 0 | O188: 0 | P188: =IF(P$10="",0,OFFSET(A2.HistoricalBalances!$E186,0,P$11)) -> 0 | Q188: =IF(Q$10="",0,OFFSET(A2.HistoricalBalances!$E186,0,Q$11)) -> 0 | S188: 0 | T188: =IF(T$10="",0,OFFSET(A2.HistoricalBalances!$E186,0,T$11)) -> 0 | U188: =IF(U$10="",0,OFFSET(A2.HistoricalBalances!$E186,0,U$11)) -> 0 | W188: 0 | X188: =IF(X$10="",0,OFFSET(A2.HistoricalBalances!$E186,0,X$11)) -> 0 | Y188: =IF(Y$10=ApprovedYr,A2.HistoricalBalances!$M186,X188) -> 0 | AB188: 0 | AC188: 0 | AF188: 0 | AG188: 0 | AJ188: 0 | AK188: 2270
B189: =""&Y2.ChartOfAccts!C187 -> 2272-Matured Interest on Long Term Debt | C189: =""&Y2.ChartOfAccts!D187 -> 1650-Current Liabilities | D189: =Y2.ChartOfAccts!F187 -> 0 | E189: =IF(E$10="",0,OFFSET(A2.HistoricalBalances!$E187,0,E$11)) -> 0 | G189: 0 | H189: =IF(H$10="",0,OFFSET(A2.HistoricalBalances!$E187,0,H$11)) -> 0 | K189: 0 | L189: =IF(L$10="",0,OFFSET(A2.HistoricalBalances!$E187,0,L$11)) -> 0 | M189: 0 | O189: 0 | P189: =IF(P$10="",0,OFFSET(A2.HistoricalBalances!$E187,0,P$11)) -> 0 | Q189: =IF(Q$10="",0,OFFSET(A2.HistoricalBalances!$E187,0,Q$11)) -> 0 | S189: 0 | T189: =IF(T$10="",0,OFFSET(A2.HistoricalBalances!$E187,0,T$11)) -> 0 | U189: =IF(U$10="",0,OFFSET(A2.HistoricalBalances!$E187,0,U$11)) -> 0 | W189: 0 | X189: =IF(X$10="",0,OFFSET(A2.HistoricalBalances!$E187,0,X$11)) -> 0 | Y189: =IF(Y$10=ApprovedYr,A2.HistoricalBalances!$M187,X189) -> 0 | AB189: 0 | AC189: 0 | AF189: 0 | AG189: 0 | AJ189: 0 | AK189: 2272
B190: =""&Y2.ChartOfAccts!C188 -> 2285-Obligations Under Capital Leases--Current | C190: =""&Y2.ChartOfAccts!D188 -> 1650-Current Liabilities | D190: =Y2.ChartOfAccts!F188 -> 0 | E190: =IF(E$10="",0,OFFSET(A2.HistoricalBalances!$E188,0,E$11)) -> 0 | G190: 0 | H190: =IF(H$10="",0,OFFSET(A2.HistoricalBalances!$E188,0,H$11)) -> 0 | K190: 0 | L190: =IF(L$10="",0,OFFSET(A2.HistoricalBalances!$E188,0,L$11)) -> 0 | M190: 0 | O190: 0 | P190: =IF(P$10="",0,OFFSET(A2.HistoricalBalances!$E188,0,P$11)) -> 0 | Q190: =IF(Q$10="",0,OFFSET(A2.HistoricalBalances!$E188,0,Q$11)) -> 0 | S190: 0 | T190: =IF(T$10="",0,OFFSET(A2.HistoricalBalances!$E188,0,T$11)) -> 0 | U190: =IF(U$10="",0,OFFSET(A2.HistoricalBalances!$E188,0,U$11)) -> 0 | W190: 0 | X190: =IF(X$10="",0,OFFSET(A2.HistoricalBalances!$E188,0,X$11)) -> 0 | Y190: =IF(Y$10=ApprovedYr,A2.HistoricalBalances!$M188,X190) -> 0 | AB190: 0 | AC190: 0 | AF190: 0 | AG190: 0 | AJ190: 0 | AK190: 2285
B191: =""&Y2.ChartOfAccts!C189 -> 2290-Commodity Taxes | C191: =""&Y2.ChartOfAccts!D189 -> 1650-Current Liabilities | D191: =Y2.ChartOfAccts!F189 -> 0 | E191: =IF(E$10="",0,OFFSET(A2.HistoricalBalances!$E189,0,E$11)) -> 0 | G191: 0 | H191: =IF(H$10="",0,OFFSET(A2.HistoricalBalances!$E189,0,H$11)) -> 0 | K191: 0 | L191: =IF(L$10="",0,OFFSET(A2.HistoricalBalances!$E189,0,L$11)) -> 0 | M191: 0 | O191: 0 | P191: =IF(P$10="",0,OFFSET(A2.HistoricalBalances!$E189,0,P$11)) -> 0 | Q191: =IF(Q$10="",0,OFFSET(A2.HistoricalBalances!$E189,0,Q$11)) -> 0 | S191: 0 | T191: =IF(T$10="",0,OFFSET(A2.HistoricalBalances!$E189,0,T$11)) -> 0 | U191: =IF(U$10="",0,OFFSET(A2.HistoricalBalances!$E189,0,U$11)) -> 0 | W191: 0 | X191: =IF(X$10="",0,OFFSET(A2.HistoricalBalances!$E189,0,X$11)) -> 0 | Y191: =IF(Y$10=ApprovedYr,A2.HistoricalBalances!$M189,X191) -> 0 | AB191: 0 | AC191: 0 | AF191: 0 | AG191: 0 | AJ191: 0 | AK191: 2290
B192: =""&Y2.ChartOfAccts!C190 -> 2292-Payroll Deductions / Expenses Payable | C192: =""&Y2.ChartOfAccts!D190 -> 1650-Current Liabilities | D192: =Y2.ChartOfAccts!F190 -> 0 | E192: =IF(E$10="",0,OFFSET(A2.HistoricalBalances!$E190,0,E$11)) -> 0 | G192: 0 | H192: =IF(H$10="",0,OFFSET(A2.HistoricalBalances!$E190,0,H$11)) -> 0 | K192: 0 | L192: =IF(L$10="",0,OFFSET(A2.HistoricalBalances!$E190,0,L$11)) -> 0 | M192: 0 | O192: 0 | P192: =IF(P$10="",0,OFFSET(A2.HistoricalBalances!$E190,0,P$11)) -> 0 | Q192: =IF(Q$10="",0,OFFSET(A2.HistoricalBalances!$E190,0,Q$11)) -> 0 | S192: 0 | T192: =IF(T$10="",0,OFFSET(A2.HistoricalBalances!$E190,0,T$11)) -> 0 | U192: =IF(U$10="",0,OFFSET(A2.HistoricalBalances!$E190,0,U$11)) -> 0 | W192: 0 | X192: =IF(X$10="",0,OFFSET(A2.HistoricalBalances!$E190,0,X$11)) -> 0 | Y192: =IF(Y$10=ApprovedYr,A2.HistoricalBalances!$M190,X192) -> 0 | AB192: 0 | AC192: 0 | AF192: 0 | AG192: 0 | AJ192: 0 | AK192: 2292
B193: =""&Y2.ChartOfAccts!C191 -> 2294-Accrual for Taxes, Payments in Lieu of Taxes, Etc. | C193: =""&Y2.ChartOfAccts!D191 -> 1650-Current Liabilities | D193: =Y2.ChartOfAccts!F191 -> 0 | E193: =IF(E$10="",0,OFFSET(A2.HistoricalBalances!$E191,0,E$11)) -> 0 | G193: 0 | H193: =IF(H$10="",0,OFFSET(A2.HistoricalBalances!$E191,0,H$11)) -> 0 | K193: -801261 | L193: =IF(L$10="",0,OFFSET(A2.HistoricalBalances!$E191,0,L$11)) -> -801261 | M193: 0 | O193: -72516 | P193: =IF(P$10="",0,OFFSET(A2.HistoricalBalances!$E191,0,P$11)) -> -72516 | Q193: =IF(Q$10="",0,OFFSET(A2.HistoricalBalances!$E191,0,Q$11)) -> -72516 | S193: 72516 | T193: =IF(T$10="",0,OFFSET(A2.HistoricalBalances!$E191,0,T$11)) -> 0 | U193: =IF(U$10="",0,OFFSET(A2.HistoricalBalances!$E191,0,U$11)) -> 0 | W193: 67012 | X193: =IF(X$10="",0,OFFSET(A2.HistoricalBalances!$E191,0,X$11)) -> 67012 | Y193: =IF(Y$10=ApprovedYr,A2.HistoricalBalances!$M191,X193) -> 67012 | AB193: 67012 | AC193: 67012 | AF193: 67012 | AG193: 1074813 | AJ193: 0 | AK193: 2294
B194: =""&Y2.ChartOfAccts!C192 -> 2296-Future Income Taxes - Current | C194: =""&Y2.ChartOfAccts!D192 -> 1650-Current Liabilities | D194: =Y2.ChartOfAccts!F192 -> 0 | E194: =IF(E$10="",0,OFFSET(A2.HistoricalBalances!$E192,0,E$11)) -> 0 | G194: 0 | H194: =IF(H$10="",0,OFFSET(A2.HistoricalBalances!$E192,0,H$11)) -> 0 | K194: 0 | L194: =IF(L$10="",0,OFFSET(A2.HistoricalBalances!$E192,0,L$11)) -> 0 | M194: 0 | O194: 0 | P194: =IF(P$10="",0,OFFSET(A2.HistoricalBalances!$E192,0,P$11)) -> 0 | Q194: =IF(Q$10="",0,OFFSET(A2.HistoricalBalances!$E192,0,Q$11)) -> 0 | S194: 0 | T194: =IF(T$10="",0,OFFSET(A2.HistoricalBalances!$E192,0,T$11)) -> 0 | U194: =IF(U$10="",0,OFFSET(A2.HistoricalBalances!$E192,0,U$11)) -> 0 | W194: 0 | X194: =IF(X$10="",0,OFFSET(A2.HistoricalBalances!$E192,0,X$11)) -> 0 | Y194: =IF(Y$10=ApprovedYr,A2.HistoricalBalances!$M192,X194) -> 0 | AB194: 0 | AC194: 0 | AF194: 0 | AG194: 0 | AJ194: 0 | AK194: 2296
B195: =""&Y2.ChartOfAccts!C193 -> 2305-Accumulated Provision for Injuries and Damages | C195: =""&Y2.ChartOfAccts!D193 -> 1700-Non-Current Liabilities | D195: =Y2.ChartOfAccts!F193 -> 0 | E195: =IF(E$10="",0,OFFSET(A2.HistoricalBalances!$E193,0,E$11)) -> 0 | G195: 0 | H195: =IF(H$10="",0,OFFSET(A2.HistoricalBalances!$E193,0,H$11)) -> 0 | K195: 0 | L195: =IF(L$10="",0,OFFSET(A2.HistoricalBalances!$E193,0,L$11)) -> 0 | M195: 0 | O195: 0 | P195: =IF(P$10="",0,OFFSET(A2.HistoricalBalances!$E193,0,P$11)) -> 0 | Q195: =IF(Q$10="",0,OFFSET(A2.HistoricalBalances!$E193,0,Q$11)) -> 0 | S195: 0 | T195: =IF(T$10="",0,OFFSET(A2.HistoricalBalances!$E193,0,T$11)) -> 0 | U195: =IF(U$10="",0,OFFSET(A2.HistoricalBalances!$E193,0,U$11)) -> 0 | W195: 0 | X195: =IF(X$10="",0,OFFSET(A2.HistoricalBalances!$E193,0,X$11)) -> 0 | Y195: =IF(Y$10=ApprovedYr,A2.HistoricalBalances!$M193,X195) -> 0 | AB195: 0 | AC195: 0 | AF195: 0 | AG195: 0 | AJ195: 0 | AK195: 2305
B196: =""&Y2.ChartOfAccts!C194 -> 2306-Employee Future Benefits | C196: =""&Y2.ChartOfAccts!D194 -> 1700-Non-Current Liabilities | D196: =Y2.ChartOfAccts!F194 -> 0 | E196: =IF(E$10="",0,OFFSET(A2.HistoricalBalances!$E194,0,E$11)) -> 0 | G196: 0 | H196: =IF(H$10="",0,OFFSET(A2.HistoricalBalances!$E194,0,H$11)) -> 0 | K196: -342850 | L196: =IF(L$10="",0,OFFSET(A2.HistoricalBalances!$E194,0,L$11)) -> -342850 | M196: 0 | O196: -334352.79 | P196: =IF(P$10="",0,OFFSET(A2.HistoricalBalances!$E194,0,P$11)) -> -334352.79 | Q196: =IF(Q$10="",0,OFFSET(A2.HistoricalBalances!$E194,0,Q$11)) -> -334352.79 | S196: -12399.71 | T196: =IF(T$10="",0,OFFSET(A2.HistoricalBalances!$E194,0,T$11)) -> -346752.5 | U196: =IF(U$10="",0,OFFSET(A2.HistoricalBalances!$E194,0,U$11)) -> -346752.5 | W196: 11588.5 | X196: =IF(X$10="",0,OFFSET(A2.HistoricalBalances!$E194,0,X$11)) -> -335164 | Y196: =IF(Y$10=ApprovedYr,A2.HistoricalBalances!$M194,X196) -> -335164 | AB196: -335164 | AC196: -335164 | AF196: -335164 | AG196: 2029447.29 | AJ196: 0 | AK196: 2306
B197: =""&Y2.ChartOfAccts!C195 -> 2308-Other Pensions - Past Service Liability | C197: =""&Y2.ChartOfAccts!D195 -> 1700-Non-Current Liabilities | D197: =Y2.ChartOfAccts!F195 -> 0 | E197: =IF(E$10="",0,OFFSET(A2.HistoricalBalances!$E195,0,E$11)) -> 0 | G197: 0 | H197: =IF(H$10="",0,OFFSET(A2.HistoricalBalances!$E195,0,H$11)) -> 0 | K197: 0 | L197: =IF(L$10="",0,OFFSET(A2.HistoricalBalances!$E195,0,L$11)) -> 0 | M197: 0 | O197: 0 | P197: =IF(P$10="",0,OFFSET(A2.HistoricalBalances!$E195,0,P$11)) -> 0 | Q197: =IF(Q$10="",0,OFFSET(A2.HistoricalBalances!$E195,0,Q$11)) -> 0 | S197: 0 | T197: =IF(T$10="",0,OFFSET(A2.HistoricalBalances!$E195,0,T$11)) -> 0 | U197: =IF(U$10="",0,OFFSET(A2.HistoricalBalances!$E195,0,U$11)) -> 0 | W197: 0 | X197: =IF(X$10="",0,OFFSET(A2.HistoricalBalances!$E195,0,X$11)) -> 0 | Y197: =IF(Y$10=ApprovedYr,A2.HistoricalBalances!$M195,X197) -> 0 | AB197: 0 | AC197: 0 | AF197: 0 | AG197: 0 | AJ197: 0 | AK197: 2308
B198: =""&Y2.ChartOfAccts!C196 -> 2310-Vested Sick Leave Liability | C198: =""&Y2.ChartOfAccts!D196 -> 1700-Non-Current Liabilities | D198: =Y2.ChartOfAccts!F196 -> 0 | E198: =IF(E$10="",0,OFFSET(A2.HistoricalBalances!$E196,0,E$11)) -> 0 | G198: 0 | H198: =IF(H$10="",0,OFFSET(A2.HistoricalBalances!$E196,0,H$11)) -> 0 | K198: 0 | L198: =IF(L$10="",0,OFFSET(A2.HistoricalBalances!$E196,0,L$11)) -> 0 | M198: 0 | O198: 0 | P198: =IF(P$10="",0,OFFSET(A2.HistoricalBalances!$E196,0,P$11)) -> 0 | Q198: =IF(Q$10="",0,OFFSET(A2.HistoricalBalances!$E196,0,Q$11)) -> 0 | S198: 0 | T198: =IF(T$10="",0,OFFSET(A2.HistoricalBalances!$E196,0,T$11)) -> 0 | U198: =IF(U$10="",0,OFFSET(A2.HistoricalBalances!$E196,0,U$11)) -> 0 | W198: 0 | X198: =IF(X$10="",0,OFFSET(A2.HistoricalBalances!$E196,0,X$11)) -> 0 | Y198: =IF(Y$10=ApprovedYr,A2.HistoricalBalances!$M196,X198) -> 0 | AB198: 0 | AC198: 0 | AF198: 0 | AG198: 0 | AJ198: 0 | AK198: 2310
B199: =""&Y2.ChartOfAccts!C197 -> 2315-Accumulated Provision for Rate Refunds | C199: =""&Y2.ChartOfAccts!D197 -> 1700-Non-Current Liabilities | D199: =Y2.ChartOfAccts!F197 -> 0 | E199: =IF(E$10="",0,OFFSET(A2.HistoricalBalances!$E197,0,E$11)) -> 0 | G199: 0 | H199: =IF(H$10="",0,OFFSET(A2.HistoricalBalances!$E197,0,H$11)) -> 0 | K199: 0 | L199: =IF(L$10="",0,OFFSET(A2.HistoricalBalances!$E197,0,L$11)) -> 0 | M199: 0 | O199: 0 | P199: =IF(P$10="",0,OFFSET(A2.HistoricalBalances!$E197,0,P$11)) -> 0 | Q199: =IF(Q$10="",0,OFFSET(A2.HistoricalBalances!$E197,0,Q$11)) -> 0 | S199: 0 | T199: =IF(T$10="",0,OFFSET(A2.HistoricalBalances!$E197,0,T$11)) -> 0 | U199: =IF(U$10="",0,OFFSET(A2.HistoricalBalances!$E197,0,U$11)) -> 0 | W199: 0 | X199: =IF(X$10="",0,OFFSET(A2.HistoricalBalances!$E197,0,X$11)) -> 0 | Y199: =IF(Y$10=ApprovedYr,A2.HistoricalBalances!$M197,X199) -> 0 | AB199: 0 | AC199: 0 | AF199: 0 | AG199: 0 | AJ199: 0 | AK199: 2315
B200: =""&Y2.ChartOfAccts!C198 -> 2320-Other Miscellaneous Non-Current Liabilities | C200: =""&Y2.ChartOfAccts!D198 -> 1700-Non-Current Liabilities | D200: =Y2.ChartOfAccts!F198 -> 0 | E200: =IF(E$10="",0,OFFSET(A2.HistoricalBalances!$E198,0,E$11)) -> 0 | G200: 0 | H200: =IF(H$10="",0,OFFSET(A2.HistoricalBalances!$E198,0,H$11)) -> 0 | K200: 0 | L200: =IF(L$10="",0,OFFSET(A2.HistoricalBalances!$E198,0,L$11)) -> 0 | M200: 0 | O200: 0 | P200: =IF(P$10="",0,OFFSET(A2.HistoricalBalances!$E198,0,P$11)) -> 0 | Q200: =IF(Q$10="",0,OFFSET(A2.HistoricalBalances!$E198,0,Q$11)) -> 0 | S200: 0 | T200: =IF(T$10="",0,OFFSET(A2.HistoricalBalances!$E198,0,T$11)) -> 0 | U200: =IF(U$10="",0,OFFSET(A2.HistoricalBalances!$E198,0,U$11)) -> 0 | W200: 0 | X200: =IF(X$10="",0,OFFSET(A2.HistoricalBalances!$E198,0,X$11)) -> 0 | Y200: =IF(Y$10=ApprovedYr,A2.HistoricalBalances!$M198,X200) -> 0 | AB200: 0 | AC200: 0 | AF200: 0 | AG200: 0 | AJ200: 0 | AK200: 2320
B201: =""&Y2.ChartOfAccts!C199 -> 2325-Obligations Under Capital Lease--Non-Current | C201: =""&Y2.ChartOfAccts!D199 -> 1700-Non-Current Liabilities | D201: =Y2.ChartOfAccts!F199 -> 0 | E201: =IF(E$10="",0,OFFSET(A2.HistoricalBalances!$E199,0,E$11)) -> 0 | G201: 0 | H201: =IF(H$10="",0,OFFSET(A2.HistoricalBalances!$E199,0,H$11)) -> 0 | K201: 0 | L201: =IF(L$10="",0,OFFSET(A2.HistoricalBalances!$E199,0,L$11)) -> 0 | M201: 0 | O201: 0 | P201: =IF(P$10="",0,OFFSET(A2.HistoricalBalances!$E199,0,P$11)) -> 0 | Q201: =IF(Q$10="",0,OFFSET(A2.HistoricalBalances!$E199,0,Q$11)) -> 0 | S201: 0 | T201: =IF(T$10="",0,OFFSET(A2.HistoricalBalances!$E199,0,T$11)) -> 0 | U201: =IF(U$10="",0,OFFSET(A2.HistoricalBalances!$E199,0,U$11)) -> 0 | W201: 0 | X201: =IF(X$10="",0,OFFSET(A2.HistoricalBalances!$E199,0,X$11)) -> 0 | Y201: =IF(Y$10=ApprovedYr,A2.HistoricalBalances!$M199,X201) -> 0 | AB201: 0 | AC201: 0 | AF201: 0 | AG201: 0 | AJ201: 0 | AK201: 2325
B202: =""&Y2.ChartOfAccts!C200 -> 2330-Development Charge Fund | C202: =""&Y2.ChartOfAccts!D200 -> 1700-Non-Current Liabilities | D202: =Y2.ChartOfAccts!F200 -> 0 | E202: =IF(E$10="",0,OFFSET(A2.HistoricalBalances!$E200,0,E$11)) -> 0 | G202: 0 | H202: =IF(H$10="",0,OFFSET(A2.HistoricalBalances!$E200,0,H$11)) -> 0 | K202: 0 | L202: =IF(L$10="",0,OFFSET(A2.HistoricalBalances!$E200,0,L$11)) -> 0 | M202: 0 | O202: 0 | P202: =IF(P$10="",0,OFFSET(A2.HistoricalBalances!$E200,0,P$11)) -> 0 | Q202: =IF(Q$10="",0,OFFSET(A2.HistoricalBalances!$E200,0,Q$11)) -> 0 | S202: 0 | T202: =IF(T$10="",0,OFFSET(A2.HistoricalBalances!$E200,0,T$11)) -> 0 | U202: =IF(U$10="",0,OFFSET(A2.HistoricalBalances!$E200,0,U$11)) -> 0 | W202: 0 | X202: =IF(X$10="",0,OFFSET(A2.HistoricalBalances!$E200,0,X$11)) -> 0 | Y202: =IF(Y$10=ApprovedYr,A2.HistoricalBalances!$M200,X202) -> 0 | AB202: 0 | AC202: 0 | AF202: 0 | AG202: 0 | AJ202: 0 | AK202: 2330
... 301 more rows

Sheet B2.DepreciationCalcs (hidden)
B1: RateMaker 2011 release 1.0 © Elenchus Research Associates
A2: B2 | B2: Westario Power (ED-2002-0515)
B3: 2013 EDR Application () version: 1
B4: April 27, 2012
B6: B2 Depreciation Calculations
B7: Enter fully depreciated balances and depreciation rates
A9: Go to Overview | N9: 2009 Opening Balances | R9: 2009 Approved | V9: 2009 Gross Ending Balances | Z9: 2009 Actual | AD9: 2009 Actual Gross Ending Balances | AH9: 2010 Actual | AL9: 2010 Actual Gross Ending Balances | AP9: 2011 Actual | AT9: 2011 Actual Gross Ending Balances | AX9: 2012 Projection | BB9: 2012 Projection Gross Ending Balances | BF9: 2013
B10: Gross Capital Asset Account | C10: Account Grouping | D10: Rates | M10: Total | N10: Fully Depreciated | O10: Depreciable Amount (a) | P10: Additions (b) | Q10: Retirements / Other (c) | R10: Total to Depreciate (d) | S10: Avg Useful Life in Years (e) | T10: Depreciation Expense (f) | U10: Total | V10: Fully Depreciated | W10: Depreciable Amount (a) | X10: Additions (b) | Y10: Retirements / Other (c) | Z10: Variance to Depreciate | AA10: Avg Useful Life in Years (e) | AB10: Depreciation Expense (f) | AC10: Total | AD10: Fully Depreciated | AE10: Depreciable Amount (a) | AF10: Additions (b) | AG10: Retirements / Other (c) | AH10: Total to Depreciate (d) | AI10: Avg Useful Life in Years (e) | AJ10: Depreciation Expense (f) | AK10: Total | AL10: Fully Depreciated | AM10: Depreciable Amount (a) | AN10: Additions (b) | AO10: Retirements / Other (c) | AP10: Total to Depreciate (d) | AQ10: Avg Useful Life in Years (e) | AR10: Depreciation Expense (f) | AS10: Total | AT10: Fully Depreciated | AU10: Depreciable Amount (a) | AV10: Additions (b) | AW10: Retirements / Other (c) | AX10: Total to Depreciate (d) | AY10: Avg Useful Life in Years (e) | AZ10: Depreciation Expense (f) | BA10: Total | BB10: Fully Depreciated | BC10: Depreciable Amount (a) | BD10: Additions (b) | BE10: Retirements / Other (c) | BF10: Total to Depreciate (d) | BG10: Avg Useful Life in Years (e) | BH10: Depreciation Expense (f) | BI10: Non-zero
D11: X | E11: 5 | L11: 5 | M11: 5 | T11: 5 | U11: 5 | AB11: 5 | AC11: 5 | AJ11: 5 | AK11: 5 | AR11: 5 | AS11: 5 | AZ11: 5 | BA11: 5 | BH11: 5
B12: 1005-Cash | C12: 1050-Current Assets | D12: 0 | E12: 0 | G12: 0 | H12: 0 | I12: 0 | J12: 0 | L12: 0 | M12: 0 | O12: 0 | P12: 0 | Q12: 1578458 | R12: 789229 | T12: 0 | U12: 0 | W12: 0 | X12: 0 | Y12: 2612166.11 | Z12: 516854.055 | AB12: 0 | AC12: 2612166.11 | AE12: 2612166.11 | AF12: 0 | AG12: 1532144.76 | AH12: 3378238.49 | AJ12: 0 | AK12: 4144310.87 | AM12: 4144310.87 | AN12: 0 | AO12: 1404755.13 | AP12: 4846688.435 | AR12: 0 | AS12: 5549066 | AU12: 5549066 | AV12: 0 | AW12: 0 | AX12: 5549066 | AZ12: 0 | BA12: 5549066 | BC12: 5549066 | BD12: 0 | BE12: 0 | BF12: 5549066 | BH12: 0 | BI12: 0
